Workbook

Sheet Release-TODO (hidden)
B2: Release History
B3: 14.3.1 | C3: Ajout de boutons "Hide Column" sur interface Web.
B4: 14.3 | C4: Compatibility with FISTF-Event-Report-Template-2023-V5,0.xlsx
B5: 14.2 | C5: Compatibility with FISTF-Event-Report-Template-2023-V4.7.xlsx Compatibility with new official FISTF Formula in competition HB V3 for 11 & 12 groups
B6: 14.1 | C6: Proposed formula (at the bottom of Checkin List) to display ranking of players within teams.
B7: 14 | C7: Addition of 6 new Event categories (mainly to manage World Cup) Addition of 2nd lot for Draw 5 new columns on the right of planning to show which kind of conflicts for referees Addition of the Score column in the Planning on GMFT Competition Website Different bug corrections detected during WC2024.
B8: 13.5 | C8: Compatibility with the change of Ladies in Women
B9: 13.4 | C9: Compatibility with FISTF-Event-Report-Template-2023-V4.6.xlsx
B10: 13.3 | C10: Bug correction : bug in web export for events with match for 3rd place
B11: 13.2 | C11: Compatibility of GMFT with new FISTF Event Results file - FISTF-Event-Report-Template-2023-V4.0.1
B12: 13.1 | C12: Compatibility of GMFT with new Tournament Organisation Handbook Version 2.1 - 2023-08-26
B13: 13 | C13: Compatibility of GMFT with new FISTF Event Results file - FISTF-Event-Report-Template-2023-V2.5
B14: 12.2 | C14: Bug correction : Details in Teams group of 5 ranking
B15: 12.1 | C15: Minor corrections for Teams Checkin help form & Parameters sheet
B16: 12.0 | C16: Compatibility of GMFT with new FISTF Event Results file - FISTF-Event-Report-Template-2023-V2.3
B17: 11.0 | C17: New group formula for order of matches and equity for "home" games (see 2023 Organisers Handbook version) New GMFT logo - Many thanks to Skander Farza !
B18: 10.2.2 | C18: Bug correction : Export/Import Scorer Table
B19: 10.2.1 | C19: Performance enhancement : memory freeing with set XXX = Nothing
B20: 10.2 | C20: Dashboard display Event and no more Category of Event
B21: 10.1 | C21: Add of fill in help form for teams regictration cheet.
B22: 10 | C22: Compatibility with new Database & WR FISTF file published each month - This file is produce with the FISTF_Database&WR-Synthesis.xlsm program.
B23: 9.4.2 | C23: Correction of a minor display bug in "Ranking Teams" sheet in cells D2 & D3
B24: 9.4.1 | C24: Correction of a bug in Management of new FISTF Categories U20 & U16
B25: 9.4 | C25: Add column "Licence" into the "Clubs" sheet Management of new FISTF Categories U20 & U16
B26: 9.3 | C26: Translation to Spanish and Catalan thanks to Ferran Borbones from Barcelona Futbol Table club.
B27: 9.2 | C27: New feature : - In addition to printing, results may be published as PDF files => add of a button "Save Results as PDF" in Ribbon's group "Printing / Publishing" in the context of the "Home" worksheet Interface update : - upgrade to be compliant with the new FISTF Database format (change of the column name from "NAME" to "Family Name") - GMFT Websites templates : - change of folder tree => this way only one http server for all websites templates - Creation of a GMFT website to point to all Website templates - Change of the local http server : now GMFT use Miniweb (http://miniweb.sourceforge.net/) to validate websites before their publication on target server. No more need to kill process to spot htpp server; only close Dos window.
B28: 9.1 | C28: Bug Correction : - Clear filter on refereeeing sheet before Validate Checkin - "Exlude number of already refereed matches" now taken into account within the "Use only these disqualiified players" tab
B29: 9.0 | C29: Add of Registrations Export => possibility to include Registrations Tables in different themes into Organizer web site
B30: 8.0 | C30: Use of ribbon in place of buttons in each sheets. => Old Excel .xls format no more supported => Excel 2007 or more is now necessary
B31: 7.0 | C31: Automatic Draws Display of Release History
B32: 6.3.3 | C32: Podium sheet to help organizer to present trophies Minor bugs corrections
B33: 6.3.2 | C33: Increase from 9 to 18, the max number of events per file, but still 9 categories => capability to manage tournaments B for each category
B34: 6.3.1 | C34: New models for Scoresheets Better management of Venue
B35: 6.3 | C35: Better management of Lock/Unlock Icons Venue sheet : bug fix on (group of) tables Naming & unnaming, and optimisation of style copy management of cells
B36: 6.2 | C36: New version of FISTF Database compatibility
B37: 6.1 | C37: Correction of WebExport in case of a mix of ind. & Teams
B38: 6.0 | C38: Add of the Dashboard & Timer capability. Called from Planning sheet. Planning sheet : Suppress of "Save All" & "Clean #Ref" functions
B39: 5.3 | C39: Add of the team ranking management with sort of teams by rank on web
B40: 5.2 | C40: Bug correction following French Cup 2017 : - List of Doubles in the "Dble Group" model sheet
B41: 5.1 | C41: Bug correction following Champions League 2017 : - Stats for individual matches of team event - Bad initialisation value in export scoresheet popup Venue : Add of Undefine buttons
B42: 5.0 | C42: Official version with Web support Italian translation thanks to Francesco Lo Presti
B43: 4.8.2 | C43: Corrections from WC2017 (change of formula for playoff for 60 players => FISTF formula is false) Checkin : Extent to the 9 categories for ranking (columns AD to AF) Licences : Change of validation of values for categories : restrict to FISTF categories of age Web generation : multilingual
B44: 4.8.1 | C44: Venue upgrade
B45: 4.8 | C45: Web Site results generation
B46: 4.7.3 | C46: Checkin Player Form : Help for Player name searching
B47: 4.7.2 | C47: Excel2013 compatibility
B48: 4.7.1 | C48: Import Players & Clubs from "Database WR FISTF.xlsm" file : small adaptation to new file version
B49: 4.7 | C49: Individual Groups : New formula for Group of 5 with two-legged Timeline : Add of table name for each match
B50: 4.6.a | C50: Minor bug correction for checkin sheet
B51: 4.6 | C51: Player's Timeline - With the planning, the Timeline sheet display for each player his timeline of playing and refereeing
B52: 4.5.1 | C52: Bug correction for FormatConditions on Planning. => compatibility pb with Office2007.
B53: 4.5 | C53: Feedback from2015 WC. Some minor bugs I forgot !
B54: 4.4 | C54: Venue - Now the Venue sheet show for each Session the tables occupation by displaying players, referees or stage for each table.
B55: 4.3 | C55: Performances - some format simplifications for performance optimization (sensible on event generation) Refereeing - Full referee management for teams (random assignment, same exclusion criteria as for individuals, number of matches refereed) Scoresheets - Team scorsheet improvement with player list of each team
B56: 4.2 | C56: GMFT Logo is born ! - the new GMFT logo replace the "?" icon Automatic Assignment of Referees : - Improved exclusion criteria : may be used to exclude some players from refereeing, based on player's category (FISTF & played event) and Nb of matches already refereed - New choice criteria : Losing players of previous round Free composition of Event : - Add the possibility to have a Play-Off for the Third Place Bug Correction : - Conditional Formats on planning and Results sheets - Error during planning export when draw sheets are hidden Export Planning & Results : - Now the planning & results are left open after the export Home : - Possibility to hide or show all Draw sheets
B57: 4.1 | C57: Bug Correction : - Ranking not copied in the Draw sheets (for categories after Open & Veteran) - Ranking points not filled in the results sheets
B58: 4.0 | C58: Automatic Assignment of Referees : - Available Referees may be randomly affected to the matches selected or of the whole session - Icons are shown if necessary for each referee to warn if conflicts of club/nationality/group are to be solved Referees Switch : - User can select 2 referees to exchange their match - A control of conflicts is processed on these 2 new assignments New functions for planning organization : - Possibility to move selected matches to previous or next Session - Possibility to move selected matches to a defined session
B59: 3.0 | C59: Performance enhancement : Lot of complex formula replaced by programmatic updates - Sheets concerned : Checkin, Refereeing, Stats - These sheets may be refreshed by hand with a clic on the new Icon on top. Draw system now included from the original Idea used on Madrid's WC in 2013 - a new Icon on each Event sheet, proposes to generate the draw system for that Event. Parameter sheet : update of official FISTF criteria in group position computing In a group stage, group positions should be determined as follows: Individuals : 1. Number of points won. 2. Result(s) of the direct match(es) between the players that have the same points. 3. Goal difference in the match(es) between the players that have the same points. 4. Most goals scored in the match(es) between the players that have the same points. 5. Total goal difference. 6. Most goals scored. 7. Shoot-out Teams : 1. Number of points won. 2. Result(s) of the direct match(es) between the teams that have the same points. 3. Individual wins difference in the match(es) between the teams that have the same points. 4. Most individual wins achieved in the match(es) between the teams that have the same points. 5. Total individual wins difference. 6. Most individual wins achieved. 7. Goal difference in the match(es) between the teams that have the same points. 8. Most goals scored in the match(es) between the teams that have the same points. 9. Total goal difference. 10. Most goals scored. 11. Shoot-out Small enhancements : - Planning : stage cells get color of the corresponding category (defined in Parameter sheet) - Export Planning : more fields exported and possibility to have formula based on exported values
B60: 2.23 | C60: Bug correction : Export Results : Bug if no events created before => msg to prevent Export Results : Tournament Title of the model sheet were not updated Team referees : Increase to up to 17 sessions to manage referees ScoreSheets : For teams & Dbles, if players were fulfilled in GMFT, then print players and referees names Group Players : Possibility to choose "[---WithDraw---]"
B61: 2.22 | C61: Bug correction : Error in the build of FISTF formulas with more than 4 players per group.
B62: 2.21 | C62: New : Take into account of new FISTF official formula for competitions with up to 128 players and the choice of group of 3 to 10.
B63: 2.20 | C63: New : Change of the score display in team group ranking (from column BC): now the syntax is "M(G)" where M is individual games won and G is Goals Bug : Team groups : Correction of a bad calculation of Particular Differentials in case of equality of mathes and goals. Team matches in Planning : Bad list of Substitute (S1, S2, S3, S4) Planning : Correction to control of same group for referee, only on stages of groups
B64: 2.19 | C64: New : Add of Champion ship groups up to 20 players
B65: 2.18.d | C65: Bug correction : Export Results - algorithme correction in case of categorized export (only some groups are exported) Filter on name doesn't applies to referee
B66: 2.18.c | C66: Bug correction : Highlighting player names when the same player/team name appears in more than 1 place in groups New : Scoresheets : Added Session Number and Half Time Score (for Individuals only)
B67: 2.18.b | C67: FISTF Licence file has changed => update of formulas in GMFT !
B68: 2.18.a | C68: Parameter sheet : update of official FISTF criteria in group position computing In a group stage, group positions should be determined as follows: 1. Number of points won 2. Results(s) of the direct match(es) 3. Total goal difference 4. Most goals scored 5. Shoot-out
C69: Bug Correction : mod_Import_FISTF_WR Sub CopyCategory => add ".Select" to have only one sheet selected before copying FISTF WR Data
B70: 2.18 | C70: Final version
B72: TO DO
C73: Correct bug : No Web Export when 2 team events have the same Category
C74: Externalize model to make file lighter
B77: Nice to have
C78: "Export Results" format on Web => all on the same page

Sheet language (hidden)
B1: =COUNTA(D2:L2) -> 5 | C1: BE CRREFULL : Each term corresponds to an Excel name in the Column B Thus manipulate this sheet with caution ! | D1: DON'T SORT DATA ! NO INSERT, NOR DELETE ! JUST MODIFICATIONS OF TRANSLATIONS OR COMPLETION OF ??
B2: Terms | C2: Description | D2: FR | E2: EN | F2: IT | G2: SP | H2: CAT
B3: =HLOOKUP(Language,D$2:L$1113,ROW()-1,FALSE) -> Time | C3: =NAMEOF(B3) -> N_Heure | D3: Heure | E3: Time | F3: Tempo | G3: Tiempo | H3: Temps
B4: Table | C4: N_Table | D4: Table | E4: Table | F4: Tavolo | G4: Mesa | H4: Taula
B5: Tables | C5: N_Tables | D5: Tables | E5: Tables | F5: Tavoli | G5: Mesas | H5: Taules
B6: Referee | C6: N_Arbitre | D6: Arbitre | E6: Referee | F6: Arbitro | G6: Arbitro | H6: Àrbitre
B7: Goals | C7: N_Buts | D7: Buts | E7: Goals | F7: Goals | G7: Goles | H7: Gols
B8: SD | C8: N_MS | D8: MS | E8: SD | F8: SD | G8: SD | H8: SD
B9: Pen. | C9: N_Diff | D9: Diff | E9: Pen. | F9: Pen. | G9: Pen. | H9: Pen.
B10: Stage | C10: N_Catégorie | D10: Stade de l'épreuve | E10: Stage | F10: Stage | G10: Sesión | H10: Sessió
B11: Team name | C11: N_Nom_équipe | D11: Nom équipe | E11: Team name | F11: Nome Squadra | G11: Nombre Equipo | H11: Nom de l'equip
B12: Double name | C12: N_Nom_double | D12: Nom double | E12: Double name | F12: Cognome | G12: Apellido | H12: Cognom
B13: Team members | C13: N_Membres | D13: Membres | E13: Team members | F13: Giocatori della Squadra | G13: Miembros Equipo | H13: Membres de l'equip
B14: Table N° | C14: N_N__de_table | D14: N° de table | E14: Table N° | F14: Tavolo N° | G14: Mesa Nº | H14: Taula núm.
B15: Draw | C15: N_Tirage | D15: Tirage | E15: Draw | F15: Sorteggio | G15: Sorteo | H15: Sorteig
B16: Players | C16: N_Joueurs | D16: Joueurs | E16: Players | F16: Giocatori | G16: Jugadores | H16: Jugadors
B17: Rk | C17: N_Cla. | D17: Cla. | E17: Rk | F17: Rk | G17: Rk | H17: Rk
B18: Pts | C18: N_Pts | D18: Pts | E18: Pts | F18: Punti | G18: Pts | H18: Pts | I18: Points
B19: Pld | C19: N_J | D19: J | E19: Pld | F19: PG | G19: J | H19: J | I19: Matches played
B20: W | C20: N_G | D20: G | E20: W | F20: V | G20: V | H20: V | I20: Victories
B21: D | C21: N_N | D21: N | E21: D | F21: P | G21: E | H21: E | I21: Draw
B22: L | C22: N_P | D22: P | E22: L | F22: S | G22: P | H22: P | I22: Loses
B23: F | C23: N_BP | D23: BP | E23: F | F23: Goal Fatti | G23: GF | H23: GF | I23: goals for
B24: A | C24: N_BC | D24: BC | E24: A | F24: Goal Subiti | G24: GC | H24: GC | I24: Goals Against
B25: SO | C25: N_Diff. | D25: Diff. | E25: SO | F25: Diff. | G25: Diff. | H25: Diff. | I25: Goals Difference
B26: Matches | C26: N_Matches | D26: Matches | E26: Matches | F26: Matches | G26: Partidos | H26: Partits
B27: Teams | C27: N_Equipes | D27: Equipes | E27: Teams | F27: Squadre | G27: Equipos | H27: Equips
B28: PldE | C28: N_RJ | D28: RJ | E28: PldE | F28: IG | G28: PJ | H28: PJ | I28: Team encounter played
B29: WE | C29: N_RG | D29: RG | E29: WE | F29: IV | G29: PG | H29: PG | I29: Team encounter won
B30: DE | C30: N_RN | D30: RN | E30: DE | F30: IP | G30: Pen. | H30: PE | I30: Team encounter draw
B31: LE | C31: N_RP | D31: RP | E31: LE | F31: Incontro Perso | G31: PP | H31: PP | I31: Team encounter loses
B32: ED | C32: N_Diff_R | D32: Diff R | E32: ED | F32: Diff. Sq | G32: Diff. Eq | H32: Diff. Eq | I32: Diff. Team encounter Won-Loses
B33: WM | C33: N_MP | D33: MP | E33: WM | F33: VS | G33: IV | H33: IG | I33: Individual Matches Won
B34: LM | C34: N_MC | D34: MC | E34: LM | F34: PS | G34: IP | H34: IE | I34: Individual Matches Loses
B35: MD | C35: N_Diff_M | D35: Diff M | E35: MD | F35: Diff. M | G35: Diff. M | H35: Diff. M | I35: Diff. Individual Matches
B36: GD | C36: N_Diff_B | D36: Diff B | E36: GD | F36: Diff. G | G36: Diff. G | H36: Diff. G | I36: Diff. Goals
B37: Scores | C37: N_Scores | D37: Scores | E37: Scores | F37: Scores | G37: Resultados | H37: Resultats
B38: Total goals | C38: N_Total_buts | D38: Total des buts | E38: Total goals | F38: Goal totali | G38: Total Goles | H38: Total Gols
B39: Shoot Out | C39: N_Différentiel | D39: Différentiel | E39: Shoot Out | F39: Eliminato | G39: Eliminado | H39: Eliminat
B40: WINNER | C40: N_VAINQUEUR | D40: VAINQUEUR | E40: WINNER | F40: Vincitore | G40: Vencedor | H40: Guanyador
B41: Qualified | C41: N_Qualifiés | D41: Qualifiés | E41: Qualified | F41: Qualificato | G41: Clasificado | H41: Clasificat
B42: Disqualified | C42: =NAMEOF(B42) -> N_Disqualified | D42: Disqualifiés | E42: Disqualified | F42: Squalificato | G42: Eliminado | H42: Eliminat
B43: Finalist | C43: =NAMEOF(B43) -> N_Finalist | D43: Finaliste | E43: Finalist | F43: Finalista | G43: Finalista | H43: Finalista
B44: Third | C44: =NAMEOF(B44) -> N_ThirdWinner | D44: Troisième | E44: Third | F44: Terzo | G44: Tercero | H44: Tercer
B45: Fourth | C45: =NAMEOF(B45) -> N_ThirdLoser | D45: Quatrième | E45: Fourth | F45: Quarto | G45: Cuarto | H45: Cuart
B46: Group | C46: N_Poule | D46: Poule | E46: Group | F46: Girone | G46: Grupo | H46: Grup
B47: 2nd of Group | C47: N__2èmes_de_Poule | D47: 2èmes de Poule | E47: 2nd of Group | F47: secondo del girone | G47: 2º de Grupo | H47: 2º de Grup
B48: 2nd Ranking | C48: N_Class._2èmes_de_Poule | D48: Class. 2èmes de Poule | E48: 2nd Ranking | F48: secondo del ranking | G48: 2º de Ranking | H48: 2º de Ranking
B49: 3rd of Group | C49: N__3èmes_de_Poule | D49: 3èmes de Poule | E49: 3rd of Group | F49: terzo del girone | G49: 3º de Grupo | H49: 3º de Grup
B50: 3rd Ranking | C50: N_Class._3èmes_de_Poule | D50: Class. 3èmes de Poule | E50: 3rd Ranking | F50: terzo del ranking | G50: 3º de Ranking | H50: 3º de Ranking
B51: FINAL | C51: N_FINALE | D51: FINALE | E51: FINAL | F51: Finale | G51: Final | H51: Final
B52: PLAY-OFF for 3rd PLACE | C52: N_THIRD | D52: PETITE FINALE | E52: PLAY-OFF for 3rd PLACE | F52: Finale 3-4 Posto | G52: 3 y 4 Puesto | H52: 3 y 4 lloc
B53: SEMI FINAL | C53: N_DEMI_FINALE | D53: 1/2 FINALES | E53: SEMI FINAL | F53: Semifinale | G53: Semifinal | H53: Semifinal
B54: LAST 8 | C54: N_QUART_DE_FINALE | D54: 1/4 DE FINALE | E54: LAST 8 | F54: Ottavi | G54: Cuartos | H54: Quarts
B55: LAST 16 | C55: N__1_8_DE_FINALE | D55: 1/8 DE FINALE | E55: LAST 16 | F55: Sedicesimi | G55: Octavos | H55: Vuitens
B56: LAST 32 | C56: N__1_16_DE_FINALE | D56: 1/16 DE FINALE | E56: LAST 32 | F56: Trentaduesimi | G56: Dieciseisavos | H56: Setzens
B57: LAST 64 | C57: N__1_32_DE_FINALE | D57: 1/32 DE FINALE | E57: LAST 64 | F57: Sessantaquattresimi | G57: Treintaidosavos | H57: Ultims 64
B58: LAST 128 | C58: N__1_64_DE_FINALE | D58: 1/64 DE FINALE | E58: LAST 128 | F58: last 128 | G58: Ultimos 128 | H58: Ultims 128
B59: LAST 256 | C59: N__1_128_DE_FINALE | D59: 1/128 DE FINALE | E59: LAST 256 | F59: last 256 | G59: Ultimos 256 | H59: Ultims 256
B60: Groups | C60: N_Groups | D60: Poules | E60: Groups | F60: Girone | G60: Grupos | H60: Grups
B61: 1st round | C61: N_1st_Round | D61: 1er tour | E61: 1st round | F61: primo turno | G61: 1ª Ronda | H61: 1ª Ronda
B62: PLAY-OFF | C62: N_BARRAGES | D62: BARRAGES | E62: PLAY-OFF | F62: Barrages | G62: Barrages | H62: Barrages
B63: Part-Diff | C63: N_Diff_Part | D63: Diff-Part | E63: Part-Diff | F63: Differenze particolari | G63: Dif. Particular | H63: Dif. Particular
B64: 3rd place FINAL | C64: N_Petite_FINALE | D64: Petite FINALE | E64: 3rd place FINAL | F64: terzo posto | G64: 3er Puesto | H64: 3er Lloc
B65: Diff | C65: N_res_Diff | D65: Diff | E65: Diff | F65: diff | G65: Dif. | H65: Dif.
B66: sd | C66: N_res_MS | D66: ms | E66: sd | F66: sd | G66: sd | H66: sd
B67: =HLOOKUP(Language,D$2:L$1113,ROW()-1,FALSE) -> Event | C67: N_Epreuve | D67: Epreuve | E67: Event | F67: evento | G67: Evento | H67: Evento
B68: Stage | C68: N_Stade_Epreuve | D68: Stade | E68: Stage | F68: stage | G68: Sesión | H68: Sesió
B69: Match Type | C69: N_Type_Match | D69: Type de match | E69: Match Type | F69: Fase di gioco | G69: Fase de Juego | H69: Fase de Joc
B70: FAMILY NAME / Given name | C70: =NAMEOF(B70) -> N_Name_1stname | D70: NOM / Prénom | E70: FAMILY NAME / Given name | F70: Nome | G70: Nombre | H70: Nom
B71: Licence N° | C71: N_Licence | D71: N° Licence | E71: Licence N° | F71: N° FISTF | G71: Nº Licencia | H71: Nº llicència
B72: Club | C72: N_Club | D72: Club | E72: Club | F72: Club | G72: Club | H72: Club
B73: Category | C73: N_Category | D73: Catégorie | E73: Category | F73: Categoria | G73: Categoria | H73: Categoria
B74: Referee | C74: DON'T CHANGE THIS TERM ! Term must be the same for all languages | D74: Referee | E74: Referee | F74: Referee | G74: Referee | H74: Referee | I74: Referee | J74: Referee | K74: Referee | L74: Referee
B75: Open | C75: DON'T CHANGE THIS TERM ! Term must be the same for all languages | D75: Open | E75: Open | F75: Open | G75: Open | H75: Open | I75: Open | J75: Open | K75: Open | L75: Open
B76: Veterans | C76: DON'T CHANGE THIS TERM ! Term must be the same for all languages | D76: Veterans | E76: Veterans | F76: Veterans | G76: Veterans | H76: Veterans | I76: Veterans | J76: Veterans | K76: Veterans | L76: Veterans
B77: U40 | C77: DON'T CHANGE THIS TERM ! Term must be the same for all languages | D77: U40 | E77: U40 | F77: U40 | G77: U40 | H77: U40 | I77: U40 | J77: U40 | K77: U40 | L77: U40
B78: =HLOOKUP(Language,D$2:L$1113,ROW()-1,FALSE) -> U20 | C78: DON'T CHANGE THIS TERM ! Term must be the same for all languages | D78: U20 | E78: U20 | F78: U20 | G78: U20 | H78: U20 | I78: U20 | J78: U20 | K78: U20 | L78: U20
B79: U19 | C79: DON'T CHANGE THIS TERM ! Term must be the same for all languages | D79: U19 | E79: U19 | F79: U19 | G79: U19 | H79: U19 | I79: U19 | J79: U19 | K79: U19 | L79: U19
B80: =HLOOKUP(Language,D$2:L$1113,ROW()-1,FALSE) -> U16 | C80: DON'T CHANGE THIS TERM ! Term must be the same for all languages | D80: U16 | E80: U16 | F80: U16 | G80: U16 | H80: U16 | I80: U16 | J80: U16 | K80: U16 | L80: U16
B81: U15 | C81: DON'T CHANGE THIS TERM ! Term must be the same for all languages | D81: U15 | E81: U15 | F81: U15 | G81: U15 | H81: U15 | I81: U15 | J81: U15 | K81: U15 | L81: U15
B82: U12 | C82: DON'T CHANGE THIS TERM ! Term must be the same for all languages | D82: U12 | E82: U12 | F82: U12 | G82: U12 | H82: U12 | I82: U12 | J82: U12 | K82: U12 | L82: U12
B83: Team | C83: DON'T CHANGE THIS TERM ! Term must be the same for all languages | D83: Team | E83: Team | F83: Team | G83: Team | H83: Team | I83: Team | J83: Team | K83: Team | L83: Team
B84: Double | C84: DON'T CHANGE THIS TERM ! Term must be the same for all languages | D84: Double | E84: Double | F84: Double | G84: Double | H84: Double | I84: Double | J84: Double | K84: Double | L84: Double
B85: Women | C85: DON'T CHANGE THIS TERM ! Term must be the same for all languages | D85: Women | E85: Women | F85: Women | G85: Women | H85: Women | I85: Women | J85: Women | K85: Women | L85: Women
B86: Signature | C86: =NAMEOF(B86) -> N_Visa | D86: Signature | E86: Signature | F86: Signature | G86: Firma | H86: Signatura
B87: Event participation | C87: N_Event_participation | D87: Participation aux épreuves | E87: Event participation | F87: Nome Evento | G87: Nombre Evento | H87: Nom Esdeveniment
B88: Name | C88: N_Name | D88: Nom | E88: Name | F88: Nome | G88: Nombre | H88: Nom
B89: =HLOOKUP(Language,D$2:L$1113,ROW()-1,FALSE) -> Family Name | C89: =NAMEOF(B89) -> N_Family_Name | D89: Nom | E89: Family Name | F89: Nome | G89: Nombre | H89: Nom
B90: Given Name | C90: N_1st_Name | D90: Prénom | E90: Given Name | F90: Cognome | G90: Apellido | H90: Cognom
B91: Nationality | C91: N_Nationality | D91: Nationalité | E91: Nationality | F91: Nazionalità | G91: Nacionalidad | H91: Nacionalitat
B92: Club name | C92: N_Club_Name | D92: Nom du Club | E92: Club name | F92: Nome Club | G92: Nombre Club | H92: Nom Club
B93: Abbreviation | C93: N_Abbreviation | D93: Abbréviation | E93: Abbreviation | F93: Abbreviazione | G93: Abreviación | H93: Abreviació
B94: Insert cells upper | C94: N_Insert_Upper | D94: Insérer les cellules au dessus | E94: Insert cells upper | F94: inserire le celle superiori | G94: Insertar celdas en la parte superior | H94: Inserir cel·les a la part superior
B95: Licenced Players list | C95: N_Player_list | D95: Liste des joueurs licenciés | E95: Licenced Players list | F95: Lista giocatori regolarmente iscritti | G95: Lista Jugadores con Licencia | H95: Llista Jugadors amb Llicència
B96: Club list | C96: N_Club_list | D96: Liste des clubs | E96: Club list | F96: Lista Club | G96: Lista Club | H96: Llista Club
B97: Insert a line : Copy one team line and press "Right Click > Insert Copied Cells" on an existing team line | C97: N_Insert_team_line | D97: Pour ajouter une nouvelle ligne : Copier une ligne d'équipe puis faire "Clic droit > Insérer les cellules copiées" sur une ligne d'équipe existante | E97: Insert a line : Copy one team line and press "Right Click > Insert Copied Cells" on an existing team line | F97: Inserisci una riga: copia una riga a squadra e premi "Fare clic destro> Inserisci celle copiate" su una linea di squadra esistente | G97: Insertar una línea: Copie una línea de equipo y presione "Clic derecho> Insertar celdas copiadas" en una línea de equipo existente. | H97: Inserir una línia: Copieu una línia d'equip i premeu "Clic dret> Insereix cel·les copiades " en una línia d'equip existent.
B98: Nb of team members | C98: N_Nb_Team_Members | D98: Nb équipiers | E98: Nb of team members | F98: Numero dei giocatori della squadra | G98: Nº Jugadores Equipo | H98: Nº Jugadors Equip
B99: Max nb of team members | C99: N_nb_max_members | D99: Nb max équipiers | E99: Max nb of team members | F99: Massimo numero dei giocatori della squadra | G99: Max. Numero jugadores de Equipo | H99: Max. Nombre jugadors d'Equip
B100: Player 1 | C100: N_Player1 | D100: Joueur N° 1 | E100: Player 1 | F100: Giocatore 1 | G100: Jugador 1 | H100: Jugador 1
B101: Player 2 | C101: N_Player2 | D101: Joueur N° 2 | E101: Player 2 | F101: Giocatore 2 | G101: Jugador 2 | H101: Jugador 2
B102: Team 1 | C102: N_Team1 | D102: Equipe N° 1 | E102: Team 1 | F102: Squadra 1 | G102: Equipo 1 | H102: Equip 1
B103: Team 2 | C103: N_Team2 | D103: Equipe N° 2 | E103: Team 2 | F103: Squadra 2 | G103: Equipo 2 | H103: Equip 2
B104: Winner | C104: N_Winner | D104: Vainqueur | E104: Winner | F104: Vincitore | G104: Vencedor | H104: Guanyador
B105: Pre-qualified | C105: N_Pre_Qualified | D105: Qualifiés d'office | E105: Pre-qualified | F105: Qualificato | G105: Clasificado | H105: Clasificat
B106: Team encounter with full draw of lots | C106: N_Team_FDL | D106: Par équipe en tirage au sort intégral | E106: Team encounter with full draw of lots | F106: Incontri a squadra con tiri piazzati | G106: Por Equipo con sorteo completo | H106: Per Equip amb sorteig complet
B107: Individual with full draw of lots | C107: N_Individual_FDL | D107: Individuel en tirage au sort intégral | E107: Individual with full draw of lots | F107: incontri individuali con tiri piazzati | G107: Individual con sorteo completo | H107: individual amb sorteig complet
B108: Double with full draw of lots | C108: N_Double_FDL | D108: Double en tirage au sort intégral | E108: Double with full draw of lots | F108: incontri doppi con tiri piazzati | G108: Dobles con sorteo completo | H108: Dobles amb sorteig complet
B109: Group of 3 | C109: N_Group_3 | D109: Group of 3 | E109: Group of 3 | F109: Girone da 3 | G109: Grupo de 3 | H109: Grup de 3
B110: Group of 4 | C110: N_Group_4 | D110: Poule de 4 | E110: Group of 4 | F110: Girone da 4 | G110: Grupo de 4 | H110: Grup de 4
B111: Group of 5 | C111: N_Group_5 | D111: Poule de 5 | E111: Group of 5 | F111: Girone da 5 | G111: Grupo de 5 | H111: Grup de 5
B112: Group of 6 | C112: N_Group_6 | D112: Poule de 6 | E112: Group of 6 | F112: Girone da 6 | G112: Grupo de 6 | H112: Grup de 6
B113: Group of 7 | C113: N_Group_7 | D113: Poule de 7 | E113: Group of 7 | F113: Girone da 7 | G113: Grupo de 7 | H113: Grup de 7
B114: Group of 8 | C114: N_Group_8 | D114: Poule de 8 | E114: Group of 8 | F114: Girone da 8 | G114: Grupo de 8 | H114: Grup de 8
B115: Group of 9 | C115: N_Group_9 | D115: Poule de 9 | E115: Group of 9 | F115: Girone da 9 | G115: Grupo de 9 | H115: Grup de 9
B116: Group of 10 | C116: N_Group_10 | D116: Poule de 10 | E116: Group of 10 | F116: Girone da 10 | G116: Grupo de 10 | H116: Grup de 10
B117: Group of 11 | C117: N_Group_11 | D117: Poule de 11 | E117: Group of 11 | F117: Girone da 11 | G117: Grupo de 11 | H117: Grup de 11
B118: Group of 12 | C118: N_Group_12 | D118: Poule de 12 | E118: Group of 12 | F118: Girone da 12 | G118: Grupo de 12 | H118: Grup de 12
B119: Group of 13 | C119: =NAMEOF(B119) -> N_Group_13 | D119: Poule de 13 | E119: Group of 13 | F119: Girone da 13 | G119: Grupo de 13 | H119: Grup de 13
B120: Group of 14 | C120: N_Group_14 | D120: Poule de 14 | E120: Group of 14 | F120: Girone da 14 | G120: Grupo de 14 | H120: Grup de 14
B121: Group of 15 | C121: N_Group_15 | D121: Poule de 15 | E121: Group of 15 | F121: Girone da 15 | G121: Grupo de 15 | H121: Grup de 15
B122: Group of 16 | C122: N_Group_16 | D122: Poule de 16 | E122: Group of 16 | F122: Girone da 16 | G122: Grupo de 16 | H122: Grup de 16
B123: Group of 17 | C123: N_Group_17 | D123: Poule de 17 | E123: Group of 17 | F123: Girone da 17 | G123: Grupo de 17 | H123: Grup de 17
B124: Group of 18 | C124: N_Group_18 | D124: Poule de 18 | E124: Group of 18 | F124: Girone da 18 | G124: Grupo de 18 | H124: Grup de 18
B125: Group of 19 | C125: N_Group_19 | D125: Poule de 19 | E125: Group of 19 | F125: Girone da 19 | G125: Grupo de 19 | H125: Grup de 19
B126: Group of 20 | C126: N_Group_20 | D126: Poule de 20 | E126: Group of 20 | F126: Girone da 20 | G126: Grupo de 20 | H126: Grup de 20
B127: Group of 3 with first/second leg | C127: N_Group_3_2Leg | D127: Poule de 3 en A/R | E127: Group of 3 with first/second leg | F127: Girone di 3 andata e ritorno | G127: Grupo de 3 ida y vuelta | H127: Grup de 3 anada i tornada
B128: Group of 4 with first/second leg | C128: N_Group_4_2leg | D128: Poule de 4 en A/R | E128: Group of 4 with first/second leg | F128: Girone di 4 andata e ritorno | G128: Grupo de 4 ida y vuelta | H128: Grup de 4 anada i tornada
B129: Group of 5 with first/second leg | C129: N_Group_5_2leg | D129: Poule de 5 en A/R | E129: Group of 5 with first/second leg | F129: Girone di 5 andata e ritorno | G129: Grupo de 5 ida y vuelta | H129: Grup de 5 anada i tornada
B130: Group of 6 with self refereeing | C130: N_Group_6_Self_Refereeing | D130: Poule de 6 en auto-arbitrage | E130: Group of 6 with self refereeing | F130: Girone da 6 con auto arbitraggio | G130: Grupo de 6 con Auto-arbitraje | H130: Grup de 6 amb Auto-arbitratge
B131: Message for error in score of selection match | C131: N_ERROR_Sel_Match | D131: Message pour une erreur de marque dans un match éliminatoire | E131: Message for error in score of selection match | F131: Messaggio di errore nello score del match selezionato | G131: Mensaje de error en la puntuación del partido seleccionado | H131: Missatge d'error en la puntuació de el partit seleccionat
B132: Message for equality in group | C132: N_Equality_Group | D132: Message d'égalité dans une poule | E132: Message for equality in group | F132: Messaggio per pari nel girone | G132: Mensaje por la igualdad en el grupo | H132: Missatge per la igualtat en el grup
B133: Delay between 2 matches in group | C133: N_Delay_Group | D133: Délai entre 2 matches de poule | E133: Delay between 2 matches in group | F133: Ritardo tra 2 partite nel girone | G133: Retraso entre 2 partidos en grupo | H133: Retard entre 2 partits en grup
B134: =HLOOKUP(Language,D$2:L$1113,ROW()-1,FALSE) -> Delay between 2 selection matches | C134: N_Delay_Sel_Match | D134: Délai entre 2 matches éliminatoires | E134: Delay between 2 selection matches | F134: Ritardo tra due matches selezionati | G134: Retraso entre 2 partidos seleccionados | H134: Retard entre 2 partits seleccionats
B135: Order | C135: N_Order | D135: Ordre | E135: Order | F135: Ordine | G135: Orden | H135: Ordre
B136: Criteria | C136: N_Criteria | D136: Critère | E136: Criteria | F136: Criteri | G136: Criterio | H136: Criteri
B137: Criteria before particular difference | C137: N_Criteria_before_diff | D137: Critères avant la différence particulière | E137: Criteria before particular difference | F137: Criteri prima di differenze particolari | G137: Criterios antes de la diferencia particular | H137: Criteris abans de la diferència particular
B138: Particular difference in case of equality on previous criteria | C138: N_particular_diff | D138: Différentiel particulier en cas d'égalité sur critères précédents | E138: Particular difference in case of equality on previous criteria | F138: Particolari differenze nel caso di parità nei criteri previsti | G138: Diferencia particular en caso de igualdad sobre criterios anteriores | H138: Diferència particular en cas d'igualtat sobre criteris anteriors
B139: Criteria after particular difference | C139: N_Criteria_after_diff | D139: Critères après égalité sur différence particulière | E139: Criteria after particular difference | F139: Criteri dopo differenze particolari | G139: Criterios después de una diferencia particular | H139: Criteris després d'una diferència particular
B140: Calculation of Individual ranking | C140: N_calculation_ind_rank | D140: Calcul Classement individuel | E140: Calculation of Individual ranking | F140: Calcolo del ranking individuale | G140: Calculo del ranking individual | H140: Càlcul de el rànquing individual
B141: Calculation of Team ranking | C141: N_Calculation_team_rank | D141: Calcul Classement équipe | E141: Calculation of Team ranking | F141: Calcolo del Ranking a squadre | G141: Calculo del ranking de Equipo | H141: Càlcul de el rànquing d'Equip
B142: Points | C142: N_Points | D142: Points | E142: Points | F142: Punti | G142: Puntos | H142: Punts
B143: Goal Difference | C143: N_Goal_Diff | D143: Différentiel de buts | E143: Goal Difference | F143: Differenza Gol | G143: Diferencia de Goles | H143: Diferencia de Gols
B144: Won Matches | C144: N_Won_Matches | D144: Matches gagnés | E144: Won Matches | F144: Incontri Vinti | G144: Partidos ganados | H144: Partits Guanyats
B145: Best Attack | C145: N_Best_Attack | D145: Meilleure attaque | E145: Best Attack | F145: Miglior Attacco | G145: Mejor ataque | H145: Millor Atac
B146: Match result between ex-aequo | C146: N_Particular_Difference | D146: Résultat match entre ex-aequo | E146: Match result between ex-aequo | F146: Risultato incontro tra due a pari punti | G146: Resultado del partido en empate a puntos | H146: Resultat de el partit en empat a punts
B147: Goal difference between ex-aequo | C147: N_Particular_Goals | D147: Différence de buts entre ex-aequo | E147: Goal difference between ex-aequo | F147: Differenza goal tra due pari punti | G147: Diferencia de Goles en empate a puntos | H147: Diferència de Gols en empat a punts
B148: Best attack between ex-aequo | C148: N_Particular_Attack | D148: Meilleure attaque entre ex-aequo | E148: Best attack between ex-aequo | F148: Miglior attacco tra due pari punti | G148: Mejor Ataque en empate a puntos | H148: Millor Atac en empat a punts
B149: Individual wins difference between ex-aequo | C149: N_Particular_Win_Diff | D149: Différence de matches individuels entre ex-aequo | E149: Individual wins difference between ex-aequo | F149: Differenza vittorie tra due pari punti | G149: Diferencia victorias individuales en empate a puntos | H149: Diferència victòries individuals en empat a punts
B150: Most individual wins between ex-aequo | C150: N_Particular_More_Wins | D150: Plus de victoires individuells entre ex-aequo | E150: Most individual wins between ex-aequo | F150: Miglior vittorie tra due pari punti | G150: Mas victorias individuales en empate a puntos | H150: Mes victòries individuals en empat a punts
B151: Encounter Difference | C151: =NAMEOF(B151) -> N_Encounter_Diff | D151: Différentiel de rencontres | E151: Encounter Difference | F151: Differenza Incontro | G151: Diferencia de partido | H151: Diferència de partit
B152: Individual wins difference | C152: N_Match_Diff | D152: Différentiel de matches individuels | E152: Individual wins difference | F152: Differenza Vittorie | G152: Diferencia individual victorias | H152: Diferència individual victòries
B153: Most individual match wins | C153: N_Most_Ind_Match_Wins | D153: Plus de victoires individuelles | E153: Most individual match wins | F153: Più match vinti | G153: Mas victorias individuales | H153: Mes victòries individuals
B154: Win | C154: N_Win | D154: Victoire | E154: Win | F154: Vinte | G154: Victoria | H154: Victòria
B155: Draw | C155: N_Draw | D155: Nul | E155: Draw | F155: Pareggi | G155: Empate | H155: Empat
B156: Language | C156: N_Language | D156: Langue | E156: Language | F156: Lingua | G156: Lenguaje | H156: Llenguatge
B157: END OF PLANNING | C157: N_End_Planning | D157: FIN DU PLANNING | E157: END OF PLANNING | F157: FINE DEI TURNI | G157: FIN DE PLANIFICACION | H157: FI DE PLANIFICACIÓ
B158: Insert lines above this area | C158: N_Insert_above | D158: Insérez des lignes au dessus de cette zone | E158: Insert lines above this area | F158: Inserisci riga in questa area | G158: Insertar líneas sobre esta área | H158: Inserir línies sobre aquesta àrea
B159: Sheet for team scoreboard printing. Paste on left the LINES of the planning up to 20. The line Numer 6 must be the first line The line number 126 must be empty No empty line between 2 match lines | C159: N_printing_sheet | D159: Feuille pour imprimer les feuilles de match en par équipe. Coller à gauche les LIGNES du planning dans la limite de 20. La ligne 6 doit être la première ligne La ligne 126 doit être vide Pas de ligne blanche entre les matches d'équipes | E159: Sheet for team scoreboard printing. Paste on left the LINES of the planning up to 20. The line Numer 6 must be the first line The line number 126 must be empty No empty line between 2 match lines | F159: Foglio per la stampa del tabellone per team. Incolla a sinistra le righe dei turni fino a 20. La riga numero 6 deve essere la prima linea Il numero di riga 126 deve essere vuoto Nessuna linea vuota tra due righe di partita | G159: Hoja para impresión del marcador del equipo. Pega a la izquierda las LÍNEAS de la planificación hasta 20. La línea Numérico 6 debe ser la primera línea La línea número 126 debe estar vacía Sin línea vacía entre 2 líneas de coincidencia | H159: Full per a Impressió de el marcador de l 'equip. Enganxa a l'esquerra les LÍNIES de la planificació fins a 20. La línia Numèric 6 ha de ser la primera línia La línia número 126 ha d'estar buida Sense línia buida entre 2 línies de coincidència
B160: Event's Category | C160: N_Event_Category | D160: Catégorie de l'épreuve | E160: Event's Category | F160: Categoria dell'evento | G160: Categoria del Evento | H160: Categoria de l'Esdeveniment
B161: Group | C161: N_Group | D161: Poule | E161: Group | F161: Girone | G161: Grupo | H161: Grup
B162: Definition of a new event for individuals | C162: N_NewEventForm_Title | D162: Définition d'une nouvelle épreuve individuelle | E162: Definition of a new event for individuals | F162: Definizione di un nuovo evento invidivuale | G162: Definición de un nuevo evento para particulares | H162: Definició d'un nou esdeveniment per a particulars
B163: Definition of a new event for teams | C163: N_NewEventFormForTeams_Title | D163: Définition d'une nouvelle épreuve par équipe | E163: Definition of a new event for teams | F163: Definizione di un nuovo evento a squadre | G163: Definición de un nuevo evento para equipos | H163: Definició d'un nou esdeveniment per equips
B164: Definition of a new event for doubles | C164: N_NewEventFormForDoubles_Title | D164: Définition d'une nouvelle épreuve en double | E164: Definition of a new event for doubles | F164: Definizione di un nuovo evento per doppia | G164: Definición de un nuevo evento para dobles | H164: Definició d'un nou esdeveniment per dobles
B165: Definition of a new event for individuals based on competition formulas | C165: N_NewOfficialEventForm_Title | D165: Définition d'une nouvelle épreuve individuelle basée sur les formules de compétition | E165: Definition of a new event for individuals based on competition formulas | F165: Definizione di un nuovo evento individuale basato sulle formule della competizione | G165: Definición de un nuevo evento para individuales basado en fórmulas de competición | H165: Definició d'un nou esdeveniment per individuals basat en fórmules de competició
B166: Definition of a new event for teams based on competition formulas | C166: N_NewOfficialEventFormForTeams_Title | D166: Définition d'une nouvelle épreuve par équipe basée sur les formules de compétition | E166: Definition of a new event for teams based on competition formulas | F166: Definizione di un nuovo evento a squadre basato sulle formule della competizione | G166: Definición de un nuevo evento para equipos basado en fórmulas de competición | H166: Definició d'un nou esdeveniment per equips basat en fórmules de competició
B167: Definition of a new event for doubles based on competition formulas | C167: N_NewOfficialEventFormForDoubles_Title | D167: Définition d'une nouvelle épreuve en double basée sur les formules de compétition | E167: Definition of a new event for doubles based on competition formulas | F167: Definizione di un nuovo evento per doppio basato sulle formule della competizione | G167: Definición de un nuevo evento para dobles basado en fórmulas de competición | H167: Definició d'un nou esdeveniment per dobles basat en fórmules de competició
B168: Definition of a new event for individuals based on competition formulas (officials or not) | C168: N_NewEventWithFormulasForm_Title | D168: Définition d'une nouvelle épreuve individuelle basée sur les formules de compétition officielles ou non | E168: Definition of a new event for individuals based on competition formulas (officials or not) | F168: Definizione di un nuovo evento individuale basato sulle formule della competizione (ufficiali o no) | G168: Definición de un nuevo evento para individuales basado en fórmulas de competición (oficiales o no) | H168: Definició d'un nou esdeveniment per individuals basat en fórmules de competició (oficials o no)
B169: Definition of a new event for teams based on competition formulas (officials or not) | C169: N_NewEventWithFormulasFormForTeams_Title | D169: Définition d'une nouvelle épreuve par équipe basée sur les formules de compétition officielles ou non | E169: Definition of a new event for teams based on competition formulas (officials or not) | F169: Definizione di un nuovo evento a squadre basato sulle formule della competizione (ufficiali o no) | G169: Definición de un nuevo evento para equipos basado en fórmulas de competición (oficiales o no) | H169: Definició d'un nou esdeveniment per equips basat en fórmules de competició (oficials o no)
B170: Definition of a new event for doubles based on competition formulas (officials or not) | C170: N_NewEventWithFormulasFormForDoubles_Title | D170: Définition d'une nouvelle épreuve en double basée sur les formules de compétition officielles ou non | E170: Definition of a new event for doubles based on competition formulas (officials or not) | F170: Definizione di un nuovo evento per doppio basato sulle formule della competizione (ufficiali o no) | G170: Definición de un nuevo evento para dobles basado en fórmulas de competición (oficiales o no) | H170: Definició d'un nou esdeveniment per dobles basat en fórmules de competició (oficials o no)
B171: Event Name | C171: N_NewEventForm_EventName | D171: Nom de l'épreuve | E171: Event Name | F171: Nome dell'evento | G171: Nombre del Evento | H171: Nom Esdeveniment
B172: Category | C172: N_NewEventForm_Category | D172: Catégorie | E172: Category | F172: Categoria | G172: Categoria | H172: Categoria
B173: Groups of 3 | C173: N_NewEventForm_GroupOf_3 | D173: Poules de 3 | E173: Groups of 3 | F173: Gruppi di 3 | G173: Grupos de 3 | H173: Grups de 3
B174: Groups of 4 | C174: N_NewEventForm_GroupOf_4 | D174: Poules de 4 | E174: Groups of 4 | F174: Gruppi di 4 | G174: Grupos de 4 | H174: Grups de 4
B175: Groups of 5 | C175: =NAMEOF(B175) -> N_NewEventForm_GroupOf_5 | D175: Poules de 5 | E175: Groups of 5 | F175: Gruppi di 5 | G175: Grupos de 5 | H175: Grups de 5
B176: Groups of 6 | C176: N_NewEventForm_GroupOf_6 | D176: Poules de 6 | E176: Groups of 6 | F176: Gruppi di 6 | G176: Grupos de 6 | H176: Grups de 6
B177: Groups of 7 | C177: N_NewEventForm_GroupOf_7 | D177: Poules de 7 | E177: Groups of 7 | F177: Gruppi di 7 | G177: Grupos de 7 | H177: Grups de 7
B178: Groups of 8 | C178: N_NewEventForm_GroupOf_8 | D178: Poules de 8 | E178: Groups of 8 | F178: Gruppi di 8 | G178: Grupos de 8 | H178: Grups de 8
B179: Groups of 9 | C179: N_NewEventForm_GroupOf_9 | D179: Poules de 9 | E179: Groups of 9 | F179: Gruppi di 9 | G179: Grupos de 9 | H179: Grups de 9
B180: Groups of 10 | C180: N_NewEventForm_GroupOf_10 | D180: Poules de 10 | E180: Groups of 10 | F180: Gruppi di 10 | G180: Grupos de 10 | H180: Grups de 10
B181: Groups of 11 | C181: N_NewEventForm_GroupOf_11 | D181: Poules de 11 | E181: Groups of 11 | F181: Gruppi di 11 | G181: Grupos de 11 | H181: Grups de 11
B182: Groups of 12 | C182: N_NewEventForm_GroupOf_12 | D182: Poules de 12 | E182: Groups of 12 | F182: Gruppi di 12 | G182: Grupos de 12 | H182: Grups de 12
B183: Groups of 13 | C183: N_NewEventForm_GroupOf_13 | D183: Poules de 13 | E183: Groups of 13 | F183: Gruppi di 13 | G183: Grupos de 13 | H183: Grups de 13
B184: Groups of 14 | C184: N_NewEventForm_GroupOf_14 | D184: Poules de 14 | E184: Groups of 14 | F184: Gruppi di 14 | G184: Grupos de 14 | H184: Grups de 14
B185: Groups of 15 | C185: N_NewEventForm_GroupOf_15 | D185: Poules de 15 | E185: Groups of 15 | F185: Gruppi di 15 | G185: Grupos de 15 | H185: Grups de 15
B186: Groups of 16 | C186: N_NewEventForm_GroupOf_16 | D186: Poules de 16 | E186: Groups of 16 | F186: Gruppi di 16 | G186: Grupos de 16 | H186: Grups de 16
B187: Groups of 17 | C187: N_NewEventForm_GroupOf_17 | D187: Poules de 17 | E187: Groups of 17 | F187: Gruppi di 17 | G187: Grupos de 17 | H187: Grups de 17
B188: Groups of 18 | C188: N_NewEventForm_GroupOf_18 | D188: Poules de 18 | E188: Groups of 18 | F188: Gruppi di 18 | G188: Grupos de 18 | H188: Grups de 18
B189: Groups of 19 | C189: N_NewEventForm_GroupOf_19 | D189: Poules de 19 | E189: Groups of 19 | F189: Gruppi di 19 | G189: Grupos de 19 | H189: Grups de 19
B190: Groups of 20 | C190: N_NewEventForm_GroupOf_20 | D190: Poules de 20 | E190: Groups of 20 | F190: Gruppi di 20 | G190: Grupos de 20 | H190: Grups de 20
B191: with first/second leg | C191: N_NewEventForm_GroupOf_X_FS | D191: en matches Aller / Retour | E191: with first/second leg | F191: con andata e ritorno | G191: con ida y vuelta | H191: amb anada i tornada
B192: Group Phase | C192: N_NewEventForm_GroupPhase | D192: Phase de Poules | E192: Group Phase | F192: Girone | G192: Fase de Grupos | H192: Fase de Grups
B193: Play Off Phase | C193: N_NewEventForm_PlayOffPhase | D193: Phase de Barrages | E193: Play Off Phase | F193: Eliminazione diretta | G193: Eliminacion Directa | H193: Eliminació Directa
B194: Final Phase | C194: N_NewEventForm_FinalPhase | D194: Phase Finale | E194: Final Phase | F194: Fase Finale | G194: Fase Final | H194: Fase Final
B195: Number of Matches | C195: N_NewEventForm_NbMatchPlayOff | D195: Nombre de Matches | E195: Number of Matches | F195: Numero di incontri | G195: Numero de Partidos | H195: Nombre de Partits
B196: Number of pre-qualified players | C196: N_NewEventForm_NbPreQualified | D196: Nombre de qualifiés d'office | E196: Number of pre-qualified players | F196: Numero di giocatori pre qualificati | G196: Numero de jugadores pre-clasificados | H196: Nombre de jugadors pre-classificats
B197: Full drawing of lots | C197: N_NewEventForm_FullDraw | D197: Tirage au sort intégral | E197: Full drawing of lots | F197: Tiri piazzati | G197: Sorteo Completo | H197: Sorteig complet
B198: =HLOOKUP(Language,D$2:L$1113,ROW()-1,FALSE) -> Last 128 | C198: N_NewEventForm_Elim_64 | D198: 64ème de Finale | E198: Last 128 | F198: last 128 | G198: Ultimos 128 | H198: Ultims 128
B199: Last 64 | C199: N_NewEventForm_Elim_32 | D199: 32ème de Finale | E199: Last 64 | F199: Sessantaquattresimi | G199: Treintaidosavos | H199: Trenta-dosens
B200: Last 32 | C200: N_NewEventForm_Elim_16 | D200: 16ème de Finale | E200: Last 32 | F200: Trentaduesimi | G200: Dieciseisavos | H200: Setzens
... 658 more rows

Sheet Home
B1: =N_GMFT -> GMFT - Table Football Match Management
B2: =N_GMFT_Version & " " & Version_Outil -> Version 14.3.1
B4: =N_Layout -> Event title
B5: <FEDERATION> <Event Name><YYYY> - <Location> - <Individuals/Teams> Competition
B7: =N_EventDate -> Event date
B8: <Event Date(s)>
B10: =N_Action -> Actions | C10: =N_Worksheet -> Worksheet
A11: 1 | B11: =N_FillIn_Players_And_Clubs -> Complete the database of players and clubs | C11: Licences Clubs
A12: 2 | B12: =N_Ranking -> Update if necessary the ranking (in case of the ranking is used in ranking criterias for groups or in case of using Draw function) | C12: Ranking Ind. Ranking Teams
A13: 3 | B13: =N_Checkin -> Check in registrations and participations to different events | C13: Checkin
A14: 4 | B14: =N_DefineTeams -> If necessary, define teams of the event | C14: Teams
A15: 5 | B15: =N_DefineDoubles -> If necessary, define doubles of the event | C15: Doubles
A16: 6 | B16: =N_Lists -> Check lists of players, teams and referees | C16: Lists
A17: 7 | B17: =N_Parameter -> Define sport parameters of the day of competition | C17: Parameters
A18: 8 | B18: =N_NewEvent -> Create one or more events
A19: 9 | B19: =N_FillinPlayers -> Fillin players after draw | C19: Open
A20: 10 | B20: =N_DrawManage -> Show or hide Draw sheets | C20: Draw …
A21: 11 | B21: =N_AdaptPlanning -> Adapt the planning then fillin scores directly in the planning | C21: Planning
A22: 12 | B22: =N_ManageRefereeList -> Adapt the referee list to your needs | C22: Refereeing
A23: 13 | B23: =N_ManageTimeline -> Display or print player's own planning | C23: Timeline
A24: 14 | B24: =N_ManageVenue -> Represents the room plan with pitch's names | C24: Venue
A25: 15 | B25: =N_ManageStats -> Consult players' statistics | C25: Stats
A26: 16 | B26: =N_ManagePodium -> Show podium for trophy presentation | C26: Podium
A27: 17 | B27: =N_ExportDataToWebSite -> Export Data to the GMFT Web Site
A28: 18 | B28: =N_Dispatch_Results -> Dispatch results after the tournament
B29: =N_Exporting -> By generating FISTF officials result forms
B30: =N_Printing -> By printing results
B32: =N_FillinFormula -> Complete Event sheets by fill in player positions in groups (or in the first of final phases if no group phase). In case of directed matches with group phase, type in also formulas for the matches of first final phase based on previous rounds. In case of full draw of lots, you must fill in players of each match in the event sheet and not in the planning.
B33: =N_Planning -> Adapt the planning by moving matches between the differents sessions. During the event, referees, tables and scores are filled in EXCLUSIVELY in the planning sheet. In case of team or double matches, players are also filled in the "planning" sheet.

Sheet Parameters (hidden)
B2: =N_Parameter -> Define sport parameters of the day of competition | I2: GMFT - Version | J2: 14.3.1
B3: POINTS | I3: =N_Language -> Language | J3: EN
C5: =N_Points -> Points | I5: PLANNING - EVENT CREATION - REFEREE SELECTION - LABELS
B6: =N_Win -> Win | C6: 3
B7: =N_Draw -> Draw | C7: 1 | I7: =N_Delay_Group -> Delay between 2 matches in group | J7: 00:50:00
I8: =N_Delay_Sel_Match -> Delay between 2 selection matches | J8: 01:05:00
B9: =N_MaxGoals -> Max Nb Goals | C9: 100 | I9: =N_Break1 -> Break 1 | J9: 00:15:00
I10: =N_Break2 -> Break 2 | J10: 00:30:00
B11: =N_calculation_ind_rank -> Calculation of Individual ranking | I11: =N_Break3 -> Break 3 | J11: 00:45:00
B12: =N_Criteria_before_diff -> Criteria before particular difference | I12: =N_Break4 -> Break 4 | J12: 01:00:00
B13: =N_Criteria -> Criteria | C13: FISTF Order | D13: =N_Order -> Order | E13: Factor
B14: =N_Points -> Points | C14: 1 | D14: 1 | E14: =IF(D14="",0,POWER(100,RANK(D14,D$14:D$28)-1)) -> 10000000000 | I14: =N_FISTF_Categories -> List of FISTF players categories | J14: =N_DefaultRefereesCategories -> Excluded referees categories
B15: =N_Goal_Diff -> Goal Difference | E15: =IF(D15="",0,POWER(100,RANK(D15,D$14:D$28)-1)) -> 0 | I15: OPEN | J15: FALSE
B16: =N_Won_Matches -> Won Matches | E16: =IF(D16="",0,POWER(100,RANK(D16,D$14:D$28)-1)) -> 0 | I16: VET | J16: FALSE
B17: =N_Best_Attack -> Best Attack | E17: =IF(D17="",0,POWER(100,RANK(D17,D$14:D$28)-1)) -> 0 | I17: U20 | J17: FALSE
B18: =N_particular_diff -> Particular difference in case of equality on previous criteria | I18: U16 | J18: TRUE
B19: =N_Particular_Difference -> Match result between ex-aequo | C19: 2 | D19: 2 | E19: =IF(D19="",0,POWER(100,RANK(D19,D$14:D$28)-1)) -> 100000000 | I19: =N_U12 -> U12 | J19: TRUE
B20: =N_Particular_Goals -> Goal difference between ex-aequo | C20: 3 | D20: 3 | E20: =IF(D20="",0,POWER(100,RANK(D20,D$14:D$28)-1)) -> 1000000 | I20: =N_Events -> List of different events of the competition (names and colors). Let it empty for default value. | J20: =N_DefaultRefereesCategories -> Excluded referees categories | K20: FALSE
B21: =N_Particular_Attack -> Best attack between ex-aequo | C21: 4 | D21: 4 | E21: =IF(D21="",0,POWER(100,RANK(D21,D$14:D$28)-1)) -> 10000 | I21: =N_Open -> Open | J21: TRUE
B22: =N_Criteria_after_diff -> Criteria after particular difference | I22: =N_Veterans -> Veterans | J22: TRUE
B23: =N_Points -> Points | E23: =IF(D23="",0,POWER(100,RANK(D23,D$14:D$28)-1)) -> 0 | I23: =N_Ladies -> Women | J23: TRUE
B24: =N_Goal_Diff -> Goal Difference | C24: 5 | D24: 5 | E24: =IF(D24="",0,POWER(100,RANK(D24,D$14:D$28)-1)) -> 100 | I24: =N_U20 -> U20 | J24: TRUE
B25: =N_Won_Matches -> Won Matches | E25: =IF(D25="",0,POWER(100,RANK(D25,D$14:D$28)-1)) -> 0 | I25: =N_U16 -> U16 | J25: TRUE
B26: =N_Best_Attack -> Best Attack | C26: 6 | D26: 6 | E26: =IF(D26="",0,POWER(100,RANK(D26,D$14:D$28)-1)) -> 1 | I26: =N_U12 -> U12 | J26: TRUE
B27: =N_Criteria_on_WR -> Criteria on players ranking | I27: Teams | J27: FALSE
B28: =N_NbPointsInRanking -> Number of points in ranking | E28: =IF(D28="",0,POWER(100,RANK(D28,D$14:D$28)-1)) -> 0 | I28: Consolation | J28: TRUE
I29: =N_Team&"_"&I21 -> Team_Open | J29: TRUE
B30: =N_Calculation_team_rank -> Calculation of Team ranking | I30: Team_Veterans | J30: TRUE
B31: =N_Criteria_before_diff -> Criteria before particular difference | I31: Team_Women | J31: TRUE
B32: =N_Criteria -> Criteria | C32: FISTF Order | D32: =N_Order -> Order | E32: Factor | I32: Team_U20 | J32: TRUE
B33: =N_Points -> Points | C33: 1 | D33: 1 | E33: =IF(D33="",0,POWER(30,RANK(D33,C$33:C$51)-1)) -> 19683000000000 | I33: Team_U16 | J33: TRUE
B34: =N_Encounter_Diff -> Encounter Difference | E34: 0 | I34: Team_U12 | J34: TRUE
B35: =N_Match_Diff -> Individual wins difference | E35: 0 | J35: 1
B36: =N_Goal_Diff -> Goal Difference | E36: 0 | I36: =N_Equality_Group -> Message for equality in group
B37: =N_Won_Matches -> Won Matches | E37: 0 | I37: !!! EQUALITY !!!
B38: =N_Best_Attack -> Best Attack | E38: 0 | I38: =N_ERROR_Sel_Match -> Message for error in score of selection match
B39: =N_particular_diff -> Particular difference in case of equality on previous criteria | I39: ERROR IN SCORE
B40: =N_Particular_Difference -> Match result between ex-aequo | C40: 2 | D40: 2 | E40: =IF(D40="",0,POWER(30,RANK(D40,C$33:C$51)-1)) -> 656100000000
B41: =N_Particular_Win_Diff -> Individual wins difference between ex-aequo | C41: 3 | D41: 3 | E41: =IF(D41="",0,POWER(30,RANK(D41,C$33:C$51)-1)) -> 21870000000 | I41: =N_Substitute_Codes -> Substitute codes for team matches
B42: =N_Particular_More_Wins -> Most individual wins between ex-aequo | C42: 4 | D42: 4 | E42: =IF(D42="",0,POWER(30,RANK(D42,C$33:C$51)-1)) -> 729000000 | I42: S1
B43: =N_Particular_Goals -> Goal difference between ex-aequo | C43: 7 | D43: 7 | E43: =IF(D43="",0,POWER(30,RANK(D43,C$33:C$51)-1)) -> 27000 | I43: S2
B44: =N_Particular_Attack -> Best attack between ex-aequo | C44: 8 | D44: 8 | E44: =IF(D44="",0,POWER(30,RANK(D44,C$33:C$51)-1)) -> 900 | I44: S3
B45: =N_Criteria_after_diff -> Criteria after particular difference | I45: S4
B46: =N_Points -> Points | E46: =IF(D46="",0,POWER(30,RANK(D46,C$33:C$51)-1)) -> 0
B47: =N_Encounter_Diff -> Encounter Difference | E47: 0
B48: =N_Match_Diff -> Individual wins difference | C48: 5 | D48: 5 | E48: 24300000
B49: =N_Goal_Diff -> Goal Difference | C49: 9 | D49: 9 | E49: 30 | I49: DASHBOARD
B50: =N_Most_Ind_Match_Wins -> Most individual match wins | C50: 6 | D50: 6 | E50: 810000
B51: =N_Best_Attack -> Best Attack | C51: 10 | D51: 10 | E51: 1 | I51: =N_DashboardTemplatePath -> Dashboard template path
J52: Directory
B53: =N_NoDrawWithWithdraw -> In group stage for teams, in case of equality on won matches, the team with the most withdraws loses the match. | C53: FALSE | I53: \GMFT-Dashboard-Templates\GMFT_Dashboard_V6.0-Portrait.xls | J53: Relative path
I55: =N_SessionTitle -> Session Title
B56: REFEREEING CONTROLS & SELECTION CRITERIA | I56: Session Nbr 13
B58: =N_CheckingReferees -> Activation of controls during referee choices in the planning | D58: Categ
B59: =N_CheckReferee_SameGroup -> Referee in the same Group as one of players | C59: TRUE | I59: WEB EXPORT
B60: =N_CheckReferee_SameClub -> Referee in the same Club as one of players | C60: TRUE | E60: Last4
B61: =N_CheckReferee_SameNat -> Referee with the same Nationality as one of players | C61: TRUE | E61: Last4 | I61: =N_ExportTypeOfEventToWebSite -> Export to GMFT web site following event types
B62: =N_CheckReferee_Club_InGroup -> Referee in the same Club as one of players of the group | C62: TRUE | I62: =N_Individuals -> Individuals | J62: TRUE
B63: =N_CheckReferee_Nat_InGroup -> Referee with the same Nationality as one of players of the group | C63: TRUE | I63: =N_Teams -> Teams | J63: FALSE
I64: =N_DefaultCompetitorsExportToWebSite -> Last checked boxes for competitors export to GMFT Web Site
B65: =N_NbMaxRefereing -> Number of matches already refereed more or equal to | C65: 3 | J65: TRUE
J66: TRUE
J67: TRUE
J68: TRUE
B69: PRINTING | J69: TRUE
J70: TRUE
B71: =N_PrintVenue -> Printing of venue ? | C71: FALSE | J71: FALSE
B72: =N_PrintStats -> Printing of statistics ? | C72: FALSE | J72: FALSE
J73: FALSE
J74: FALSE
B75: VARIOUS PARAMETERS | J75: FALSE
J76: FALSE
B77: =N_LockSheets -> Lock worksheets to avoid manipulation errors | C77: FALSE | J77: TRUE
J78: TRUE
B79: =N_HidePlayerFormulas -> Hide display of player formulas without score | C79: TRUE | I79: =N_ExportPlanning -> Planning Export | J79: TRUE
I80: =N_ExportGroups -> Groups Export | J80: TRUE
B81: =N_ConditionalFormatLabel -> Format for cells containing formulas and that can be modified by user | I81: Stats Export | J81: TRUE
I82: Results Export | J82: TRUE
B83: =N_ModifyingWithDrawLabel -> Label for a withdraw player. Suggestion : keep the formula to take advantage of multi-languages. | C83: =N_Withdraw -> [---Withdraw---] | I83: =N_ExportMatches -> Detailed matches Export | J83: TRUE
B85: =N_RankingAsLicenceList -> Use the FISTF World Ranking (Ranking sheet) as the licenced players database (used in the Checkin sheet as players list). | C85: FALSE | I85: =N_WebSiteExportForm_WebSiteRootPath -> GMFT Web Site directory path
B86: =N_Trigram -> Use nationality instead of club for trigram in player's name (useful for World Cup). Ex. John Beem (ANG) | C86: FALSE | J86: Directory
I87: \GMFT-LocalWebServer\GMFT-TournamentWebSite-Template\GMFT-RegistrationsWebPage-Template | J87: Relative path
I88: Export Decoration To WebSite parameters
B89: HIDDEN LISTS - DO NOT MODIFY ! | I89: =N_GenerateConfigurationFile -> Generate the GMFTData.html file | J89: TRUE
I90: Navigation bar title
B91: =COUNTA(EventSheetTable)-COUNTBLANK(EventSheetTable) -> 1 | I91: Event - Individuals / Teams
B92: =EVTSHEETLIST() -> Team | D92: =IF(TRANSPOSE(LanguageList)=0,"",TRANSPOSE(LanguageList)) -> FR | I92: =N_WebEventTitleLabel -> Event title
D93: EN | I93: Competition Title<br>Individuals/Teams<br>20XX Month, DD<br>Location
D94: IT | I94: =N_WebEventDescriptionLabel -> Event Description
D95: SP | I95: <span style="font-size: 1.5rem; line-height: 1.5;">Welcome on the Web site of the tournament.</span><br> <span style="font-size: 1.5rem; line-height: 1.5;"> For this tournament, HEAD REFEREES are: <ul> <strong> <li>...</li> <li>...</li> <li>...</li> </strong> Thanks to them ! </ul> IMPORTANT NOTE TO ALL PLAYERS<br> The guide to the conduct of player refereeing is based primarily on the fairness in the number of matches refereed by each player.<br>As a result, in the event of a barrage, the players eliminated at the end of the group stage who do not referee in the play-offs, must wait to know if they will referee the next phase before they can leave the competition. </span>
D96: CAT
I99: COMMON PARAMETERS
I101: =N_DefaultStartSessionNmber -> Default value for Start Session | J101: 1
I102: =N_DefaultNumberOfSessions -> Default value of the number of sessions | J102: 13
I104: =N_DefaultExportIndMAtches -> Default value of the export indicator of individuals matches for team results | J104: FALSE
I108: REGISTRATION EXPORT
D109: 2326576067856
D110: FALSE | I110: =N_ExportTypeOfEventToWebSite -> Export to GMFT web site following event types
I111: =N_Individuals -> Individuals | J111: TRUE
I112: =N_Teams -> Teams | J112: TRUE
I113: =N_DefaultCompetitorsExportToWebSite -> Last checked boxes for competitors export to GMFT Web Site
J114: TRUE
J115: TRUE
J116: TRUE
J117: TRUE
J118: TRUE
J119: TRUE
J120: TRUE
J121: TRUE
J122: TRUE
J123: TRUE
J124: TRUE
J125: TRUE
J126: TRUE
J127: TRUE
J128: FALSE
I129: =N_WebSiteExportForm_WebSiteRootPath -> GMFT Web Site directory path
J130: Directory
I131: \GMFT-LocalWebServer\GMFT-TournamentWebSite-Template\GMFT-RegistrationsWebPage-Template | J131: Relative path
I132: Theme Choice
I133: Transparent-Cyborg

Sheet Licences (hidden)
A1: 200 | B1: =N_LicencesSheetTitle -> Licenced players database
C2: =N_TotalNbPlayers -> Total number of players | D2: =COUNTA(OFFSET(FullLicencedPlayerList,0,1,,1)) -> 4335
C3: =N_TotalNbPlayersLines -> Total number of lines in the player list | D3: =ROWS(FullLicencedPlayerList) -> 4341
B4: =COUNTA(OFFSET(Liste_licenciés_noms_prénoms,0,1)) -> 4335
B5: =N_Player_list -> Licenced Players list
B6: =N_Name_1stname -> FAMILY NAME / Given name | C6: =N_Family_Name -> Family Name | D6: =N_1st_Name -> Given Name | E6: =N_Licence -> Licence N° | F6: =N_Category -> Category | G6: =N_Club -> Club | H6: =N_Nationality -> Nationality
B7: ---
B8: =TRIM(CONCATENATE(D8," ",C8)) -> Fabrizio Bertolini | C8: Bertolini | D8: Fabrizio | E8: ARG0002 | F8: VET | G8: AS Rosario 2008 | H8: ARG
B9: Gioacchino Di Giannantonio | C9: Di Giannantonio | D9: Gioacchino | E9: ARG0009 | F9: VET | G9: AS Rosario 2008 | H9: ARG
B10: Gustavo Di Giannantonio | C10: Di Giannantonio | D10: Gustavo | E10: ARG0010 | F10: OPEN | G10: AS Rosario 2008 | H10: ARG
B11: Nino Di Giannantonio | C11: Di Giannantonio | D11: Nino | E11: ARG0011 | F11: OPEN | G11: AS Rosario 2008 | H11: ARG
B12: Bruno Di Paolo Sr. | C12: Di Paolo Sr. | D12: Bruno | E12: ARG0012 | F12: VET | G12: AS Rosario 2008 | H12: ARG
B13: Paolo Ferrara | C13: Ferrara | D13: Paolo | E13: ARG0013 | F13: OPEN | G13: AS Rosario 2008 | H13: ARG
B14: Gonzalo Gómez | C14: Gómez | D14: Gonzalo | E14: ARG0014 | F14: OPEN | G14: AS Rosario 2008 | H14: ARG
B15: Leonardo Mario Juanto | C15: Juanto | D15: Leonardo Mario | E15: ARG0017 | F15: OPEN | G15: AS Rosario 2008 | H15: ARG
B16: Toribio Lambertucci | C16: Lambertucci | D16: Toribio | E16: ARG0018 | F16: VET | G16: AS Rosario 2008 | H16: ARG
B17: Matías Lioy | C17: Lioy | D17: Matías | E17: ARG0019 | F17: OPEN | G17: AS Rosario 2008 | H17: ARG
B18: Nicolás Lioy | C18: Lioy | D18: Nicolás | E18: ARG0020 | F18: OPEN | G18: AS Rosario 2008 | H18: ARG
B19: Claudio Murcilli | C19: Murcilli | D19: Claudio | E19: ARG0026 | F19: VET | G19: AS Rosario 2008 | H19: ARG
B20: Renato Murcilli | C20: Murcilli | D20: Renato | E20: ARG0027 | F20: OPEN | G20: AS Rosario 2008 | H20: ARG
B21: Ricardo Roberti | C21: Roberti | D21: Ricardo | E21: ARG0030 | F21: OPEN | G21: AS Rosario 2008 | H21: ARG
B22: Edgar Shoenfeld | C22: Shoenfeld | D22: Edgar | E22: ARG0032 | F22: VET | G22: AS Rosario 2008 | H22: ARG
B23: Fernando Tortelli | C23: Tortelli | D23: Fernando | E23: ARG0035 | F23: OPEN | G23: AS Rosario 2008 | H23: ARG
B24: Leonardo Vera | C24: Vera | D24: Leonardo | E24: ARG0037 | F24: OPEN | G24: AS Rosario 2008 | H24: ARG
B25: Gregorio Caro Solis | C25: Caro Solis | D25: Gregorio | E25: ARG0042 | F25: VET | G25: Buenos Aires TS | H25: ARG
B26: Flavio Bellingeri | C26: Bellingeri | D26: Flavio | E26: ARG0043 | F26: VET | G26: Buenos Aires TS | H26: ARG
B27: Christopher Wander | C27: Wander | D27: Christopher | E27: ARG0044 | F27: VET | G27: Buenos Aires TS | H27: ARG
B28: Germán Pacello | C28: Pacello | D28: Germán | E28: ARG0045 | F28: OPEN | G28: Buenos Aires TS | H28: ARG
B29: Patricio Echevarrieta | C29: Echevarrieta | D29: Patricio | E29: ARG0046 | F29: OPEN | G29: Buenos Aires TS | H29: ARG
B30: Fernando Soneira | C30: Soneira | D30: Fernando | E30: ARG0049 | F30: OPEN | G30: Buenos Aires TS | H30: ARG
B31: Claudia Cuello | C31: Cuello | D31: Claudia | E31: ARG0051 | F31: OPEN | G31: Buenos Aires TS | H31: ARG
B32: Sergio Gustavo Pelle | C32: Pelle | D32: Sergio Gustavo | E32: ARG0054 | F32: VET | G32: Marplatense AFM | H32: ARG
B33: Juan Carlos Galassi | C33: Galassi | D33: Juan Carlos | E33: ARG0055 | F33: VET | G33: Marplatense AFM | H33: ARG
B34: Leonardo Galassi | C34: Galassi | D34: Leonardo | E34: ARG0056 | F34: VET | G34: Marplatense AFM | H34: ARG
B35: Juan Manuel Sordo | C35: Sordo | D35: Juan Manuel | E35: ARG0058 | F35: OPEN | G35: Marplatense AFM | H35: ARG
B36: Mauro Bertolini | C36: Bertolini | D36: Mauro | E36: ARG0059 | F36: OPEN | G36: AS Rosario 2008 | H36: ARG
B37: Sebastián Pesci | C37: Pesci | D37: Sebastián | E37: ARG0060 | F37: OPEN | G37: AS Rosario 2008 | H37: ARG
B38: Agustin Ortega | C38: Ortega | D38: Agustin | E38: ARG0061 | F38: OPEN | G38: AS Rosario 2008 | H38: ARG
B39: Agustin Bruno | C39: Bruno | D39: Agustin | E39: ARG0062 | F39: OPEN | G39: AS Rosario 2008 | H39: ARG
B40: Tomas Testoni | C40: Testoni | D40: Tomas | E40: ARG0063 | F40: OPEN | G40: AS Rosario 2008 | H40: ARG
B41: Alvaro Paciaroni | C41: Paciaroni | D41: Alvaro | E41: ARG0064 | F41: OPEN | G41: AS Rosario 2008 | H41: ARG
B42: Ricardo Buldorini | C42: Buldorini | D42: Ricardo | E42: ARG0065 | F42: OPEN | G42: AS Rosario 2008 | H42: ARG
B43: Martín Zega | C43: Zega | D43: Martín | E43: ARG0066 | F43: OPEN | G43: AS Rosario 2008 | H43: ARG
B44: Santiago Shoenfeld | C44: Shoenfeld | D44: Santiago | E44: ARG0067 | F44: OPEN | G44: AS Rosario 2008 | H44: ARG
B45: Tomás Shoenfeld | C45: Shoenfeld | D45: Tomás | E45: ARG0068 | F45: OPEN | G45: AS Rosario 2008 | H45: ARG
B46: Davide Bozzano | C46: Bozzano | D46: Davide | E46: ARG0069 | F46: VET | G46: AS Rosario 2008 | H46: ARG
B47: Norberto Martínez | C47: Martínez | D47: Norberto | E47: ARG0070 | F47: VET | G47: AFM San Justo | H47: ARG
B48: Norberto Oscar Martínez | C48: Martínez | D48: Norberto Oscar | E48: ARG0071 | F48: VET | G48: AFM San Justo | H48: ARG
B49: Carlos Alberto Martínez | C49: Martínez | D49: Carlos Alberto | E49: ARG0072 | F49: OPEN | G49: AFM San Justo | H49: ARG
B50: Guillermo Joel Gramajo | C50: Gramajo | D50: Guillermo Joel | E50: ARG0073 | F50: OPEN | G50: AFM San Justo | H50: ARG
B51: Maximiliano Gabriel Vergara | C51: Vergara | D51: Maximiliano Gabriel | E51: ARG0074 | F51: OPEN | G51: AFM San Justo | H51: ARG
B52: Mariano Di Luozzo | C52: Di Luozzo | D52: Mariano | E52: ARG0075 | F52: OPEN | G52: CFM Hudson | H52: ARG
B53: Mauro Fantino | C53: Fantino | D53: Mauro | E53: ARG0076 | F53: VET | G53: AS Rosario 2008 | H53: ARG
B54: Joaquín Martínez | C54: Martínez | D54: Joaquín | E54: ARG0077 | F54: U20 | G54: AFM San Justo | H54: ARG
B55: Martín Gallimò | C55: Gallimò | D55: Martín | E55: ARG0078 | F55: OPEN | G55: AS Rosario 2008 | H55: ARG
B56: Marcelo Rossi | C56: Rossi | D56: Marcelo | E56: ARG0079 | F56: VET | G56: CFM Hudson | H56: ARG
B57: Juan Sebastián Garcia Ciraudo | C57: Garcia Ciraudo | D57: Juan Sebastián | E57: ARG0080 | F57: OPEN | G57: CFM Hudson | H57: ARG
B58: Augusto Rossi | C58: Rossi | D58: Augusto | E58: ARG0081 | F58: U16 | G58: CFM Hudson | H58: ARG
B59: Valeria Forlani | C59: Forlani | D59: Valeria | E59: ARG0082 | F59: OPEN | G59: CFM Hudson | H59: ARG
B60: Valentino García Ciraudo | C60: García Ciraudo | D60: Valentino | E60: ARG0083 | F60: OPEN | G60: CFM Hudson | H60: ARG
B61: Frida Rossi | C61: Rossi | D61: Frida | E61: ARG0084 | F61: U20 | G61: CFM Hudson | H61: ARG
B62: Brian González | C62: González | D62: Brian | E62: ARG0085 | F62: U20 | G62: CFM Hudson | H62: ARG
B63: Gabriel Fantino | C63: Fantino | D63: Gabriel | E63: ARG0086 | F63: OPEN | G63: AS Rosario 2008 | H63: ARG
B64: Facundo Rossi | C64: Rossi | D64: Facundo | E64: ARG0087 | F64: OPEN | G64: CFM Hudson | H64: ARG
B65: Juan Ramòn González | C65: González | D65: Juan Ramòn | E65: ARG0088 | F65: VET | G65: CFM Hudson | H65: ARG
B66: Hugo Senone | C66: Senone | D66: Hugo | E66: ARG0089 | F66: VET | G66: CFM Hudson | H66: ARG
B67: Santiago Torres | C67: Torres | D67: Santiago | E67: ARG0090 | F67: OPEN | G67: Buenos Aires TS | H67: ARG
B68: Robert Green | C68: Green | D68: Robert | E68: AUS0002 | F68: VET | G68: Northern Falcons TFC | H68: AUS
B69: Peter Thomas | C69: Thomas | D69: Peter | E69: AUS0003 | F69: OPEN | G69: Melbourne TFC | H69: AUS
B70: Benji Batten | C70: Batten | D70: Benji | E70: AUS0004 | F70: OPEN | G70: Melbourne TFC | H70: AUS
B71: =TRIM(CONCATENATE(D71," ",C71)) -> Steve Dettre | C71: Dettre | D71: Steve | E71: AUS0005 | F71: VET | G71: Northern Falcons TFC | H71: AUS
B72: Adrian Elmer | C72: Elmer | D72: Adrian | E72: AUS0006 | F72: VET | G72: The Tumbleweeds | H72: AUS
B73: Eliot Kennedy | C73: Kennedy | D73: Eliot | E73: AUS0007 | F73: VET | G73: Northern Falcons TFC | H73: AUS
B74: Luke Radziminski | C74: Radziminski | D74: Luke | E74: AUS0011 | F74: OPEN | G74: Melbourne TFC | H74: AUS
B75: Giuseppe Tardiota | C75: Tardiota | D75: Giuseppe | E75: AUS0016 | F75: VET | G75: Brisbane Subbuteo Club | H75: AUS
B76: Daniel Lombard | C76: Lombard | D76: Daniel | E76: AUS0018 | F76: OPEN | G76: Sydney TFC | H76: AUS
B77: Louie Dettre | C77: Dettre | D77: Louie | E77: AUS0019 | F77: OPEN | G77: Northern Falcons TFC | H77: AUS
B78: James Dettre | C78: Dettre | D78: James | E78: AUS0020 | F78: OPEN | G78: Northern Falcons TFC | H78: AUS
B79: Imojjen Elmer | C79: Elmer | D79: Imojjen | E79: AUS0023 | F79: OPEN | G79: The Tumbleweeds | H79: AUS
B80: Jonny Ball | C80: Ball | D80: Jonny | E80: AUS0028 | F80: VET | G80: Northern Falcons TFC | H80: AUS
B81: Paul Mercer | C81: Mercer | D81: Paul | E81: AUS0030 | F81: VET | G81: Northern Phoenix TFC | H81: AUS
B82: Harry Wightman | C82: Wightman | D82: Harry | E82: AUS0032 | F82: OPEN | G82: Melbourne TFC | H82: AUS
B83: Paul Magee | C83: Magee | D83: Paul | E83: AUS0039 | F83: VET | G83: The Tumbleweeds | H83: AUS
B84: Christos Garagounis | C84: Garagounis | D84: Christos | E84: AUS0044 | F84: VET | G84: Northern Phoenix TFC | H84: AUS
B85: Adam Deverell | C85: Deverell | D85: Adam | E85: AUS0047 | F85: VET | G85: Northern Falcons TFC | H85: AUS
B86: Neil Brener | C86: Brener | D86: Neil | E86: AUS0053 | F86: VET | G86: Northern Falcons TFC | H86: AUS
B87: Geoff Sirmai | C87: Sirmai | D87: Geoff | E87: AUS0057 | F87: VET | G87: Hipfingerz Subbuteo Club | H87: AUS
B88: Gareth Whalley | C88: Whalley | D88: Gareth | E88: AUS0067 | F88: OPEN | G88: Brisbane Subbuteo Club | H88: AUS
B89: Beth Eveleigh | C89: Eveleigh | D89: Beth | E89: AUS0074 | F89: VET | G89: Northern Phoenix TFC | H89: AUS
B90: Chris Thorn | C90: Thorn | D90: Chris | E90: AUS0078 | F90: VET | G90: Subbuteo Perth | H90: AUS
B91: Matt Metter | C91: Metter | D91: Matt | E91: AUS0098 | F91: OPEN | G91: Melbourne TFC | H91: AUS
B92: Yago Dzelalija | C92: Dzelalija | D92: Yago | E92: AUS0110 | F92: VET | G92: Western Flickers TFC | H92: AUS
B93: Hugh Best | C93: Best | D93: Hugh | E93: AUS0122 | F93: VET | G93: The Sports Table Football Club of Western Australia | H93: AUS
B94: Adrian Connolly | C94: Connolly | D94: Adrian | E94: AUS0123 | F94: OPEN | G94: Melbourne TFC | H94: AUS
B95: Kevin Grant | C95: Grant | D95: Kevin | E95: AUS0124 | F95: VET | G95: Central Victoria TFC | H95: AUS
B96: Billy Koutzas | C96: Koutzas | D96: Billy | E96: AUS0138 | F96: OPEN | G96: Sydney TFC | H96: AUS
B97: Nick Brill | C97: Brill | D97: Nick | E97: AUS0139 | F97: OPEN | G97: The Tumbleweeds | H97: AUS
B98: Adrian Grunbach | C98: Grunbach | D98: Adrian | E98: AUS0156 | F98: OPEN | G98: Northern Falcons TFC | H98: AUS
B99: Nathan Urbaniak | C99: Urbaniak | D99: Nathan | E99: AUS0170 | F99: OPEN | G99: Melbourne TFC | H99: AUS
B100: Francis Cozzarin | C100: Cozzarin | D100: Francis | E100: AUS0194 | F100: OPEN | G100: The Tumbleweeds | H100: AUS
B101: Gordon Orr | C101: Orr | D101: Gordon | E101: AUS0203 | F101: VET | G101: Brisbane Subbuteo Club | H101: AUS
B102: Nathan Heard | C102: Heard | D102: Nathan | E102: AUS0208 | F102: VET | G102: Northern Phoenix TFC | H102: AUS
B103: Timothy Phokos | C103: Phokos | D103: Timothy | E103: AUS0209 | F103: U20 | G103: The Tumbleweeds | H103: AUS
B104: Gabriel Phokos | C104: Phokos | D104: Gabriel | E104: AUS0210 | F104: U16 | G104: The Tumbleweeds | H104: AUS
B105: Mick Phillips | C105: Phillips | D105: Mick | E105: AUS0211 | F105: VET | G105: Subbuteo Adelaide TFC | H105: AUS
B106: Marc Davey | C106: Davey | D106: Marc | E106: AUS0212 | F106: OPEN | G106: Subbuteo Adelaide TFC | H106: AUS
B107: Justin Bullock | C107: Bullock | D107: Justin | E107: AUS0213 | F107: OPEN | G107: Free Agent | H107: AUS
B108: Riley Connolly | C108: Connolly | D108: Riley | E108: AUS0214 | F108: U12 | G108: Free Agent | H108: AUS
B109: Steve Solomonidis | C109: Solomonidis | D109: Steve | E109: AUS0215 | F109: OPEN | G109: Melbourne TFC | H109: AUS
B110: Tom Shalev | C110: Shalev | D110: Tom | E110: AUS0216 | F110: OPEN | G110: Melbourne TFC | H110: AUS
B111: John Phokos | C111: Phokos | D111: John | E111: AUS0217 | F111: VET | G111: The Tumbleweeds | H111: AUS
B112: Alexander Best | C112: Best | D112: Alexander | E112: AUS0218 | F112: OPEN | G112: The Sports Table Football Club of Western Australia | H112: AUS
B113: George Theocaris | C113: Theocaris | D113: George | E113: AUS0219 | F113: VET | G113: Northern Phoenix TFC | H113: AUS
B114: Günter Exler | C114: Exler | D114: Günter | E114: AUT0002 | F114: VET | G114: TFC Mattersburg | H114: AUT
B115: Thomas Exler | C115: Exler | D115: Thomas | E115: AUT0003 | F115: OPEN | G115: TFC Mattersburg | H115: AUT
B116: Wolfgang Leitner | C116: Leitner | D116: Wolfgang | E116: AUT0010 | F116: OPEN | G116: TSC Royal 78 Kaisermühlen | H116: AUT
B117: Robert Lenz | C117: Lenz | D117: Robert | E117: AUT0012 | F117: VET | G117: TSC Royal 78 Kaisermühlen | H117: AUT
B118: Gerhard Mandl | C118: Mandl | D118: Gerhard | E118: AUT0013 | F118: VET | G118: TFC Mattersburg | H118: AUT
B119: Markus Matzinger | C119: Matzinger | D119: Markus | E119: AUT0015 | F119: OPEN | G119: TFC Mattersburg | H119: AUT
B120: Gerhard Ecker | C120: Ecker | D120: Gerhard | E120: AUT0020 | F120: VET | G120: TSC Royal 78 Kaisermühlen | H120: AUT
B121: Heinz Eder | C121: Eder | D121: Heinz | E121: AUT0021 | F121: OPEN | G121: TSC Royal 78 Kaisermühlen | H121: AUT
B122: Christoph Gerbasits | C122: Gerbasits | D122: Christoph | E122: AUT0022 | F122: OPEN | G122: TSC Royal 78 Kaisermühlen | H122: AUT
B123: Herbert Gütl | C123: Gütl | D123: Herbert | E123: AUT0023 | F123: OPEN | G123: TSC Royal 78 Kaisermühlen | H123: AUT
B124: Alexander Haas | C124: Haas | D124: Alexander | E124: AUT0024 | F124: OPEN | G124: TSC Royal 78 Kaisermühlen | H124: AUT
B125: Christian Haas | C125: Haas | D125: Christian | E125: AUT0025 | F125: OPEN | G125: Bormla SC | H125: AUT
B126: Michael Hasieber | C126: Hasieber | D126: Michael | E126: AUT0026 | F126: VET | G126: TSC Royal 78 Kaisermühlen | H126: AUT
B127: Stefan Sandner | C127: Sandner | D127: Stefan | E127: AUT0033 | F127: VET | G127: TSC Royal 78 Kaisermühlen | H127: AUT
B128: Reinhard Schöberl | C128: Schöberl | D128: Reinhard | E128: AUT0035 | F128: OPEN | G128: TSC Royal 78 Kaisermühlen | H128: AUT
B129: Manfred Schuhmann | C129: Schuhmann | D129: Manfred | E129: AUT0036 | F129: VET | G129: TSC Royal 78 Kaisermühlen | H129: AUT
B130: Murat Tünger | C130: Tünger | D130: Murat | E130: AUT0040 | F130: OPEN | G130: TSC Royal 78 Kaisermühlen | H130: AUT
B131: Thomas Wittmann | C131: Wittmann | D131: Thomas | E131: AUT0041 | F131: OPEN | G131: TSC Royal 78 Kaisermühlen | H131: AUT
B132: Peter Zeilinger | C132: Zeilinger | D132: Peter | E132: AUT0043 | F132: OPEN | G132: TSC Royal 78 Kaisermühlen | H132: AUT
B133: Wolfgang Haas | C133: Haas | D133: Wolfgang | E133: AUT0044 | F133: OPEN | G133: Bormla SC | H133: AUT
B134: Günther Bamberzky | C134: Bamberzky | D134: Günther | E134: AUT0045 | F134: VET | G134: Crimson Horses | H134: AUT
B135: =TRIM(CONCATENATE(D135," ",C135)) -> Christian Blümel | C135: Blümel | D135: Christian | E135: AUT0047 | F135: OPEN | G135: TSC Phoenix | H135: AUT
B136: Erich Hinkelmann | C136: Hinkelmann | D136: Erich | E136: AUT0051 | F136: VET | G136: TSC Phoenix | H136: AUT
B137: Thomas Karnthaler | C137: Karnthaler | D137: Thomas | E137: AUT0054 | F137: OPEN | G137: TSC Phoenix | H137: AUT
B138: Jürgen Lizar | C138: Lizar | D138: Jürgen | E138: AUT0056 | F138: OPEN | G138: TSC Phoenix | H138: AUT
B139: Manfred Pawlica | C139: Pawlica | D139: Manfred | E139: AUT0057 | F139: VET | G139: TSC Phoenix | H139: AUT
B140: Alfred Strommer | C140: Strommer | D140: Alfred | E140: AUT0059 | F140: VET | G140: TSC Phoenix | H140: AUT
B141: David Vranovitz | C141: Vranovitz | D141: David | E141: AUT0061 | F141: OPEN | H141: AUT
B142: Marios Strommer | C142: Strommer | D142: Marios | E142: AUT0066 | F142: OPEN | G142: TSC Phoenix | H142: AUT
B143: David Busch | C143: Busch | D143: David | E143: AUT0069 | F143: VET | G143: Bormla SC | H143: AUT
B144: Thomas Busch | C144: Busch | D144: Thomas | E144: AUT0070 | F144: VET | G144: TSC Phoenix | H144: AUT
B145: Thorsten Korzil | C145: Korzil | D145: Thorsten | E145: AUT0072 | F145: OPEN | G145: TFC Mattersburg | H145: AUT
B146: Daniel Vranovitz | C146: Vranovitz | D146: Daniel | E146: AUT0073 | F146: OPEN | G146: TSC Royal 78 Kaisermühlen | H146: AUT
B147: Bettina Lenz | C147: Lenz | D147: Bettina | E147: AUT0074 | F147: OPEN | G147: TFC Mattersburg | H147: AUT
B148: Karl Vranovitz | C148: Vranovitz | D148: Karl | E148: AUT0084 | F148: VET | G148: TSC Royal 78 Kaisermühlen | H148: AUT
B149: Elias Walzer | C149: Walzer | D149: Elias | E149: AUT0094 | F149: U20 | G149: TFC Mattersburg | H149: AUT
B150: David Scherbantin | C150: Scherbantin | D150: David | E150: AUT0107 | F150: OPEN | G150: TSC Royal 78 Kaisermühlen | H150: AUT
B151: Katharina Ocenasek | C151: Ocenasek | D151: Katharina | E151: AUT0115 | F151: OPEN | G151: TSC Royal 78 Kaisermühlen | H151: AUT
B152: Christian Hausmann | C152: Hausmann | D152: Christian | E152: AUT0117 | F152: OPEN | G152: TSC Royal 78 Kaisermühlen | H152: AUT
B153: Fabian Pinter | C153: Pinter | D153: Fabian | E153: AUT0120 | F153: U20 | G153: TFC Mattersburg | H153: AUT
B154: Katharina Waldorf-Busch | C154: Waldorf-Busch | D154: Katharina | E154: AUT0121 | F154: VET | G154: Bormla SC | H154: AUT
B155: Louis Haas | C155: Haas | D155: Louis | E155: AUT0122 | F155: U12 | G155: TSC Royal 78 Kaisermühlen | H155: AUT
B156: Johannes Haas | C156: Haas | D156: Johannes | E156: AUT0123 | F156: U12 | G156: Free Agent | H156: AUT
B157: Igor Ljubisavljevic | C157: Ljubisavljevic | D157: Igor | E157: AUT0124 | F157: OPEN | G157: TSC Phoenix | H157: AUT
B158: Florian Daxböck | C158: Daxböck | D158: Florian | E158: AUT0125 | F158: VET | G158: TSC Phoenix | H158: AUT
B159: Jordan Bonte | C159: Bonte | D159: Jordan | E159: BEL0272 | F159: OPEN | G159: ALC Wattrelos - Subbuteo Lille Metropole | H159: BEL
B160: Sébastien Scheen | C160: Scheen | D160: Sébastien | E160: BEL0152 | F160: OPEN | G160: ASD SC Salernitana | H160: BEL
B161: Joffray Laurent | C161: Laurent | D161: Joffray | E161: BEL0033 | F161: OPEN | G161: Atlas FTC | H161: BEL
B162: Matthias Averlant | C162: Averlant | D162: Matthias | E162: BEL0242 | F162: OPEN | G162: Avenir Subbuteo Hennuyer | H162: BEL
B163: Elodie Bertholet | C163: Bertholet | D163: Elodie | E163: BEL0168 | F163: OPEN | G163: Avenir Subbuteo Hennuyer | H163: BEL
B164: Corentin Boltz | C164: Boltz | D164: Corentin | E164: BEL0217 | F164: OPEN | G164: Avenir Subbuteo Hennuyer | H164: BEL
B165: Jérôme Cyganek | C165: Cyganek | D165: Jérôme | E165: BEL0300 | F165: U20 | G165: Avenir Subbuteo Hennuyer | H165: BEL
B166: Emeric Delcroix | C166: Delcroix | D166: Emeric | E166: BEL0030 | F166: OPEN | G166: Avenir Subbuteo Hennuyer | H166: BEL
B167: Louka Demeuldre | C167: Demeuldre | D167: Louka | E167: BEL0495 | F167: U16 | G167: Avenir Subbuteo Hennuyer | H167: BEL
B168: Emilie Despretz | C168: Despretz | D168: Emilie | E168: BEL0061 | F168: OPEN | G168: Avenir Subbuteo Hennuyer | H168: BEL
B169: Steffen Despretz | C169: Despretz | D169: Steffen | E169: BEL0063 | F169: OPEN | G169: Avenir Subbuteo Hennuyer | H169: BEL
B170: Léa Despretz | C170: Despretz | D170: Léa | E170: BEL0236 | F170: U20 | G170: Avenir Subbuteo Hennuyer | H170: BEL
B171: Chloé Despretz | C171: Despretz | D171: Chloé | E171: BEL0324 | F171: U16 | G171: Avenir Subbuteo Hennuyer | H171: BEL
B172: Delphine Dieudonne | C172: Dieudonne | D172: Delphine | E172: BEL0064 | F172: OPEN | G172: Avenir Subbuteo Hennuyer | H172: BEL
B173: Nathan Dupont | C173: Dupont | D173: Nathan | E173: BEL0065 | F173: OPEN | G173: Avenir Subbuteo Hennuyer | H173: BEL
B174: Chantal Gallez | C174: Gallez | D174: Chantal | E174: BEL0066 | F174: VET | G174: Avenir Subbuteo Hennuyer | H174: BEL
B175: Laurent Goor | C175: Goor | D175: Laurent | E175: BEL0067 | F175: OPEN | G175: Avenir Subbuteo Hennuyer | H175: BEL
B176: Benoit Lagneau | C176: Lagneau | D176: Benoit | E176: BEL0262 | F176: OPEN | G176: Avenir Subbuteo Hennuyer | H176: BEL
B177: Geoffrey Marain | C177: Marain | D177: Geoffrey | E177: BEL0171 | F177: OPEN | G177: Avenir Subbuteo Hennuyer | H177: BEL
B178: Benjamin Marain | C178: Marain | D178: Benjamin | E178: BEL0298 | F178: U20 | G178: Avenir Subbuteo Hennuyer | H178: BEL
B179: Patrick Peltier | C179: Peltier | D179: Patrick | E179: BEL0069 | F179: VET | G179: Avenir Subbuteo Hennuyer | H179: BEL
B180: Olivier Pere | C180: Pere | D180: Olivier | E180: BEL0070 | F180: VET | G180: Avenir Subbuteo Hennuyer | H180: BEL
B181: Lucas Pere | C181: Pere | D181: Lucas | E181: BEL0197 | F181: OPEN | G181: Avenir Subbuteo Hennuyer | H181: BEL
B182: Jann Segers | C182: Segers | D182: Jann | E182: BEL0247 | F182: U20 | G182: Avenir Subbuteo Hennuyer | H182: BEL
B183: David Vantassel | C183: Vantassel | D183: David | E183: BEL0073 | F183: OPEN | G183: Avenir Subbuteo Hennuyer | H183: BEL
B184: Bessim Golger | C184: Golger | D184: Bessim | E184: BEL0018 | F184: OPEN | G184: Bormla SC | H184: BEL
B185: William Van Den Houte | C185: Van Den Houte | D185: William | E185: BEL0122 | F185: OPEN | G185: Bormla SC | H185: BEL
B186: Christophe Dheur | C186: Dheur | D186: Christophe | E186: BEL0132 | F186: OPEN | G186: CCT Eagles Napoli | H186: BEL
B187: Vincent Dirick | C187: Dirick | D187: Vincent | E187: BEL0484 | F187: VET | G187: ELM'Aye SC | H187: BEL
B188: Olivia Huet | C188: Huet | D188: Olivia | E188: BEL0467 | F188: U16 | G188: ELM'Aye SC | H188: BEL
B189: Mathis Joachim | C189: Joachim | D189: Mathis | E189: BEL0464 | F189: U16 | G189: ELM'Aye SC | H189: BEL
B190: Romain Joris | C190: Joris | D190: Romain | E190: BEL0465 | F190: U16 | G190: ELM'Aye SC | H190: BEL
B191: Martin Joris | C191: Joris | D191: Martin | E191: BEL0475 | F191: U12 | G191: ELM'Aye SC | H191: BEL
B192: Martin Lebutte | C192: Lebutte | D192: Martin | E192: BEL0476 | F192: U12 | G192: ELM'Aye SC | H192: BEL
B193: Robin Verplaetse | C193: Verplaetse | D193: Robin | E193: BEL0466 | F193: U16 | G193: ELM'Aye SC | H193: BEL
B194: Rémy Huynh | C194: Huynh | D194: Rémy | E194: BEL0108 | F194: OPEN | G194: F.Lli Bari Reggio Emilia | H194: BEL
B195: Xavier Herman | C195: Herman | D195: Xavier | E195: BEL0140 | F195: OPEN | G195: free agent | H195: BEL
B196: Florian Giaux | C196: Giaux | D196: Florian | E196: BEL0104 | F196: OPEN | G196: FTC Caen | H196: BEL
B197: Louison Giaux | C197: Giaux | D197: Louison | E197: BEL0106 | F197: OPEN | G197: FTC Caen | H197: BEL
B198: Justin Leroy | C198: Leroy | D198: Justin | E198: BEL0114 | F198: OPEN | G198: FTC Caen | H198: BEL
B199: =TRIM(CONCATENATE(D199," ",C199)) -> Pierre De Leeuw | C199: De Leeuw | D199: Pierre | E199: BEL0015 | F199: OPEN | G199: H'Attard SC | H199: BEL
B200: Bruno Timpano | C200: Timpano | D200: Bruno | E200: BEL0316 | F200: OPEN | G200: H'Attard SC | H200: BEL
... 4143 more rows

Sheet Clubs (hidden)
A1: 50 | B1: =N_ClubsSheetTitle -> Club database
B2: =N_TotalNbClubs -> Total number of clubs | C2: =COUNTA(OFFSET(FullClubList,0,0,,1)) -> 369
B3: =N_TotalNbClubsLines -> Total number of lines in the club list | C3: =ROWS(FullClubList) -> 424
B5: =N_Club_list -> Club list
B6: =N_Club_Name -> Club name | C6: =N_Abbreviation -> Abbreviation | D6: =N_Nationality -> Nationality | E6: Licence
B7: ---
B8: Melbourne TFC | C8: mel | D8: AUS | E8: AUSC001
B9: Western Sydney Subbuteo | C9: par | D9: AUS | E9: AUSC002
B10: Northern Falcons TFC | C10: nfc | D10: AUS | E10: AUSC003
B11: Brisbane Subbuteo Club | C11: bri | D11: AUS | E11: AUSC004
B12: Subbuteo Adelaide TFC | C12: ade | D12: AUS | E12: AUSC006
B13: Subbuteo Perth | C13: per | D13: AUS | E13: AUSC007
B14: Hipfingerz Subbuteo Club | C14: hip | D14: AUS | E14: AUSC008
B15: Canberra & South Coast TFC | C15: cab | D15: AUS | E15: AUSC009
B16: Western Flickers TFC | C16: wtf | D16: AUS | E16: AUSC013
B17: Sydney TFC | C17: syd | D17: AUS | E17: AUSC014
B18: Northern Phoenix TFC | C18: phn | D18: AUS | E18: AUSC016
B19: Hobart Table Football Club | C19: hob | D19: AUS | E19: AUSC017
B20: Central Victoria TFC | C20: cvi | D20: AUS | E20: AUSC018
B21: The Sports Table Football Club of Western Australia | C21: twa | D21: AUS | E21: AUSC019
B22: The Tumbleweeds | C22: tum | D22: AUS | E22: AUSC020
B23: TFC Mattersburg | C23: mat | D23: AUT | E23: AUTC001
B24: TSC Royal 78 Kaisermühlen | C24: roy | D24: AUT | E24: AUTC002
B25: TSC Phoenix | C25: wie | D25: AUT | E25: AUTC003
B26: SC Charleroi | C26: cha | D26: BEL | E26: BELC003
B27: SC Lion's Eugies | C27: eug | D27: BEL | E27: BELC004
B28: SC Flanders | C28: fla | D28: BEL | E28: BELC005
B29: Avenir Subbuteo Hennuyer | C29: hen | D29: BEL | E29: BELC006
B30: JSC Rochefort | C30: roc | D30: BEL | E30: BELC007
B31: ST Stembert | C31: ste | D31: BEL | E31: BELC009
B32: SC Temploux | C32: tem | D32: BEL | E32: BELC010
B33: Templeuve United TSC | C33: tpv | D33: BEL | E33: BELC011
B34: Magic Team Tournai | C34: tou | D34: BEL | E34: BELC020
B35: Wamme SC | C35: wam | D35: BEL | E35: BELC023
B36: US Huy | C36: hut | D36: BEL | E36: BELC025
B37: ELM'Aye SC | C37: aye | D37: BEL | E37: BELC026
B38: Racing White Woluwé Subbuteo | C38: rww | D38: BEL | E38: BELC027
B39: Bangu Atlético Clube | C39: bgu | D39: BRA | E39: BRAC001
B40: Club de Regatas Vasco da Gama | C40: vas | D40: BRA | E40: BRAC002
B41: Cisplatina Futebol Clube | C41: cfc | D41: BRA | E41: BRAC008
B42: Sociedade Esportiva Palmeiras | C42: sep | D42: BRA | E42: BRAC011
B43: Torigno Nostro Club | C43: tnc | D43: BRA | E43: BRAC014
B44: Sport Club Corinthians Paulista | C44: cor | D44: BRA | E44: BRAC015
B45: Botafogo de Futebol e Regatas | C45: bot | D45: BRA | E45: BRAC017
B46: São Paulo Futebol Clube | C46: spf | D46: BRA | E46: BRAC018
B47: Colombo Sport Club | C47: scf | D47: BRA | E47: BRAC021
B48: Sport Club do Recife | C48: rcf | D48: BRA | E48: BRAC024
B49: Associação Atlética Banco do Brasil - Caruaru | C49: aab | D49: BRA | E49: BRAC025
B50: Calgary SC | C50: clg | D50: CAN | E50: CANC001
B51: West Coast TSC | C51: wct | D51: CAN | E51: CANC002
B52: Toronto SL | C52: tor | D52: CAN | E52: CANC003
B53: Hamilton SC | C53: hsc | D53: CAN | E53: CANC004
B54: CS Montréal | C54: mtr | D54: CAN | E54: CANC005
B55: Toronto SC | C55: tsc | D55: CAN | E55: CANC006
B56: Famagusta TFC | C56: fam | D56: CYP | E56: CYPC001
B57: Nicosia TFC | C57: nic | D57: CYP | E57: CYPC002
B58: Larnaca TFC | C58: lac | D58: CYP | E58: CYPC003
B59: Czech Subbuteo Team 2014 | C59: cst | D59: CZE | E59: CZEC001
B60: Lega Subbuteo Liga Odense | C60: ode | D60: DEN | E60: DENC001
B61: Yorkshire Phoenix and Dewsbury Moor TFC | C61: yor | D61: ENG | E61: ENGC002
B62: Kent Invicta TFC | C62: kiv | D62: ENG | E62: ENGC003
B63: TSPA White Star | C63: tsp | D63: ENG | E63: ENGC004
B64: Worthing Fivestar | C64: wor | D64: ENG | E64: ENGC007
B65: London TFC | C65: lon | D65: ENG | E65: ENGC009
B66: Lincoln Flickers SC | C66: lin | D66: ENG | E66: ENGC018
B67: Walsall TFC | C67: wll | D67: ENG | E67: ENGC022
B68: Birmingham & District Table Soccer League | C68: bir | D68: ENG | E68: ENGC031
B69: Bristol SC | C69: brs | D69: ENG | E69: ENGC037
B70: London & Essex United | C70: leu | D70: ENG | E70: ENGC039
B71: Harrow Hawks TSC | C71: haw | D71: ENG | E71: ENGC041
B72: West Midlands SC | C72: wmd | D72: ENG | E72: ENGC042
B73: North Shields STF | C73: nss | D73: ENG | E73: ENGC043
B74: Merseyside SC | C74: mey | D74: ENG | E74: ENGC044
B75: South Staff | C75: mmm | D75: ENG | E75: ENGC045
B76: Liverpool TSC | C76: lts | D76: ENG | E76: ENGC046
B77: Wolverhampton Table Football Club | C77: wsf | D77: ENG | E77: ENGC047
B78: Surrey Saracens Subbuteo | C78: sss | D78: ENG | E78: ENGC048
B79: Stanway Rovers Flickers | C79: srs | D79: ENG | E79: ENGC049
B80: Haverhill Rovers tfc | C80: hrt | D80: ENG | E80: ENGC050
B81: The Magnet Broadstairs | C81: mag | D81: ENG | E81: ENGC054
B82: Milton Keynes | C82: mke | D82: ENG | E82: ENGC057
B83: RAS (Rochford & Southend) Casual Subbuteo Club | C83: ras | D83: ENG | E83: ENGC065
B84: Solent Table Soccer & Subbuteo club | C84: sts | D84: ENG | E84: ENGC066
B85: Langton Green Subbuteo Club | C85: lgt | D85: ENG | E85: ENGC067
B86: Old Sods Old Subbuteo Club | C86: oss | D86: ENG | E86: ENGC068
B87: Sport Vale United | C87: svu | D87: ENG | E87: ENGC070
B88: The Morecambe Bay Subbuteo Club | C88: mbs | D88: ENG | E88: ENGC072
B89: The Andover Subbuteo Club | C89: and | D89: ENG | E89: ENGC073
B90: Cov and Warks Subbuteo | C90: caw | D90: ENG | E90: ENGC074
B91: Leicester Foxes Subbuteo Club | C91: lei | D91: ENG | E91: ENGC075
B92: Kirkstall Crusaders Subbuteo Club | C92: kir | D92: ENG | E92: ENGC076
B93: London Subbuteo Club | C93: ldn | D93: ENG | E93: ENGC078
B94: CHASERS (Chadwell Heath & South Essex, Romford Subbuteo) Club | C94: chs | D94: ENG | E94: ENGC080
B95: Chesterfield TFC | C95: che | D95: ENG | E95: ENGC081
B96: Pedmore S&TFC | C96: ped | D96: ENG | E96: ENGC082
B97: The Wessex Subbuteo Club | C97: wsx | D97: ENG | E97: ENGC083
B98: Elstow Lions TFC | C98: els | D98: ENG | E98: ENGC084
B99: Kettering Flicking Marvellous | C99: kfm | D99: ENG | E99: ENGC085
B100: Woburn Casuals | C100: wob | D100: ENG | E100: ENGC086
B101: Doncaster Subbuteo Club | C101: don | D101: ENG | E101: ENGC087
B102: That Retro Place Subbuteo Club | C102: ret | D102: ENG | E102: ENGC088
B103: Barcelona FT | C103: bac | D103: ESP | E103: ESPC003
B104: Mallorca Águilas FM | C104: mao | D104: ESP | E104: ESPC006
B105: Moralzarzal Subbuteo CAD | C105: mor | D105: ESP | E105: ESPC007
B106: CAP Ciudad de Murcia FM | C106: mur | D106: ESP | E106: ESPC009
B107: Tiburones FM | C107: tib | D107: ESP | E107: ESPC011
B108: SC UD Santa María FM | C108: sma | D108: ESP | E108: ESPC013
B109: AC Los Remedios FM | C109: rem | D109: ESP | E109: ESPC014
B110: CFM Manolo Preciado | C110: mpr | D110: ESP | E110: ESPC016
B111: FM La Plazoleta | C111: plz | D111: ESP | E111: ESPC017
B112: AFT Turia 1981 | C112: tur | D112: ESP | E112: ESPC019
B113: SC Barakaldo | C113: brk | D113: ESP | E113: ESPC021
B114: AS Iluro Futbol Taula | C114: ilu | D114: ESP | E114: ESPC022
B115: Subbuteo Dragons Azuqueca | C115: dra | D115: ESP | E115: ESPC024
B116: Subbuteo Club Almería | C116: alm | D116: ESP | E116: ESPC025
B117: CFT Montivilliers | C117: mon | D117: FRA | E117: FRAC001
B118: CFT Puylaurens | C118: puy | D118: FRA | E118: FRAC002
B119: Elan Subbutéo Club de Champs-sur-Marne | C119: chp | D119: FRA | E119: FRAC003
B120: Celtic Combourg CFT | C120: com | D120: FRA | E120: FRAC008
B121: FTC Issy-les-Moulineaux | C121: iss | D121: FRA | E121: FRAC009
B122: FTC Caen | C122: cae | D122: FRA | E122: FRAC012
B123: FTC Saint-Symphorien-sur-Coise | C123: sym | D123: FRA | E123: FRAC018
B124: Football de Table Aquitaine | C124: aqu | D124: FRA | E124: FRAC019
B125: ALC Wattrelos - Subbuteo Lille Metropole | C125: lil | D125: FRA | E125: FRAC020
B126: Section Subbutéo Squadra omessinca | C126: sso | D126: FRA | E126: FRAC021
B127: Subbuteo Le Cannet Côte d'Azur | C127: cca | D127: FRA | E127: FRAC022
B128: Guebwiller Alsace Subbuteo Club | C128: als | D128: FRA | E128: FRAC023
B129: RC Lorraine Subbuteo Club | C129: lor | D129: FRA | E129: FRAC024
B130: Paris Université Club | C130: puc | D130: FRA | E130: FRAC025
B131: Club Stéphanois Subbuteo - ALC | C131: css | D131: FRA | E131: FRAC026
B132: Boucle de la Seine Subbutéo | C132: bos | D132: FRA | E132: FRAC027
B133: Subbutéo Team Gard | C133: gar | D133: FRA | E133: FRAC028
B134: Spartak des dames | C134: dam | D134: FRA | E134: FRAC029
B135: Mulhouse Subbuteo by ASPTT | C135: mul | D135: FRA | E135: FRAC030
B136: Subbutéo Club Marseille | C136: mrl | D136: FRA | E136: FRAC031
B137: Poitou Football de Table Club | C137: poi | D137: FRA | E137: FRAC032
B138: Les Ducs Chalon-sur-Saône FTSC | C138: duc | D138: FRA | E138: FRAC033
B139: Football de table de Pegomas | C139: pgm | D139: FRA | E139: FRAC034
B140: Sparta Spreeathen 74/82 | C140: ssp | D140: GER | E140: GERC001
B141: Gliding Stars Aachen | C141: gli | D141: GER | E141: GERC002
B142: Borussia Bergkamen | C142: bvb | D142: GER | E142: GERC003
B143: TSL Dortmund 61 | C143: dor | D143: GER | E143: GERC004
B144: SF SW gemaba Hitdorf | C144: hit | D144: GER | E144: GERC005
B145: STV 97 Hohenlohe | C145: hol | D145: GER | E145: GERC006
B146: SCN Idstein | C146: tau | D146: GER | E146: GERC007
B147: Irreal Nieder-Mörlen | C147: irr | D147: GER | E147: GERC008
B148: TFC Rhein-Hessen Wiesbaden | C148: rhe | D148: GER | E148: GERC009
B149: BSC Schwalbach | C149: sch | D149: GER | E149: GERC010
B150: SC Bad Sobernheim | C150: bad | D150: GER | E150: GERC011
B151: TSG Rain 1970 | C151: rai | D151: GER | E151: GERC012
B152: 1.SFC Selb | C152: sel | D152: GER | E152: GERC013
B153: SC Kickers 69 Offenbach | C153: off | D153: GER | E153: GERC014
B154: SB Komet Frankfurt | C154: kom | D154: GER | E154: GERC015
B155: SC Weimar Wanderers | C155: wei | D155: GER | E155: GERC016
B156: Eurofighter Bochum | C156: boc | D156: GER | E156: GERC017
B157: SC Germania Schwerte 76 | C157: swt | D157: GER | E157: GERC018
B158: Essener SC | C158: ess | D158: GER | E158: GERC019
B159: SUB Kaiserau | C159: kai | D159: GER | E159: GERC020
B160: Minimannia Aachen | C160: aac | D160: GER | E160: GERC021
B161: SC München 2014 | C161: mun | D161: GER | E161: GERC022
B162: Subbuteo Club Höpfigheim | C162: hop | D162: GER | E162: GERC023
B163: 1.TFC Aktivist Bergen 74 | C163: akt | D163: GER | E163: GERC024
B164: TV Germania Kaiserau | C164: tvg | D164: GER | E164: GERC025
B165: SG '94 Hannover | C165: han | D165: GER | E165: GERC026
B166: SC Berlin | C166: ber | D166: GER | E166: GERC027
B167: USC Wuppertal | C167: wup | D167: GER | E167: GERC028
B168: Europa FC TSC | C168: eur | D168: GIB | E168: GIBC001
B169: Atlas FTC | C169: atl | D169: GRE | E169: GREC001
B170: TSC Falcons Athens | C170: fal | D170: GRE | E170: GREC002
B171: Piraeus Lions TSC | C171: pil | D171: GRE | E171: GREC003
B172: Roligans Ilioupolis TSC | C172: rol | D172: GRE | E172: GREC004
B173: Glyfada United TSC | C173: gly | D173: GRE | E173: GREC005
B174: Myrmidones TSC | C174: myr | D174: GRE | E174: GREC006
B175: Blade TSC | C175: bld | D175: GRE | E175: GREC007
B176: Achaioi TSC | C176: ach | D176: GRE | E176: GREC008
B177: Olympia CS | C177: ocs | D177: GRE | E177: GREC009
B178: Larissa TFC | C178: ael | D178: GRE | E178: GREC011
B179: Piraeus Tigers TSC | C179: ptg | D179: GRE | E179: GREC012
B180: Proteas Athens SC | C180: pro | D180: GRE | E180: GREC013
B181: Argonautes Volou TSC | C181: arv | D181: GRE | E181: GREC016
B182: Scarlet Battalion SC | C182: sbs | D182: GRE | E182: GREC017
B183: Athinaikos CS | C183: ati | D183: GRE | E183: GREC018
B184: Flaming Flickers SC | C184: ffl | D184: GRE | E184: GREC019
B185: Highlanders TSC | C185: hig | D185: GRE | E185: GREC020
B186: Thessaloniki SC TSC | C186: the | D186: GRE | E186: GREC021
B187: Adrastians | C187: adr | D187: GRE | E187: GREC023
B188: Panorama 1978 SC | C188: paa | D188: GRE | E188: GREC024
B189: Noctuas Athens TSC | C189: noa | D189: GRE | E189: GREC025
B190: Evia CAN | C190: ipp | D190: GRE | E190: GREC026
B191: Thessaloniki United TSC | C191: thu | D191: GRE | E191: GREC027
B192: Crimson Horses | C192: crh | D192: GRE | E192: GREC028
B193: Polis Athlitikos Syllogos Daskaliou Kerateas | C193: pol | D193: GRE | E193: GREC029
B194: Subbuteurs Athens TSC | C194: sat | D194: GRE | E194: GREC030
B195: Underdogs Cholargos TSC | C195: und | D195: GRE | E195: GREC031
B196: Charilaos Trikoupis TS | C196: cht | D196: GRE | E196: GREC032
B197: Irish Premier League | C197: ipl | D197: IRL | E197: IRLC001
B198: Tralee and Munster Subbuteo Club | C198: tms | D198: IRL | E198: IRLC002
B199: Bologna Tigers Subbuteo | C199: bol | D199: ITA | E199: ITAC003
B200: Subbito Gol Ferrara | C200: fer | D200: ITA | E200: ITAC005
B201: Foggia CT | C201: fgg | D201: ITA | E201: ITAC006
... 174 more rows

Sheet Nationalities (hidden)
B1: =N_NationalityCodes -> FISTF nationality codes
D3: =N_Language -> Language
D4: =language!D2 -> FR | E4: =language!E2 -> EN | F4: =language!F2 -> IT | G4: =language!G2 -> SP | H4: =language!H2 -> CAT | I4: =language!I2 -> 0 | J4: =language!J2 -> 0 | K4: =language!K2 -> 0 | L4: =language!L2 -> 0
B5: =HLOOKUP(Language,D$4:L$59,ROW()-3,FALSE) -> Albania | C5: ALB | D5: Albanie | E5: Albania | F5: Afganistán | G5: Afganistan | H5: ?? | I5: ?? | J5: ?? | K5: ?? | L5: ??
B6: Argentina | C6: ARG | D6: Argentine | E6: Argentina | F6: Argentina | G6: Argentina | H6: ?? | I6: ?? | J6: ?? | K6: ?? | L6: ??
B7: Australia | C7: AUS | D7: Australie | E7: Australia | F7: Australia | G7: Australia | H7: ?? | I7: ?? | J7: ?? | K7: ?? | L7: ??
B8: Austria | C8: AUT | D8: Autriche | E8: Austria | F8: Austria | G8: Austria | H8: ?? | I8: ?? | J8: ?? | K8: ?? | L8: ??
B9: Belgium | C9: BEL | D9: Belgique | E9: Belgium | F9: Bélgica | G9: Belgio | H9: ?? | I9: ?? | J9: ?? | K9: ?? | L9: ??
B10: Bosnia | C10: BOS | D10: Bosnie | E10: Bosnia | F10: Bosnia | G10: Bosnia | H10: ?? | I10: ?? | J10: ?? | K10: ?? | L10: ??
B11: Brazil | C11: BRA | D11: Brésil | E11: Brazil | F11: Brasil | G11: Brasile | H11: ?? | I11: ?? | J11: ?? | K11: ?? | L11: ??
B12: Canada | C12: CAN | D12: Canada | E12: Canada | F12: Canadá | G12: Canada | H12: ?? | I12: ?? | J12: ?? | K12: ?? | L12: ??
B13: Chile | C13: CHL | D13: Chili | E13: Chile | F13: Chile | G13: Cile | H13: ?? | I13: ?? | J13: ?? | K13: ?? | L13: ??
B14: China | C14: CHN | D14: Chine | E14: China | F14: China | G14: Cina | H14: ?? | I14: ?? | J14: ?? | K14: ?? | L14: ??
B15: Colombia | C15: COL | D15: Colombie | E15: Colombia | F15: Colombia | G15: Colombia | H15: ?? | I15: ?? | J15: ?? | K15: ?? | L15: ??
B16: Croatia | C16: CRO | D16: Croatie | E16: Croatia | F16: Croacia | G16: Croazia | H16: ?? | I16: ?? | J16: ?? | K16: ?? | L16: ??
B17: Cyprus | C17: CYP | D17: Chypre | E17: Cyprus | F17: Chipre | G17: Cipro | H17: ?? | I17: ?? | J17: ?? | K17: ?? | L17: ??
B18: Czech Republic | C18: CZE | D18: République Tchèque | E18: Czech Republic | F18: República Checa | G18: Repubblica ceca | H18: ?? | I18: ?? | J18: ?? | K18: ?? | L18: ??
B19: Denmark | C19: DEN | D19: Danemark | E19: Denmark | F19: Dinamarca | G19: Danimarca | H19: ?? | I19: ?? | J19: ?? | K19: ?? | L19: ??
B20: Ecuador | C20: ECU | D20: Equateur | E20: Ecuador | F20: Ecuador | G20: Ecuador | H20: ?? | I20: ?? | J20: ?? | K20: ?? | L20: ??
B21: England | C21: ENG | D21: Angleterre | E21: England | F21: Inglaterra | G21: Inghilterra | H21: ?? | I21: ?? | J21: ?? | K21: ?? | L21: ??
B22: Finland | C22: FIN | D22: Finlande | E22: Finland | F22: Finlandia | G22: Finlandia | H22: ?? | I22: ?? | J22: ?? | K22: ?? | L22: ??
B23: France | C23: FRA | D23: France | E23: France | F23: Francia | G23: Francia | H23: ?? | I23: ?? | J23: ?? | K23: ?? | L23: ??
B24: Germany | C24: GER | D24: Allemagne | E24: Germany | F24: Alemania | G24: Germania | H24: ?? | I24: ?? | J24: ?? | K24: ?? | L24: ??
B25: Gibraltar | C25: GIB | D25: Gibraltar | E25: Gibraltar | F25: Gibraltar | G25: Gibilterra | H25: ?? | I25: ?? | J25: ?? | K25: ?? | L25: ??
B26: Greece | C26: GRE | D26: Grèce | E26: Greece | F26: Grecia | G26: Grecia | H26: ?? | I26: ?? | J26: ?? | K26: ?? | L26: ??
B27: Hong Kong | C27: HKG | D27: Hong Kong | E27: Hong Kong | F27: Hong Kong | G27: Hong Kong | H27: ?? | I27: ?? | J27: ?? | K27: ?? | L27: ??
B28: Hungary | C28: HUN | D28: Hongrie | E28: Hungary | F28: Hungría | G28: Ungheria | H28: ?? | I28: ?? | J28: ?? | K28: ?? | L28: ??
B29: India | C29: IND | D29: Inde | E29: India | F29: India (la) | G29: India | H29: ?? | I29: ?? | J29: ?? | K29: ?? | L29: ??
B30: Ireland | C30: IRL | D30: Irlande | E30: Ireland | F30: Irlanda | G30: Irlanda | H30: ?? | I30: ?? | J30: ?? | K30: ?? | L30: ??
B31: Israel | C31: ISR | D31: Israël | E31: Israel | F31: Israel | G31: Israele | H31: ?? | I31: ?? | J31: ?? | K31: ?? | L31: ??
B32: Italy | C32: ITA | D32: Italie | E32: Italy | F32: Italia | G32: Italia | H32: ?? | I32: ?? | J32: ?? | K32: ?? | L32: ??
B33: Jamaica | C33: JAM | D33: Jamaïque | E33: Jamaica | F33: Jamaica | G33: Giamaica | H33: ?? | I33: ?? | J33: ?? | K33: ?? | L33: ??
B34: Japan | C34: JPN | D34: Japon | E34: Japan | F34: Japón | G34: Giappone | H34: ?? | I34: ?? | J34: ?? | K34: ?? | L34: ??
B35: Malta | C35: MLT | D35: Malte | E35: Malta | F35: Malta | G35: Malta | H35: ?? | I35: ?? | J35: ?? | K35: ?? | L35: ??
B36: Mexico | C36: MEX | D36: Mexique | E36: Mexico | F36: México | G36: Messico | H36: ?? | I36: ?? | J36: ?? | K36: ?? | L36: ??
B37: =HLOOKUP(Language,D$4:L$59,ROW()-3,FALSE) -> Malaysia | C37: MAS | D37: Malaysie | E37: Malaysia | F37: Malasia | G37: Malesia | H37: ?? | I37: ?? | J37: ?? | K37: ?? | L37: ??
B38: Monaco | C38: MON | D38: Monaco | E38: Monaco | F38: Mónaco | G38: Monaco | H38: ?? | I38: ?? | J38: ?? | K38: ?? | L38: ??
B39: Netherlands | C39: NED | D39: Pays-Bas | E39: Netherlands | F39: Países Bajos | G39: Paesi Bassi | H39: ?? | I39: ?? | J39: ?? | K39: ?? | L39: ??
B40: Nigeria | C40: NGA | D40: Nigéria | E40: Nigeria | F40: Nigeria | G40: Nigeria | H40: ?? | I40: ?? | J40: ?? | K40: ?? | L40: ??
B41: Northern Ireland | C41: NIR | D41: Irlande du Nord | E41: Northern Ireland | F41: Irlanda del Norte | G41: Irlanda del Nord | H41: ?? | I41: ?? | J41: ?? | K41: ?? | L41: ??
B42: Norway | C42: NOR | D42: Norvège | E42: Norway | F42: Noruega | G42: Norvegia | H42: ?? | I42: ?? | J42: ?? | K42: ?? | L42: ??
B43: Poland | C43: POL | D43: Pologne | E43: Poland | F43: Polonia | G43: Polonia | H43: ?? | I43: ?? | J43: ?? | K43: ?? | L43: ??
B44: Portugal | C44: POR | D44: Portugal | E44: Portugal | F44: Portugal | G44: Portogallo | H44: ?? | I44: ?? | J44: ?? | K44: ?? | L44: ??
B45: Romania | C45: ROM | D45: Roumanie | E45: Romania | F45: Rumania | G45: Romania | H45: ?? | I45: ?? | J45: ?? | K45: ?? | L45: ??
B46: Russia | C46: RUS | D46: Russie | E46: Russia | F46: Rusia | G46: Russia | H46: ?? | I46: ?? | J46: ?? | K46: ?? | L46: ??
B47: Scotland | C47: SCO | D47: Ecosse | E47: Scotland | F47: Escocia | G47: Scozia | H47: ?? | I47: ?? | J47: ?? | K47: ?? | L47: ??
B48: Singapore | C48: SIN | D48: Singapour | E48: Singapore | F48: Singapur | G48: Singapore | H48: ?? | I48: ?? | J48: ?? | K48: ?? | L48: ??
B49: Switzerland | C49: SUI | D49: Suisse | E49: Switzerland | F49: Suiza | G49: Svizzera | H49: ?? | I49: ?? | J49: ?? | K49: ?? | L49: ??
B50: South Africa | C50: SAF | D50: Afrique du Sud | E50: South Africa | F50: Sudáfrica | G50: Sudafrica | H50: ?? | I50: ?? | J50: ?? | K50: ?? | L50: ??
B51: Spain | C51: ESP | D51: Espagne | E51: Spain | F51: España | G51: Spagna | H51: ?? | I51: ?? | J51: ?? | K51: ?? | L51: ??
B52: Slovakia | C52: SUI | D52: Slovaquie | E52: Slovakia | F52: Eslovaquia | G52: Slovacchia | H52: ?? | I52: ?? | J52: ?? | K52: ?? | L52: ??
B53: Tunisia | C53: TUN | D53: Tunisie | E53: Tunisia | F53: Túnez | G53: Tunisia | H53: ?? | I53: ?? | J53: ?? | K53: ?? | L53: ??
B54: Turkey | C54: TUR | D54: Turquie | E54: Turkey | F54: Turquía | G54: Turchia | H54: ?? | I54: ?? | J54: ?? | K54: ?? | L54: ??
B55: USA | C55: USA | D55: Etats-Unis | E55: USA | F55: Estados Unidos | G55: Stati Uniti | H55: ?? | I55: ?? | J55: ?? | K55: ?? | L55: ??
B56: Vietnam | C56: VIE | D56: Vietnam | E56: Vietnam | F56: Vietnam | G56: Vietnam | H56: ?? | I56: ?? | J56: ?? | K56: ?? | L56: ??
B57: Wales | C57: WAL | D57: Pays de Galles | E57: Wales | F57: Gales | G57: Galles | H57: ?? | I57: ?? | J57: ?? | K57: ?? | L57: ??
B58: Zimbabwe | C58: ZIM | D58: Zimbabwé | E58: Zimbabwe | F58: Zimbabue | G58: Zimbabwe | H58: ?? | I58: ?? | J58: ?? | K58: ?? | L58: ??

Sheet Ranking (hidden)
A1: 100 | C1: =N_RankingSheetTitle -> Players Ranking
F2: =N_TotalNbRankedPlayers -> Total number of ranked players | G2: =COUNTA(OFFSET(FullPlayersRankingList,0,2,,1)) -> 1944
F3: =N_TotalNbRankingLines -> Total number of ranking lines | G3: =COUNTA(OFFSET(FullPlayersRankingList,0,0,,1)) -> 2249
C5: =N_RankedPlayers_list -> Ranked players list
D6: =N_Category -> Category | E6: =N_Rank -> Rk | F6: =N_Family_Name -> Family Name | G6: =N_1st_Name -> Given Name | H6: =N_Club -> Club | I6: =N_Nationality -> Nationality | J6: =N_Points -> Points
B7: =CONCATENATE(D7," - ",C7) -> Open - FLORES Carlos | C7: =CONCATENATE(UPPER(F7)," ",G7) -> FLORES Carlos | D7: Open | E7: 1 | F7: FLORES | G7: Carlos | H7: F.Lli Bari Reggio Emilia | I7: ESP | J7: 4087.5
B8: Open - GOLGER Bessim | C8: =CONCATENATE(UPPER(F8)," ",G8) -> GOLGER Bessim | D8: Open | E8: 2 | F8: GOLGER | G8: Bessim | H8: Bormla SC | I8: BEL | J8: 3007.5
B9: Open - DHEUR Christophe | C9: DHEUR Christophe | D9: Open | E9: 3 | F9: DHEUR | G9: Christophe | H9: CCT Eagles Napoli | I9: BEL | J9: 2716
B10: Open - HAAS Wolfgang | C10: HAAS Wolfgang | D10: Open | E10: 4 | F10: HAAS | G10: Wolfgang | H10: Bormla SC | I10: AUT | J10: 2605
B11: Open - DIMOPOULOS Dimitrios | C11: DIMOPOULOS Dimitrios | D11: Open | E11: 5 | F11: DIMOPOULOS | G11: Dimitrios | H11: SC Fiamme Azzurre | I11: GRE | J11: 2598.5
B12: Open - BARTOLO Samuel | C12: BARTOLO Samuel | D12: Open | E12: 6 | F12: BARTOLO | G12: Samuel | H12: Valletta SC | I12: MLT | J12: 2467.5
B13: Open - BARI Saverio | C13: BARI Saverio | D13: Open | E13: 7 | F13: BARI | G13: Saverio | H13: F.Lli Bari Reggio Emilia | I13: ITA | J13: 2065
B14: Open - DI MAGGIO Alberto | C14: DI MAGGIO Alberto | D14: Open | E14: 8 | F14: DI MAGGIO | G14: Alberto | H14: Bologna Tigers Subbuteo | I14: GRE | J14: 1506.5
B15: Open - GAUCI Mark | C15: GAUCI Mark | D15: Open | E15: 9 | F15: GAUCI | G15: Mark | H15: Valletta SC | I15: MLT | J15: 1421.5
B16: Open - CHARATSIS Nikolaos | C16: CHARATSIS Nikolaos | D16: Open | E16: 10 | F16: CHARATSIS | G16: Nikolaos | H16: Scarlet Battalion SC | I16: GRE | J16: 1383
B17: Open - CICCARELLI Matteo | C17: CICCARELLI Matteo | D17: Open | E17: 11 | F17: CICCARELLI | G17: Matteo | H17: TS Napoli Fighters | I17: ITA | J17: 1314
B18: Open - BALZAN Jurgen | C18: BALZAN Jurgen | D18: Open | E18: 12 | F18: BALZAN | G18: Jurgen | H18: Valletta SC | I18: MLT | J18: 1204.5
B19: Open - SCHEEN Sébastien | C19: SCHEEN Sébastien | D19: Open | E19: 13 | F19: SCHEEN | G19: Sébastien | H19: ASD SC Salernitana | I19: BEL | J19: 1168.5
B20: Open - NASTASI Massimiliano | C20: NASTASI Massimiliano | D20: Open | E20: 14 | F20: NASTASI | G20: Massimiliano | H20: SC Fiamme Azzurre | I20: ITA | J20: 1083
B21: Open - GONZÁLEZ David | C21: GONZÁLEZ David | D21: Open | E21: 15 | F21: GONZÁLEZ | G21: David | H21: Bologna Tigers Subbuteo | I21: ESP | J21: 1035.5
B22: Open - COLANGELO Luca | C22: COLANGELO Luca | D22: Open | E22: 16 | F22: COLANGELO | G22: Luca | H22: SC Fiamme Azzurre | I22: ITA | J22: 1026
B23: Open - SCHEEN Pascal | C23: SCHEEN Pascal | D23: Open | E23: 17 | F23: SCHEEN | G23: Pascal | H23: ST Stembert | I23: BEL | J23: 1015.5
B24: Open - EBEJER George | C24: EBEJER George | D24: Open | E24: 18 | F24: EBEJER | G24: George | H24: Bormla SC | I24: MLT | J24: 991
B25: Open - HAAS Christian | C25: HAAS Christian | D25: Open | E25: 19 | F25: HAAS | G25: Christian | H25: Bormla SC | I25: AUT | J25: 899
B26: Open - BATTISTA Luca | C26: BATTISTA Luca | D26: Open | E26: 20 | F26: BATTISTA | G26: Luca | H26: TS Napoli Fighters | I26: ITA | J26: 896
B27: Open - LOUREIRO Sérgio | C27: LOUREIRO Sérgio | D27: Open | E27: 21 | F27: LOUREIRO | G27: Sérgio | H27: TS Napoli Fighters | I27: POR | J27: 892
B28: Open - RAMOS Sérgio | C28: RAMOS Sérgio | D28: Open | E28: 22 | F28: RAMOS | G28: Sérgio | H28: Bologna Tigers Subbuteo | I28: POR | J28: 879.5
B29: Open - BELLEFONTAINE Elliott | C29: BELLEFONTAINE Elliott | D29: Open | E29: 23 | F29: BELLEFONTAINE | G29: Elliott | H29: Messina Table Soccer | I29: ENG | J29: 875
B30: Open - LEROY Justin | C30: LEROY Justin | D30: Open | E30: 24 | F30: LEROY | G30: Justin | H30: FTC Caen | I30: BEL | J30: 829
B31: Open - ROSLAN Rudy Hesty | C31: ROSLAN Rudy Hesty | D31: Open | E31: 25 | F31: ROSLAN | G31: Rudy Hesty | H31: Jurong Central SC | I31: SGP | J31: 821.5
B32: Open - DOTTO William | C32: DOTTO William | D32: Open | E32: 26 | F32: DOTTO | G32: William | H32: F.Lli Bari Reggio Emilia | I32: ITA | J32: 820.5
B33: Open - SORET Rémi | C33: SORET Rémi | D33: Open | E33: 27 | F33: SORET | G33: Rémi | H33: Avenir Subbuteo Hennuyer | I33: FRA | J33: 815.5
B34: Open - JOSÉ Ricardo | C34: JOSÉ Ricardo | D34: Open | E34: 28 | F34: JOSÉ | G34: Ricardo | H34: FTC Issy-les-Moulineaux | I34: POR | J34: 775.5
B35: Open - MODESTE Théo | C35: MODESTE Théo | D35: Open | E35: 29 | F35: MODESTE | G35: Théo | H35: FTC Issy-les-Moulineaux | I35: FRA | J35: 758.5
B36: Open - LEITNER Wolfgang | C36: LEITNER Wolfgang | D36: Open | E36: 30 | F36: LEITNER | G36: Wolfgang | H36: TSC Royal 78 Kaisermühlen | I36: AUT | J36: 739
B37: Open - AMATELLI Alessandro | C37: AMATELLI Alessandro | D37: Open | E37: 31 | F37: AMATELLI | G37: Alessandro | H37: Subbuteo Casale | I37: ITA | J37: 728
B38: Open - SESES Konstantinos | C38: SESES Konstantinos | D38: Open | E38: 32 | F38: SESES | G38: Konstantinos | H38: Olympia CS | I38: GRE | J38: 695
B39: Open - HAAS Alexander | C39: HAAS Alexander | D39: Open | E39: 33 | F39: HAAS | G39: Alexander | H39: TSC Royal 78 Kaisermühlen | I39: AUT | J39: 681
B40: Open - DESPRETZ Steffen | C40: DESPRETZ Steffen | D40: Open | E40: 34 | F40: DESPRETZ | G40: Steffen | H40: Avenir Subbuteo Hennuyer | I40: BEL | J40: 666
B41: Open - GIAUX Florian | C41: GIAUX Florian | D41: Open | E41: 35 | F41: GIAUX | G41: Florian | H41: FTC Caen | I41: BEL | J41: 657
B42: Open - VALVERDE Ángel | C42: VALVERDE Ángel | D42: Open | E42: 36 | F42: VALVERDE | G42: Ángel | H42: CAP Ciudad de Murcia FM | I42: ESP | J42: 654
B43: Open - CAMILLERI Josef | C43: CAMILLERI Josef | D43: Open | E43: 37 | F43: CAMILLERI | G43: Josef | H43: Bormla SC | I43: MLT | J43: 645
B44: Open - POMMIER Raphaël | C44: POMMIER Raphaël | D44: Open | E44: 38 | F44: POMMIER | G44: Raphaël | H44: FTC Caen | I44: FRA | J44: 607.5
B45: Open - THOMAS Peter | C45: THOMAS Peter | D45: Open | E45: 39 | F45: THOMAS | G45: Peter | H45: Melbourne TFC | I45: AUS | J45: 598.5
B46: Open - RAIROUX Maxime | C46: RAIROUX Maxime | D46: Open | E46: 40 | F46: RAIROUX | G46: Maxime | H46: SC Lion's Eugies | I46: BEL | J46: 579
B47: Open - LIM Bernard | C47: LIM Bernard | D47: Open | E47: 41 | F47: LIM | G47: Bernard | H47: Jurong Central SC | I47: SGP | J47: 569.5
B48: Open - LA TORRE Claudio | C48: LA TORRE Claudio | D48: Open | E48: 42 | F48: LA TORRE | G48: Claudio | H48: Barcellona Calcio Tavolo | I48: ITA | J48: 524
B49: Open - VAN DEN HOUTE William | C49: VAN DEN HOUTE William | D49: Open | E49: 43 | F49: VAN DEN HOUTE | G49: William | H49: Bormla SC | I49: BEL | J49: 523
B50: Open - MARAIN Geoffrey | C50: MARAIN Geoffrey | D50: Open | E50: 44 | F50: MARAIN | G50: Geoffrey | H50: Avenir Subbuteo Hennuyer | I50: BEL | J50: 512.5
B51: Open - NIKOLAIDIS Giannis | C51: NIKOLAIDIS Giannis | D51: Open | E51: 45 | F51: NIKOLAIDIS | G51: Giannis | H51: Atlas FTC | I51: GRE | J51: 508
B52: Open - ZAMBELLO Luca | C52: ZAMBELLO Luca | D52: Open | E52: 46 | F52: ZAMBELLO | G52: Luca | H52: F.Lli Bari Reggio Emilia | I52: ITA | J52: 504
B53: Open - PAPIDAKIS Sarantis | C53: PAPIDAKIS Sarantis | D53: Open | E53: 47 | F53: PAPIDAKIS | G53: Sarantis | H53: Scarlet Battalion SC | I53: GRE | J53: 498.5
B54: Open - DONVAL Axel | C54: DONVAL Axel | D54: Open | E54: 48 | F54: DONVAL | G54: Axel | H54: FTC Issy-les-Moulineaux | I54: FRA | J54: 487.5
B55: Open - VLASSOPOULOS Ioannis | C55: VLASSOPOULOS Ioannis | D55: Open | E55: 49 | F55: VLASSOPOULOS | G55: Ioannis | H55: Proteas Athens SC | I55: GRE | J55: 480.5
B56: Open - THOMAS Chris | C56: THOMAS Chris | D56: Open | E56: 50 | F56: THOMAS | G56: Chris | H56: Elstow Lions TFC | I56: ENG | J56: 478.5
B57: Open - TABONE Jean Carl | C57: TABONE Jean Carl | D57: Open | E57: 51 | F57: TABONE | G57: Jean Carl | H57: Bormla SC | I57: MLT | J57: 476
B58: Open - SILVERI Gabriele | C58: SILVERI Gabriele | D58: Open | E58: 52 | F58: SILVERI | G58: Gabriele | H58: SC Ascoli | I58: ITA | J58: 453.5
B59: Open - BOLOGNINO Massimo | C59: BOLOGNINO Massimo | D59: Open | E59: 53 | F59: BOLOGNINO | G59: Massimo | H59: CCT Eagles Napoli | I59: ITA | J59: 452.5
B60: Open - GASPARINI Ferdinando | C60: GASPARINI Ferdinando | D60: Open | E60: 54 | F60: GASPARINI | G60: Ferdinando | H60: ASD SC Salernitana | I60: ITA | J60: 444.5
B61: Open - KIDO Takafumi | C61: KIDO Takafumi | D61: Open | E61: 55 | F61: KIDO | G61: Takafumi | H61: Yokohama OSC | I61: JPN | J61: 432
B62: Open - CASÍN Antonio Jesús | C62: CASÍN Antonio Jesús | D62: Open | E62: 56 | F62: CASÍN | G62: Antonio Jesús | H62: F.Lli Bari Reggio Emilia | I62: ESP | J62: 428.5
B63: Open - SHORT Christian | C63: SHORT Christian | D63: Open | E63: 57 | F63: SHORT | G63: Christian | H63: FTC Issy-les-Moulineaux | I63: ENG | J63: 427
B64: Open - DI VINCENZO Andrea | C64: DI VINCENZO Andrea | D64: Open | E64: 58 | F64: DI VINCENZO | G64: Andrea | H64: Bologna Tigers Subbuteo | I64: ITA | J64: 425
B65: Open - PAPIDAKIS Philippos | C65: PAPIDAKIS Philippos | D65: Open | E65: 59 | F65: PAPIDAKIS | G65: Philippos | H65: Scarlet Battalion SC | I65: GRE | J65: 416.5
B66: Open - SCIACCA Carmelo | C66: SCIACCA Carmelo | D66: Open | E66: 60 | F66: SCIACCA | G66: Carmelo | H66: Barcellona Calcio Tavolo | I66: ITA | J66: 405
B67: Open - CUBETA Filippo | C67: CUBETA Filippo | D67: Open | E67: 61 | F67: CUBETA | G67: Filippo | H67: Barcellona Calcio Tavolo | I67: ITA | J67: 397
B68: Open - SANTOS Manuel | C68: SANTOS Manuel | D68: Open | E68: 62 | F68: SANTOS | G68: Manuel | H68: Subbuteo Club Labronico | I68: POR | J68: 389
B69: Open - ROUIS Mongi | C69: ROUIS Mongi | D69: Open | E69: 63 | F69: ROUIS | G69: Mongi | H69: SC Lion's Eugies | I69: TUN | J69: 385
B70: Open - PAVÃO Ricardo | C70: PAVÃO Ricardo | D70: Open | E70: 64 | F70: PAVÃO | G70: Ricardo | H70: GRD 1º Maio Tires | I70: POR | J70: 384
B71: =CONCATENATE(D71," - ",C71) -> Open - CHANTZARAS Spyridon | C71: =CONCATENATE(UPPER(F71)," ",G71) -> CHANTZARAS Spyridon | D71: Open | E71: 65 | F71: CHANTZARAS | G71: Spyridon | H71: TSC Falcons Athens | I71: GRE | J71: 382.5
B72: Open - METTIVIERI Antonio | C72: METTIVIERI Antonio | D72: Open | E72: 65 | F72: METTIVIERI | G72: Antonio | H72: CCT Eagles Napoli | I72: ITA | J72: 382.5
B73: Open - PATRINOS Spyridon | C73: PATRINOS Spyridon | D73: Open | E73: 67 | F73: PATRINOS | G73: Spyridon | H73: Olympia CS | I73: GRE | J73: 377.5
B74: Open - SKINNER Aaron | C74: SKINNER Aaron | D74: Open | E74: 68 | F74: SKINNER | G74: Aaron | H74: Langton Green Subbuteo Club | I74: ENG | J74: 372.5
B75: Open - AVERLANT Matthias | C75: AVERLANT Matthias | D75: Open | E75: 69 | F75: AVERLANT | G75: Matthias | H75: Avenir Subbuteo Hennuyer | I75: BEL | J75: 371.5
B76: Open - DE LEEUW Pierre | C76: DE LEEUW Pierre | D76: Open | E76: 70 | F76: DE LEEUW | G76: Pierre | H76: H'Attard SC | I76: BEL | J76: 354.5
B77: Open - HUYNH Rémy | C77: HUYNH Rémy | D77: Open | E77: 71 | F77: HUYNH | G77: Rémy | H77: F.Lli Bari Reggio Emilia | I77: BEL | J77: 351
B78: Open - CAMILLERI Mauro | C78: CAMILLERI Mauro | D78: Open | E78: 72 | F78: CAMILLERI | G78: Mauro | H78: Bormla SC | I78: MLT | J78: 349
B79: Open - LÓPEZ Miguel Ángel | C79: LÓPEZ Miguel Ángel | D79: Open | E79: 73 | F79: LÓPEZ | G79: Miguel Ángel | H79: Mallorca Águilas FM | I79: ESP | J79: 343.5
B80: Open - LEPRI Maurizio | C80: LEPRI Maurizio | D80: Open | E80: 74 | F80: LEPRI | G80: Maurizio | H80: ASD SC Salernitana | I80: ITA | J80: 336.5
B81: Open - GIUDICE Leonardo | C81: GIUDICE Leonardo | D81: Open | E81: 75 | F81: GIUDICE | G81: Leonardo | H81: Subbuteo Club Labronico | I81: ITA | J81: 333
B82: Open - CORDELL Kevin | C82: CORDELL Kevin | D82: Open | E82: 76 | F82: CORDELL | G82: Kevin | H82: Langton Green Subbuteo Club | I82: ENG | J82: 309.5
B83: Open - TSANGOURIS Stylianos | C83: TSANGOURIS Stylianos | D83: Open | E83: 77 | F83: TSANGOURIS | G83: Stylianos | H83: Atlas FTC | I83: GRE | J83: 305.5
B84: Open - SABETTA Christopher | C84: SABETTA Christopher | D84: Open | E84: 77 | F84: SABETTA | G84: Christopher | H84: ST Stembert | I84: BEL | J84: 305.5
B85: Open - LEROY David | C85: LEROY David | D85: Open | E85: 79 | F85: LEROY | G85: David | H85: CFT Puylaurens | I85: FRA | J85: 303
B86: Open - VILLARIGUES Carolina | C86: VILLARIGUES Carolina | D86: Open | E86: 80 | F86: VILLARIGUES | G86: Carolina | H86: Crimson Horses | I86: POR | J86: 298.5
B87: Open - KOI Kenzo | C87: KOI Kenzo | D87: Open | E87: 80 | F87: KOI | G87: Kenzo | H87: Yokohama OSC | I87: JPN | J87: 298.5
B88: Open - LEE Alan | C88: LEE Alan | D88: Open | E88: 82 | F88: LEE | G88: Alan | H88: Langton Green Subbuteo Club | I88: ENG | J88: 297
B89: Open - CRANSTON Daniel | C89: CRANSTON Daniel | D89: Open | E89: 82 | F89: CRANSTON | G89: Daniel | H89: Sporting America TSC | I89: USA | J89: 297
B90: Open - BONNICI Jamie | C90: BONNICI Jamie | D90: Open | E90: 84 | F90: BONNICI | G90: Jamie | H90: SS Lazio TFC | I90: MLT | J90: 292
B91: Open - JANSSENS Noah | C91: JANSSENS Noah | D91: Open | E91: 85 | F91: JANSSENS | G91: Noah | H91: ST Stembert | I91: BEL | J91: 287
B92: Open - BEDFORD Chris | C92: BEDFORD Chris | D92: Open | E92: 86 | F92: BEDFORD | G92: Chris | H92: Yorkshire Phoenix | I92: WAL | J92: 285.5
B93: Open - RADZIMINSKI Luke | C93: RADZIMINSKI Luke | D93: Open | E93: 87 | F93: RADZIMINSKI | G93: Luke | H93: Melbourne TFC | I93: AUS | J93: 285
B94: Open - HEYVAERT Jérôme | C94: HEYVAERT Jérôme | D94: Open | E94: 88 | F94: HEYVAERT | G94: Jérôme | H94: Master Sanremo | I94: BEL | J94: 280
B95: Open - YUSNI Den Mulia | C95: YUSNI Den Mulia | D95: Open | E95: 89 | F95: YUSNI | G95: Den Mulia | H95: SG Lions TFC | I95: SGP | J95: 279.5
B96: Open - HAMMONDS Mick | C96: HAMMONDS Mick | D96: Open | E96: 90 | F96: HAMMONDS | G96: Mick | H96: Wolverhampton Table Football Club | I96: ENG | J96: 278.5
B97: Open - TAN Ashley | C97: TAN Ashley | D97: Open | E97: 91 | F97: TAN | G97: Ashley | H97: SG Lions TFC | I97: SGP | J97: 273
B98: Open - DI VITO Marco | C98: DI VITO Marco | D98: Open | E98: 92 | F98: DI VITO | G98: Marco | H98: CCT Eagles Napoli | I98: ITA | J98: 271
B99: Open - LOURS Rémy | C99: LOURS Rémy | D99: Open | E99: 93 | F99: LOURS | G99: Rémy | H99: FTC Caen | I99: FRA | J99: 268
B100: Open - BATTEN Benji | C100: BATTEN Benji | D100: Open | E100: 94 | F100: BATTEN | G100: Benji | H100: Melbourne TFC | I100: AUS | J100: 267
B101: Open - VARNEY Bob | C101: VARNEY Bob | D101: Open | E101: 95 | F101: VARNEY | G101: Bob | H101: CAP Ciudad de Murcia FM | I101: ENG | J101: 261.5
B102: Open - BOUCHEZ Corentin | C102: BOUCHEZ Corentin | D102: Open | E102: 96 | F102: BOUCHEZ | G102: Corentin | H102: SC Lion's Eugies | I102: BEL | J102: 260
B103: Open - MANFREDELLI Francesco | C103: MANFREDELLI Francesco | D103: Open | E103: 96 | F103: MANFREDELLI | G103: Francesco | H103: CCT Eagles Napoli | I103: ITA | J103: 260
B104: Open - CONTI Spencer | C104: CONTI Spencer | D104: Open | E104: 98 | F104: CONTI | G104: Spencer | H104: Subbuteo Club Reggio Calabria | I104: MLT | J104: 259.5
B105: Open - KENNEDY Eliot | C105: KENNEDY Eliot | D105: Open | E105: 99 | F105: KENNEDY | G105: Eliot | H105: Northern Falcons TFC | I105: AUS | J105: 255
B106: Open - FUJINO Suguru | C106: FUJINO Suguru | D106: Open | E106: 100 | F106: FUJINO | G106: Suguru | H106: Tokyo Sunzeol TFC | I106: JPN | J106: 250
B107: Open - MPOUGIOURIS Ioannis | C107: MPOUGIOURIS Ioannis | D107: Open | E107: 101 | F107: MPOUGIOURIS | G107: Ioannis | H107: Subbuteurs Athens TSC | I107: GRE | J107: 244.5
B108: Open - LAURENT Joffray | C108: LAURENT Joffray | D108: Open | E108: 102 | F108: LAURENT | G108: Joffray | H108: Atlas FTC | I108: BEL | J108: 242
B109: Open - CAVIGLIA Micael | C109: CAVIGLIA Micael | D109: Open | E109: 103 | F109: CAVIGLIA | G109: Micael | H109: SS Lazio TFC Roma | I109: ITA | J109: 235
B110: Open - BRUNELLI Marco | C110: BRUNELLI Marco | D110: Open | E110: 104 | F110: BRUNELLI | G110: Marco | H110: CS Virtus Rieti | I110: ITA | J110: 234
B111: Open - PREZIUSO Marco | C111: PREZIUSO Marco | D111: Open | E111: 104 | F111: PREZIUSO | G111: Marco | H111: TS Napoli Fighters | I111: ITA | J111: 234
B112: Open - ABREU Luís | C112: ABREU Luís | D112: Open | E112: 106 | F112: ABREU | G112: Luís | H112: CF os Belenenses | I112: POR | J112: 233.5
B113: Open - PAPPAS Nikolaos | C113: PAPPAS Nikolaos | D113: Open | E113: 107 | F113: PAPPAS | G113: Nikolaos | H113: Olympia CS | I113: GRE | J113: 231.5
B114: Open - CHANDIRAMANI Vikas K | C114: CHANDIRAMANI Vikas K | D114: Open | E114: 108 | F114: CHANDIRAMANI | G114: Vikas K | H114: Jurong Central SC | I114: SGP | J114: 230
B115: Open - KATO Taichi | C115: KATO Taichi | D115: Open | E115: 109 | F115: KATO | G115: Taichi | H115: Yokohama OSC | I115: JPN | J115: 228.5
B116: Open - PERE Lucas | C116: PERE Lucas | D116: Open | E116: 110 | F116: PERE | G116: Lucas | H116: Avenir Subbuteo Hennuyer | I116: BEL | J116: 226
B117: Open - TIMPANO Bruno | C117: TIMPANO Bruno | D117: Open | E117: 111 | F117: TIMPANO | G117: Bruno | H117: H'Attard SC | I117: BEL | J117: 225.5
B118: Open - CICCARELLI Andrea | C118: CICCARELLI Andrea | D118: Open | E118: 112 | F118: CICCARELLI | G118: Andrea | H118: TS Napoli Fighters | I118: ITA | J118: 224
B119: Open - KNUF Rudi | C119: KNUF Rudi | D119: Open | E119: 113 | F119: KNUF | G119: Rudi | H119: Atlas FTC | I119: GER | J119: 223.5
B120: Open - FIELD John | C120: FIELD John | D120: Open | E120: 114 | F120: FIELD | G120: John | H120: Tiburones FM | I120: GIB | J120: 219
B121: Open - LAMBERT Stéphane | C121: LAMBERT Stéphane | D121: Open | E121: 115 | F121: LAMBERT | G121: Stéphane | H121: Yokohama OSC | I121: BEL | J121: 214.5
B122: Open - ZAMMIT John | C122: ZAMMIT John | D122: Open | E122: 116 | F122: ZAMMIT | G122: John | H122: ST Stembert | I122: MLT | J122: 213.5
B123: Open - STAMOKOSTAS Konstantinos | C123: STAMOKOSTAS Konstantinos | D123: Open | E123: 117 | F123: STAMOKOSTAS | G123: Konstantinos | H123: Atlas FTC | I123: GRE | J123: 212
B124: Open - CHOONG Michael | C124: CHOONG Michael | D124: Open | E124: 118 | F124: CHOONG | G124: Michael | H124: SC Dragons Hong Kong | I124: SGP | J124: 211.5
B125: Open - RAHAMAT Anas | C125: RAHAMAT Anas | D125: Open | E125: 119 | F125: RAHAMAT | G125: Anas | H125: Jurong Central SC | I125: SGP | J125: 208.5
B126: Open - PATRUNO Gerardo | C126: PATRUNO Gerardo | D126: Open | E126: 120 | F126: PATRUNO | G126: Gerardo | H126: Bologna Tigers Subbuteo | I126: ITA | J126: 204
B127: Open - PELUSO Antonio | C127: PELUSO Antonio | D127: Open | E127: 121 | F127: PELUSO | G127: Antonio | H127: TS Napoli Fighters | I127: ITA | J127: 203.5
B128: Open - GREEN Robert | C128: GREEN Robert | D128: Open | E128: 122 | F128: GREEN | G128: Robert | H128: Northern Falcons TFC | I128: AUS | J128: 202.5
B129: Open - PLYTAS Evgenios | C129: PLYTAS Evgenios | D129: Open | E129: 122 | F129: PLYTAS | G129: Evgenios | H129: SPQR MMIX Roma | I129: GRE | J129: 202.5
B130: Open - MATEOS Luis | C130: MATEOS Luis | D130: Open | E130: 124 | F130: MATEOS | G130: Luis | H130: Mallorca Águilas FM | I130: ESP | J130: 199
B131: Open - PONTHIEUX Ludovic | C131: PONTHIEUX Ludovic | D131: Open | E131: 125 | F131: PONTHIEUX | G131: Ludovic | H131: ST Stembert | I131: BEL | J131: 197
B132: Open - SEGERS Jann | C132: SEGERS Jann | D132: Open | E132: 126 | F132: SEGERS | G132: Jann | H132: Avenir Subbuteo Hennuyer | I132: BEL | J132: 195
B133: Open - GREGOIRE Ralf | C133: GREGOIRE Ralf | D133: Open | E133: 127 | F133: GREGOIRE | G133: Ralf | H133: US Huy | I133: BEL | J133: 193.5
B134: Open - PETERSCHINIGG Rudi | C134: PETERSCHINIGG Rudi | D134: Open | E134: 128 | F134: PETERSCHINIGG | G134: Rudi | H134: Langton Green Subbuteo Club | I134: ENG | J134: 192
B135: =CONCATENATE(D135," - ",C135) -> Open - NOGUERA Juan | C135: =CONCATENATE(UPPER(F135)," ",G135) -> NOGUERA Juan | D135: Open | E135: 128 | F135: NOGUERA | G135: Juan | H135: SC Fiamme Azzurre | I135: ESP | J135: 192
B136: Open - DI VITO Luigi | C136: DI VITO Luigi | D136: Open | E136: 130 | F136: DI VITO | G136: Luigi | H136: CCT Eagles Napoli | I136: ITA | J136: 190
B137: Open - NUGER Benny | C137: NUGER Benny | D137: Open | E137: 131 | F137: NUGER | G137: Benny | H137: Sporting America TSC | I137: USA | J137: 189
B138: Open - MONTEIRO Christophe | C138: MONTEIRO Christophe | D138: Open | E138: 132 | F138: MONTEIRO | G138: Christophe | H138: FTC Issy-les-Moulineaux | I138: FRA | J138: 188.5
B139: Open - SHAM Doulatram | C139: SHAM Doulatram | D139: Open | E139: 133 | F139: SHAM | G139: Doulatram | H139: SG Lions TFC | I139: SGP | J139: 184
B140: Open - DI PIETRANTONIO Pietro | C140: DI PIETRANTONIO Pietro | D140: Open | E140: 134 | F140: DI PIETRANTONIO | G140: Pietro | H140: CCT Eagles Napoli | I140: ITA | J140: 183.5
B141: Open - ROUIS Fayçal | C141: ROUIS Fayçal | D141: Open | E141: 135 | F141: ROUIS | G141: Fayçal | H141: FTC Caen | I141: FRA | J141: 182.5
B142: Open - QUATTRINI Francesco | C142: QUATTRINI Francesco | D142: Open | E142: 135 | F142: QUATTRINI | G142: Francesco | H142: Bologna Tigers Subbuteo | I142: ITA | J142: 182.5
B143: Open - MODESTE Axel | C143: MODESTE Axel | D143: Open | E143: 137 | F143: MODESTE | G143: Axel | H143: FTC Issy-les-Moulineaux | I143: FRA | J143: 181
B144: Open - ROS José | C144: ROS José | D144: Open | E144: 138 | F144: ROS | G144: José | H144: CAP Ciudad de Murcia FM | I144: ESP | J144: 180.5
B145: Open - WITTMANN Thomas | C145: WITTMANN Thomas | D145: Open | E145: 139 | F145: WITTMANN | G145: Thomas | H145: TSC Royal 78 Kaisermühlen | I145: AUT | J145: 173.5
B146: Open - CERULLO Guido | C146: CERULLO Guido | D146: Open | E146: 140 | F146: CERULLO | G146: Guido | H146: GCT DLF Gorizia | I146: ITA | J146: 172
B147: Open - PISANI Jason | C147: PISANI Jason | D147: Open | E147: 141 | F147: PISANI | G147: Jason | H147: Bormla SC | I147: MLT | J147: 171
B148: Open - PEREIRA Miguel | C148: PEREIRA Miguel | D148: Open | E148: 142 | F148: PEREIRA | G148: Miguel | H148: Valletta Lions TFC | I148: POR | J148: 170
B149: Open - AMBERNY Jean-Marie | C149: AMBERNY Jean-Marie | D149: Open | E149: 142 | F149: AMBERNY | G149: Jean-Marie | H149: FTC Issy-les-Moulineaux | I149: FRA | J149: 170
B150: Open - CONTI Derek | C150: CONTI Derek | D150: Open | E150: 144 | F150: CONTI | G150: Derek | H150: Valletta SC | I150: MLT | J150: 165
B151: Open - FERNÁNDEZ Antonio | C151: FERNÁNDEZ Antonio | D151: Open | E151: 144 | F151: FERNÁNDEZ | G151: Antonio | H151: Tiburones FM | I151: ESP | J151: 165
B152: Open - SOURLAS Leandros | C152: SOURLAS Leandros | D152: Open | E152: 144 | F152: SOURLAS | G152: Leandros | H152: Scarlet Battalion SC | I152: GRE | J152: 165
B153: Open - MARTINI Andrew | C153: MARTINI Andrew | D153: Open | E153: 147 | F153: MARTINI | G153: Andrew | H153: Tokyo Sunzeol TFC | I153: JPN | J153: 162.5
B154: Open - FERNANDES André | C154: FERNANDES André | D154: Open | E154: 148 | F154: FERNANDES | G154: André | H154: CF os Belenenses | I154: POR | J154: 160.5
B155: Open - BARTZIS Ektoras | C155: BARTZIS Ektoras | D155: Open | E155: 149 | F155: BARTZIS | G155: Ektoras | H155: Noctuas Athens TSC | I155: GRE | J155: 158.5
B156: Open - KARAVAS Giorgos | C156: KARAVAS Giorgos | D156: Open | E156: 150 | F156: KARAVAS | G156: Giorgos | H156: Scarlet Battalion SC | I156: GRE | J156: 158
B157: Open - DE SCHUYTENEER Kenny | C157: DE SCHUYTENEER Kenny | D157: Open | E157: 150 | F157: DE SCHUYTENEER | G157: Kenny | H157: SC Lion's Eugies | I157: BEL | J157: 158
B158: Open - MIFSUD Joseph | C158: MIFSUD Joseph | D158: Open | E158: 152 | F158: MIFSUD | G158: Joseph | H158: SC Fiamme Azzurre | I158: MLT | J158: 157
B159: Open - DIEUDONNE Delphine | C159: DIEUDONNE Delphine | D159: Open | E159: 152 | F159: DIEUDONNE | G159: Delphine | H159: Avenir Subbuteo Hennuyer | I159: BEL | J159: 157
B160: Open - FARRELL Mark | C160: FARRELL Mark | D160: Open | E160: 154 | F160: FARRELL | G160: Mark | H160: Yorkshire Phoenix | I160: IRL | J160: 155.5
B161: Open - BRILL Nick | C161: BRILL Nick | D161: Open | E161: 155 | F161: BRILL | G161: Nick | H161: The Tumbleweeds | I161: AUS | J161: 153.5
B162: Open - HERBAUT Audrey | C162: HERBAUT Audrey | D162: Open | E162: 156 | F162: HERBAUT | G162: Audrey | H162: Elan Subbutéo Club de Champs-sur-Marne | I162: FRA | J162: 152
B163: Open - MUSSINO Filippo | C163: MUSSINO Filippo | D163: Open | E163: 157 | F163: MUSSINO | G163: Filippo | H163: CT Torino 2009 | I163: ITA | J163: 149.5
B164: Open - ARNOLD Kye | C164: ARNOLD Kye | D164: Open | E164: 158 | F164: ARNOLD | G164: Kye | H164: Langton Green Subbuteo Club | I164: ENG | J164: 149
B165: Open - GENITSAROPOULOS Georgios | C165: GENITSAROPOULOS Georgios | D165: Open | E165: 159 | F165: GENITSAROPOULOS | G165: Georgios | H165: ASD SC Salernitana | I165: GRE | J165: 148
B166: Open - ELESBAO Fred | C166: ELESBAO Fred | D166: Open | E166: 160 | F166: ELESBAO | G166: Fred | H166: SG '94 Hannover | I166: BRA | J166: 147.5
B167: Open - PSOMIADIS Nikolas (07) | C167: PSOMIADIS Nikolas (07) | D167: Open | E167: 161 | F167: PSOMIADIS | G167: Nikolas (07) | H167: Subbuteurs Athens TSC | I167: GRE | J167: 142
B168: Open - GÓMEZ Fernando | C168: GÓMEZ Fernando | D168: Open | E168: 161 | F168: GÓMEZ | G168: Fernando | H168: AFT Turia 1981 | I168: ESP | J168: 142
B169: Open - FEDELE Fabrizio | C169: FEDELE Fabrizio | D169: Open | E169: 163 | F169: FEDELE | G169: Fabrizio | H169: Bologna Tigers Subbuteo | I169: ITA | J169: 141
B170: Open - WOUTERS David | C170: WOUTERS David | D170: Open | E170: 163 | F170: WOUTERS | G170: David | H170: SC Flanders | I170: BEL | J170: 141
B171: Open - AUSSET Quentin | C171: AUSSET Quentin | D171: Open | E171: 165 | F171: AUSSET | G171: Quentin | H171: Elan Subbutéo Club de Champs-sur-Marne | I171: FRA | J171: 140.5
B172: Open - DUPRET Michaël | C172: DUPRET Michaël | D172: Open | E172: 166 | F172: DUPRET | G172: Michaël | H172: Magic Team Tournai | I172: BEL | J172: 140
B173: Open - CURTIS Samuel | C173: CURTIS Samuel | D173: Open | E173: 167 | F173: CURTIS | G173: Samuel | H173: Yorkshire Phoenix and Dewsbury Moor TFC | I173: ENG | J173: 139.5
B174: Open - STROMMER Marios | C174: STROMMER Marios | D174: Open | E174: 167 | F174: STROMMER | G174: Marios | H174: TSC Phoenix | I174: AUT | J174: 139.5
B175: Open - KARATARAKIS Georgios | C175: KARATARAKIS Georgios | D175: Open | E175: 169 | F175: KARATARAKIS | G175: Georgios | H175: Proteas Athens SC | I175: GRE | J175: 136.5
B176: Open - VLASSOPOULOS Georgios | C176: VLASSOPOULOS Georgios | D176: Open | E176: 169 | F176: VLASSOPOULOS | G176: Georgios | H176: Proteas Athens SC | I176: GRE | J176: 136.5
B177: Open - MANDANICI Salvatore | C177: MANDANICI Salvatore | D177: Open | E177: 171 | F177: MANDANICI | G177: Salvatore | H177: Barcellona Calcio Tavolo | I177: ITA | J177: 135
B178: Open - NORONHA Nuno | C178: NORONHA Nuno | D178: Open | E178: 171 | F178: NORONHA | G178: Nuno | H178: GRD 1º Maio Tires | I178: POR | J178: 135
B179: Open - NATOLI Riccardo | C179: NATOLI Riccardo | D179: Open | E179: 173 | F179: NATOLI | G179: Riccardo | H179: Messina Table Soccer | I179: ITA | J179: 134.5
B180: Open - VLACHOPOULOS Antonis | C180: VLACHOPOULOS Antonis | D180: Open | E180: 174 | F180: VLACHOPOULOS | G180: Antonis | H180: Athinaikos CS | I180: GRE | J180: 132.5
B181: Open - ELLEFSEN Terje | C181: ELLEFSEN Terje | D181: Open | E181: 175 | F181: ELLEFSEN | G181: Terje | H181: Langton Green Subbuteo Club | I181: NOR | J181: 132
B182: Open - SCHEEN Daniel | C182: SCHEEN Daniel | D182: Open | E182: 175 | F182: SCHEEN | G182: Daniel | H182: Tiburones FM | I182: BEL | J182: 132
B183: Open - BERTELLI Daniele | C183: BERTELLI Daniele | D183: Open | E183: 175 | F183: BERTELLI | G183: Daniele | H183: CS Virtus Rieti | I183: ITA | J183: 132
B184: Open - BUONO Stefano | C184: BUONO Stefano | D184: Open | E184: 178 | F184: BUONO | G184: Stefano | H184: SC Bagheria | I184: ITA | J184: 129
B185: Open - MIDOUX Ludovic | C185: MIDOUX Ludovic | D185: Open | E185: 178 | F185: MIDOUX | G185: Ludovic | H185: Avenir Subbuteo Hennuyer | I185: FRA | J185: 129
B186: Open - GÓMEZ Alberto | C186: GÓMEZ Alberto | D186: Open | E186: 180 | F186: GÓMEZ | G186: Alberto | H186: Subbuteo Dragons Azuqueca | I186: ESP | J186: 128
B187: Open - TIMPANO Antonio | C187: TIMPANO Antonio | D187: Open | E187: 181 | F187: TIMPANO | G187: Antonio | H187: Wamme SC | I187: BEL | J187: 127.5
B188: Open - KARNTHALER Thomas | C188: KARNTHALER Thomas | D188: Open | E188: 182 | F188: KARNTHALER | G188: Thomas | H188: TSC Phoenix | I188: AUT | J188: 126
B189: Open - LENZ Robert | C189: LENZ Robert | D189: Open | E189: 183 | F189: LENZ | G189: Robert | H189: TSC Royal 78 Kaisermühlen | I189: AUT | J189: 125
B190: Open - NASZALYI Eric | C190: NASZALYI Eric | D190: Open | E190: 183 | F190: NASZALYI | G190: Eric | H190: FTC Issy-les-Moulineaux | I190: FRA | J190: 125
B191: Open - GIUFFRÈ Armando | C191: GIUFFRÈ Armando | D191: Open | E191: 185 | F191: GIUFFRÈ | G191: Armando | H191: Messina Table Soccer | I191: ITA | J191: 122
B192: Open - VISCONTI Salvatore | C192: VISCONTI Salvatore | D192: Open | E192: 186 | F192: VISCONTI | G192: Salvatore | H192: Tiburones FM | I192: BEL | J192: 121
B193: Open - BARUN Melvin | C193: BARUN Melvin | D193: Open | E193: 187 | F193: BARUN | G193: Melvin | H193: A.S.D. Siracusa calcio tavolo | I193: MLT | J193: 120.5
B194: Open - ARVANITAKIS Thomas | C194: ARVANITAKIS Thomas | D194: Open | E194: 188 | F194: ARVANITAKIS | G194: Thomas | H194: Crimson Horses | I194: GRE | J194: 118.5
B195: Open - FINCH Justin | C195: FINCH Justin | D195: Open | E195: 189 | F195: FINCH | G195: Justin | H195: SC Flanders | I195: ENG | J195: 117.5
B196: Open - TÜNGER Murat | C196: TÜNGER Murat | D196: Open | E196: 190 | F196: TÜNGER | G196: Murat | H196: TSC Royal 78 Kaisermühlen | I196: AUT | J196: 117
B197: Open - CAVAZZA Fabrizio | C197: CAVAZZA Fabrizio | D197: Open | E197: 190 | F197: CAVAZZA | G197: Fabrizio | H197: GCT DLF Gorizia | I197: ITA | J197: 117
B198: Open - TAN Nic | C198: TAN Nic | D198: Open | E198: 192 | F198: TAN | G198: Nic | H198: SC Dragons Hong Kong | I198: SGP | J198: 116.5
B199: =CONCATENATE(D199," - ",C199) -> Open - LAMPITT Matt | C199: =CONCATENATE(UPPER(F199)," ",G199) -> LAMPITT Matt | D199: Open | E199: 193 | F199: LAMPITT | G199: Matt | H199: Elstow Lions TFC | I199: ENG | J199: 116
B200: Open - APATZIS Alexandros | C200: APATZIS Alexandros | D200: Open | E200: 194 | F200: APATZIS | G200: Alexandros | H200: Subbuteurs Athens TSC | I200: GRE | J200: 115
B201: Open - VIVRON Thierry | C201: VIVRON Thierry | D201: Open | E201: 195 | F201: VIVRON | G201: Thierry | H201: FTC Issy-les-Moulineaux | I201: FRA | J201: 114
... 2054 more rows

Sheet RankingTeams (hidden)
A1: 40 | C1: =N_RankingTeamSheetTitle -> Teams Ranking
C2: =N_TotalNbRankedPlayers -> Total number of ranked players | D2: =COUNTA(OFFSET(FullTeamsRankingList,0,2,,1)) -> 229
C3: =N_TotalNbRankingLines -> Total number of ranking lines | D3: =COUNTA(OFFSET(FullTeamsRankingList,0,0,,1)) -> 281
C5: =N_RankedTeams_list -> Ranked Teams list
D6: =N_Rank -> Rk | E6: =N_Name -> Name | F6: =N_Team & " #" -> Team # | G6: =N_Nationality -> Nationality | H6: =N_Points -> Points
B7: =C7 -> Bormla SC | C7: =IF(E7="","",E7&IF(RIGHT(F7,1)="A",""," "&CODE(RIGHT(F7,1))-CODE("A")+1)) -> Bormla SC | D7: 1 | E7: Bormla SC | F7: Team A | G7: MLT | H7: 6234
B8: =C8 -> F.lli Bari Reggio Emilia | C8: =IF(E8="","",E8&IF(RIGHT(F8,1)="A",""," "&CODE(RIGHT(F8,1))-CODE("A")+1)) -> F.lli Bari Reggio Emilia | D8: 2 | E8: F.lli Bari Reggio Emilia | F8: Team A | G8: ITA | H8: 5180
B9: Valletta SC | C9: Valletta SC | D9: 3 | E9: Valletta SC | F9: Team A | G9: MLT | H9: 4562
B10: CCT Eagles Napoli | C10: CCT Eagles Napoli | D10: 4 | E10: CCT Eagles Napoli | F10: Team A | G10: ITA | H10: 3351.5
B11: TSC Falcons Athens | C11: TSC Falcons Athens | D11: 5 | E11: TSC Falcons Athens | F11: Team A | G11: GRE | H11: 3294
B12: ASD SC Salernitana | C12: ASD SC Salernitana | D12: 6 | E12: ASD SC Salernitana | F12: Team A | G12: ITA | H12: 3174
B13: ST Stembert | C13: ST Stembert | D13: 7 | E13: ST Stembert | F13: Team A | G13: BEL | H13: 2923
B14: SC Fiamme Azzurre | C14: SC Fiamme Azzurre | D14: 8 | E14: SC Fiamme Azzurre | F14: Team A | G14: ITA | H14: 2881
B15: Bologna Tigers Subbuteo | C15: Bologna Tigers Subbuteo | D15: 9 | E15: Bologna Tigers Subbuteo | F15: Team A | G15: ITA | H15: 2792
B16: FTC Caen | C16: FTC Caen | D16: 10 | E16: FTC Caen | F16: Team A | G16: FRA | H16: 2775
B17: Proteas Athens SC | C17: Proteas Athens SC | D17: 11 | E17: Proteas Athens SC | F17: Team A | G17: GRE | H17: 2673
B18: Avenir Subbuteo Hennuyer | C18: Avenir Subbuteo Hennuyer | D18: 12 | E18: Avenir Subbuteo Hennuyer | F18: Team A | G18: BEL | H18: 2260
B19: Tiburones FM | C19: Tiburones FM | D19: 13 | E19: Tiburones FM | F19: Team A | G19: ESP | H19: 2187.5
B20: Olympia CS | C20: Olympia CS | D20: 14 | E20: Olympia CS | F20: Team A | G20: GRE | H20: 1956
B21: FTC Issy-les-Moulineaux | C21: FTC Issy-les-Moulineaux | D21: 15 | E21: FTC Issy-les-Moulineaux | F21: Team A | G21: FRA | H21: 1917
B22: Barcellona Calcio Tavolo | C22: Barcellona Calcio Tavolo | D22: 16 | E22: Barcellona Calcio Tavolo | F22: Team A | G22: ITA | H22: 1868
B23: Scarlet Battalion SC | C23: Scarlet Battalion SC | D23: 17 | E23: Scarlet Battalion SC | F23: Team A | G23: GRE | H23: 1744.5
B24: TSC Royal 78 Kaisermühlen | C24: TSC Royal 78 Kaisermühlen | D24: 18 | E24: TSC Royal 78 Kaisermühlen | F24: Team A | G24: AUT | H24: 1624
B25: Langton Green Subbuteo Club | C25: Langton Green Subbuteo Club | D25: 19 | E25: Langton Green Subbuteo Club | F25: Team A | G25: ENG | H25: 1603.5
B26: TS Napoli Fighters | C26: TS Napoli Fighters | D26: 20 | E26: TS Napoli Fighters | F26: Team A | G26: ITA | H26: 1467
B27: Noctuas Athens TSC | C27: Noctuas Athens TSC | D27: 21 | E27: Noctuas Athens TSC | F27: Team A | G27: GRE | H27: 1296
B28: CS Virtus Rieti | C28: CS Virtus Rieti | D28: 22 | E28: CS Virtus Rieti | F28: Team A | G28: ITA | H28: 1226
B29: CAP Ciudad de Murcia FM | C29: CAP Ciudad de Murcia FM | D29: 23 | E29: CAP Ciudad de Murcia FM | F29: Team A | G29: ESP | H29: 1153
B30: Elstow Lions TFC | C30: Elstow Lions TFC | D30: 24 | E30: Elstow Lions TFC | F30: Team A | G30: ENG | H30: 1118
B31: Crimson Horses | C31: Crimson Horses | D31: 25 | E31: Crimson Horses | F31: Team A | G31: GRE | H31: 1067
B32: SC Lion's Eugies | C32: SC Lion's Eugies | D32: 26 | E32: SC Lion's Eugies | F32: Team A | G32: BEL | H32: 1047.5
B33: SC Charleroi | C33: SC Charleroi | D33: 27 | E33: SC Charleroi | F33: Team A | G33: BEL | H33: 970
B34: SS Lazio TFC Roma | C34: SS Lazio TFC Roma | D34: 28 | E34: SS Lazio TFC Roma | F34: Team A | G34: ITA | H34: 966
B35: Master Sanremo | C35: Master Sanremo | D35: 29 | E35: Master Sanremo | F35: Team A | G35: ITA | H35: 899
B36: Atlas FTC | C36: Atlas FTC | D36: 30 | E36: Atlas FTC | F36: Team A | G36: GRE | H36: 867
B37: SC Temploux | C37: SC Temploux | D37: 31 | E37: SC Temploux | F37: Team A | G37: BEL | H37: 791
B38: Valletta Lions TFC | C38: Valletta Lions TFC | D38: 32 | E38: Valletta Lions TFC | F38: Team A | G38: MLT | H38: 781
B39: TSC Phoenix | C39: TSC Phoenix | D39: 33 | E39: TSC Phoenix | F39: Team A | G39: AUT | H39: 780
B40: Mallorca Águilas FM | C40: Mallorca Águilas FM | D40: 34 | E40: Mallorca Águilas FM | F40: Team A | G40: ESP | H40: 670.5
B41: Melbourne TFC | C41: Melbourne TFC | D41: 35 | E41: Melbourne TFC | F41: Team A | G41: AUS | H41: 562.5
B42: AFT Turia 1981 | C42: AFT Turia 1981 | D42: 36 | E42: AFT Turia 1981 | F42: Team A | G42: ESP | H42: 559
B43: Jurong Central SC | C43: Jurong Central SC | D43: 37 | E43: Jurong Central SC | F43: Team A | G43: SGP | H43: 555
B44: Wolverhampton Table Football Club | C44: Wolverhampton Table Football Club | D44: 38 | E44: Wolverhampton Table Football Club | F44: Team A | G44: ENG | H44: 554
B45: Avenir Subbuteo Hennuyer 2 | C45: Avenir Subbuteo Hennuyer 2 | D45: 39 | E45: Avenir Subbuteo Hennuyer | F45: Team B | G45: BEL | H45: 499.5
B46: Tiburones FM 2 | C46: Tiburones FM 2 | D46: 40 | E46: Tiburones FM | F46: Team B | G46: ESP | H46: 467
B47: GRD 1º Maio Tires | C47: GRD 1º Maio Tires | D47: 41 | E47: GRD 1º Maio Tires | F47: Team A | G47: FIS | H47: 448.5
B48: Subbuteo Casale | C48: Subbuteo Casale | D48: 42 | E48: Subbuteo Casale | F48: Team A | G48: ITA | H48: 435
B49: Yorkshire Phoenix and Dewsbury Moor TFC | C49: Yorkshire Phoenix and Dewsbury Moor TFC | D49: 43 | E49: Yorkshire Phoenix and Dewsbury Moor TFC | F49: Team A | G49: ENG | H49: 426
B50: OSC Yamato Wild Blue TFC | C50: OSC Yamato Wild Blue TFC | D50: 44 | E50: OSC Yamato Wild Blue TFC | F50: Team A | G50: JPN | H50: 409
B51: Subbuteo Dragons Azuqueca | C51: Subbuteo Dragons Azuqueca | D51: 45 | E51: Subbuteo Dragons Azuqueca | F51: Team A | G51: ESP | H51: 380
B52: Northern Falcons TFC | C52: Northern Falcons TFC | D52: 46 | E52: Northern Falcons TFC | F52: Team A | G52: AUS | H52: 375
B53: BSC Schwalbach | C53: BSC Schwalbach | D53: 46 | E53: BSC Schwalbach | F53: Team A | G53: GER | H53: 375
B54: SC Flanders | C54: SC Flanders | D54: 48 | E54: SC Flanders | F54: Team A | G54: BEL | H54: 374.5
B55: JSC Rochefort | C55: JSC Rochefort | D55: 49 | E55: JSC Rochefort | F55: Team A | G55: BEL | H55: 374
B56: Subbuteurs Athens TSC | C56: Subbuteurs Athens TSC | D56: 50 | E56: Subbuteurs Athens TSC | F56: Team A | G56: GRE | H56: 351
B57: Athinaikos CS | C57: Athinaikos CS | D57: 51 | E57: Athinaikos CS | F57: Team A | G57: GRE | H57: 327.5
B58: CFT Puylaurens | C58: CFT Puylaurens | D58: 52 | E58: CFT Puylaurens | F58: Team A | G58: FRA | H58: 285.5
B59: Larissa TFC | C59: Larissa TFC | D59: 53 | E59: Larissa TFC | F59: Team A | G59: GRE | H59: 285
B60: SG Lions TFC | C60: SG Lions TFC | D60: 54 | E60: SG Lions TFC | F60: Team A | G60: SGP | H60: 267
B61: Yokohama OSC | C61: Yokohama OSC | D61: 55 | E61: Yokohama OSC | F61: Team A | G61: JPN | H61: 263
B62: H'Attard SC | C62: H'Attard SC | D62: 56 | E62: H'Attard SC | F62: Team A | G62: MLT | H62: 260.5
B63: Elan Subbutéo Club de Champs-sur-Marne | C63: Elan Subbutéo Club de Champs-sur-Marne | D63: 57 | E63: Elan Subbutéo Club de Champs-sur-Marne | F63: Team A | G63: FRA | H63: 255
B64: Wamme SC | C64: Wamme SC | D64: 58 | E64: Wamme SC | F64: Team A | G64: BEL | H64: 238
B65: Europa FC TSC | C65: Europa FC TSC | D65: 59 | E65: Europa FC TSC | F65: Team A | G65: GIB | H65: 234.5
B66: Messina Table Soccer | C66: Messina Table Soccer | D66: 60 | E66: Messina Table Soccer | F66: Team A | G66: ITA | H66: 218
B67: CCT Eagles Napoli 2 | C67: CCT Eagles Napoli 2 | D67: 61 | E67: CCT Eagles Napoli | F67: Team B | G67: ITA | H67: 216
B68: SPQR MMIX Roma | C68: SPQR MMIX Roma | D68: 62 | E68: SPQR MMIX Roma | F68: Team A | G68: ITA | H68: 213
B69: CF os Belenenses | C69: CF os Belenenses | D69: 63 | E69: CF os Belenenses | F69: Team A | G69: FIS | H69: 210
B70: US Huy | C70: US Huy | D70: 64 | E70: US Huy | F70: Team A | G70: BEL | H70: 199
B71: AS Cosenza | C71: AS Cosenza | D71: 65 | E71: AS Cosenza | F71: Team A | G71: ITA | H71: 194
B72: =C72 -> Kent Invicta TFC | C72: =IF(E72="","",E72&IF(RIGHT(F72,1)="A",""," "&CODE(RIGHT(F72,1))-CODE("A")+1)) -> Kent Invicta TFC | D72: 66 | E72: Kent Invicta TFC | F72: Team A | G72: ENG | H72: 189
B73: CCT Roma | C73: CCT Roma | D73: 67 | E73: CCT Roma | F73: Team A | G73: ITA | H73: 183
B74: Avenir Subbuteo Hennuyer 3 | C74: Avenir Subbuteo Hennuyer 3 | D74: 68 | E74: Avenir Subbuteo Hennuyer | F74: Team C | G74: BEL | H74: 170
B75: MVV Rijnmond | C75: MVV Rijnmond | D75: 68 | E75: MVV Rijnmond | F75: Team A | G75: NED | H75: 170
B76: Olympia CS 2 | C76: Olympia CS 2 | D76: 70 | E76: Olympia CS | F76: Team B | G76: GRE | H76: 158
B77: Roligans Ilioupolis TSC | C77: Roligans Ilioupolis TSC | D77: 71 | E77: Roligans Ilioupolis TSC | F77: Team A | G77: GRE | H77: 153.5
B78: SC Sombrero | C78: SC Sombrero | D78: 72 | E78: SC Sombrero | F78: Team A | G78: ITA | H78: 144
B79: Pinco Devils Table Soccer | C79: Pinco Devils Table Soccer | D79: 73 | E79: Pinco Devils Table Soccer | F79: Team A | G79: ITA | H79: 137
B80: Subbuteo Club Reggio Calabria | C80: Subbuteo Club Reggio Calabria | D80: 73 | E80: Subbuteo Club Reggio Calabria | F80: Team A | G80: ITA | H80: 137
B81: SC Bagheria | C81: SC Bagheria | D81: 75 | E81: SC Bagheria | F81: Team A | G81: ITA | H81: 135
B82: SC Reeds | C82: SC Reeds | D82: 76 | E82: SC Reeds | F82: Team A | G82: JPN | H82: 133
B83: Sporting Clube De Portugal | C83: Sporting Clube De Portugal | D83: 77 | E83: Sporting Clube De Portugal | F83: Team A | G83: FIS | H83: 125
B84: SC Catania 1987 | C84: SC Catania 1987 | D84: 78 | E84: SC Catania 1987 | F84: Team A | G84: ITA | H84: 122.5
B85: GCT DLF Gorizia | C85: GCT DLF Gorizia | D85: 79 | E85: GCT DLF Gorizia | F85: Team A | G85: ITA | H85: 120
B86: ST Stembert 2 | C86: ST Stembert 2 | D86: 79 | E86: ST Stembert | F86: Team B | G86: BEL | H86: 120
B87: Football de Table Aquitaine | C87: Football de Table Aquitaine | D87: 79 | E87: Football de Table Aquitaine | F87: Team A | G87: FRA | H87: 120
B88: Jurong Central SC 2 | C88: Jurong Central SC 2 | D88: 79 | E88: Jurong Central SC | F88: Team B | G88: SGP | H88: 120
B89: FTC Caen 2 | C89: FTC Caen 2 | D89: 83 | E89: FTC Caen | F89: Team B | G89: FRA | H89: 119
B90: SC Lion's Eugies 2 | C90: SC Lion's Eugies 2 | D90: 84 | E90: SC Lion's Eugies | F90: Team B | G90: BEL | H90: 116.5
B91: Piraeus Lions TSC | C91: Piraeus Lions TSC | D91: 85 | E91: Piraeus Lions TSC | F91: Team A | G91: GRE | H91: 114.5
B92: Irish Premier League | C92: Irish Premier League | D92: 86 | E92: Irish Premier League | F92: Team A | G92: IRL | H92: 112.5
B93: Noctuas Athens TSC 2 | C93: Noctuas Athens TSC 2 | D93: 87 | E93: Noctuas Athens TSC | F93: Team B | G93: GRE | H93: 112
B94: TSC Stella Artois Milano | C94: TSC Stella Artois Milano | D94: 88 | E94: TSC Stella Artois Milano | F94: Team A | G94: ITA | H94: 102
B95: AS Iluro Futbol Taula | C95: AS Iluro Futbol Taula | D95: 89 | E95: AS Iluro Futbol Taula | F95: Team A | G95: ESP | H95: 100
B96: Dundee United TFC | C96: Dundee United TFC | D96: 90 | E96: Dundee United TFC | F96: Team A | G96: SCO | H96: 98.5
B97: FTC Saint-Symphorien-sur-Coise | C97: FTC Saint-Symphorien-sur-Coise | D97: 91 | E97: FTC Saint-Symphorien-sur-Coise | F97: Team A | G97: FRA | H97: 96.5
B98: Glasgow TSA | C98: Glasgow TSA | D98: 91 | E98: Glasgow TSA | F98: Team A | G98: SCO | H98: 96.5
B99: FM La Plazoleta | C99: FM La Plazoleta | D99: 93 | E99: FM La Plazoleta | F99: Team A | G99: ESP | H99: 96
B100: TSPA White Star | C100: TSPA White Star | D100: 94 | E100: TSPA White Star | F100: Team A | G100: ENG | H100: 95.5
B101: Sydney TFC | C101: Sydney TFC | D101: 95 | E101: Sydney TFC | F101: Team A | G101: AUS | H101: 92.5
B102: Western Sydney Subbuteo | C102: Western Sydney Subbuteo | D102: 96 | E102: Western Sydney Subbuteo | F102: Team A | G102: AUS | H102: 90
B103: ASD Siracusa Calcio Tavolo | C103: ASD Siracusa Calcio Tavolo | D103: 97 | E103: ASD Siracusa Calcio Tavolo | F103: Team A | G103: ITA | H103: 83
B104: ACS Perugia 1973 | C104: ACS Perugia 1973 | D104: 98 | E104: ACS Perugia 1973 | F104: Team A | G104: ITA | H104: 81
B105: Moralzarzal Subbuteo CAD | C105: Moralzarzal Subbuteo CAD | D105: 99 | E105: Moralzarzal Subbuteo CAD | F105: Team A | G105: ESP | H105: 77.5
B106: Subbuteurs Athens TSC 2 | C106: Subbuteurs Athens TSC 2 | D106: 100 | E106: Subbuteurs Athens TSC | F106: Team B | G106: GRE | H106: 76.5
B107: Langton Green Subbuteo Club 2 | C107: Langton Green Subbuteo Club 2 | D107: 101 | E107: Langton Green Subbuteo Club | F107: Team B | G107: ENG | H107: 74
B108: Evia CAN | C108: Evia CAN | D108: 102 | E108: Evia CAN | F108: Team A | G108: GRE | H108: 73
B109: Master Sanremo 2 | C109: Master Sanremo 2 | D109: 103 | E109: Master Sanremo | F109: Team B | G109: ITA | H109: 69
B110: TSC Royal 78 Kaisermühlen 2 | C110: TSC Royal 78 Kaisermühlen 2 | D110: 104 | E110: TSC Royal 78 Kaisermühlen | F110: Team B | G110: AUT | H110: 68.5
B111: Scarlet Battalion SC 2 | C111: Scarlet Battalion SC 2 | D111: 105 | E111: Scarlet Battalion SC | F111: Team B | G111: GRE | H111: 67.5
B112: Kent Invicta TFC 2 | C112: Kent Invicta TFC 2 | D112: 106 | E112: Kent Invicta TFC | F112: Team B | G112: ENG | H112: 66
B113: Dutch Legends | C113: Dutch Legends | D113: 107 | E113: Dutch Legends | F113: Team A | G113: NED | H113: 65
B114: Barcellona Calcio Tavolo 2 | C114: Barcellona Calcio Tavolo 2 | D114: 108 | E114: Barcellona Calcio Tavolo | F114: Team B | G114: ITA | H114: 63
B115: Roligans Ilioupolis TSC 2 | C115: Roligans Ilioupolis TSC 2 | D115: 109 | E115: Roligans Ilioupolis TSC | F115: Team B | G115: GRE | H115: 61.5
B116: SC Lion's Eugies 3 | C116: SC Lion's Eugies 3 | D116: 110 | E116: SC Lion's Eugies | F116: Team C | G116: BEL | H116: 61
B117: Glyfada United TSC | C117: Glyfada United TSC | D117: 111 | E117: Glyfada United TSC | F117: Team A | G117: GRE | H117: 60.5
B118: Subbuteo Club Labronico | C118: Subbuteo Club Labronico | D118: 112 | E118: Subbuteo Club Labronico | F118: Team A | G118: ITA | H118: 54
B119: Athinaikos CS 2 | C119: Athinaikos CS 2 | D119: 113 | E119: Athinaikos CS | F119: Team B | G119: GRE | H119: 53.5
B120: ASCT Sessana 1982 | C120: ASCT Sessana 1982 | D120: 114 | E120: ASCT Sessana 1982 | F120: Team A | G120: ITA | H120: 48
B121: Bormla SC 2 | C121: Bormla SC 2 | D121: 114 | E121: Bormla SC | F121: Team B | G121: MLT | H121: 48
B122: Celtic Combourg CFT | C122: Celtic Combourg CFT | D122: 116 | E122: Celtic Combourg CFT | F122: Team A | G122: FRA | H122: 47.5
B123: FTC Issy-les-Moulineaux 2 | C123: FTC Issy-les-Moulineaux 2 | D123: 117 | E123: FTC Issy-les-Moulineaux | F123: Team B | G123: FRA | H123: 45.5
B124: Derry City | C124: Derry City | D124: 118 | E124: Derry City | F124: Team A | G124: NIR | H124: 42.5
B125: Atletico Pisa | C125: Atletico Pisa | D125: 119 | E125: Atletico Pisa | F125: Team A | G125: ITA | H125: 42
B126: Wolverhampton Table Football Club 2 | C126: Wolverhampton Table Football Club 2 | D126: 119 | E126: Wolverhampton Table Football Club | F126: Team B | G126: ENG | H126: 42
B127: Asd Ct Aosta Warriors | C127: Asd Ct Aosta Warriors | D127: 121 | E127: Asd Ct Aosta Warriors | F127: Team A | G127: ITA | H127: 37.5
B128: SC Ascoli | C128: SC Ascoli | D128: 122 | E128: SC Ascoli | F128: Team A | G128: ITA | H128: 36
B129: CS Virtus Rieti 2 | C129: CS Virtus Rieti 2 | D129: 122 | E129: CS Virtus Rieti | F129: Team B | G129: ITA | H129: 36
B130: Glasgow TSA 2 | C130: Glasgow TSA 2 | D130: 124 | E130: Glasgow TSA | F130: Team B | G130: SCO | H130: 35
B131: Avenir Subbuteo Hennuyer 4 | C131: Avenir Subbuteo Hennuyer 4 | D131: 125 | E131: Avenir Subbuteo Hennuyer | F131: Team D | G131: BEL | H131: 34
B132: CT Torino 2009 | C132: CT Torino 2009 | D132: 126 | E132: CT Torino 2009 | F132: Team A | G132: ITA | H132: 33
B133: SG '94 Hannover | C133: SG '94 Hannover | D133: 126 | E133: SG '94 Hannover | F133: Team A | G133: GER | H133: 33
B134: Roligans Ilioupolis TSC 3 | C134: Roligans Ilioupolis TSC 3 | D134: 128 | E134: Roligans Ilioupolis TSC | F134: Team C | G134: GRE | H134: 32.5
B135: Crimson Horses 2 | C135: Crimson Horses 2 | D135: 129 | E135: Crimson Horses | F135: Team B | G135: GRE | H135: 32
B136: =C136 -> Olympia CS 3 | C136: =IF(E136="","",E136&IF(RIGHT(F136,1)="A",""," "&CODE(RIGHT(F136,1))-CODE("A")+1)) -> Olympia CS 3 | D136: 130 | E136: Olympia CS | F136: Team C | G136: GRE | H136: 31
B137: Racing White Woluwé Subbuteo | C137: Racing White Woluwé Subbuteo | D137: 130 | E137: Racing White Woluwé Subbuteo | F137: Team A | G137: BEL | H137: 31
B138: SC Stradivari Cremona | C138: SC Stradivari Cremona | D138: 130 | E138: SC Stradivari Cremona | F138: Team A | G138: ITA | H138: 31
B139: Bologna Tigers Subbuteo 2 | C139: Bologna Tigers Subbuteo 2 | D139: 133 | E139: Bologna Tigers Subbuteo | F139: Team B | G139: ITA | H139: 30
B140: Roligans Ilioupolis TSC 4 | C140: Roligans Ilioupolis TSC 4 | D140: 133 | E140: Roligans Ilioupolis TSC | F140: Team D | G140: GRE | H140: 30
B141: AFT Turia 1981 2 | C141: AFT Turia 1981 2 | D141: 133 | E141: AFT Turia 1981 | F141: Team B | G141: ESP | H141: 30
B142: Barcelona FT 2 | C142: Barcelona FT 2 | D142: 133 | E142: Barcelona FT | F142: Team B | G142: ESP | H142: 30
B143: Tiburones FM 3 | C143: Tiburones FM 3 | D143: 137 | E143: Tiburones FM | F143: Team C | G143: ESP | H143: 29
B144: SC Lion's Eugies 4 | C144: SC Lion's Eugies 4 | D144: 137 | E144: SC Lion's Eugies | F144: Team D | G144: BEL | H144: 29
B145: Trento Subbuteo | C145: Trento Subbuteo | D145: 139 | E145: Trento Subbuteo | F145: Team A | G145: ITA | H145: 27
B146: Ves Gentes | C146: Ves Gentes | D146: 139 | E146: Ves Gentes | F146: Team A | G146: ITA | H146: 27
B147: Pinco Devils Table Soccer 2 | C147: Pinco Devils Table Soccer 2 | D147: 141 | E147: Pinco Devils Table Soccer | F147: Team B | G147: ITA | H147: 26
B148: Cardiff Bluebirds TFC | C148: Cardiff Bluebirds TFC | D148: 142 | E148: Cardiff Bluebirds TFC | F148: Team A | G148: WAL | H148: 24
B149: FTC Caen 3 | C149: FTC Caen 3 | D149: 142 | E149: FTC Caen | F149: Team C | G149: FRA | H149: 24
B150: Papata Group Ponticino | C150: Papata Group Ponticino | D150: 142 | E150: Papata Group Ponticino | F150: Team A | G150: ITA | H150: 24
B151: Wamme SC 2 | C151: Wamme SC 2 | D151: 142 | E151: Wamme SC | F151: Team B | G151: BEL | H151: 24
B152: AC Los Remedios FM | C152: AC Los Remedios FM | D152: 146 | E152: AC Los Remedios FM | F152: Team A | G152: ESP | H152: 23
B153: ASD SC Salernitana 2 | C153: ASD SC Salernitana 2 | D153: 147 | E153: ASD SC Salernitana | F153: Team B | G153: ITA | H153: 22
B154: AS Cosenza 2 | C154: AS Cosenza 2 | D154: 147 | E154: AS Cosenza | F154: Team B | G154: ITA | H154: 22
B155: Valletta Lions TFC 2 | C155: Valletta Lions TFC 2 | D155: 149 | E155: Valletta Lions TFC | F155: Team B | G155: MLT | H155: 21
B156: Messina Table Soccer 2 | C156: Messina Table Soccer 2 | D156: 150 | E156: Messina Table Soccer | F156: Team B | G156: ITA | H156: 20
B157: Paris Université Club | C157: Paris Université Club | D157: 151 | E157: Paris Université Club | F157: Team A | G157: FRA | H157: 18
B158: CS Firenze | C158: CS Firenze | D158: 151 | E158: CS Firenze | F158: Team A | G158: ITA | H158: 18
B159: AS Cosenza 3 | C159: AS Cosenza 3 | D159: 153 | E159: AS Cosenza | F159: Team C | G159: ITA | H159: 16
B160: TSC Phoenix 2 | C160: TSC Phoenix 2 | D160: 154 | E160: TSC Phoenix | F160: Team B | G160: AUT | H160: 15.5
B161: Bulldogs Vicenza | C161: Bulldogs Vicenza | D161: 155 | E161: Bulldogs Vicenza | F161: Team A | G161: ITA | H161: 15
B162: SC Palermo 2016 | C162: SC Palermo 2016 | D162: 155 | E162: SC Palermo 2016 | F162: Team A | G162: ITA | H162: 15
B163: Mallorca Águilas FM 2 | C163: Mallorca Águilas FM 2 | D163: 157 | E163: Mallorca Águilas FM | F163: Team B | G163: ESP | H163: 13
B164: Thessaloniki SC TSC | C164: Thessaloniki SC TSC | D164: 157 | E164: Thessaloniki SC TSC | F164: Team A | G164: GRE | H164: 13
B165: TSC Royal 78 Kaisermühlen 3 | C165: TSC Royal 78 Kaisermühlen 3 | D165: 157 | E165: TSC Royal 78 Kaisermühlen | F165: Team C | G165: AUT | H165: 13
B166: Ves Gentes 2 | C166: Ves Gentes 2 | D166: 160 | E166: Ves Gentes | F166: Team B | G166: ITA | H166: 12
B167: Yorkshire Phoenix and Dewsbury Moor TFC 2 | C167: Yorkshire Phoenix and Dewsbury Moor TFC 2 | D167: 160 | E167: Yorkshire Phoenix and Dewsbury Moor TFC | F167: Team B | G167: ENG | H167: 12
B168: FTC Saint-Symphorien-sur-Coise 2 | C168: FTC Saint-Symphorien-sur-Coise 2 | D168: 160 | E168: FTC Saint-Symphorien-sur-Coise | F168: Team B | G168: FRA | H168: 12
B169: SC Temploux 2 | C169: SC Temploux 2 | D169: 160 | E169: SC Temploux | F169: Team B | G169: BEL | H169: 12
B170: Subbuteisti Modena 1982 | C170: Subbuteisti Modena 1982 | D170: 160 | E170: Subbuteisti Modena 1982 | F170: Team A | G170: ITA | H170: 12
B171: Subbuteo Club Reggio Calabria 2 | C171: Subbuteo Club Reggio Calabria 2 | D171: 165 | E171: Subbuteo Club Reggio Calabria | F171: Team B | G171: ITA | H171: 11
B172: CS SC Serenissima Mestre | C172: CS SC Serenissima Mestre | D172: 165 | E172: CS SC Serenissima Mestre | F172: Team A | G172: ITA | H172: 11
B173: Azzurra 99 Napoli | C173: Azzurra 99 Napoli | D173: 167 | E173: Azzurra 99 Napoli | F173: Team A | G173: ITA | H173: 10
B174: Barcelona FT | C174: Barcelona FT | D174: 167 | E174: Barcelona FT | F174: Team A | G174: ESP | H174: 10
B175: Subbuteo Vomero | C175: Subbuteo Vomero | D175: 167 | E175: Subbuteo Vomero | F175: Team A | G175: ITA | H175: 10
B176: Subbuteo Club Almería | C176: Subbuteo Club Almería | D176: 167 | E176: Subbuteo Club Almería | F176: Team A | G176: ESP | H176: 10
B177: CHASERS (Chadwell Heath & South Essex, Romford Subbuteo) Club | C177: CHASERS (Chadwell Heath & South Essex, Romford Subbuteo) Club | D177: 171 | E177: CHASERS (Chadwell Heath & South Essex, Romford Subbuteo) Club | F177: Team A | G177: ENG | H177: 9
B178: SC Charleroi 2 | C178: SC Charleroi 2 | D178: 171 | E178: SC Charleroi | F178: Team B | G178: BEL | H178: 9
B179: ASD Siracusa Calcio Tavolo 2 | C179: ASD Siracusa Calcio Tavolo 2 | D179: 171 | E179: ASD Siracusa Calcio Tavolo | F179: Team B | G179: ITA | H179: 9
B180: Kettering Flicking Marvellous | C180: Kettering Flicking Marvellous | D180: 174 | E180: Kettering Flicking Marvellous | F180: Team A | G180: ENG | H180: 8
B181: Kent Invicta TFC 3 | C181: Kent Invicta TFC 3 | D181: 174 | E181: Kent Invicta TFC | F181: Team C | G181: ENG | H181: 8
B182: Northern Phoenix TFC | C182: Northern Phoenix TFC | D182: 176 | E182: Northern Phoenix TFC | F182: Team A | G182: AUS | H182: 7.5
B183: TSC Black Rose 98 Roma | C183: TSC Black Rose 98 Roma | D183: 177 | E183: TSC Black Rose 98 Roma | F183: Team A | G183: ITA | H183: 7
B184: ALC Wattrelos - Subbuteo Lille Metropole | C184: ALC Wattrelos - Subbuteo Lille Metropole | D184: 177 | E184: ALC Wattrelos - Subbuteo Lille Metropole | F184: Team A | G184: FRA | H184: 7
B185: Racing White Woluwé Subbuteo 2 | C185: Racing White Woluwé Subbuteo 2 | D185: 177 | E185: Racing White Woluwé Subbuteo | F185: Team B | G185: BEL | H185: 7
B186: Piraeus Lions TSC 2 | C186: Piraeus Lions TSC 2 | D186: 177 | E186: Piraeus Lions TSC | F186: Team B | G186: GRE | H186: 7
B187: Grifo Sombrero | C187: Grifo Sombrero | D187: 177 | E187: Grifo Sombrero | F187: Team A | G187: ITA | H187: 7
B188: ASM Nola 74 | C188: ASM Nola 74 | D188: 177 | E188: ASM Nola 74 | F188: Team A | G188: ITA | H188: 7
B189: H'Attard SC 2 | C189: H'Attard SC 2 | D189: 183 | E189: H'Attard SC | F189: Team B | G189: MLT | H189: 6.5
B190: Noctuas Athens TSC 3 | C190: Noctuas Athens TSC 3 | D190: 183 | E190: Noctuas Athens TSC | F190: Team C | G190: GRE | H190: 6.5
B191: Flaming Flickers SC | C191: Flaming Flickers SC | D191: 185 | E191: Flaming Flickers SC | F191: Team A | G191: GRE | H191: 6
B192: Subbuteo Club Höpfigheim | C192: Subbuteo Club Höpfigheim | D192: 185 | E192: Subbuteo Club Höpfigheim | F192: Team A | G192: GER | H192: 6
B193: AC Los Remedios FM 2 | C193: AC Los Remedios FM 2 | D193: 185 | E193: AC Los Remedios FM | F193: Team B | G193: ESP | H193: 6
B194: AC Los Remedios FM 3 | C194: AC Los Remedios FM 3 | D194: 185 | E194: AC Los Remedios FM | F194: Team C | G194: ESP | H194: 6
B195: Subbuteo Taranto | C195: Subbuteo Taranto | D195: 185 | E195: Subbuteo Taranto | F195: Team A | G195: ITA | H195: 6
B196: Trento Subbuteo 2 | C196: Trento Subbuteo 2 | D196: 185 | E196: Trento Subbuteo | F196: Team B | G196: ITA | H196: 6
B197: SC Cagliari | C197: SC Cagliari | D197: 185 | E197: SC Cagliari | F197: Team A | G197: ITA | H197: 6
B198: CAP Ciudad de Murcia FM 2 | C198: CAP Ciudad de Murcia FM 2 | D198: 185 | E198: CAP Ciudad de Murcia FM | F198: Team B | G198: ESP | H198: 6
B199: Sparta Spreeathen 74/82 | C199: Sparta Spreeathen 74/82 | D199: 185 | E199: Sparta Spreeathen 74/82 | F199: Team A | G199: GER | H199: 6
B200: =C200 -> Dutch Legends 2 | C200: =IF(E200="","",E200&IF(RIGHT(F200,1)="A",""," "&CODE(RIGHT(F200,1))-CODE("A")+1)) -> Dutch Legends 2 | D200: 194 | E200: Dutch Legends | F200: Team B | G200: NED | H200: 5
B201: TS Napoli Fighters 2 | C201: TS Napoli Fighters 2 | D201: 194 | E201: TS Napoli Fighters | F201: Team B | G201: ITA | H201: 5
... 35 more rows

Sheet CheckIn
A1: 1 | B1: =N_PlayerCheckin -> Player Check in
B3: =IF(NationalityTrigram,7,2) -> 2 | D3: =IF(RankingAsLicencesList,7,7) -> 7 | E3: =IF(RankingAsLicencesList,6,6) -> 6 | F3: =IF(RankingAsLicencesList,4,5) -> 5 | W3: =IF(RankingAsLicencesList,5,3) -> 3 | X3: =IF(RankingAsLicencesList,4,2) -> 2 | Z3: =IF(RankingAsLicencesList,7,7) -> 7 | AA3: =IF(NationalityTrigram,2,2) -> 2 | AB3: =IF(RankingAsLicencesList,4,4) -> 4
B4: =N_PlayerCheckin -> Player Check in | H4: =N_Event_participation -> Event participation | W4: For FISTF Result Sheets
B5: =N_Joueurs -> Players | C5: =N_Name_1stname -> FAMILY NAME / Given name | D5: =N_Nationality -> Nationality | E5: =N_Club -> Club | F5: =IF(RankingAsLicencesList,N_DateOfBirth,N_Category) -> Category | G5: =N_Referee -> Referee | H5: =Event1 -> Open | I5: =Event2 -> Veterans | J5: =Event3 -> Women | K5: =Event4 -> U20 | L5: =Event5 -> U16 | M5: =Event6 -> U12 | N5: =Event7 -> Teams | O5: =Event8 -> Consolation | P5: =Event9 -> Team_Open | Q5: =Event10 -> Team_Veterans | R5: =Event11 -> Team_Women | S5: =Event12 -> Team_U20 | T5: =Event13 -> Team_U16 | U5: =Event14 -> Team_U12 | V5: =N_Visa -> Signature | W5: Name | X5: FAMILY NAME | Y5: Name & Family Name | Z5: Nation | AA5: Club | AB5: Lic. FISTF | AC5: =H5 -> Open | AD5: Veterans | AE5: Women | AF5: U20 | AG5: U16 | AH5: U12 | AI5: =N5 -> Teams | AJ5: =O5 -> Consolation | AK5: =P5 -> Team_Open | AL5: =Q5 -> Team_Veterans | AM5: =R5 -> Team_Women | AN5: =S5 -> Team_U20 | AO5: =T5 -> Team_U16 | AP5: =U5 -> Team_U12
A6: 1 | B6: Wolfgang Haas (bor) | C6: Wolfgang Haas | D6: ="AUT" -> AUT | E6: ="Bormla SC" -> Bormla SC | F6: ="OPEN" -> OPEN | G6: X | H6: X | N6: X | W6: ="Wolfgang" -> Wolfgang | X6: ="Haas" -> Haas | Y6: Wolfgang Haas | Z6: AUT | AA6: bor | AB6: AUT0044 | AC6: 4 | AK6: 4
A7: 2 | B7: Saverio Bari (reg) | C7: Saverio Bari | D7: ="ITA" -> ITA | E7: ="F.Lli Bari Reggio Emilia" -> F.Lli Bari Reggio Emilia | F7: ="VET" -> VET | G7: X | H7: X | W7: ="Saverio" -> Saverio | X7: ="Bari" -> Bari | Y7: Saverio Bari | Z7: ITA | AA7: reg | AB7: ITA0066 | AC7: 7 | AK7: 7
A8: 3 | B8: Mark Gauci (vll) | C8: Mark Gauci | D8: ="MLT" -> MLT | E8: ="Valletta SC" -> Valletta SC | F8: ="OPEN" -> OPEN | G8: X | H8: X | W8: ="Mark" -> Mark | X8: ="Gauci" -> Gauci | Y8: Mark Gauci | Z8: MLT | AA8: vll | AB8: MLT0022 | AC8: 9 | AK8: 9
A9: 4 | B9: Pascal Scheen (ste) | C9: Pascal Scheen | D9: ="BEL" -> BEL | E9: ="ST Stembert" -> ST Stembert | F9: ="VET" -> VET | G9: X | H9: X | N9: X | W9: ="Pascal" -> Pascal | X9: ="Scheen" -> Scheen | Y9: Pascal Scheen | Z9: BEL | AA9: ste | AB9: BEL0151 | AC9: 17 | AD9: 9 | AK9: 17 | AL9: 9
A10: 5 | B10: George Ebejer (bor) | C10: George Ebejer | D10: ="MLT" -> MLT | E10: ="Bormla SC" -> Bormla SC | F10: ="OPEN" -> OPEN | G10: X | H10: X | N10: X | W10: ="George" -> George | X10: ="Ebejer" -> Ebejer | Y10: George Ebejer | Z10: MLT | AA10: bor | AB10: MLT0019 | AC10: 18 | AK10: 18
A11: 6 | B11: Sérgio Ramos (bol) | C11: Sérgio Ramos | D11: ="POR" -> POR | E11: ="Bologna Tigers Subbuteo" -> Bologna Tigers Subbuteo | F11: ="OPEN" -> OPEN | G11: X | H11: X | W11: ="Sérgio" -> Sérgio | X11: ="Ramos" -> Ramos | Y11: Sérgio Ramos | Z11: POR | AA11: bol | AB11: POR0022 | AC11: 22 | AK11: 22
A12: 7 | B12: Wolfgang Leitner (roy) | C12: Wolfgang Leitner | D12: ="AUT" -> AUT | E12: ="TSC Royal 78 Kaisermühlen" -> TSC Royal 78 Kaisermühlen | F12: ="OPEN" -> OPEN | G12: X | H12: X | N12: X | W12: ="Wolfgang" -> Wolfgang | X12: ="Leitner" -> Leitner | Y12: Wolfgang Leitner | Z12: AUT | AA12: roy | AB12: AUT0010 | AC12: 30 | AK12: 30
A13: 8 | B13: Alexander Haas (roy) | C13: Alexander Haas | D13: ="AUT" -> AUT | E13: ="TSC Royal 78 Kaisermühlen" -> TSC Royal 78 Kaisermühlen | F13: ="OPEN" -> OPEN | G13: X | H13: X | N13: X | W13: ="Alexander" -> Alexander | X13: ="Haas" -> Haas | Y13: Alexander Haas | Z13: AUT | AA13: roy | AB13: AUT0024 | AC13: 33 | AK13: 33
A14: 9 | B14: Bernard Lim (jur) | C14: Bernard Lim | D14: ="SGP" -> SGP | E14: ="Jurong Central SC" -> Jurong Central SC | F14: ="VET" -> VET | G14: X | H14: X | W14: ="Bernard" -> Bernard | X14: ="Lim" -> Lim | Y14: Bernard Lim | Z14: SGP | AA14: jur | AB14: SGP0074 | AC14: 41 | AD14: 56 | AK14: 41 | AL14: 56
A15: 10 | B15: Giannis Nikolaidis (atl) | C15: Giannis Nikolaidis | D15: ="GRE" -> GRE | E15: ="Atlas FTC" -> Atlas FTC | F15: ="VET" -> VET | G15: X | H15: X | N15: X | W15: ="Giannis" -> Giannis | X15: ="Nikolaidis" -> Nikolaidis | Y15: Giannis Nikolaidis | Z15: GRE | AA15: atl | AB15: GRE0704 | AC15: 45 | AK15: 45
A16: 11 | B16: Jean Carl Tabone (bor) | C16: Jean Carl Tabone | D16: ="MLT" -> MLT | E16: ="Bormla SC" -> Bormla SC | F16: ="OPEN" -> OPEN | G16: X | H16: X | N16: X | W16: ="Jean Carl" -> Jean Carl | X16: ="Tabone" -> Tabone | Y16: Jean Carl Tabone | Z16: MLT | AA16: bor | AB16: MLT0031 | AC16: 51 | AK16: 51
A17: 12 | B17: David Vacke (cst) | C17: David Vacke | D17: ="CZE" -> CZE | E17: ="Czech Subbuteo Team 2014" -> Czech Subbuteo Team 2014 | F17: ="OPEN" -> OPEN | G17: X | H17: X | W17: ="David" -> David | X17: ="Vacke" -> Vacke | Y17: David Vacke | Z17: CZE | AA17: cst | AB17: CZE0003 | AC17: 779 | AK17: 779
A18: 13 | B18: Stylianos Tsangouris (atl) | C18: Stylianos Tsangouris | D18: ="GRE" -> GRE | E18: ="Atlas FTC" -> Atlas FTC | F18: ="OPEN" -> OPEN | G18: X | H18: X | N18: X | W18: ="Stylianos" -> Stylianos | X18: ="Tsangouris" -> Tsangouris | Y18: Stylianos Tsangouris | Z18: GRE | AA18: atl | AB18: GRE0820 | AC18: 77 | AK18: 77
A19: 14 | B19: Noah Janssens (ste) | C19: Noah Janssens | D19: ="BEL" -> BEL | E19: ="ST Stembert" -> ST Stembert | F19: ="U20" -> U20 | G19: X | H19: X | N19: X | W19: ="Noah" -> Noah | X19: ="Janssens" -> Janssens | Y19: Noah Janssens | Z19: BEL | AA19: ste | AB19: BEL0445 | AC19: 85 | AF19: 1 | AK19: 85 | AN19: 1
A20: 15 | B20: Joffray Laurent (atl) | C20: Joffray Laurent | D20: ="BEL" -> BEL | E20: ="Atlas FTC" -> Atlas FTC | F20: ="OPEN" -> OPEN | G20: X | H20: X | N20: X | W20: ="Joffray" -> Joffray | X20: ="Laurent" -> Laurent | Y20: Joffray Laurent | Z20: BEL | AA20: atl | AB20: BEL0033 | AC20: 102 | AK20: 102
A21: 16 | B21: Erich Hinkelmann (wie) | C21: Erich Hinkelmann | D21: ="AUT" -> AUT | E21: ="TSC Phoenix" -> TSC Phoenix | F21: ="VET" -> VET | G21: X | I21: X | N21: X | W21: ="Erich" -> Erich | X21: ="Hinkelmann" -> Hinkelmann | Y21: Erich Hinkelmann | Z21: AUT | AA21: wie | AB21: AUT0051 | AC21: 274 | AD21: 41 | AK21: 274 | AL21: 41
A22: 17 | B22: Thomas Wittmann (roy) | C22: Thomas Wittmann | D22: ="AUT" -> AUT | E22: ="TSC Royal 78 Kaisermühlen" -> TSC Royal 78 Kaisermühlen | F22: ="OPEN" -> OPEN | G22: X | H22: X | N22: X | W22: ="Thomas" -> Thomas | X22: ="Wittmann" -> Wittmann | Y22: Thomas Wittmann | Z22: AUT | AA22: roy | AB22: AUT0041 | AC22: 139 | AK22: 139
A23: 18 | B23: Murat Tünger (roy) | C23: Murat Tünger | D23: ="AUT" -> AUT | E23: ="TSC Royal 78 Kaisermühlen" -> TSC Royal 78 Kaisermühlen | F23: ="OPEN" -> OPEN | G23: X | H23: X | N23: X | W23: ="Murat" -> Murat | X23: ="Tünger" -> Tünger | Y23: Murat Tünger | Z23: AUT | AA23: roy | AB23: AUT0040 | AC23: 190 | AK23: 190
A24: 19 | B24: Michael Stolzenberg () | C24: Michael Stolzenberg | D24: ="GER" -> GER | E24: ="DLF Gorizia" -> DLF Gorizia | F24: ="OPEN" -> OPEN | G24: X | H24: X | N24: X | W24: ="Michael" -> Michael | X24: ="Stolzenberg" -> Stolzenberg | Y24: Michael Stolzenberg | Z24: GER | AB24: GER0029 | AC24: 214 | AK24: 214
A25: 20 | B25: Christian Haas (bor) | C25: Christian Haas | D25: ="AUT" -> AUT | E25: ="Bormla SC" -> Bormla SC | F25: ="OPEN" -> OPEN | G25: X | N25: X | W25: ="Christian" -> Christian | X25: ="Haas" -> Haas | Y25: Christian Haas | Z25: AUT | AA25: bor | AB25: AUT0025 | AC25: 19 | AK25: 19
A26: 21 | B26: Claudio Colpani (acp) | C26: Claudio Colpani | D26: ="ITA" -> ITA | E26: ="ACS Perugia 1973" -> ACS Perugia 1973 | F26: ="VET" -> VET | G26: X | H26: X | W26: ="Claudio" -> Claudio | X26: ="Colpani" -> Colpani | Y26: Claudio Colpani | Z26: ITA | AA26: acp | AB26: ITA0232 | AC26: 306 | AK26: 306
A27: 22 | B27: Michele Cerullo (gor) | C27: Michele Cerullo | D27: ="ITA" -> ITA | E27: ="GCT DLF Gorizia" -> GCT DLF Gorizia | F27: ="OPEN" -> OPEN | G27: X | H27: X | N27: X | W27: ="Michele" -> Michele | X27: ="Cerullo" -> Cerullo | Y27: Michele Cerullo | Z27: ITA | AA27: gor | AB27: ITA2551 | AC27: 321 | AK27: 321
A28: 23 | B28: Marcel Schulz (sch) | C28: Marcel Schulz | D28: ="GER" -> GER | E28: ="BSC Schwalbach" -> BSC Schwalbach | F28: ="OPEN" -> OPEN | G28: X | H28: X | N28: X | W28: ="Marcel" -> Marcel | X28: ="Schulz" -> Schulz | Y28: Marcel Schulz | Z28: GER | AA28: sch | AB28: GER0011 | AC28: 333 | AK28: 333
A29: 24 | B29: Athanasios Kordantonopoulos (rol) | C29: Athanasios Kordantonopoulos | D29: ="GRE" -> GRE | E29: ="Roligans Ilioupolis TSC" -> Roligans Ilioupolis TSC | F29: ="OPEN" -> OPEN | G29: X | H29: X | N29: X | W29: ="Athanasios" -> Athanasios | X29: ="Kordantonopoulos" -> Kordantonopoulos | Y29: Athanasios Kordantonopoulos | Z29: GRE | AA29: rol | AB29: GRE0090 | AC29: 364 | AK29: 364
A30: 25 | B30: Daniel Vranovitz (roy) | C30: Daniel Vranovitz | D30: ="AUT" -> AUT | E30: ="TSC Royal 78 Kaisermühlen" -> TSC Royal 78 Kaisermühlen | F30: ="OPEN" -> OPEN | G30: X | H30: X | N30: X | W30: ="Daniel" -> Daniel | X30: ="Vranovitz" -> Vranovitz | Y30: Daniel Vranovitz | Z30: AUT | AA30: roy | AB30: AUT0073 | AC30: 472 | AK30: 472
A31: 26 | B31: Christian Hausmann (roy) | C31: Christian Hausmann | D31: ="AUT" -> AUT | E31: ="TSC Royal 78 Kaisermühlen" -> TSC Royal 78 Kaisermühlen | F31: ="OPEN" -> OPEN | G31: X | H31: X | N31: X | W31: ="Christian" -> Christian | X31: ="Hausmann" -> Hausmann | Y31: Christian Hausmann | Z31: AUT | AA31: roy | AB31: AUT0117 | AC31: 538 | AK31: 538
A32: 27 | B32: Reinhard Schöberl (roy) | C32: Reinhard Schöberl | D32: ="AUT" -> AUT | E32: ="TSC Royal 78 Kaisermühlen" -> TSC Royal 78 Kaisermühlen | F32: ="OPEN" -> OPEN | G32: X | H32: X | N32: X | W32: ="Reinhard" -> Reinhard | X32: ="Schöberl" -> Schöberl | Y32: Reinhard Schöberl | Z32: AUT | AA32: roy | AB32: AUT0035 | AC32: 650 | AK32: 650
A33: 28 | B33: David Scherbantin (roy) | C33: David Scherbantin | D33: ="AUT" -> AUT | E33: ="TSC Royal 78 Kaisermühlen" -> TSC Royal 78 Kaisermühlen | F33: ="OPEN" -> OPEN | G33: X | H33: X | N33: X | W33: ="David" -> David | X33: ="Scherbantin" -> Scherbantin | Y33: David Scherbantin | Z33: AUT | AA33: roy | AB33: AUT0107 | AC33: 742 | AK33: 742
A34: 29 | B34: Jason Pisani (bor) | C34: Jason Pisani | D34: ="MLT" -> MLT | E34: ="Bormla SC" -> Bormla SC | F34: ="VET" -> VET | G34: X | I34: X | N34: X | W34: ="Jason" -> Jason | X34: ="Pisani" -> Pisani | Y34: Jason Pisani | Z34: MLT | AA34: bor | AB34: MLT0028 | AC34: 141 | AD34: 2 | AK34: 141 | AL34: 2
A35: 30 | B35: Daniel Scheen (tib) | C35: Daniel Scheen | D35: ="BEL" -> BEL | E35: ="Tiburones FM" -> Tiburones FM | F35: ="VET" -> VET | G35: X | I35: X | W35: ="Daniel" -> Daniel | X35: ="Scheen" -> Scheen | Y35: Daniel Scheen | Z35: BEL | AA35: tib | AB35: BEL0148 | AC35: 175 | AD35: 3 | AK35: 175 | AL35: 3
A36: 31 | B36: Charles Aquilina (bor) | C36: Charles Aquilina | D36: ="MLT" -> MLT | E36: ="Bormla SC" -> Bormla SC | F36: ="VET" -> VET | G36: X | I36: X | N36: X | W36: ="Charles" -> Charles | X36: ="Aquilina" -> Aquilina | Y36: Charles Aquilina | Z36: MLT | AA36: bor | AB36: MLT0002 | AC36: 321 | AD36: 4 | AK36: 321 | AL36: 4
A37: 32 | B37: Pasquale Torano (fer) | C37: Pasquale Torano | D37: ="ITA" -> ITA | E37: ="Subbito Gol Ferrara" -> Subbito Gol Ferrara | F37: ="VET" -> VET | G37: X | I37: X | W37: ="Pasquale" -> Pasquale | X37: ="Torano" -> Torano | Y37: Pasquale Torano | Z37: ITA | AA37: fer | AB37: ITA0861 | AC37: 420 | AD37: 5 | AK37: 420 | AL37: 5
A38: 33 | B38: Lazaros Papakonstantinou (atl) | C38: Lazaros Papakonstantinou | D38: ="GRE" -> GRE | E38: ="Atlas FTC" -> Atlas FTC | F38: ="VET" -> VET | G38: X | I38: X | N38: X | W38: ="Lazaros" -> Lazaros | X38: ="Papakonstantinou" -> Papakonstantinou | Y38: Lazaros Papakonstantinou | Z38: GRE | AA38: atl | AB38: GRE0001 | AD38: 8 | AL38: 8
A39: 34 | B39: David Busch (bor) | C39: David Busch | D39: ="AUT" -> AUT | E39: ="Bormla SC" -> Bormla SC | F39: ="VET" -> VET | G39: X | I39: X | N39: X | W39: ="David" -> David | X39: ="Busch" -> Busch | Y39: David Busch | Z39: AUT | AA39: bor | AB39: AUT0069 | AD39: 14 | AL39: 14
A40: 35 | B40: John Zammit (ste) | C40: John Zammit | D40: ="MLT" -> MLT | E40: ="ST Stembert" -> ST Stembert | F40: ="VET" -> VET | G40: X | I40: X | N40: X | W40: ="John" -> John | X40: ="Zammit" -> Zammit | Y40: John Zammit | Z40: MLT | AA40: ste | AB40: MLT0058 | AC40: 116 | AD40: 19 | AK40: 116 | AL40: 19
A41: 36 | B41: Massimiliano Croatti (msa) | C41: Massimiliano Croatti | D41: ="ITA" -> ITA | E41: ="Master Sanremo" -> Master Sanremo | F41: ="VET" -> VET | G41: X | I41: X | W41: ="Massimiliano" -> Massimiliano | X41: ="Croatti" -> Croatti | Y41: Massimiliano Croatti | Z41: ITA | AA41: msa | AB41: ITA0252 | AD41: 23 | AL41: 23
A42: 37 | B42: Francesco Torano (msa) | C42: Francesco Torano | D42: ="ITA" -> ITA | E42: ="Master Sanremo" -> Master Sanremo | F42: ="VET" -> VET | G42: X | I42: X | W42: ="Francesco" -> Francesco | X42: ="Torano" -> Torano | Y42: Francesco Torano | Z42: ITA | AA42: msa | AB42: ITA0860 | AD42: 27 | AL42: 27
A43: 38 | B43: Christian Haas (bor) | C43: Christian Haas | D43: ="AUT" -> AUT | E43: ="Bormla SC" -> Bormla SC | F43: ="OPEN" -> OPEN | G43: X | N43: X | W43: ="Christian" -> Christian | X43: ="Haas" -> Haas | Y43: Christian Haas | Z43: AUT | AA43: bor | AB43: AUT0025 | AC43: 19 | AK43: 19
A44: 39 | B44: Günther Bamberzky (crh) | C44: Günther Bamberzky | D44: ="AUT" -> AUT | E44: ="Crimson Horses" -> Crimson Horses | F44: ="VET" -> VET | G44: X | I44: X | W44: ="Günther" -> Günther | X44: ="Bamberzky" -> Bamberzky | Y44: Günther Bamberzky | Z44: AUT | AA44: crh | AB44: AUT0045 | AD44: 49 | AL44: 49
A45: 40 | B45: Panagiotis Krommydas (hop) | C45: Panagiotis Krommydas | D45: ="GER" -> GER | E45: ="Subbuteo Club Höpfigheim" -> Subbuteo Club Höpfigheim | F45: ="VET" -> VET | G45: X | I45: X | W45: ="Panagiotis" -> Panagiotis | X45: ="Krommydas" -> Krommydas | Y45: Panagiotis Krommydas | Z45: GER | AA45: hop | AB45: GER0131 | AC45: 614 | AD45: 51 | AK45: 614 | AL45: 51
A46: 41 | B46: Sébastien Rochez (ste) | C46: Sébastien Rochez | D46: ="BEL" -> BEL | E46: ="ST Stembert" -> ST Stembert | F46: ="VET" -> VET | G46: X | I46: X | N46: X | W46: ="Sébastien" -> Sébastien | X46: ="Rochez" -> Rochez | Y46: Sébastien Rochez | Z46: BEL | AA46: ste | AB46: BEL0481 | AC46: 765 | AD46: 54 | AK46: 765 | AL46: 54
A47: 42 | B47: Joseph Mifsud (fia) | C47: Joseph Mifsud | D47: ="MLT" -> MLT | E47: ="SC Fiamme Azzurre" -> SC Fiamme Azzurre | F47: ="VET" -> VET | G47: X | I47: X | W47: ="Joseph" -> Joseph | X47: ="Mifsud" -> Mifsud | Y47: Joseph Mifsud | Z47: MLT | AA47: fia | AB47: MLT0033 | AC47: 152 | AD47: 82 | AK47: 152 | AL47: 82
A48: 43 | B48: Georgios Dimakeas (rol) | C48: Georgios Dimakeas | D48: ="GRE" -> GRE | E48: ="Roligans Ilioupolis TSC" -> Roligans Ilioupolis TSC | F48: ="VET" -> VET | G48: X | I48: X | N48: X | W48: ="Georgios" -> Georgios | X48: ="Dimakeas" -> Dimakeas | Y48: Georgios Dimakeas | Z48: GRE | AA48: rol | AB48: GRE0079 | AD48: 97 | AL48: 97
A49: 44 | B49: Robert Green (nfc) | C49: Robert Green | D49: ="AUS" -> AUS | E49: ="Northern Falcons TFC" -> Northern Falcons TFC | F49: ="VET" -> VET | G49: X | I49: X | N49: X | W49: ="Robert" -> Robert | X49: ="Green" -> Green | Y49: Robert Green | Z49: AUS | AA49: nfc | AB49: AUS0002 | AC49: 122 | AD49: 119 | AK49: 122 | AL49: 119
A50: 45 | B50: Athanasios Chaliotis (atl) | C50: Athanasios Chaliotis | D50: ="GRE" -> GRE | E50: ="Atlas FTC" -> Atlas FTC | F50: ="VET" -> VET | G50: X | I50: X | N50: X | W50: ="Athanasios" -> Athanasios | X50: ="Chaliotis" -> Chaliotis | Y50: Athanasios Chaliotis | Z50: GRE | AA50: atl | AB50: GRE0775 | AC50: 779 | AD50: 177 | AK50: 779 | AL50: 177
A51: 46 | B51: Peter Erb (sub) | C51: Peter Erb | D51: ="SUI" -> SUI | E51: ="subbuteo.ch" -> subbuteo.ch | F51: ="VET" -> VET | G51: X | I51: X | N51: X | W51: ="Peter" -> Peter | X51: ="Erb" -> Erb | Y51: Peter Erb | Z51: SUI | AA51: sub | AB51: SUI007 | AC51: 1109 | AD51: 210 | AK51: 1109 | AL51: 210
A52: 47 | B52: Marco Pinausi (gor) | C52: Marco Pinausi | D52: ="ITA" -> ITA | E52: ="GCT DLF Gorizia" -> GCT DLF Gorizia | F52: ="VET" -> VET | G52: X | I52: X | N52: X | W52: ="Marco" -> Marco | X52: ="Pinausi" -> Pinausi | Y52: Marco Pinausi | Z52: ITA | AA52: gor | AB52: ITA0675 | AC52: 943 | AD52: 213 | AK52: 943 | AL52: 213
A53: 48 | B53: Karl Vranovitz (roy) | C53: Karl Vranovitz | D53: ="AUT" -> AUT | E53: ="TSC Royal 78 Kaisermühlen" -> TSC Royal 78 Kaisermühlen | F53: ="VET" -> VET | G53: X | I53: X | N53: X | W53: ="Karl" -> Karl | X53: ="Vranovitz" -> Vranovitz | Y53: Karl Vranovitz | Z53: AUT | AA53: roy | AB53: AUT0084 | AD53: 268 | AL53: 268
A54: 49 | B54: Dominik Eder (roy) | C54: Dominik Eder | D54: AUT | E54: TSC Royal 78 Kaisermühlen | F54: ="U12" -> U12 | M54: X | W54: ="" ->  | X54: ="" ->  | Z54: AUT | AA54: roy
A55: 50 | B55: Fabio Domenico () | C55: Fabio Domenico | D55: ="SUI" -> SUI | E55: ="Free Agent" -> Free Agent | F55: ="VET" -> VET | G55: X | I55: X | N55: X | W55: ="Fabio" -> Fabio | X55: ="Domenico" -> Domenico | Y55: Fabio Domenico | Z55: SUI | AB55: SUI051 | AC55: 574 | AK55: 574
A56: 51 | B56: Roman Bernhardsgrütter (lis) | C56: Roman Bernhardsgrütter | D56: ="SUI" -> SUI | E56: ="Linth Sliders SC" -> Linth Sliders SC | F56: ="VET" -> VET | G56: X | I56: X | W56: ="Roman" -> Roman | X56: ="Bernhardsgrütter" -> Bernhardsgrütter | Y56: Roman Bernhardsgrütter | Z56: SUI | AA56: lis | AB56: SUI023
A57: 52 | B57: Gábor Baross (wie) | C57: Gábor Baross | D57: ="HUN" -> HUN | E57: ="TSC Phoenix" -> TSC Phoenix | F57: ="OPEN" -> OPEN | G57: X | I57: X | N57: X | W57: ="Gábor" -> Gábor | X57: ="Baross" -> Baross | Y57: Gábor Baross | Z57: HUN | AA57: wie | AB57: HUN0025 | AC57: 420 | AK57: 420
A58: 53 | B58: Apollon Dimakeas (rol) | C58: Apollon Dimakeas | D58: ="GRE" -> GRE | E58: ="Roligans Ilioupolis TSC" -> Roligans Ilioupolis TSC | F58: ="U12" -> U12 | M58: X | N58: X | W58: ="Apollon" -> Apollon | X58: ="Dimakeas" -> Dimakeas | Y58: Apollon Dimakeas | Z58: GRE | AA58: rol | AB58: GRE0732 | AG58: 55 | AH58: 2 | AO58: 55 | AP58: 2
A59: 54 | B59: Phillipos Kordantonopoulos (rol) | C59: Phillipos Kordantonopoulos | D59: ="GRE" -> GRE | E59: ="Roligans Ilioupolis TSC" -> Roligans Ilioupolis TSC | F59: ="U12" -> U12 | M59: X | N59: X | W59: ="Phillipos" -> Phillipos | X59: ="Kordantonopoulos" -> Kordantonopoulos | Y59: Phillipos Kordantonopoulos | Z59: GRE | AA59: rol | AB59: GRE0802 | AH59: 27 | AP59: 27
A60: 55 | B60: Katharina Waldorf-Busch (bor) | C60: Katharina Waldorf-Busch | D60: ="AUT" -> AUT | E60: ="Bormla SC" -> Bormla SC | F60: ="VET" -> VET | I60: X | J60: X | N60: X | W60: ="Katharina" -> Katharina | X60: ="Waldorf-Busch" -> Waldorf-Busch | Y60: Katharina Waldorf-Busch | Z60: AUT | AA60: bor | AB60: AUT0121 | AE60: 7 | AM60: 7
A61: 56 | B61: Daniela Grünberg (sch) | C61: Daniela Grünberg | D61: ="GER" -> GER | E61: ="BSC Schwalbach" -> BSC Schwalbach | F61: ="OPEN" -> OPEN | J61: X | N61: X | W61: ="Daniela" -> Daniela | X61: ="Grünberg" -> Grünberg | Y61: Daniela Grünberg | Z61: GER | AA61: sch | AB61: GER0133 | AC61: 1012 | AE61: 36 | AK61: 1012 | AM61: 36
A62: 57 | B62: Katharina Ocenasek (roy) | C62: Katharina Ocenasek | D62: ="AUT" -> AUT | E62: ="TSC Royal 78 Kaisermühlen" -> TSC Royal 78 Kaisermühlen | F62: ="OPEN" -> OPEN | J62: X | N62: X | W62: ="Katharina" -> Katharina | X62: ="Ocenasek" -> Ocenasek | Y62: Katharina Ocenasek | Z62: AUT | AA62: roy | AB62: AUT0115 | AC62: 1047 | AE62: 57 | AK62: 1047 | AM62: 57
A63: 58 | B63: Alfred Strommer (wie) | C63: Alfred Strommer | D63: ="AUT" -> AUT | E63: ="TSC Phoenix" -> TSC Phoenix | F63: ="VET" -> VET | G63: X | I63: X | N63: X | W63: ="Alfred" -> Alfred | X63: ="Strommer" -> Strommer | Y63: Alfred Strommer | Z63: AUT | AA63: wie | AB63: AUT0059 | AC63: 624 | AD63: 138 | AK63: 624 | AL63: 138
A64: 59 | B64: Marco Zucchi (pin) | C64: Marco Zucchi | D64: ="CZE" -> CZE | E64: ="PINCO DEVILS TABLE SOCCER" -> PINCO DEVILS TABLE SOCCER | F64: ="VET" -> VET | G64: X | I64: X | W64: ="Marco" -> Marco | X64: ="Zucchi" -> Zucchi | Y64: Marco Zucchi | Z64: CZE | AA64: pin | AB64: CZE0005 | AC64: 405 | AD64: 216 | AK64: 405 | AL64: 216
A65: 60 | B65: Florian Daxböck (wie) | C65: Florian Daxböck | D65: ="AUT" -> AUT | E65: ="TSC Phoenix" -> TSC Phoenix | F65: ="VET" -> VET | G65: X | I65: X | N65: X | W65: ="Florian" -> Florian | X65: ="Daxböck" -> Daxböck | Y65: Florian Daxböck | Z65: AUT | AA65: wie | AB65: AUT0125 | AD65: 226 | AL65: 226
A66: 61 | B66: Christian Haas (bor) | C66: Christian Haas | D66: ="AUT" -> AUT | E66: ="Bormla SC" -> Bormla SC | F66: ="OPEN" -> OPEN | G66: X | N66: X | W66: ="Christian" -> Christian | X66: ="Haas" -> Haas | Y66: Christian Haas | Z66: AUT | AA66: bor | AB66: AUT0025 | AC66: 19 | AK66: 19
A67: 62 | B67: Daniel Eder (roy) | C67: Daniel Eder | D67: AUT | E67: TSC Royal 78 Kaisermühlen | F67: U12 | M67: X | W67: ="" ->  | X67: ="" ->  | Z67: AUT | AA67: roy
A68: 63 | B68: Stefan Sandner (roy) | C68: Stefan Sandner | D68: ="AUT" -> AUT | E68: ="TSC Royal 78 Kaisermühlen" -> TSC Royal 78 Kaisermühlen | F68: ="VET" -> VET | G68: X | N68: X | W68: ="Stefan" -> Stefan | X68: ="Sandner" -> Sandner | Y68: Stefan Sandner | Z68: AUT | AA68: roy | AB68: AUT0033 | AC68: 365 | AD68: 38 | AK68: 365 | AL68: 38
A69: 64 | B69: Stefan Sandner (roy) | C69: Stefan Sandner | D69: ="AUT" -> AUT | E69: ="TSC Royal 78 Kaisermühlen" -> TSC Royal 78 Kaisermühlen | F69: ="VET" -> VET | G69: X | N69: X | W69: ="Stefan" -> Stefan | X69: ="Sandner" -> Sandner | Y69: Stefan Sandner | Z69: AUT | AA69: roy | AB69: AUT0033 | AC69: 365 | AD69: 38 | AK69: 365 | AL69: 38
A70: 65 | B70: Robert Lenz (roy) | C70: Robert Lenz | D70: ="AUT" -> AUT | E70: ="TSC Royal 78 Kaisermühlen" -> TSC Royal 78 Kaisermühlen | F70: ="VET" -> VET | G70: X | N70: X | W70: ="Robert" -> Robert | X70: ="Lenz" -> Lenz | Y70: Robert Lenz | Z70: AUT | AA70: roy | AB70: AUT0012 | AC70: 183 | AK70: 183
A71: 66 | B71: Robert Lenz (roy) | C71: Robert Lenz | D71: ="AUT" -> AUT | E71: ="TSC Royal 78 Kaisermühlen" -> TSC Royal 78 Kaisermühlen | F71: ="VET" -> VET | G71: X | N71: X | W71: ="Robert" -> Robert | X71: ="Lenz" -> Lenz | Y71: Robert Lenz | Z71: AUT | AA71: roy | AB71: AUT0012 | AC71: 183 | AK71: 183
A72: 67 | B72: Heinz Eder (roy) | C72: Heinz Eder | D72: ="AUT" -> AUT | E72: ="TSC Royal 78 Kaisermühlen" -> TSC Royal 78 Kaisermühlen | F72: ="OPEN" -> OPEN | G72: X | N72: X | W72: ="Heinz" -> Heinz | X72: ="Eder" -> Eder | Y72: Heinz Eder | Z72: AUT | AA72: roy | AB72: AUT0021 | AC72: 285 | AK72: 285
A73: 68 | B73: Christian Blümel (wie) | C73: Christian Blümel | D73: ="AUT" -> AUT | E73: ="TSC Phoenix" -> TSC Phoenix | F73: ="OPEN" -> OPEN | G73: X | N73: X | W73: ="Christian" -> Christian | X73: ="Blümel" -> Blümel | Y73: Christian Blümel | Z73: AUT | AA73: wie | AB73: AUT0047 | AC73: 715 | AK73: 715
A74: 69 | B74: Manfred Pawlica (wie) | C74: Manfred Pawlica | D74: ="AUT" -> AUT | E74: ="TSC Phoenix" -> TSC Phoenix | F74: ="VET" -> VET | G74: X | N74: X | W74: ="Manfred" -> Manfred | X74: ="Pawlica" -> Pawlica | Y74: Manfred Pawlica | Z74: AUT | AA74: wie | AB74: AUT0057 | AC74: 538 | AD74: 83 | AK74: 538 | AL74: 83
A75: 70 | B75: Marios Strommer (wie) | C75: Marios Strommer | D75: ="AUT" -> AUT | E75: ="TSC Phoenix" -> TSC Phoenix | F75: ="OPEN" -> OPEN | G75: X | N75: X | W75: ="Marios" -> Marios | X75: ="Strommer" -> Strommer | Y75: Marios Strommer | Z75: AUT | AA75: wie | AB75: AUT0066 | AC75: 167 | AK75: 167
A76: 71 | B76: Igor Ljubisavljevic (wie) | C76: Igor Ljubisavljevic | D76: ="AUT" -> AUT | E76: ="TSC Phoenix" -> TSC Phoenix | F76: ="OPEN" -> OPEN | G76: X | N76: X | W76: ="Igor" -> Igor | X76: ="Ljubisavljevic" -> Ljubisavljevic | Y76: Igor Ljubisavljevic | Z76: AUT | AA76: wie | AB76: AUT0124 | AC76: 588 | AK76: 588
A77: 72 | D77: ="" ->  | E77: ="" ->  | F77: ="" ->  | W77: ="" ->  | X77: ="" -> 
A78: 73 | D78: ="" ->  | E78: ="" ->  | F78: ="" ->  | W78: ="" ->  | X78: ="" -> 
A79: 74 | D79: ="" ->  | E79: ="" ->  | F79: ="" ->  | W79: ="" ->  | X79: ="" -> 
A80: 75 | D80: ="" ->  | E80: ="" ->  | F80: ="" ->  | W80: ="" ->  | X80: ="" -> 
A81: 76 | D81: ="" ->  | E81: ="" ->  | F81: ="" ->  | W81: ="" ->  | X81: ="" -> 
A82: 77 | D82: ="" ->  | E82: ="" ->  | F82: ="" ->  | W82: ="" ->  | X82: ="" -> 
A83: 78 | D83: ="" ->  | E83: ="" ->  | F83: ="" ->  | W83: ="" ->  | X83: ="" -> 
A84: 79 | D84: ="" ->  | E84: ="" ->  | F84: ="" ->  | W84: ="" ->  | X84: ="" -> 
A85: 80 | D85: ="" ->  | E85: ="" ->  | F85: ="" ->  | W85: ="" ->  | X85: ="" -> 
A86: 81 | D86: ="" ->  | E86: ="" ->  | F86: ="" ->  | W86: ="" ->  | X86: ="" -> 
A87: 82 | D87: ="" ->  | E87: ="" ->  | F87: ="" ->  | W87: ="" ->  | X87: ="" -> 
A88: 83 | D88: ="" ->  | E88: ="" ->  | F88: ="" ->  | W88: ="" ->  | X88: ="" -> 
A89: 84 | D89: ="" ->  | E89: ="" ->  | F89: ="" ->  | W89: ="" ->  | X89: ="" -> 
A90: 85 | D90: ="" ->  | E90: ="" ->  | F90: ="" ->  | W90: ="" ->  | X90: ="" -> 
A91: 86 | D91: ="" ->  | E91: ="" ->  | F91: ="" ->  | W91: ="" ->  | X91: ="" -> 
A92: 87 | D92: ="" ->  | E92: ="" ->  | F92: ="" ->  | W92: ="" ->  | X92: ="" -> 
A93: 88 | D93: ="" ->  | E93: ="" ->  | F93: ="" ->  | W93: ="" ->  | X93: ="" -> 
A94: 89 | D94: ="" ->  | E94: ="" ->  | F94: ="" ->  | W94: ="" ->  | X94: ="" -> 
A95: 90 | D95: ="" ->  | E95: ="" ->  | F95: ="" ->  | W95: ="" ->  | X95: ="" -> 
A96: 91 | D96: ="" ->  | E96: ="" ->  | F96: ="" ->  | W96: ="" ->  | X96: ="" -> 
A97: 92 | D97: ="" ->  | E97: ="" ->  | F97: ="" ->  | W97: ="" ->  | X97: ="" -> 
A98: 93 | D98: ="" ->  | E98: ="" ->  | F98: ="" ->  | W98: ="" ->  | X98: ="" -> 
A99: 94 | D99: ="" ->  | E99: ="" ->  | F99: ="" ->  | W99: ="" ->  | X99: ="" -> 
A100: 95 | D100: ="" ->  | E100: ="" ->  | F100: ="" ->  | W100: ="" ->  | X100: ="" -> 
A101: 96 | D101: ="" ->  | E101: ="" ->  | F101: ="" ->  | W101: ="" ->  | X101: ="" -> 
A102: 97 | D102: ="" ->  | E102: ="" ->  | F102: ="" ->  | W102: ="" ->  | X102: ="" -> 
A103: 98 | D103: ="" ->  | E103: ="" ->  | F103: ="" ->  | W103: ="" ->  | X103: ="" -> 
A104: 99 | D104: ="" ->  | E104: ="" ->  | F104: ="" ->  | W104: ="" ->  | X104: ="" -> 
A105: 100 | D105: ="" ->  | E105: ="" ->  | F105: ="" ->  | W105: ="" ->  | X105: ="" -> 
A106: 101 | D106: ="" ->  | E106: ="" ->  | F106: ="" ->  | W106: ="" ->  | X106: ="" -> 
A107: 102 | D107: ="" ->  | E107: ="" ->  | F107: ="" ->  | W107: ="" ->  | X107: ="" -> 
A108: 103 | D108: ="" ->  | E108: ="" ->  | F108: ="" ->  | W108: ="" ->  | X108: ="" -> 
A109: 104 | D109: ="" ->  | E109: ="" ->  | F109: ="" ->  | W109: ="" ->  | X109: ="" -> 
A110: 105 | D110: ="" ->  | E110: ="" ->  | F110: ="" ->  | W110: ="" ->  | X110: ="" -> 
A111: 106 | D111: ="" ->  | E111: ="" ->  | F111: ="" ->  | W111: ="" ->  | X111: ="" -> 
A112: 107 | D112: ="" ->  | E112: ="" ->  | F112: ="" ->  | W112: ="" ->  | X112: ="" -> 
A113: 108 | D113: ="" ->  | E113: ="" ->  | F113: ="" ->  | W113: ="" ->  | X113: ="" -> 
A114: 109 | D114: ="" ->  | E114: ="" ->  | F114: ="" ->  | W114: ="" ->  | X114: ="" -> 
A115: 110 | D115: ="" ->  | E115: ="" ->  | F115: ="" ->  | W115: ="" ->  | X115: ="" -> 
A116: 111 | D116: ="" ->  | E116: ="" ->  | F116: ="" ->  | W116: ="" ->  | X116: ="" -> 
A117: 112 | D117: ="" ->  | E117: ="" ->  | F117: ="" ->  | W117: ="" ->  | X117: ="" -> 
A118: 113 | D118: ="" ->  | E118: ="" ->  | F118: ="" ->  | W118: ="" ->  | X118: ="" -> 
A119: 114 | D119: ="" ->  | E119: ="" ->  | F119: ="" ->  | W119: ="" ->  | X119: ="" -> 
A120: 115 | D120: ="" ->  | E120: ="" ->  | F120: ="" ->  | W120: ="" ->  | X120: ="" -> 
A121: 116 | D121: ="" ->  | E121: ="" ->  | F121: ="" ->  | W121: ="" ->  | X121: ="" -> 
A122: 117 | D122: ="" ->  | E122: ="" ->  | F122: ="" ->  | W122: ="" ->  | X122: ="" -> 
A123: 118 | D123: ="" ->  | E123: ="" ->  | F123: ="" ->  | W123: ="" ->  | X123: ="" -> 
A124: 119 | D124: ="" ->  | E124: ="" ->  | F124: ="" ->  | W124: ="" ->  | X124: ="" -> 
A125: 120 | D125: ="" ->  | E125: ="" ->  | F125: ="" ->  | W125: ="" ->  | X125: ="" -> 
A126: 121 | D126: ="" ->  | E126: ="" ->  | F126: ="" ->  | W126: ="" ->  | X126: ="" -> 
A127: 122 | D127: ="" ->  | E127: ="" ->  | F127: ="" ->  | W127: ="" ->  | X127: ="" -> 
A128: 123 | D128: ="" ->  | E128: ="" ->  | F128: ="" ->  | W128: ="" ->  | X128: ="" -> 
A129: 124 | D129: ="" ->  | E129: ="" ->  | F129: ="" ->  | W129: ="" ->  | X129: ="" -> 
A130: 125 | D130: ="" ->  | E130: ="" ->  | F130: ="" ->  | W130: ="" ->  | X130: ="" -> 
A131: 126 | D131: ="" ->  | E131: ="" ->  | F131: ="" ->  | W131: ="" ->  | X131: ="" -> 
A132: 127 | D132: ="" ->  | E132: ="" ->  | F132: ="" ->  | W132: ="" ->  | X132: ="" -> 
A133: 128 | D133: ="" ->  | E133: ="" ->  | F133: ="" ->  | W133: ="" ->  | X133: ="" -> 
A134: 129 | D134: ="" ->  | E134: ="" ->  | F134: ="" ->  | W134: ="" ->  | X134: ="" -> 
A135: 130 | D135: ="" ->  | E135: ="" ->  | F135: ="" ->  | W135: ="" ->  | X135: ="" -> 
A136: 131 | D136: ="" ->  | E136: ="" ->  | F136: ="" ->  | W136: ="" ->  | X136: ="" -> 
A137: 132 | D137: ="" ->  | E137: ="" ->  | F137: ="" ->  | W137: ="" ->  | X137: ="" -> 
A138: 133 | D138: ="" ->  | E138: ="" ->  | F138: ="" ->  | W138: ="" ->  | X138: ="" -> 
A139: 134 | D139: ="" ->  | E139: ="" ->  | F139: ="" ->  | W139: ="" ->  | X139: ="" -> 
A140: 135 | D140: ="" ->  | E140: ="" ->  | F140: ="" ->  | W140: ="" ->  | X140: ="" -> 
A141: 136 | D141: ="" ->  | E141: ="" ->  | F141: ="" ->  | W141: ="" ->  | X141: ="" -> 
A142: 137 | D142: ="" ->  | E142: ="" ->  | F142: ="" ->  | W142: ="" ->  | X142: ="" -> 
A143: 138 | D143: ="" ->  | E143: ="" ->  | F143: ="" ->  | W143: ="" ->  | X143: ="" -> 
A144: 139 | D144: ="" ->  | E144: ="" ->  | F144: ="" ->  | W144: ="" ->  | X144: ="" -> 
A145: 140 | D145: ="" ->  | E145: ="" ->  | F145: ="" ->  | W145: ="" ->  | X145: ="" -> 
A146: 141 | D146: ="" ->  | E146: ="" ->  | F146: ="" ->  | W146: ="" ->  | X146: ="" -> 
A147: 142 | D147: ="" ->  | E147: ="" ->  | F147: ="" ->  | W147: ="" ->  | X147: ="" -> 
A148: 143 | D148: ="" ->  | E148: ="" ->  | F148: ="" ->  | W148: ="" ->  | X148: ="" -> 
A149: 144 | D149: ="" ->  | E149: ="" ->  | F149: ="" ->  | W149: ="" ->  | X149: ="" -> 
A150: 145 | D150: ="" ->  | E150: ="" ->  | F150: ="" ->  | W150: ="" ->  | X150: ="" -> 
A151: 146 | D151: ="" ->  | E151: ="" ->  | F151: ="" ->  | W151: ="" ->  | X151: ="" -> 
A152: 147 | D152: ="" ->  | E152: ="" ->  | F152: ="" ->  | W152: ="" ->  | X152: ="" -> 
A153: 148 | D153: ="" ->  | E153: ="" ->  | F153: ="" ->  | W153: ="" ->  | X153: ="" -> 
A154: 149 | D154: ="" ->  | E154: ="" ->  | F154: ="" ->  | W154: ="" ->  | X154: ="" -> 
A155: 150 | D155: ="" ->  | E155: ="" ->  | F155: ="" ->  | W155: ="" ->  | X155: ="" -> 
A156: 151 | D156: ="" ->  | E156: ="" ->  | F156: ="" ->  | W156: ="" ->  | X156: ="" -> 
A157: 152 | D157: ="" ->  | E157: ="" ->  | F157: ="" ->  | W157: ="" ->  | X157: ="" -> 
A158: 153 | D158: ="" ->  | E158: ="" ->  | F158: ="" ->  | W158: ="" ->  | X158: ="" -> 
A159: 154 | D159: ="" ->  | E159: ="" ->  | F159: ="" ->  | W159: ="" ->  | X159: ="" -> 
A160: 155 | D160: ="" ->  | E160: ="" ->  | F160: ="" ->  | W160: ="" ->  | X160: ="" -> 
A161: 156 | D161: ="" ->  | E161: ="" ->  | F161: ="" ->  | W161: ="" ->  | X161: ="" -> 
A162: 157 | D162: ="" ->  | E162: ="" ->  | F162: ="" ->  | W162: ="" ->  | X162: ="" -> 
A163: 158 | D163: ="" ->  | E163: ="" ->  | F163: ="" ->  | W163: ="" ->  | X163: ="" -> 
A164: 159 | D164: ="" ->  | E164: ="" ->  | F164: ="" ->  | W164: ="" ->  | X164: ="" -> 
A165: 160 | D165: ="" ->  | E165: ="" ->  | F165: ="" ->  | W165: ="" ->  | X165: ="" -> 
A166: 161 | D166: ="" ->  | E166: ="" ->  | F166: ="" ->  | W166: ="" ->  | X166: ="" -> 
A167: 162 | D167: ="" ->  | E167: ="" ->  | F167: ="" ->  | W167: ="" ->  | X167: ="" -> 
A168: 163 | D168: ="" ->  | E168: ="" ->  | F168: ="" ->  | W168: ="" ->  | X168: ="" -> 
A169: 164 | D169: ="" ->  | E169: ="" ->  | F169: ="" ->  | W169: ="" ->  | X169: ="" -> 
A170: 165 | D170: ="" ->  | E170: ="" ->  | F170: ="" ->  | W170: ="" ->  | X170: ="" -> 
A171: 166 | D171: ="" ->  | E171: ="" ->  | F171: ="" ->  | W171: ="" ->  | X171: ="" -> 
A172: 167 | D172: ="" ->  | E172: ="" ->  | F172: ="" ->  | W172: ="" ->  | X172: ="" -> 
A173: 168 | D173: ="" ->  | E173: ="" ->  | F173: ="" ->  | W173: ="" ->  | X173: ="" -> 
A174: 169 | D174: ="" ->  | E174: ="" ->  | F174: ="" ->  | W174: ="" ->  | X174: ="" -> 
A175: 170 | D175: ="" ->  | E175: ="" ->  | F175: ="" ->  | W175: ="" ->  | X175: ="" -> 
A176: 171 | D176: ="" ->  | E176: ="" ->  | F176: ="" ->  | W176: ="" ->  | X176: ="" -> 
A177: 172 | D177: ="" ->  | E177: ="" ->  | F177: ="" ->  | W177: ="" ->  | X177: ="" -> 
A178: 173 | D178: ="" ->  | E178: ="" ->  | F178: ="" ->  | W178: ="" ->  | X178: ="" -> 
A179: 174 | D179: ="" ->  | E179: ="" ->  | F179: ="" ->  | W179: ="" ->  | X179: ="" -> 
A180: 175 | D180: ="" ->  | E180: ="" ->  | F180: ="" ->  | W180: ="" ->  | X180: ="" -> 
A181: 176 | D181: ="" ->  | E181: ="" ->  | F181: ="" ->  | W181: ="" ->  | X181: ="" -> 
A182: 177 | D182: ="" ->  | E182: ="" ->  | F182: ="" ->  | W182: ="" ->  | X182: ="" -> 
A183: 178 | D183: ="" ->  | E183: ="" ->  | F183: ="" ->  | W183: ="" ->  | X183: ="" -> 
A184: 179 | D184: ="" ->  | E184: ="" ->  | F184: ="" ->  | W184: ="" ->  | X184: ="" -> 
A185: 180 | D185: ="" ->  | E185: ="" ->  | F185: ="" ->  | W185: ="" ->  | X185: ="" -> 
A186: 181 | D186: ="" ->  | E186: ="" ->  | F186: ="" ->  | W186: ="" ->  | X186: ="" -> 
A187: 182 | D187: ="" ->  | E187: ="" ->  | F187: ="" ->  | W187: ="" ->  | X187: ="" -> 
A188: 183 | D188: ="" ->  | E188: ="" ->  | F188: ="" ->  | W188: ="" ->  | X188: ="" -> 
A189: 184 | D189: ="" ->  | E189: ="" ->  | F189: ="" ->  | W189: ="" ->  | X189: ="" -> 
A190: 185 | D190: ="" ->  | E190: ="" ->  | F190: ="" ->  | W190: ="" ->  | X190: ="" -> 
A191: 186 | D191: ="" ->  | E191: ="" ->  | F191: ="" ->  | W191: ="" ->  | X191: ="" -> 
A192: 187 | D192: ="" ->  | E192: ="" ->  | F192: ="" ->  | W192: ="" ->  | X192: ="" -> 
A193: 188 | D193: ="" ->  | E193: ="" ->  | F193: ="" ->  | W193: ="" ->  | X193: ="" -> 
A194: 189 | D194: ="" ->  | E194: ="" ->  | F194: ="" ->  | W194: ="" ->  | X194: ="" -> 
A195: 190 | D195: ="" ->  | E195: ="" ->  | F195: ="" ->  | W195: ="" ->  | X195: ="" -> 
A196: 191 | D196: ="" ->  | E196: ="" ->  | F196: ="" ->  | W196: ="" ->  | X196: ="" -> 
A197: 192 | D197: ="" ->  | E197: ="" ->  | F197: ="" ->  | W197: ="" ->  | X197: ="" -> 
A198: 193 | D198: ="" ->  | E198: ="" ->  | F198: ="" ->  | W198: ="" ->  | X198: ="" -> 
A199: 194 | D199: ="" ->  | E199: ="" ->  | F199: ="" ->  | W199: ="" ->  | X199: ="" -> 
A200: 195 | D200: ="" ->  | E200: ="" ->  | F200: ="" ->  | W200: ="" ->  | X200: ="" -> 
A201: 196 | D201: ="" ->  | E201: ="" ->  | F201: ="" ->  | W201: ="" ->  | X201: ="" -> 
... 147 more rows

Sheet Teams
A1: 10 | B1: =IF(RankingAsLicencesList,7,7) -> 7 | C1: =N_TeamCheckin -> Team Check in | T1: =N_NbTeams -> Number of Teams | U1: =N_nb_max_members -> Max nb of team members
H2: =IF(NationalityTrigram,7,2) -> 2 | T2: =COUNTA(Team_List) -> 63 | U2: =MAX(Liste_Nb_Equipiers) -> 5 | V2: 1 | W2: 2 | X2: 3 | Y2: 4 | Z2: 5 | AA2: 6 | AB2: 7 | AC2: 8 | AD2: 9 | AE2: 10 | AF2: 11 | AG2: 12 | AH2: 13 | AI2: 14 | AJ2: 15 | AK2: 16 | AL2: 17 | AM2: 18 | AN2: 19 | AO2: 20 | AP2: 21
A3: =N_Event_Type -> Event Type | B3: =N_Nationality -> Nationality | C3: =N_Club -> Club | D3: =N_Team & " #" -> Team # | E3: =N_Nom_équipe -> Team name | F3: =N_Rank -> Rk | G3: =N_Nb_Refereeing -> Nb refereed matches | H3: =N_Team -> Team | I3: =N_Joueurs -> Players | S3: =N_Nb_Team_Members -> Nb of team members | T3: =N_Nb_Refereeing -> Nb refereed matches | U3: =N_LastHourRefereeing -> Session of the last refereeing | V3: =INDEX(Planning!$A:$A,MATCH("S"&V2,Planning!$G:$G,0)) -> 08:30:00 | W3: =INDEX(Planning!$A:$A,MATCH("S"&W2,Planning!$G:$G,0)) -> 09:20:00 | X3: =INDEX(Planning!$A:$A,MATCH("S"&X2,Planning!$G:$G,0)) -> 10:10:00 | Y3: =INDEX(Planning!$A:$A,MATCH("S"&Y2,Planning!$G:$G,0)) -> 11:00:00 | Z3: =INDEX(Planning!$A:$A,MATCH("S"&Z2,Planning!$G:$G,0)) -> 11:40:00 | AA3: =INDEX(Planning!$A:$A,MATCH("S"&AA2,Planning!$G:$G,0)) -> 12:30:00 | AB3: =INDEX(Planning!$A:$A,MATCH("S"&AB2,Planning!$G:$G,0)) -> 13:20:00 | AC3: =INDEX(Planning!$A:$A,MATCH("S"&AC2,Planning!$G:$G,0)) -> 14:05:00 | AD3: =INDEX(Planning!$A:$A,MATCH("S"&AD2,Planning!$G:$G,0)) -> 17:05:00 | AE3: =INDEX(Planning!$A:$A,MATCH("S"&AE2,Planning!$G:$G,0)) -> 18:10:00 | AF3: =INDEX(Planning!$A:$A,MATCH("S"&AF2,Planning!$G:$G,0)) ->  | AG3: =INDEX(Planning!$A:$A,MATCH("S"&AG2,Planning!$G:$G,0)) ->  | AH3: =INDEX(Planning!$A:$A,MATCH("S"&AH2,Planning!$G:$G,0)) ->  | AI3: =INDEX(Planning!$A:$A,MATCH("S"&AI2,Planning!$G:$G,0)) ->  | AJ3: =INDEX(Planning!$A:$A,MATCH("S"&AJ2,Planning!$G:$G,0)) ->  | AK3: =INDEX(Planning!$A:$A,MATCH("S"&AK2,Planning!$G:$G,0)) ->  | AL3: =INDEX(Planning!$A:$A,MATCH("S"&AL2,Planning!$G:$G,0)) ->  | AM3: =INDEX(Planning!$A:$A,MATCH("S"&AM2,Planning!$G:$G,0)) ->  | AN3: =INDEX(Planning!$A:$A,MATCH("S"&AN2,Planning!$G:$G,0)) ->  | AO3: =INDEX(Planning!$A:$A,MATCH("S"&AO2,Planning!$G:$G,0)) ->  | AP3: =INDEX(Planning!$A:$A,MATCH("S"&AP2,Planning!$G:$G,0)) -> 
A4: =Event7 -> Teams | B4: MLT | C4: Bormla SC | D4: A | E4: =IF(C4="","",C4&IF(D4="A",""," "&CODE(D4)-CODE("A")+1)) -> Bormla SC | F4: =IF(ISNA(VLOOKUP(E4,FullTeamsRankingList,3,FALSE)),9999,VLOOKUP(E4,FullTeamsRankingList,3,FALSE)) -> 1 | G4: =IF(E4="","",IF(ISNA(H4),NA(),COUNTIF(Planning!AA:AA,H4))) -> 1 | H4: =IF(E4="","",CONCATENATE(E4,IF(C4="---","",CONCATENATE(" (",IF(NationalityTrigram,B4,VLOOKUP(C4,Licenced_Clubs,H$2,FALSE)),")")))) -> Bormla SC (bor) | I4: George Ebejer (bor) | J4: Jean Carl Tabone (bor) | K4: Jason Pisani (bor) | L4: Charles Aquilina (bor) | M4: Christian Haas (bor) | N4: Wolfgang Haas (bor) | S4: =COUNTA(I4:L4) -> 4 | T4: 1 | U4: 08:30:00 | V4: Bormla SC (bor) | X4: Bormla SC (bor) | AB4: Bormla SC (bor) | AC4: Bormla SC (bor) | AD4: Bormla SC (bor) | AG4: Bormla SC (bor) | AH4: Bormla SC (bor) | AI4: Bormla SC (bor) | AJ4: Bormla SC (bor) | AK4: Bormla SC (bor) | AL4: Bormla SC (bor) | AM4: Bormla SC (bor) | AN4: Bormla SC (bor) | AO4: Bormla SC (bor) | AP4: Bormla SC (bor)
A5: Teams | B5: BEL | C5: ST Stembert | D5: A | E5: ST Stembert | F5: 7 | G5: =IF(E5="","",IF(ISNA(H5),NA(),COUNTIF(Planning!AA:AA,H5))) -> 2 | H5: ST Stembert (ste) | I5: Noah Janssens (ste) | J5: John Zammit (ste) | K5: Sébastien Rochez (ste) | L5: Pascal Scheen (ste) | S5: 4 | T5: 2 | U5: 11:00:00 | V5: ST Stembert (ste) | W5: ST Stembert (ste) | Y5: ST Stembert (ste) | AC5: ST Stembert (ste) | AD5: ST Stembert (ste) | AG5: ST Stembert (ste) | AH5: ST Stembert (ste) | AI5: ST Stembert (ste) | AJ5: ST Stembert (ste) | AK5: ST Stembert (ste) | AL5: ST Stembert (ste) | AM5: ST Stembert (ste) | AN5: ST Stembert (ste) | AO5: ST Stembert (ste) | AP5: ST Stembert (ste)
A6: Teams | B6: AUT | C6: TSC Royal 78 Kaisermühlen | D6: A | E6: TSC Royal 78 Kaisermühlen | F6: 18 | G6: =IF(E6="","",IF(ISNA(H6),NA(),COUNTIF(Planning!AA:AA,H6))) -> 3 | H6: TSC Royal 78 Kaisermühlen (roy) | I6: Wolfgang Leitner (roy) | J6: Alexander Haas (roy) | K6: Murat Tünger (roy) | L6: Daniel Vranovitz (roy) | M6: Stefan Sandner (roy) | S6: 4 | T6: 3 | U6: 17:05:00 | W6: TSC Royal 78 Kaisermühlen (roy) | AA6: TSC Royal 78 Kaisermühlen (roy) | AB6: TSC Royal 78 Kaisermühlen (roy) | AC6: TSC Royal 78 Kaisermühlen (roy) | AD6: TSC Royal 78 Kaisermühlen (roy) | AF6: TSC Royal 78 Kaisermühlen (roy) | AG6: TSC Royal 78 Kaisermühlen (roy) | AH6: TSC Royal 78 Kaisermühlen (roy) | AI6: TSC Royal 78 Kaisermühlen (roy) | AJ6: TSC Royal 78 Kaisermühlen (roy) | AK6: TSC Royal 78 Kaisermühlen (roy) | AL6: TSC Royal 78 Kaisermühlen (roy) | AM6: TSC Royal 78 Kaisermühlen (roy) | AN6: TSC Royal 78 Kaisermühlen (roy) | AO6: TSC Royal 78 Kaisermühlen (roy) | AP6: TSC Royal 78 Kaisermühlen (roy)
A7: Teams | B7: AUT | C7: TSC Royal 78 Kaisermühlen | D7: B | E7: TSC Royal 78 Kaisermühlen 2 | F7: 104 | G7: =IF(E7="","",IF(ISNA(H7),NA(),COUNTIF(Planning!AA:AA,H7))) -> 2 | H7: TSC Royal 78 Kaisermühlen 2 (roy) | I7: Katharina Ocenasek (roy) | J7: Christian Hausmann (roy) | K7: Karl Vranovitz (roy) | L7: Robert Lenz (roy) | M7: Heinz Eder (roy) | N7: David Scherbantin (roy) | S7: 4 | T7: 2 | U7: 12:30:00 | Y7: TSC Royal 78 Kaisermühlen 2 (roy) | AA7: TSC Royal 78 Kaisermühlen 2 (roy) | AB7: TSC Royal 78 Kaisermühlen 2 (roy) | AC7: TSC Royal 78 Kaisermühlen 2 (roy) | AD7: TSC Royal 78 Kaisermühlen 2 (roy) | AF7: TSC Royal 78 Kaisermühlen 2 (roy) | AG7: TSC Royal 78 Kaisermühlen 2 (roy) | AH7: TSC Royal 78 Kaisermühlen 2 (roy) | AI7: TSC Royal 78 Kaisermühlen 2 (roy) | AJ7: TSC Royal 78 Kaisermühlen 2 (roy) | AK7: TSC Royal 78 Kaisermühlen 2 (roy) | AL7: TSC Royal 78 Kaisermühlen 2 (roy) | AM7: TSC Royal 78 Kaisermühlen 2 (roy) | AN7: TSC Royal 78 Kaisermühlen 2 (roy) | AO7: TSC Royal 78 Kaisermühlen 2 (roy) | AP7: TSC Royal 78 Kaisermühlen 2 (roy)
A8: Teams | B8: GRE | C8: Atlas FTC | D8: A | E8: Atlas FTC | F8: 30 | G8: =IF(E8="","",IF(ISNA(H8),NA(),COUNTIF(Planning!AA:AA,H8))) -> 2 | H8: Atlas FTC (atl) | I8: Giannis Nikolaidis (atl) | J8: Stylianos Tsangouris (atl) | K8: Lazaros Papakonstantinou (atl) | L8: Joffray Laurent (atl) | M8: Athanasios Chaliotis (atl) | S8: 4 | T8: 2 | U8: 12:30:00 | X8: Atlas FTC (atl) | Z8: Atlas FTC (atl) | AA8: Atlas FTC (atl) | AC8: Atlas FTC (atl) | AD8: Atlas FTC (atl) | AE8: Atlas FTC (atl) | AF8: Atlas FTC (atl) | AG8: Atlas FTC (atl) | AH8: Atlas FTC (atl) | AI8: Atlas FTC (atl) | AJ8: Atlas FTC (atl) | AK8: Atlas FTC (atl) | AL8: Atlas FTC (atl) | AM8: Atlas FTC (atl) | AN8: Atlas FTC (atl) | AO8: Atlas FTC (atl) | AP8: Atlas FTC (atl)
A9: Teams | B9: GRE | C9: Roligans Ilioupolis TSC | D9: A | E9: Roligans Ilioupolis TSC | F9: 71 | G9: =IF(E9="","",IF(ISNA(H9),NA(),COUNTIF(Planning!AA:AA,H9))) -> 2 | H9: Roligans Ilioupolis TSC (rol) | I9: Phillipos Kordantonopoulos (rol) | J9: Apollon Dimakeas (rol) | K9: Athanasios Kordantonopoulos (rol) | L9: Georgios Dimakeas (rol) | S9: 4 | T9: 2 | U9: 11:40:00 | V9: Roligans Ilioupolis TSC (rol) | W9: Roligans Ilioupolis TSC (rol) | Z9: Roligans Ilioupolis TSC (rol) | AC9: Roligans Ilioupolis TSC (rol) | AD9: Roligans Ilioupolis TSC (rol) | AE9: Roligans Ilioupolis TSC (rol) | AF9: Roligans Ilioupolis TSC (rol) | AG9: Roligans Ilioupolis TSC (rol) | AH9: Roligans Ilioupolis TSC (rol) | AI9: Roligans Ilioupolis TSC (rol) | AJ9: Roligans Ilioupolis TSC (rol) | AK9: Roligans Ilioupolis TSC (rol) | AL9: Roligans Ilioupolis TSC (rol) | AM9: Roligans Ilioupolis TSC (rol) | AN9: Roligans Ilioupolis TSC (rol) | AO9: Roligans Ilioupolis TSC (rol) | AP9: Roligans Ilioupolis TSC (rol)
A10: Teams | B10: ITA | C10: GCT DLF Gorizia | D10: A | E10: GCT DLF Gorizia | F10: 79 | G10: =IF(E10="","",IF(ISNA(H10),NA(),COUNTIF(Planning!AA:AA,H10))) -> 3 | H10: GCT DLF Gorizia (gor) | I10: Michael Stolzenberg () | J10: Michele Cerullo (gor) | K10: Marco Pinausi (gor) | L10: To be defined | S10: 4 | T10: 3 | U10: 15:55:00 | Y10: GCT DLF Gorizia (gor) | Z10: GCT DLF Gorizia (gor) | AB10: GCT DLF Gorizia (gor) | AC10: GCT DLF Gorizia (gor) | AD10: GCT DLF Gorizia (gor) | AE10: GCT DLF Gorizia (gor) | AF10: GCT DLF Gorizia (gor) | AG10: GCT DLF Gorizia (gor) | AH10: GCT DLF Gorizia (gor) | AI10: GCT DLF Gorizia (gor) | AJ10: GCT DLF Gorizia (gor) | AK10: GCT DLF Gorizia (gor) | AL10: GCT DLF Gorizia (gor) | AM10: GCT DLF Gorizia (gor) | AN10: GCT DLF Gorizia (gor) | AO10: GCT DLF Gorizia (gor) | AP10: GCT DLF Gorizia (gor)
A11: Teams | B11: INT | C11: Barbarian Mixed Team | D11: A | E11: Barbarian Mixed Team | F11: 9999 | G11: =IF(E11="","",IF(ISNA(H11),NA(),COUNTIF(Planning!AA:AA,H11))) -> 2 | H11: Barbarian Mixed Team | I11: Robert Green (nfc) | J11: Peter Erb (sub) | K11: Daniela Grünberg (sch) | L11: Fabio Domenico () | M11: Marcel Schulz (sch) | S11: =COUNTA(I11:R11) -> 5 | T11: 2 | U11: 10:10:00 | V11: Barbarian Mixed Team | X11: Barbarian Mixed Team | AB11: Barbarian Mixed Team | AC11: Barbarian Mixed Team | AD11: Barbarian Mixed Team | AE11: Barbarian Mixed Team | AF11: Barbarian Mixed Team | AG11: Barbarian Mixed Team | AH11: Barbarian Mixed Team | AI11: Barbarian Mixed Team | AJ11: Barbarian Mixed Team | AK11: Barbarian Mixed Team | AL11: Barbarian Mixed Team | AM11: Barbarian Mixed Team | AN11: Barbarian Mixed Team | AO11: Barbarian Mixed Team | AP11: Barbarian Mixed Team
A12: =Event7 -> Teams | B12: AUT | C12: TSC Phoenix | D12: B | E12: TSC Phoenix 2 | F12: 154 | G12: =IF(E12="","",IF(ISNA(H12),NA(),COUNTIF(Planning!AA:AA,H12))) -> 3 | H12: TSC Phoenix 2 (wie) | I12: Alfred Strommer (wie) | J12: Igor Ljubisavljevic (wie) | K12: Florian Daxböck (wie) | L12: Gábor Baross (wie) | S12: =COUNTA(I12:L12) -> 4 | T12: 3 | U12: 15:55:00 | W12: TSC Phoenix 2 (wie) | Y12: TSC Phoenix 2 (wie) | AB12: TSC Phoenix 2 (wie) | AC12: TSC Phoenix 2 (wie) | AD12: TSC Phoenix 2 (wie) | AE12: TSC Phoenix 2 (wie) | AF12: TSC Phoenix 2 (wie) | AG12: TSC Phoenix 2 (wie) | AH12: TSC Phoenix 2 (wie) | AI12: TSC Phoenix 2 (wie) | AJ12: TSC Phoenix 2 (wie) | AK12: TSC Phoenix 2 (wie) | AL12: TSC Phoenix 2 (wie) | AM12: TSC Phoenix 2 (wie) | AN12: TSC Phoenix 2 (wie) | AO12: TSC Phoenix 2 (wie) | AP12: TSC Phoenix 2 (wie)
A13: =Event7 -> Teams | B13: AUT | C13: TSC Phoenix | D13: A | E13: TSC Phoenix | F13: 33 | G13: =IF(E13="","",IF(ISNA(H13),NA(),COUNTIF(Planning!AA:AA,H13))) -> 2 | H13: TSC Phoenix (wie) | I13: Manfred Pawlica (wie) | J13: Marios Strommer (wie) | K13: Christian Blümel (wie) | L13: Erich Hinkelmann (wie) | S13: =COUNTA(I13:L13) -> 4 | T13: 2 | U13: 11:40:00 | X13: TSC Phoenix (wie) | Z13: TSC Phoenix (wie) | AA13: TSC Phoenix (wie) | AC13: TSC Phoenix (wie) | AD13: TSC Phoenix (wie) | AE13: TSC Phoenix (wie) | AF13: TSC Phoenix (wie) | AG13: TSC Phoenix (wie) | AH13: TSC Phoenix (wie) | AI13: TSC Phoenix (wie) | AJ13: TSC Phoenix (wie) | AK13: TSC Phoenix (wie) | AL13: TSC Phoenix (wie) | AM13: TSC Phoenix (wie) | AN13: TSC Phoenix (wie) | AO13: TSC Phoenix (wie) | AP13: TSC Phoenix (wie)
F14: 0 | G14: =IF(E14="","",IF(ISNA(H14),NA(),COUNTIF(Planning!AA:AA,H14))) ->  | S14: 0 | T14: 153 | U14: END OF PLANNING
E15: =IF(C15="","",C15&IF(D15="A",""," "&CODE(D15)-CODE("A")+1)) ->  | F15: 0 | G15: =IF(E15="","",IF(ISNA(H15),NA(),COUNTIF(Planning!AA:AA,H15))) ->  | H15: =IF(E15="","",CONCATENATE(E15,IF(C15="---","",CONCATENATE(" (",IF(NationalityTrigram,B15,VLOOKUP(C15,Licenced_Clubs,H$2,FALSE)),")")))) ->  | S15: 0 | T15: 153 | U15: END OF PLANNING
F16: 0 | G16: =IF(E16="","",IF(ISNA(H16),NA(),COUNTIF(Planning!AA:AA,H16))) ->  | S16: 0 | T16: 153 | U16: END OF PLANNING
F17: 0 | G17: =IF(E17="","",IF(ISNA(H17),NA(),COUNTIF(Planning!AA:AA,H17))) ->  | S17: 0 | T17: 153 | U17: END OF PLANNING
F18: 0 | G18: =IF(E18="","",IF(ISNA(H18),NA(),COUNTIF(Planning!AA:AA,H18))) ->  | S18: 0 | T18: 153 | U18: END OF PLANNING
F19: 0 | G19: =IF(E19="","",IF(ISNA(H19),NA(),COUNTIF(Planning!AA:AA,H19))) ->  | S19: 0 | T19: 153 | U19: END OF PLANNING
F20: 0 | G20: =IF(E20="","",IF(ISNA(H20),NA(),COUNTIF(Planning!AA:AA,H20))) ->  | S20: 0 | T20: 153 | U20: END OF PLANNING
F21: 0 | G21: =IF(E21="","",IF(ISNA(H21),NA(),COUNTIF(Planning!AA:AA,H21))) ->  | S21: 0 | T21: 153 | U21: END OF PLANNING
F22: 0 | G22: =IF(E22="","",IF(ISNA(H22),NA(),COUNTIF(Planning!AA:AA,H22))) ->  | S22: 0 | T22: 153 | U22: END OF PLANNING
F23: 0 | G23: =IF(E23="","",IF(ISNA(H23),NA(),COUNTIF(Planning!AA:AA,H23))) ->  | S23: 0 | T23: 153 | U23: END OF PLANNING
F24: 0 | G24: =IF(E24="","",IF(ISNA(H24),NA(),COUNTIF(Planning!AA:AA,H24))) ->  | S24: 0 | T24: 153 | U24: END OF PLANNING
F25: 0 | G25: =IF(E25="","",IF(ISNA(H25),NA(),COUNTIF(Planning!AA:AA,H25))) ->  | S25: 0 | T25: 153 | U25: END OF PLANNING
F26: 0 | G26: =IF(E26="","",IF(ISNA(H26),NA(),COUNTIF(Planning!AA:AA,H26))) ->  | S26: 0 | T26: 153 | U26: END OF PLANNING
F27: 0 | G27: =IF(E27="","",IF(ISNA(H27),NA(),COUNTIF(Planning!AA:AA,H27))) ->  | S27: 0 | T27: 153 | U27: END OF PLANNING
F28: 0 | G28: =IF(E28="","",IF(ISNA(H28),NA(),COUNTIF(Planning!AA:AA,H28))) ->  | S28: 0 | T28: 153 | U28: END OF PLANNING
F29: 0 | G29: =IF(E29="","",IF(ISNA(H29),NA(),COUNTIF(Planning!AA:AA,H29))) ->  | S29: 0 | T29: 153 | U29: END OF PLANNING
F30: 0 | G30: =IF(E30="","",IF(ISNA(H30),NA(),COUNTIF(Planning!AA:AA,H30))) ->  | S30: 0 | T30: 153 | U30: END OF PLANNING
F31: 0 | G31: =IF(E31="","",IF(ISNA(H31),NA(),COUNTIF(Planning!AA:AA,H31))) ->  | S31: 0 | T31: 153 | U31: END OF PLANNING
F32: 0 | G32: =IF(E32="","",IF(ISNA(H32),NA(),COUNTIF(Planning!AA:AA,H32))) ->  | S32: 0 | T32: 153 | U32: END OF PLANNING
F33: 0 | G33: =IF(E33="","",IF(ISNA(H33),NA(),COUNTIF(Planning!AA:AA,H33))) ->  | S33: 0 | T33: 153 | U33: END OF PLANNING
E34: =IF(C34="","",C34&IF(D34="A",""," "&CODE(D34)-CODE("A")+1)) ->  | F34: 0 | G34: =IF(E34="","",IF(ISNA(H34),NA(),COUNTIF(Planning!AA:AA,H34))) ->  | S34: 0 | T34: 153 | U34: END OF PLANNING
E35: =IF(C35="","",C35&IF(D35="A",""," "&CODE(D35)-CODE("A")+1)) ->  | F35: 0 | G35: =IF(E35="","",IF(ISNA(H35),NA(),COUNTIF(Planning!AA:AA,H35))) ->  | S35: 0 | T35: 153 | U35: END OF PLANNING
F36: 0 | G36: =IF(E36="","",IF(ISNA(H36),NA(),COUNTIF(Planning!AA:AA,H36))) ->  | S36: 0 | T36: 153 | U36: END OF PLANNING
F37: 0 | G37: =IF(E37="","",IF(ISNA(H37),NA(),COUNTIF(Planning!AA:AA,H37))) ->  | S37: 0 | T37: 153 | U37: END OF PLANNING
F38: 0 | G38: =IF(E38="","",IF(ISNA(H38),NA(),COUNTIF(Planning!AA:AA,H38))) ->  | S38: 0 | T38: 153 | U38: END OF PLANNING
F39: 0 | G39: =IF(E39="","",IF(ISNA(H39),NA(),COUNTIF(Planning!AA:AA,H39))) ->  | S39: 0 | T39: 153 | U39: END OF PLANNING
F40: 0 | G40: =IF(E40="","",IF(ISNA(H40),NA(),COUNTIF(Planning!AA:AA,H40))) ->  | S40: 0 | T40: 153 | U40: END OF PLANNING
F41: 0 | G41: =IF(E41="","",IF(ISNA(H41),NA(),COUNTIF(Planning!AA:AA,H41))) ->  | S41: 0 | T41: 153 | U41: END OF PLANNING
F42: 0 | G42: =IF(E42="","",IF(ISNA(H42),NA(),COUNTIF(Planning!AA:AA,H42))) ->  | S42: 0 | T42: 153 | U42: END OF PLANNING
F43: 0 | G43: =IF(E43="","",IF(ISNA(H43),NA(),COUNTIF(Planning!AA:AA,H43))) ->  | S43: 0 | T43: 153 | U43: END OF PLANNING
F44: 0 | G44: =IF(E44="","",IF(ISNA(H44),NA(),COUNTIF(Planning!AA:AA,H44))) ->  | S44: 0 | T44: 153 | U44: END OF PLANNING
F45: 0 | G45: =IF(E45="","",IF(ISNA(H45),NA(),COUNTIF(Planning!AA:AA,H45))) ->  | S45: 0 | T45: 153 | U45: END OF PLANNING
F46: 0 | G46: =IF(E46="","",IF(ISNA(H46),NA(),COUNTIF(Planning!AA:AA,H46))) ->  | S46: 0 | T46: 153 | U46: END OF PLANNING
F47: 0 | G47: =IF(E47="","",IF(ISNA(H47),NA(),COUNTIF(Planning!AA:AA,H47))) ->  | S47: =COUNTA(I47:R47) -> 0 | T47: 153 | U47: END OF PLANNING
F48: 0 | G48: =IF(E48="","",IF(ISNA(H48),NA(),COUNTIF(Planning!AA:AA,H48))) ->  | S48: 0 | T48: 153 | U48: END OF PLANNING
F49: 0 | G49: =IF(E49="","",IF(ISNA(H49),NA(),COUNTIF(Planning!AA:AA,H49))) ->  | S49: 0 | T49: 153 | U49: END OF PLANNING
F50: 0 | G50: =IF(E50="","",IF(ISNA(H50),NA(),COUNTIF(Planning!AA:AA,H50))) ->  | S50: 0 | T50: 153 | U50: END OF PLANNING
F51: 0 | G51: =IF(E51="","",IF(ISNA(H51),NA(),COUNTIF(Planning!AA:AA,H51))) ->  | S51: 0 | T51: 153 | U51: END OF PLANNING
F52: 0 | G52: =IF(E52="","",IF(ISNA(H52),NA(),COUNTIF(Planning!AA:AA,H52))) ->  | S52: 0 | T52: 153 | U52: END OF PLANNING
F53: 0 | G53: =IF(E53="","",IF(ISNA(H53),NA(),COUNTIF(Planning!AA:AA,H53))) ->  | S53: 0 | T53: 153 | U53: END OF PLANNING
F54: 0 | G54: =IF(E54="","",IF(ISNA(H54),NA(),COUNTIF(Planning!AA:AA,H54))) ->  | S54: 0 | T54: 153 | U54: END OF PLANNING
F55: 0 | G55: =IF(E55="","",IF(ISNA(H55),NA(),COUNTIF(Planning!AA:AA,H55))) ->  | S55: 0 | T55: 153 | U55: END OF PLANNING
F56: 0 | G56: =IF(E56="","",IF(ISNA(H56),NA(),COUNTIF(Planning!AA:AA,H56))) ->  | S56: 0 | T56: 153 | U56: END OF PLANNING
F57: 0 | G57: =IF(E57="","",IF(ISNA(H57),NA(),COUNTIF(Planning!AA:AA,H57))) ->  | S57: 0 | T57: 153 | U57: END OF PLANNING
F58: 0 | G58: =IF(E58="","",IF(ISNA(H58),NA(),COUNTIF(Planning!AA:AA,H58))) ->  | S58: 0 | T58: 153 | U58: END OF PLANNING
F59: 0 | G59: =IF(E59="","",IF(ISNA(H59),NA(),COUNTIF(Planning!AA:AA,H59))) ->  | S59: 0 | T59: 153 | U59: END OF PLANNING
F60: 0 | G60: =IF(E60="","",IF(ISNA(H60),NA(),COUNTIF(Planning!AA:AA,H60))) ->  | S60: 0 | T60: 153 | U60: END OF PLANNING
F61: 0 | G61: =IF(E61="","",IF(ISNA(H61),NA(),COUNTIF(Planning!AA:AA,H61))) ->  | S61: 0 | T61: 153 | U61: END OF PLANNING
B62: =IF(C62="","",VLOOKUP(C62,Licenced_Clubs,3,FALSE)) ->  | F62: 0 | G62: =IF(E62="","",IF(ISNA(H62),NA(),COUNTIF(Planning!AA:AA,H62))) ->  | S62: 0 | T62: 153 | U62: END OF PLANNING
F63: 0 | G63: =IF(E63="","",IF(ISNA(H63),NA(),COUNTIF(Planning!AA:AA,H63))) ->  | S63: 0 | T63: 153 | U63: END OF PLANNING
F64: =IF(ISNA(VLOOKUP(E64,FullTeamsRankingList,3,FALSE)),9999,VLOOKUP(E64,FullTeamsRankingList,3,FALSE)) -> 0 | G64: =IF(E64="","",IF(ISNA(H64),NA(),COUNTIF(Planning!AA:AA,H64))) ->  | S64: 0 | T64: 153 | U64: END OF PLANNING
F65: 0 | G65: =IF(E65="","",IF(ISNA(H65),NA(),COUNTIF(Planning!AA:AA,H65))) ->  | S65: 0 | T65: 153 | U65: END OF PLANNING
B66: =IF(C66="","",VLOOKUP(C66,Licenced_Clubs,3,FALSE)) ->  | F66: =IF(ISNA(VLOOKUP(E66,FullTeamsRankingList,3,FALSE)),9999,VLOOKUP(E66,FullTeamsRankingList,3,FALSE)) -> 0 | G66: =IF(E66="","",IF(ISNA(H66),NA(),COUNTIF(Planning!AA:AA,H66))) ->  | S66: 0 | T66: 153 | U66: END OF PLANNING
T67: 0 | U67: 0

Sheet Doubles (hidden)
B1: =N_DoubleCheckin -> Double Check in
A3: =N_Event_Type -> Event Type | B3: =N_Nom_double -> Double name | C3: =N_Joueurs -> Players | M3: =N_Nb_Team_Members -> Nb of team members
A4: =Event7 -> Teams | M4: =COUNTA(C4:L4) -> 0
A5: =Event7 -> Teams | M5: 0
A6: Teams | M6: 0
A7: Teams | M7: 0
A8: Teams | M8: 0
A9: Teams | M9: 0
M10: =COUNTA(C10:L10) -> 0
M11: 0
M12: 0
M13: 0
M14: 0
M15: 0
M16: 0
M17: =COUNTA(C17:L17) -> 0

Sheet Lists (hidden)
B1: =N_ListsSheet -> PlayerLists after Check in
B2: =N_ListsMessage -> ATTENTION, don't make updates in this sheet ! Also, avoid format handling.
B4: 64 | C4: 26 | D4: 27 | E4: 3 | F4: 0 | G4: 0 | H4: 4 | I4: 54 | J4: 0 | K4: 0 | L4: 0 | M4: 0 | N4: 0 | O4: 0 | P4: 0 | Q4: 71
B5: =CheckIn!G5 -> Referee | C5: =CheckIn!H5 -> Open | D5: =CheckIn!I5 -> Veterans | E5: =CheckIn!J5 -> Women | F5: =CheckIn!K5 -> U20 | G5: =CheckIn!L5 -> U16 | H5: =CheckIn!M5 -> U12 | I5: =CheckIn!N5 -> Teams | J5: =CheckIn!O5 -> Consolation | K5: =CheckIn!P5 -> Team_Open | L5: =CheckIn!Q5 -> Team_Veterans | M5: =CheckIn!R5 -> Team_Women | N5: =CheckIn!S5 -> Team_U20 | O5: =CheckIn!T5 -> Team_U16 | P5: =CheckIn!U5 -> Team_U12 | Q5: =N_Joueurs -> Players
B6: Wolfgang Haas (bor) | C6: Wolfgang Haas (bor) | D6: Erich Hinkelmann (wie) | E6: Katharina Waldorf-Busch (bor) | F6: =WithdrawLabel -> [---Withdraw---] | G6: =WithdrawLabel -> [---Withdraw---] | H6: Dominik Eder (roy) | I6: Wolfgang Haas (bor) | J6: =WithdrawLabel -> [---Withdraw---] | K6: =WithdrawLabel -> [---Withdraw---] | L6: =WithdrawLabel -> [---Withdraw---] | M6: =WithdrawLabel -> [---Withdraw---] | N6: =WithdrawLabel -> [---Withdraw---] | O6: =WithdrawLabel -> [---Withdraw---] | P6: =WithdrawLabel -> [---Withdraw---] | Q6: Wolfgang Haas (bor)
B7: Saverio Bari (reg) | C7: Saverio Bari (reg) | D7: Jason Pisani (bor) | E7: Daniela Grünberg (sch) | H7: Apollon Dimakeas (rol) | I7: Pascal Scheen (ste) | Q7: Saverio Bari (reg)
B8: Mark Gauci (vll) | C8: Mark Gauci (vll) | D8: Daniel Scheen (tib) | E8: Katharina Ocenasek (roy) | H8: Phillipos Kordantonopoulos (rol) | I8: George Ebejer (bor) | Q8: Mark Gauci (vll)
B9: Pascal Scheen (ste) | C9: Pascal Scheen (ste) | D9: Charles Aquilina (bor) | E9: =WithdrawLabel -> [---Withdraw---] | H9: Daniel Eder (roy) | I9: Wolfgang Leitner (roy) | Q9: Pascal Scheen (ste)
B10: George Ebejer (bor) | C10: George Ebejer (bor) | D10: Pasquale Torano (fer) | H10: =WithdrawLabel -> [---Withdraw---] | I10: Alexander Haas (roy) | Q10: George Ebejer (bor)
B11: Sérgio Ramos (bol) | C11: Sérgio Ramos (bol) | D11: Lazaros Papakonstantinou (atl) | I11: Giannis Nikolaidis (atl) | Q11: Sérgio Ramos (bol)
B12: Wolfgang Leitner (roy) | C12: Wolfgang Leitner (roy) | D12: David Busch (bor) | I12: Jean Carl Tabone (bor) | Q12: Wolfgang Leitner (roy)
B13: Alexander Haas (roy) | C13: Alexander Haas (roy) | D13: John Zammit (ste) | I13: Stylianos Tsangouris (atl) | Q13: Alexander Haas (roy)
B14: Bernard Lim (jur) | C14: Bernard Lim (jur) | D14: Massimiliano Croatti (msa) | I14: Noah Janssens (ste) | Q14: Bernard Lim (jur)
B15: Giannis Nikolaidis (atl) | C15: Giannis Nikolaidis (atl) | D15: Francesco Torano (msa) | I15: Joffray Laurent (atl) | Q15: Giannis Nikolaidis (atl)
B16: Jean Carl Tabone (bor) | C16: Jean Carl Tabone (bor) | D16: Günther Bamberzky (crh) | I16: Erich Hinkelmann (wie) | Q16: Jean Carl Tabone (bor)
B17: David Vacke (cst) | C17: David Vacke (cst) | D17: Panagiotis Krommydas (hop) | I17: Thomas Wittmann (roy) | Q17: David Vacke (cst)
B18: Stylianos Tsangouris (atl) | C18: Stylianos Tsangouris (atl) | D18: Sébastien Rochez (ste) | I18: Murat Tünger (roy) | Q18: Stylianos Tsangouris (atl)
B19: Noah Janssens (ste) | C19: Noah Janssens (ste) | D19: Joseph Mifsud (fia) | I19: Michael Stolzenberg () | Q19: Noah Janssens (ste)
B20: Joffray Laurent (atl) | C20: Joffray Laurent (atl) | D20: Georgios Dimakeas (rol) | I20: Christian Haas (bor) | Q20: Joffray Laurent (atl)
B21: Erich Hinkelmann (wie) | C21: Thomas Wittmann (roy) | D21: Robert Green (nfc) | I21: Michele Cerullo (gor) | Q21: Erich Hinkelmann (wie)
B22: Thomas Wittmann (roy) | C22: Murat Tünger (roy) | D22: Athanasios Chaliotis (atl) | I22: Marcel Schulz (sch) | Q22: Thomas Wittmann (roy)
B23: Murat Tünger (roy) | C23: Michael Stolzenberg () | D23: Peter Erb (sub) | I23: Athanasios Kordantonopoulos (rol) | Q23: Murat Tünger (roy)
B24: Michael Stolzenberg () | C24: Claudio Colpani (acp) | D24: Marco Pinausi (gor) | I24: Daniel Vranovitz (roy) | Q24: Michael Stolzenberg ()
B25: Christian Haas (bor) | C25: Michele Cerullo (gor) | D25: Karl Vranovitz (roy) | I25: Christian Hausmann (roy) | Q25: Christian Haas (bor)
B26: Claudio Colpani (acp) | C26: Marcel Schulz (sch) | D26: Fabio Domenico () | I26: Reinhard Schöberl (roy) | Q26: Claudio Colpani (acp)
B27: Michele Cerullo (gor) | C27: Athanasios Kordantonopoulos (rol) | D27: Roman Bernhardsgrütter (lis) | I27: David Scherbantin (roy) | Q27: Michele Cerullo (gor)
B28: Marcel Schulz (sch) | C28: Daniel Vranovitz (roy) | D28: Gábor Baross (wie) | I28: Jason Pisani (bor) | Q28: Marcel Schulz (sch)
B29: Athanasios Kordantonopoulos (rol) | C29: Christian Hausmann (roy) | D29: Katharina Waldorf-Busch (bor) | I29: Charles Aquilina (bor) | Q29: Athanasios Kordantonopoulos (rol)
B30: Daniel Vranovitz (roy) | C30: Reinhard Schöberl (roy) | D30: Alfred Strommer (wie) | I30: Lazaros Papakonstantinou (atl) | Q30: Daniel Vranovitz (roy)
B31: Christian Hausmann (roy) | C31: David Scherbantin (roy) | D31: Marco Zucchi (pin) | I31: David Busch (bor) | Q31: Christian Hausmann (roy)
B32: Reinhard Schöberl (roy) | C32: =WithdrawLabel -> [---Withdraw---] | D32: Florian Daxböck (wie) | I32: John Zammit (ste) | Q32: Reinhard Schöberl (roy)
B33: David Scherbantin (roy) | D33: =WithdrawLabel -> [---Withdraw---] | I33: Christian Haas (bor) | Q33: David Scherbantin (roy)
B34: Jason Pisani (bor) | I34: Sébastien Rochez (ste) | Q34: Jason Pisani (bor)
B35: Daniel Scheen (tib) | I35: Georgios Dimakeas (rol) | Q35: Daniel Scheen (tib)
B36: Charles Aquilina (bor) | I36: Robert Green (nfc) | Q36: Charles Aquilina (bor)
B37: Pasquale Torano (fer) | I37: Athanasios Chaliotis (atl) | Q37: Pasquale Torano (fer)
B38: Lazaros Papakonstantinou (atl) | I38: Peter Erb (sub) | Q38: Lazaros Papakonstantinou (atl)
B39: David Busch (bor) | I39: Marco Pinausi (gor) | Q39: David Busch (bor)
B40: John Zammit (ste) | I40: Karl Vranovitz (roy) | Q40: John Zammit (ste)
B41: Massimiliano Croatti (msa) | I41: Fabio Domenico () | Q41: Massimiliano Croatti (msa)
B42: Francesco Torano (msa) | I42: Gábor Baross (wie) | Q42: Francesco Torano (msa)
B43: Christian Haas (bor) | I43: Apollon Dimakeas (rol) | Q43: Christian Haas (bor)
B44: Günther Bamberzky (crh) | I44: Phillipos Kordantonopoulos (rol) | Q44: Günther Bamberzky (crh)
B45: Panagiotis Krommydas (hop) | I45: Katharina Waldorf-Busch (bor) | Q45: Panagiotis Krommydas (hop)
B46: Sébastien Rochez (ste) | I46: Daniela Grünberg (sch) | Q46: Sébastien Rochez (ste)
B47: Joseph Mifsud (fia) | I47: Katharina Ocenasek (roy) | Q47: Joseph Mifsud (fia)
B48: Georgios Dimakeas (rol) | I48: Alfred Strommer (wie) | Q48: Georgios Dimakeas (rol)
B49: Robert Green (nfc) | I49: Florian Daxböck (wie) | Q49: Robert Green (nfc)
B50: Athanasios Chaliotis (atl) | I50: Christian Haas (bor) | Q50: Athanasios Chaliotis (atl)
B51: Peter Erb (sub) | I51: Stefan Sandner (roy) | Q51: Peter Erb (sub)
B52: Marco Pinausi (gor) | I52: Stefan Sandner (roy) | Q52: Marco Pinausi (gor)
B53: Karl Vranovitz (roy) | I53: Robert Lenz (roy) | Q53: Karl Vranovitz (roy)
B54: Fabio Domenico () | I54: Robert Lenz (roy) | Q54: Dominik Eder (roy)
B55: Roman Bernhardsgrütter (lis) | I55: Heinz Eder (roy) | Q55: Fabio Domenico ()
B56: Gábor Baross (wie) | I56: Christian Blümel (wie) | Q56: Roman Bernhardsgrütter (lis)
B57: Alfred Strommer (wie) | I57: Manfred Pawlica (wie) | Q57: Gábor Baross (wie)
B58: Marco Zucchi (pin) | I58: Marios Strommer (wie) | Q58: Apollon Dimakeas (rol)
B59: Florian Daxböck (wie) | I59: Igor Ljubisavljevic (wie) | Q59: Phillipos Kordantonopoulos (rol)
B60: Christian Haas (bor) | I60: =WithdrawLabel -> [---Withdraw---] | Q60: Katharina Waldorf-Busch (bor)
B61: Stefan Sandner (roy) | Q61: Daniela Grünberg (sch)
B62: Stefan Sandner (roy) | Q62: Katharina Ocenasek (roy)
B63: Robert Lenz (roy) | Q63: Alfred Strommer (wie)
B64: Robert Lenz (roy) | Q64: Marco Zucchi (pin)
B65: Heinz Eder (roy) | Q65: Florian Daxböck (wie)
B66: Christian Blümel (wie) | Q66: Christian Haas (bor)
B67: Manfred Pawlica (wie) | Q67: Daniel Eder (roy)
B68: Marios Strommer (wie) | Q68: Stefan Sandner (roy)
B69: Igor Ljubisavljevic (wie) | Q69: Stefan Sandner (roy)
Q70: Robert Lenz (roy)
Q71: Robert Lenz (roy)
Q72: Heinz Eder (roy)
Q73: Christian Blümel (wie)
Q74: Manfred Pawlica (wie)
Q75: Marios Strommer (wie)
Q76: Igor Ljubisavljevic (wie)

Sheet FISTFFormulas (hidden)
B1: =N_FISTFCompetitionFormula -> FISTF competition formulas
B3: =N_MatchOrganisationFor3 -> Organisation of matches with mainly groups of 3 | M3: =N_MatchOrganisationFor4 -> Organisation of matches with mainly groups of 4 | W3: =N_MatchOrganisationFor5 -> Organisation of matches with mainly groups of 5 | AG3: =N_MatchOrganisationFor6 -> Organisation of matches with mainly groups of 6 | AR3: =N_MatchOrganisationFor7 -> Organisation of matches with mainly groups of 7 | BD3: =N_MatchOrganisationFor8 -> Organisation of matches with mainly groups of 8 | BQ3: =N_MatchOrganisationFor9 -> Organisation of matches with mainly groups of 9 | CE3: =N_MatchOrganisationFor10 -> Organisation of matches with mainly groups of 10
B4: =N_NbPlayers -> Nb Players | C4: =N_NbGroupsOf -> Nb Groups of … | F4: =N_TotalNbGroups -> Total Nb Groups | H4: =N_QualifiedPlayers -> Qualified Players | I4: =N_NbPlayOffMatches -> Nb Play Off Matches | J4: =N_NbLastPlayers -> Nb Last Players | M4: =N_NbPlayers -> Nb Players | N4: =N_NbGroupsOf -> Nb Groups of … | Q4: =N_TotalNbGroups -> Total Nb Groups | S4: =N_QualifiedPlayers -> Qualified Players | T4: =N_NbPlayOffMatches -> Nb Play Off Matches | U4: =N_NbLastPlayers -> Nb Last Players | W4: =N_NbPlayers -> Nb Players | X4: =N_NbGroupsOf -> Nb Groups of … | AA4: =N_TotalNbGroups -> Total Nb Groups | AC4: =N_QualifiedPlayers -> Qualified Players | AD4: =N_NbPlayOffMatches -> Nb Play Off Matches | AE4: =N_NbLastPlayers -> Nb Last Players | AG4: =N_NbPlayers -> Nb Players | AH4: =N_NbGroupsOf -> Nb Groups of … | AL4: =N_TotalNbGroups -> Total Nb Groups | AN4: =N_QualifiedPlayers -> Qualified Players | AO4: =N_NbPlayOffMatches -> Nb Play Off Matches | AP4: =N_NbLastPlayers -> Nb Last Players | AR4: =N_NbPlayers -> Nb Players | AS4: =N_NbGroupsOf -> Nb Groups of … | AX4: =N_TotalNbGroups -> Total Nb Groups | AZ4: =N_QualifiedPlayers -> Qualified Players | BA4: =N_NbPlayOffMatches -> Nb Play Off Matches | BB4: =N_NbLastPlayers -> Nb Last Players | BD4: =N_NbPlayers -> Nb Players | BE4: =N_NbGroupsOf -> Nb Groups of … | BK4: =N_TotalNbGroups -> Total Nb Groups | BM4: =N_QualifiedPlayers -> Qualified Players | BN4: =N_NbPlayOffMatches -> Nb Play Off Matches | BO4: =N_NbLastPlayers -> Nb Last Players | BQ4: =N_NbPlayers -> Nb Players | BR4: =N_NbGroupsOf -> Nb Groups of … | BY4: =N_TotalNbGroups -> Total Nb Groups | CA4: =N_QualifiedPlayers -> Qualified Players | CB4: =N_NbPlayOffMatches -> Nb Play Off Matches | CC4: =N_NbLastPlayers -> Nb Last Players | CE4: =N_NbPlayers -> Nb Players | CF4: =N_NbGroupsOf -> Nb Groups of … | CN4: =N_TotalNbGroups -> Total Nb Groups | CP4: =N_QualifiedPlayers -> Qualified Players | CQ4: =N_NbPlayOffMatches -> Nb Play Off Matches | CR4: =N_NbLastPlayers -> Nb Last Players
C5: 3 | D5: 4 | E5: 5 | N5: 3 | O5: 4 | P5: 5 | X5: 3 | Y5: 4 | Z5: 5 | AH5: 3 | AI5: 4 | AJ5: 5 | AK5: 6 | AS5: 3 | AT5: 4 | AU5: 5 | AV5: 6 | AW5: 7 | BE5: 3 | BF5: 4 | BG5: 5 | BH5: 6 | BI5: 7 | BJ5: 8 | BR5: 3 | BS5: 4 | BT5: 5 | BU5: 6 | BV5: 7 | BW5: 8 | BX5: 9 | CF5: 3 | CG5: 4 | CH5: 5 | CI5: 6 | CJ5: 7 | CK5: 8 | CL5: 9 | CM5: 10
B6: 3 | C6: 1 | F6: =SUM(C6:E6) -> 1 | H6: 0 | I6: 0 | J6: 2 | M6: 3 | N6: 1 | Q6: =SUM(N6:P6) -> 1 | S6: 0 | T6: 0 | U6: 2 | W6: 3 | X6: 1 | AA6: =SUM(X6:Z6) -> 1 | AC6: 0 | AD6: 0 | AE6: 2 | AG6: 3 | AH6: 1 | AL6: =SUM(AH6:AK6) -> 1 | AN6: 0 | AO6: 0 | AP6: 2 | AR6: 3 | AS6: 1 | AX6: =SUM(AS6:AW6) -> 1 | AZ6: 0 | BA6: 0 | BB6: 2 | BD6: 3 | BE6: 1 | BK6: =SUM(BE6:BJ6) -> 1 | BM6: 0 | BN6: 0 | BO6: 2 | BQ6: 3 | BR6: 1 | BY6: =SUM(BR6:BX6) -> 1 | CA6: 0 | CB6: 0 | CC6: 2 | CE6: 3 | CF6: 1 | CN6: =SUM(CF6:CM6) -> 1 | CP6: 0 | CQ6: 0 | CR6: 2
B7: 4 | D7: 1 | F7: 1 | H7: 0 | I7: 0 | J7: 2 | M7: 4 | O7: 1 | Q7: 1 | S7: 0 | T7: 0 | U7: 2 | W7: 4 | Y7: 1 | AA7: 1 | AC7: 0 | AD7: 0 | AE7: 2 | AG7: 4 | AI7: 1 | AL7: 1 | AN7: 0 | AO7: 0 | AP7: 2 | AR7: 4 | AT7: 1 | AX7: 1 | AZ7: 0 | BA7: 0 | BB7: 2 | BD7: 4 | BF7: 1 | BK7: 1 | BM7: 0 | BN7: 0 | BO7: 2 | BQ7: 4 | BS7: 1 | BY7: 1 | CA7: 0 | CB7: 0 | CC7: 2 | CE7: 4 | CG7: 1 | CN7: 1 | CP7: 0 | CQ7: 0 | CR7: 2
B8: 5 | E8: 1 | F8: 1 | H8: 0 | I8: 0 | J8: 2 | M8: 5 | P8: 1 | Q8: 1 | S8: 0 | T8: 0 | U8: 2 | W8: 5 | Z8: 1 | AA8: 1 | AC8: 0 | AD8: 0 | AE8: 2 | AG8: 5 | AJ8: 1 | AL8: 1 | AN8: 0 | AO8: 0 | AP8: 2 | AR8: 5 | AU8: 1 | AX8: 1 | AZ8: 0 | BA8: 0 | BB8: 2 | BD8: 5 | BG8: 1 | BK8: 1 | BM8: 0 | BN8: 0 | BO8: 2 | BQ8: 5 | BT8: 1 | BY8: 1 | CA8: 0 | CB8: 0 | CC8: 2 | CE8: 5 | CH8: 1 | CN8: 1 | CP8: 0 | CQ8: 0 | CR8: 2
B9: 6 | C9: 2 | D9: 0 | F9: 2 | H9: 0 | I9: 0 | J9: 4 | M9: 6 | N9: 2 | O9: 0 | Q9: 2 | S9: 0 | T9: 0 | U9: 4 | W9: 6 | X9: 2 | AA9: 2 | AC9: 0 | AD9: 0 | AE9: 4 | AG9: 6 | AK9: 1 | AL9: 1 | AN9: 0 | AO9: 0 | AP9: 2 | AR9: 6 | AV9: 1 | AX9: 1 | AZ9: 0 | BA9: 0 | BB9: 2 | BD9: 6 | BH9: 1 | BK9: 1 | BM9: 0 | BN9: 0 | BO9: 2 | BQ9: 6 | BU9: 1 | BY9: 1 | CA9: 0 | CB9: 0 | CC9: 2 | CE9: 6 | CI9: 1 | CN9: 1 | CP9: 0 | CQ9: 0 | CR9: 2
B10: 7 | C10: 1 | D10: 1 | F10: 2 | H10: 0 | I10: 0 | J10: 4 | M10: 7 | N10: 1 | O10: 1 | Q10: 2 | S10: 0 | T10: 0 | U10: 4 | W10: 7 | X10: 1 | Y10: 1 | AA10: 2 | AC10: 0 | AD10: 0 | AE10: 4 | AG10: 7 | AH10: 1 | AI10: 1 | AL10: 2 | AN10: 0 | AO10: 0 | AP10: 4 | AR10: 7 | AW10: 1 | AX10: 1 | AZ10: 0 | BA10: 0 | BB10: 2 | BD10: 7 | BI10: 1 | BK10: 1 | BM10: 0 | BN10: 0 | BO10: 2 | BQ10: 7 | BV10: 1 | BY10: 1 | CA10: 0 | CB10: 0 | CC10: 2 | CE10: 7 | CJ10: 1 | CN10: 1 | CP10: 0 | CQ10: 0 | CR10: 2
B11: 8 | C11: 0 | D11: 2 | F11: 2 | H11: 0 | I11: 0 | J11: 4 | M11: 8 | N11: 0 | O11: 2 | Q11: 2 | S11: 0 | T11: 0 | U11: 4 | W11: 8 | Y11: 2 | AA11: 2 | AC11: 0 | AD11: 0 | AE11: 4 | AG11: 8 | AI11: 2 | AL11: 2 | AN11: 0 | AO11: 0 | AP11: 4 | AR11: 8 | AT11: 2 | AX11: 2 | AZ11: 0 | BA11: 0 | BB11: 4 | BD11: 8 | BJ11: 1 | BK11: 1 | BM11: 0 | BN11: 0 | BO11: 2 | BQ11: 8 | BW11: 1 | BY11: 1 | CA11: 0 | CB11: 0 | CC11: 2 | CE11: 8 | CK11: 1 | CN11: 1 | CP11: 0 | CQ11: 0 | CR11: 2
B12: 9 | C12: 3 | D12: 0 | F12: 3 | H12: 0 | I12: 2 | J12: 4 | M12: 9 | N12: 3 | O12: 0 | Q12: 3 | S12: 0 | T12: 2 | U12: 4 | W12: 9 | Y12: 1 | Z12: 1 | AA12: 2 | AC12: 0 | AD12: 0 | AE12: 4 | AG12: 9 | AI12: 1 | AJ12: 1 | AL12: 2 | AN12: 0 | AO12: 0 | AP12: 4 | AR12: 9 | AT12: 1 | AU12: 1 | AX12: 2 | AZ12: 0 | BA12: 0 | BB12: 4 | BD12: 9 | BF12: 1 | BG12: 1 | BK12: 2 | BM12: 0 | BN12: 0 | BO12: 4 | BQ12: 9 | BX12: 1 | BY12: 1 | CA12: 0 | CB12: 0 | CC12: 2 | CE12: 9 | CL12: 1 | CN12: 1 | CP12: 0 | CQ12: 0 | CR12: 2
B13: 10 | C13: 2 | D13: 1 | F13: 3 | H13: 0 | I13: 2 | J13: 4 | M13: 10 | N13: 2 | O13: 1 | Q13: 3 | S13: 0 | T13: 2 | U13: 4 | W13: 10 | Z13: 2 | AA13: 2 | AC13: 0 | AD13: 0 | AE13: 4 | AG13: 10 | AJ13: 2 | AL13: 2 | AN13: 0 | AO13: 0 | AP13: 4 | AR13: 10 | AU13: 2 | AX13: 2 | AZ13: 0 | BA13: 0 | BB13: 4 | BD13: 10 | BG13: 2 | BK13: 2 | BM13: 0 | BN13: 0 | BO13: 4 | BQ13: 10 | BT13: 2 | BY13: 2 | CA13: 0 | CB13: 0 | CC13: 4 | CE13: 10 | CM13: 1 | CN13: 1 | CP13: 0 | CQ13: 0 | CR13: 2
B14: 11 | C14: 1 | D14: 2 | F14: 3 | H14: 0 | I14: 2 | J14: 4 | M14: 11 | N14: 1 | O14: 2 | Q14: 3 | S14: 0 | T14: 2 | U14: 4 | W14: 11 | X14: 1 | Y14: 2 | AA14: =SUM(X14:Z14) -> 3 | AC14: 0 | AD14: 2 | AE14: 4 | AG14: 11 | AJ14: 1 | AK14: 1 | AL14: 2 | AN14: 0 | AO14: 0 | AP14: 4 | AR14: 11 | AU14: 1 | AV14: 1 | AX14: 2 | AZ14: 0 | BA14: 0 | BB14: 4 | BD14: 11 | BG14: 1 | BH14: 1 | BK14: 2 | BM14: 0 | BN14: 0 | BO14: 4 | BQ14: 11 | BT14: 1 | BU14: 1 | BY14: 2 | CA14: 0 | CB14: 0 | CC14: 4 | CE14: 11 | CH14: 1 | CI14: 1 | CN14: 2 | CP14: 0 | CQ14: 0 | CR14: 4
B15: 12 | C15: 4 | D15: 0 | F15: 4 | H15: 0 | I15: 0 | J15: 8 | M15: 12 | N15: 0 | O15: 3 | Q15: 3 | S15: 0 | T15: 2 | U15: 4 | W15: 12 | Y15: 3 | AA15: =SUM(X15:Z15) -> 3 | AC15: 0 | AD15: 2 | AE15: 4 | AG15: 12 | AK15: 2 | AL15: 2 | AN15: 0 | AO15: 0 | AP15: 4 | AR15: 12 | AV15: 2 | AX15: 2 | AZ15: 0 | BA15: 0 | BB15: 4 | BD15: 12 | BH15: 2 | BK15: 2 | BM15: 0 | BN15: 0 | BO15: 4 | BQ15: 12 | BU15: 2 | BY15: 2 | CA15: 0 | CB15: 0 | CC15: 4 | CE15: 12 | CI15: 2 | CN15: 2 | CP15: 0 | CQ15: 0 | CR15: 4
B16: 13 | C16: 3 | D16: 1 | F16: 4 | H16: 0 | I16: 0 | J16: 8 | M16: 13 | N16: 3 | O16: 1 | Q16: 4 | S16: 0 | T16: 0 | U16: 8 | W16: 13 | Y16: 2 | Z16: 1 | AA16: 3 | AC16: 0 | AD16: 2 | AE16: 4 | AG16: 13 | AI16: 2 | AJ16: 1 | AL16: 3 | AN16: 0 | AO16: 2 | AP16: 4 | AR16: 13 | AV16: 1 | AW16: 1 | AX16: 2 | AZ16: 0 | BA16: 0 | BB16: 4 | BD16: 13 | BH16: 1 | BI16: 1 | BK16: 2 | BM16: 0 | BN16: 0 | BO16: 4 | BQ16: 13 | BU16: 1 | BV16: 1 | BY16: 2 | CA16: 0 | CB16: 0 | CC16: 4 | CE16: 13 | CI16: 1 | CJ16: 1 | CN16: 2 | CP16: 0 | CQ16: 0 | CR16: 4
B17: 14 | C17: 2 | D17: 2 | F17: 4 | H17: 0 | I17: 0 | J17: 8 | M17: 14 | N17: 2 | O17: 2 | Q17: 4 | S17: 0 | T17: 0 | U17: 8 | W17: 14 | Y17: 1 | Z17: 2 | AA17: 3 | AC17: 0 | AD17: 2 | AE17: 4 | AG17: 14 | AI17: 1 | AJ17: 2 | AL17: 3 | AN17: 0 | AO17: 2 | AP17: 4 | AR17: 14 | AW17: 2 | AX17: 2 | AZ17: 0 | BA17: 0 | BB17: 4 | BD17: 14 | BI17: 2 | BK17: 2 | BM17: 0 | BN17: 0 | BO17: 4 | BQ17: 14 | BV17: 2 | BY17: 2 | CA17: 0 | CB17: 0 | CC17: 4 | CE17: 14 | CJ17: 2 | CN17: 2 | CP17: 0 | CQ17: 0 | CR17: 4
B18: 15 | C18: 5 | D18: 0 | F18: 5 | H18: 0 | I18: 2 | J18: 8 | M18: 15 | N18: 1 | O18: 3 | Q18: 4 | S18: 0 | T18: 0 | U18: 8 | W18: 15 | Z18: 3 | AA18: 3 | AC18: 0 | AD18: 2 | AE18: 4 | AG18: 15 | AJ18: 3 | AL18: 3 | AN18: 0 | AO18: 2 | AP18: 4 | AR18: 15 | AU18: 3 | AX18: 3 | AZ18: 0 | BA18: 2 | BB18: 4 | BD18: 15 | BI18: 1 | BJ18: 1 | BK18: 2 | BM18: 0 | BN18: 0 | BO18: 4 | BQ18: 15 | BV18: 1 | BW18: 1 | BY18: 2 | CA18: 0 | CB18: 0 | CC18: 4 | CE18: 15 | CJ18: 1 | CK18: 1 | CN18: 2 | CP18: 0 | CQ18: 0 | CR18: 4
B19: 16 | C19: 4 | D19: 1 | F19: 5 | H19: 0 | I19: 2 | J19: 8 | M19: 16 | N19: 0 | O19: 4 | Q19: 4 | S19: 0 | T19: 0 | U19: 8 | W19: 16 | Y19: 4 | AA19: 4 | AC19: 0 | AD19: 0 | AE19: 8 | AG19: 16 | AJ19: 2 | AK19: 1 | AL19: 3 | AN19: 0 | AO19: 2 | AP19: 4 | AR19: 16 | AU19: 2 | AV19: 1 | AX19: 3 | AZ19: 0 | BA19: 2 | BB19: 4 | BD19: 16 | BJ19: 2 | BK19: 2 | BM19: 0 | BN19: 0 | BO19: 4 | BQ19: 16 | BW19: 2 | BY19: 2 | CA19: 0 | CB19: 0 | CC19: 4 | CE19: 16 | CK19: 2 | CN19: 2 | CP19: 0 | CQ19: 0 | CR19: 4
B20: 17 | C20: 3 | D20: 2 | F20: 5 | H20: 0 | I20: 2 | J20: 8 | M20: 17 | N20: 3 | O20: 2 | Q20: 5 | S20: 0 | T20: 2 | U20: 8 | W20: 17 | Y20: 3 | Z20: 1 | AA20: 4 | AC20: 0 | AD20: 0 | AE20: 8 | AG20: 17 | AJ20: 1 | AK20: 2 | AL20: 3 | AN20: 0 | AO20: 2 | AP20: 4 | AR20: 17 | AU20: 1 | AV20: 2 | AX20: 3 | AZ20: 0 | BA20: 2 | BB20: 4 | BD20: 17 | BG20: 1 | BH20: 2 | BK20: 3 | BM20: 0 | BN20: 2 | BO20: 4 | BQ20: 17 | BW20: 1 | BX20: 1 | BY20: 2 | CA20: 0 | CB20: 0 | CC20: 4 | CE20: 17 | CK20: 1 | CL20: 1 | CN20: 2 | CP20: 0 | CQ20: 0 | CR20: 4
B21: 18 | C21: 6 | D21: 0 | F21: 6 | H21: 0 | I21: 4 | J21: 8 | M21: 18 | N21: 2 | O21: 3 | Q21: 5 | S21: 0 | T21: 2 | U21: 8 | W21: 18 | Y21: 2 | Z21: 2 | AA21: 4 | AC21: 0 | AD21: 0 | AE21: 8 | AG21: 18 | AK21: 3 | AL21: 3 | AN21: 0 | AO21: 2 | AP21: 4 | AR21: 18 | AV21: 3 | AX21: 3 | AZ21: 0 | BA21: 2 | BB21: 4 | BD21: 18 | BH21: 3 | BK21: 3 | BM21: 0 | BN21: 2 | BO21: 4 | BQ21: 18 | BX21: 2 | BY21: 2 | CA21: 0 | CB21: 0 | CC21: 4 | CE21: 18 | CL21: 2 | CN21: 2 | CP21: 0 | CQ21: 0 | CR21: 4
B22: 19 | C22: 5 | D22: 1 | F22: 6 | H22: 0 | I22: 4 | J22: 8 | M22: 19 | N22: 1 | O22: 4 | Q22: 5 | S22: 0 | T22: 2 | U22: 8 | W22: 19 | Y22: 1 | Z22: 3 | AA22: 4 | AC22: 0 | AD22: 0 | AE22: 8 | AG22: 19 | AI22: 1 | AJ22: 3 | AL22: 4 | AN22: 0 | AO22: 0 | AP22: 8 | AR22: 19 | AV22: 2 | AW22: 1 | AX22: 3 | AZ22: 0 | BA22: 2 | BB22: 4 | BD22: 19 | BH22: 2 | BI22: 1 | BK22: 3 | BM22: 0 | BN22: 2 | BO22: 4 | BQ22: 19 | BU22: 2 | BV22: 1 | BY22: 3 | CA22: 0 | CB22: 2 | CC22: 4 | CE22: 19 | CL22: 1 | CM22: 1 | CN22: 2 | CP22: 0 | CQ22: 0 | CR22: 4
B23: 20 | C23: 4 | D23: 2 | F23: 6 | H23: 0 | I23: 4 | J23: 8 | M23: 20 | N23: 0 | O23: 5 | Q23: 5 | S23: 0 | T23: 2 | U23: 8 | W23: 20 | Z23: 4 | AA23: 4 | AC23: 0 | AD23: 0 | AE23: 8 | AG23: 20 | AJ23: 4 | AL23: 4 | AN23: 0 | AO23: 0 | AP23: 8 | AR23: 20 | AV23: 1 | AW23: 2 | AX23: 3 | AZ23: 0 | BA23: 2 | BB23: 4 | BD23: 20 | BH23: 1 | BI23: 2 | BK23: 3 | BM23: 0 | BN23: 2 | BO23: 4 | BQ23: 20 | BU23: 1 | BV23: 2 | BY23: 3 | CA23: 0 | CB23: 2 | CC23: 4 | CE23: 20 | CM23: 2 | CN23: 2 | CP23: 0 | CQ23: 0 | CR23: 4
B24: 21 | C24: 7 | D24: 0 | F24: 7 | H24: 0 | I24: 6 | J24: 8 | M24: 21 | N24: 3 | O24: 3 | Q24: 6 | S24: 0 | T24: 4 | U24: 8 | W24: 21 | Y24: 4 | Z24: 1 | AA24: 5 | AC24: 0 | AD24: 2 | AE24: 8 | AG24: 21 | AJ24: 3 | AK24: 1 | AL24: 4 | AN24: 0 | AO24: 0 | AP24: 8 | AR24: 21 | AW24: 3 | AX24: 3 | AZ24: 0 | BA24: 2 | BB24: 4 | BD24: 21 | BI24: 3 | BK24: 3 | BM24: 0 | BN24: 2 | BO24: 4 | BQ24: 21 | BV24: 3 | BY24: 3 | CA24: 0 | CB24: 2 | CC24: 4 | CE24: 21 | CJ24: 3 | CN24: 3 | CP24: 0 | CQ24: =CQ14+2 -> 2 | CR24: 4
B25: 22 | C25: 6 | D25: 1 | F25: 7 | H25: 0 | I25: 6 | J25: 8 | M25: 22 | N25: 2 | O25: 4 | Q25: 6 | S25: 0 | T25: 4 | U25: 8 | W25: 22 | Y25: 3 | Z25: 2 | AA25: 5 | AC25: 0 | AD25: 2 | AE25: 8 | AG25: 22 | AJ25: 2 | AK25: 2 | AL25: 4 | AN25: 0 | AO25: 0 | AP25: 8 | AR25: 22 | AU25: 2 | AV25: 2 | AX25: 4 | AZ25: 0 | BA25: 0 | BB25: 8 | BD25: 22 | BI25: 2 | BJ25: 1 | BK25: 3 | BM25: 0 | BN25: 2 | BO25: 4 | BQ25: 22 | BV25: 2 | BW25: 1 | BY25: 3 | CA25: 0 | CB25: 2 | CC25: 4 | CE25: 22 | CJ25: 2 | CK25: 1 | CN25: 3 | CP25: 0 | CQ25: =CQ15+2 -> 2 | CR25: 4
B26: 23 | C26: 5 | D26: 2 | F26: 7 | H26: 0 | I26: 6 | J26: 8 | M26: 23 | N26: 1 | O26: 5 | Q26: 6 | S26: 0 | T26: 4 | U26: 8 | W26: 23 | Y26: 2 | Z26: 3 | AA26: 5 | AC26: 0 | AD26: 2 | AE26: 8 | AG26: 23 | AJ26: 1 | AK26: 3 | AL26: 4 | AN26: 0 | AO26: 0 | AP26: 8 | AR26: 23 | AU26: 1 | AV26: 3 | AX26: 4 | AZ26: 0 | BA26: 0 | BB26: 8 | BD26: 23 | BI26: 1 | BJ26: 2 | BK26: 3 | BM26: 0 | BN26: 2 | BO26: 4 | BQ26: 23 | BV26: 1 | BW26: 2 | BY26: 3 | CA26: 0 | CB26: 2 | CC26: 4 | CE26: 23 | CJ26: 1 | CK26: 2 | CN26: 3 | CP26: 0 | CQ26: 2 | CR26: 4
B27: 24 | C27: 8 | D27: 0 | F27: 8 | H27: 0 | I27: 0 | J27: 16 | M27: 24 | N27: 0 | O27: 6 | Q27: 6 | S27: 0 | T27: 4 | U27: 8 | W27: 24 | Y27: 1 | Z27: 4 | AA27: 5 | AC27: 0 | AD27: 2 | AE27: 8 | AG27: 24 | AK27: 4 | AL27: 4 | AN27: 0 | AO27: 0 | AP27: 8 | AR27: 24 | AV27: 4 | AX27: 4 | AZ27: 0 | BA27: 0 | BB27: 8 | BD27: 24 | BJ27: 3 | BK27: 3 | BM27: 0 | BN27: 2 | BO27: 4 | BQ27: 24 | BW27: 3 | BY27: 3 | CA27: 0 | CB27: 2 | CC27: 4 | CE27: 24 | CK27: 3 | CN27: 3 | CP27: 0 | CQ27: 2 | CR27: 4
B28: 25 | C28: 7 | D28: 1 | F28: 8 | H28: 0 | I28: 0 | J28: 16 | M28: 25 | N28: 3 | O28: 4 | Q28: 7 | S28: 0 | T28: 6 | U28: 8 | W28: 25 | Z28: 5 | AA28: 5 | AC28: 0 | AD28: 2 | AE28: 8 | AG28: 25 | AJ28: 5 | AL28: 5 | AN28: 0 | AO28: 2 | AP28: 8 | AR28: 25 | AV28: 3 | AW28: 1 | AX28: 4 | AZ28: 0 | BA28: 0 | BB28: 8 | BD28: 25 | BH28: 3 | BI28: 1 | BK28: 4 | BM28: 0 | BN28: 0 | BO28: 8 | BQ28: 25 | BW28: 2 | BX28: 1 | BY28: 3 | CA28: 0 | CB28: 2 | CC28: 4 | CE28: 25 | CK28: 2 | CL28: 1 | CN28: 3 | CP28: 0 | CQ28: 2 | CR28: 4
B29: 26 | C29: 6 | D29: 2 | F29: 8 | H29: 0 | I29: 0 | J29: 16 | M29: 26 | N29: 2 | O29: 5 | Q29: 7 | S29: 0 | T29: 6 | U29: 8 | W29: 26 | Y29: 4 | Z29: =Z24+1 -> 2 | AA29: 6 | AC29: 0 | AD29: 4 | AE29: 8 | AG29: 26 | AJ29: 4 | AK29: 1 | AL29: 5 | AN29: 0 | AO29: 2 | AP29: 8 | AR29: 26 | AV29: 2 | AW29: 2 | AX29: 4 | AZ29: 0 | BA29: 0 | BB29: 8 | BD29: 26 | BH29: 2 | BI29: 2 | BK29: 4 | BM29: 0 | BN29: 0 | BO29: 8 | BQ29: 26 | BW29: 1 | BX29: 2 | BY29: 3 | CA29: 0 | CB29: 2 | CC29: 4 | CE29: 26 | CK29: 1 | CL29: 2 | CN29: 3 | CP29: 0 | CQ29: 2 | CR29: 4
B30: 27 | C30: 9 | D30: 0 | F30: 9 | H30: 0 | I30: 2 | J30: 16 | M30: 27 | N30: 1 | O30: 6 | Q30: 7 | S30: 0 | T30: 6 | U30: 8 | W30: 27 | Y30: 3 | Z30: 3 | AA30: 6 | AC30: 0 | AD30: 4 | AE30: 8 | AG30: 27 | AJ30: 3 | AK30: 2 | AL30: 5 | AN30: 0 | AO30: 2 | AP30: 8 | AR30: 27 | AV30: 1 | AW30: 3 | AX30: 4 | AZ30: 0 | BA30: 0 | BB30: 8 | BD30: 27 | BH30: 1 | BI30: 3 | BK30: 4 | BM30: 0 | BN30: 0 | BO30: 8 | BQ30: 27 | BX30: 3 | BY30: 3 | CA30: 0 | CB30: 2 | CC30: 4 | CE30: 27 | CL30: 3 | CN30: 3 | CP30: 0 | CQ30: 2 | CR30: 4
B31: 28 | C31: 8 | D31: 1 | F31: 9 | H31: 0 | I31: 2 | J31: 16 | M31: 28 | N31: 0 | O31: 7 | Q31: 7 | S31: 0 | T31: 6 | U31: 8 | W31: 28 | Y31: 2 | Z31: 4 | AA31: 6 | AC31: 0 | AD31: 4 | AE31: 8 | AG31: 28 | AJ31: 2 | AK31: 3 | AL31: 5 | AN31: 0 | AO31: 2 | AP31: 8 | AR31: 28 | AW31: 4 | AX31: 4 | AZ31: 0 | BA31: 0 | BB31: 8 | BD31: 28 | BI31: 4 | BK31: 4 | BM31: 0 | BN31: 0 | BO31: 8 | BQ31: 28 | BV31: 4 | BY31: 4 | CA31: 0 | CB31: 0 | CC31: 8 | CE31: 28 | CL31: 2 | CM31: 1 | CN31: 3 | CP31: 0 | CQ31: 2 | CR31: 4
B32: 29 | C32: 7 | D32: 2 | F32: 9 | H32: 0 | I32: 2 | J32: 16 | M32: 29 | N32: 3 | O32: 5 | Q32: 8 | S32: 0 | T32: 0 | U32: 16 | W32: 29 | Y32: 1 | Z32: 5 | AA32: 6 | AC32: 0 | AD32: 4 | AE32: 8 | AG32: 29 | AJ32: 1 | AK32: 4 | AL32: 5 | AN32: 0 | AO32: 2 | AP32: 8 | AR32: 29 | AU32: 1 | AV32: 4 | AX32: 5 | AZ32: 0 | BA32: =BA25+2 -> 2 | BB32: 8 | BD32: 29 | BI32: 3 | BJ32: 1 | BK32: 4 | BM32: 0 | BN32: 0 | BO32: 8 | BQ32: 29 | BV32: 3 | BW32: 1 | BY32: 4 | CA32: 0 | CB32: 0 | CC32: 8 | CE32: 29 | CL32: 1 | CM32: 2 | CN32: 3 | CP32: 0 | CQ32: 2 | CR32: 4
B33: 30 | C33: 10 | D33: 0 | F33: 10 | H33: 0 | I33: 4 | J33: 16 | M33: 30 | N33: 2 | O33: 6 | Q33: 8 | S33: 0 | T33: 0 | U33: 16 | W33: 30 | Z33: 6 | AA33: 6 | AC33: 0 | AD33: 4 | AE33: 8 | AG33: 30 | AK33: 5 | AL33: 5 | AN33: 0 | AO33: 2 | AP33: 8 | AR33: 30 | AV33: 5 | AX33: 5 | AZ33: 0 | BA33: =BA26+2 -> 2 | BB33: 8 | BD33: 30 | BI33: 2 | BJ33: 2 | BK33: 4 | BM33: 0 | BN33: 0 | BO33: 8 | BQ33: 30 | BV33: 2 | BW33: 2 | BY33: 4 | CA33: 0 | CB33: 0 | CC33: 8 | CE33: 30 | CM33: 3 | CN33: 3 | CP33: 0 | CQ33: 2 | CR33: 4
B34: 31 | C34: 9 | D34: 1 | F34: 10 | H34: 0 | I34: 4 | J34: 16 | M34: 31 | N34: 1 | O34: 7 | Q34: 8 | S34: 0 | T34: 0 | U34: 16 | W34: 31 | Y34: 4 | Z34: 3 | AA34: 7 | AC34: 0 | AD34: 6 | AE34: 8 | AG34: 31 | AJ34: 5 | AK34: 1 | AL34: 6 | AN34: 0 | AO34: 4 | AP34: 8 | AR34: 31 | AV34: 4 | AW34: 1 | AX34: 5 | AZ34: 0 | BA34: 2 | BB34: 8 | BD34: 31 | BI34: 1 | BJ34: 3 | BK34: 4 | BM34: 0 | BN34: 0 | BO34: 8 | BQ34: 31 | BV34: 1 | BW34: 3 | BY34: 4 | CA34: 0 | CB34: 0 | CC34: 8 | CE34: 31 | CJ34: 1 | CK34: 3 | CN34: 4 | CP34: 0 | CQ34: 0 | CR34: 8
B35: 32 | C35: 8 | D35: 2 | F35: 10 | H35: 0 | I35: 4 | J35: 16 | M35: 32 | N35: 0 | O35: 8 | Q35: 8 | S35: 0 | T35: 0 | U35: 16 | W35: 32 | Y35: 3 | Z35: 4 | AA35: 7 | AC35: 0 | AD35: 6 | AE35: 8 | AG35: 32 | AJ35: 4 | AK35: 2 | AL35: 6 | AN35: 0 | AO35: 4 | AP35: 8 | AR35: 32 | AV35: 3 | AW35: 2 | AX35: 5 | AZ35: 0 | BA35: 2 | BB35: 8 | BD35: 32 | BJ35: 4 | BK35: 4 | BM35: 0 | BN35: 0 | BO35: 8 | BQ35: 32 | BW35: 4 | BY35: 4 | CA35: 0 | CB35: 0 | CC35: 8 | CE35: 32 | CK35: 4 | CN35: 4 | CP35: 0 | CQ35: 0 | CR35: 8
B36: 33 | C36: 11 | D36: 0 | F36: 11 | H36: 0 | I36: 6 | J36: 16 | M36: 33 | N36: 3 | O36: 6 | Q36: 9 | S36: 0 | T36: 2 | U36: 16 | W36: 33 | Y36: 2 | Z36: 5 | AA36: 7 | AC36: 0 | AD36: 6 | AE36: 8 | AG36: 33 | AJ36: 3 | AK36: 3 | AL36: 6 | AN36: 0 | AO36: 4 | AP36: 8 | AR36: 33 | AV36: 2 | AW36: 3 | AX36: 5 | AZ36: 0 | BA36: 2 | BB36: 8 | BD36: 33 | BH36: 2 | BI36: 3 | BK36: 5 | BM36: 0 | BN36: =BN28+2 -> 2 | BO36: 8 | BQ36: 33 | BW36: 3 | BX36: 1 | BY36: 4 | CA36: 0 | CB36: 0 | CC36: 8 | CE36: 33 | CK36: 3 | CL36: 1 | CN36: 4 | CP36: 0 | CQ36: 0 | CR36: 8
B37: 34 | C37: 10 | D37: 1 | F37: 11 | H37: 0 | I37: 6 | J37: 16 | M37: 34 | N37: 2 | O37: 7 | Q37: 9 | S37: 0 | T37: 2 | U37: 16 | W37: 34 | Y37: 1 | Z37: 6 | AA37: 7 | AC37: 0 | AD37: 6 | AE37: 8 | AG37: 34 | AJ37: 2 | AK37: 4 | AL37: 6 | AN37: 0 | AO37: 4 | AP37: 8 | AR37: 34 | AV37: 1 | AW37: 4 | AX37: 5 | AZ37: 0 | BA37: 2 | BB37: 8 | BD37: 34 | BH37: 1 | BI37: 4 | BK37: 5 | BM37: 0 | BN37: =BN29+2 -> 2 | BO37: 8 | BQ37: 34 | BW37: 2 | BX37: 2 | BY37: 4 | CA37: 0 | CB37: 0 | CC37: 8 | CE37: 34 | CK37: 2 | CL37: 2 | CN37: 4 | CP37: 0 | CQ37: 0 | CR37: 8
B38: 35 | C38: 9 | D38: 2 | F38: 11 | H38: 0 | I38: 6 | J38: 16 | M38: 35 | N38: 1 | O38: 8 | Q38: 9 | S38: 0 | T38: 2 | U38: 16 | W38: 35 | Z38: 7 | AA38: 7 | AC38: 0 | AD38: 6 | AE38: 8 | AG38: 35 | AJ38: 1 | AK38: 5 | AL38: =SUM(AH38:AK38) -> 6 | AN38: 0 | AO38: 4 | AP38: 8 | AR38: 35 | AW38: 5 | AX38: =SUM(AS38:AW38) -> 5 | AZ38: 0 | BA38: 2 | BB38: 8 | BD38: 35 | BI38: 5 | BK38: =SUM(BE38:BJ38) -> 5 | BM38: 0 | BN38: 2 | BO38: 8 | BQ38: 35 | BW38: 1 | BX38: 3 | BY38: =SUM(BR38:BX38) -> 4 | CA38: 0 | CB38: 0 | CC38: 8 | CE38: 35 | CK38: 1 | CL38: 3 | CN38: =SUM(CF38:CM38) -> 4 | CP38: 0 | CQ38: 0 | CR38: 8
B39: 36 | C39: 12 | D39: 0 | F39: 12 | H39: 0 | I39: 8 | J39: 16 | M39: 36 | N39: 0 | O39: 9 | Q39: 9 | S39: 0 | T39: 2 | U39: 16 | W39: 36 | Y39: 4 | Z39: =Z34+1 -> 4 | AA39: 8 | AC39: 0 | AD39: 0 | AE39: 16 | AG39: 36 | AK39: 6 | AL39: 6 | AN39: 0 | AO39: 4 | AP39: 8 | AR39: 36 | AV39: 6 | AX39: 6 | AZ39: 0 | BA39: 4 | BB39: 8 | BD39: 36 | BI39: 4 | BJ39: 1 | BK39: 5 | BM39: 0 | BN39: 2 | BO39: 8 | BQ39: 36 | BX39: 4 | BY39: 4 | CA39: 0 | CB39: 0 | CC39: 8 | CE39: 36 | CL39: 4 | CN39: 4 | CP39: 0 | CQ39: 0 | CR39: 8
B40: 37 | C40: 11 | D40: 1 | F40: 12 | H40: 0 | I40: 8 | J40: 16 | M40: 37 | N40: 3 | O40: 7 | Q40: 10 | S40: 0 | T40: 4 | U40: 16 | W40: 37 | Y40: 3 | Z40: =Z35+1 -> 5 | AA40: 8 | AC40: 0 | AD40: 0 | AE40: 16 | AG40: 37 | AJ40: 5 | AK40: =AK34+1 -> 2 | AL40: 7 | AN40: 0 | AO40: 6 | AP40: 8 | AR40: 37 | AV40: 5 | AW40: 1 | AX40: 6 | AZ40: 0 | BA40: 4 | BB40: 8 | BD40: 37 | BI40: 3 | BJ40: 2 | BK40: 5 | BM40: 0 | BN40: 2 | BO40: 8 | BQ40: 37 | BV40: 3 | BW40: 2 | BY40: 5 | CA40: 0 | CB40: =CB31+2 -> 2 | CC40: 8 | CE40: 37 | CL40: 3 | CM40: 1 | CN40: 4 | CP40: 0 | CQ40: 0 | CR40: 8
B41: 38 | C41: 10 | D41: 2 | F41: 12 | H41: 0 | I41: 8 | J41: 16 | M41: 38 | N41: 2 | O41: 8 | Q41: 10 | S41: 0 | T41: 4 | U41: 16 | W41: 38 | Y41: 2 | Z41: 6 | AA41: 8 | AC41: 0 | AD41: 0 | AE41: 16 | AG41: 38 | AJ41: 4 | AK41: =AK35+1 -> 3 | AL41: 7 | AN41: 0 | AO41: 6 | AP41: 8 | AR41: 38 | AV41: 4 | AW41: 2 | AX41: 6 | AZ41: 0 | BA41: 4 | BB41: 8 | BD41: 38 | BI41: 2 | BJ41: 3 | BK41: 5 | BM41: 0 | BN41: 2 | BO41: 8 | BQ41: 38 | BV41: 2 | BW41: 3 | BY41: 5 | CA41: 0 | CB41: =CB32+2 -> 2 | CC41: 8 | CE41: 38 | CL41: 2 | CM41: 2 | CN41: 4 | CP41: 0 | CQ41: 0 | CR41: 8
B42: 39 | C42: 13 | D42: 0 | F42: 13 | H42: 0 | I42: 10 | J42: 16 | M42: 39 | N42: 1 | O42: 9 | Q42: 10 | S42: 0 | T42: 4 | U42: 16 | W42: 39 | Y42: 1 | Z42: 7 | AA42: 8 | AC42: 0 | AD42: 0 | AE42: 16 | AG42: 39 | AJ42: 3 | AK42: 4 | AL42: 7 | AN42: 0 | AO42: 6 | AP42: 8 | AR42: 39 | AV42: 3 | AW42: 3 | AX42: 6 | AZ42: 0 | BA42: 4 | BB42: 8 | BD42: 39 | BI42: 1 | BJ42: 4 | BK42: 5 | BM42: 0 | BN42: 2 | BO42: 8 | BQ42: 39 | BV42: 1 | BW42: 4 | BY42: 5 | CA42: 0 | CB42: 2 | CC42: 8 | CE42: 39 | CL42: 1 | CM42: 3 | CN42: 4 | CP42: 0 | CQ42: 0 | CR42: 8
B43: 40 | C43: 12 | D43: 1 | F43: 13 | H43: 0 | I43: 10 | J43: 16 | M43: 40 | N43: 0 | O43: 10 | Q43: 10 | S43: 0 | T43: 4 | U43: 16 | W43: 40 | Z43: 8 | AA43: 8 | AC43: 0 | AD43: 0 | AE43: 16 | AG43: 40 | AJ43: 2 | AK43: 5 | AL43: 7 | AN43: 0 | AO43: 6 | AP43: 8 | AR43: 40 | AV43: 2 | AW43: 4 | AX43: 6 | AZ43: 0 | BA43: 4 | BB43: 8 | BD43: 40 | BJ43: 5 | BK43: 5 | BM43: 0 | BN43: 2 | BO43: 8 | BQ43: 40 | BW43: 5 | BY43: 5 | CA43: 0 | CB43: 2 | CC43: 8 | CE43: 40 | CM43: 4 | CN43: 4 | CP43: 0 | CQ43: 0 | CR43: 8
B44: 41 | C44: 11 | D44: 2 | F44: 13 | H44: 0 | I44: 10 | J44: 16 | M44: 41 | N44: 3 | O44: 8 | Q44: 11 | S44: 0 | T44: 6 | U44: 16 | W44: 41 | Y44: 4 | Z44: 5 | AA44: 9 | AC44: 0 | AD44: 2 | AE44: 16 | AG44: 41 | AJ44: 1 | AK44: 6 | AL44: 7 | AN44: 0 | AO44: 6 | AP44: 8 | AR44: 41 | AV44: 1 | AW44: 5 | AX44: 6 | AZ44: 0 | BA44: 4 | BB44: 8 | BD44: 41 | BH44: 1 | BI44: 5 | BK44: 6 | BM44: 0 | BN44: 4 | BO44: 8 | BQ44: 41 | BW44: 4 | BX44: 1 | BY44: 5 | CA44: 0 | CB44: 2 | CC44: 8 | CE44: 41 | CK44: 4 | CL44: 1 | CN44: 5 | CP44: 0 | CQ44: 2 | CR44: 8
B45: 42 | C45: 14 | D45: 0 | F45: 14 | H45: 0 | I45: 12 | J45: 16 | M45: 42 | N45: 2 | O45: 9 | Q45: 11 | S45: 0 | T45: 6 | U45: 16 | W45: 42 | Y45: 3 | Z45: 6 | AA45: 9 | AC45: 0 | AD45: 2 | AE45: 16 | AG45: 42 | AK45: 7 | AL45: 7 | AN45: 0 | AO45: 6 | AP45: 8 | AR45: 42 | AW45: 6 | AX45: 6 | AZ45: 0 | BA45: 4 | BB45: 8 | BD45: 42 | BI45: 6 | BK45: 6 | BM45: 0 | BN45: 4 | BO45: 8 | BQ45: 42 | BW45: 3 | BX45: 2 | BY45: 5 | CA45: 0 | CB45: 2 | CC45: 8 | CE45: 42 | CK45: 3 | CL45: 2 | CN45: 5 | CP45: 0 | CQ45: 2 | CR45: 8
B46: 43 | C46: 13 | D46: 1 | F46: 14 | H46: 0 | I46: 12 | J46: 16 | M46: 43 | N46: 1 | O46: 10 | Q46: 11 | S46: 0 | T46: 6 | U46: 16 | W46: 43 | Y46: 2 | Z46: 7 | AA46: 9 | AC46: 0 | AD46: 2 | AE46: 16 | AG46: 43 | AJ46: 5 | AK46: 3 | AL46: 8 | AN46: 0 | AO46: 0 | AP46: 16 | AR46: 43 | AV46: 6 | AW46: 1 | AX46: 7 | AZ46: 0 | BA46: 6 | BB46: 8 | BD46: 43 | BI46: 5 | BJ46: 1 | BK46: 6 | BM46: 0 | BN46: 4 | BO46: 8 | BQ46: 43 | BW46: 2 | BX46: 3 | BY46: 5 | CA46: 0 | CB46: 2 | CC46: 8 | CE46: 43 | CK46: 2 | CL46: 3 | CN46: 5 | CP46: 0 | CQ46: 2 | CR46: 8
B47: 44 | C47: 12 | D47: 2 | F47: 14 | H47: 0 | I47: 12 | J47: 16 | M47: 44 | N47: 0 | O47: 11 | Q47: 11 | S47: 0 | T47: 6 | U47: 16 | W47: 44 | Y47: 1 | Z47: 8 | AA47: 9 | AC47: 0 | AD47: 2 | AE47: 16 | AG47: 44 | AJ47: 4 | AK47: 4 | AL47: 8 | AN47: 0 | AO47: 0 | AP47: 16 | AR47: 44 | AV47: 5 | AW47: 2 | AX47: 7 | AZ47: 0 | BA47: 6 | BB47: 8 | BD47: 44 | BI47: 4 | BJ47: 2 | BK47: 6 | BM47: 0 | BN47: 4 | BO47: 8 | BQ47: 44 | BW47: 1 | BX47: 4 | BY47: 5 | CA47: 0 | CB47: 2 | CC47: 8 | CE47: 44 | CK47: 1 | CL47: 4 | CN47: 5 | CP47: 0 | CQ47: 2 | CR47: 8
B48: 45 | C48: 15 | D48: 0 | F48: 15 | H48: 0 | I48: 14 | J48: 16 | M48: 45 | N48: 3 | O48: 9 | Q48: 12 | S48: 0 | T48: 8 | U48: 16 | W48: 45 | Z48: 9 | AA48: 9 | AC48: 0 | AD48: 2 | AE48: 16 | AG48: 45 | AJ48: 3 | AK48: 5 | AL48: 8 | AN48: 0 | AO48: 0 | AP48: 16 | AR48: 45 | AV48: 4 | AW48: 3 | AX48: 7 | AZ48: 0 | BA48: 6 | BB48: 8 | BD48: 45 | BI48: 3 | BJ48: 3 | BK48: 6 | BM48: 0 | BN48: 4 | BO48: 8 | BQ48: 45 | BX48: 5 | BY48: 5 | CA48: 0 | CB48: 2 | CC48: 8 | CE48: 45 | CL48: 5 | CN48: 5 | CP48: 0 | CQ48: 2 | CR48: 8
B49: 46 | C49: 14 | D49: 1 | F49: 15 | H49: 0 | I49: 14 | J49: 16 | M49: 46 | N49: 2 | O49: 10 | Q49: 12 | S49: 0 | T49: 8 | U49: 16 | W49: 46 | Y49: 4 | Z49: 6 | AA49: 10 | AC49: 0 | AD49: 4 | AE49: 16 | AG49: 46 | AJ49: 2 | AK49: 6 | AL49: 8 | AN49: 0 | AO49: 0 | AP49: 16 | AR49: 46 | AV49: 3 | AW49: 4 | AX49: 7 | AZ49: 0 | BA49: 6 | BB49: 8 | BD49: 46 | BI49: 2 | BJ49: 4 | BK49: 6 | BM49: 0 | BN49: 4 | BO49: 8 | BQ49: 46 | BV49: 2 | BW49: 4 | BY49: 6 | CA49: 0 | CB49: 4 | CC49: 8 | CE49: 46 | CL49: 4 | CM49: 1 | CN49: 5 | CP49: 0 | CQ49: 2 | CR49: 8
B50: 47 | C50: 13 | D50: 2 | F50: 15 | H50: 0 | I50: 14 | J50: 16 | M50: 47 | N50: 1 | O50: 11 | Q50: 12 | S50: 0 | T50: 8 | U50: 16 | W50: 47 | Y50: 3 | Z50: 7 | AA50: 10 | AC50: 0 | AD50: 4 | AE50: 16 | AG50: 47 | AJ50: 1 | AK50: 7 | AL50: 8 | AN50: 0 | AO50: 0 | AP50: 16 | AR50: 47 | AV50: 2 | AW50: 5 | AX50: 7 | AZ50: 0 | BA50: 6 | BB50: 8 | BD50: 47 | BI50: 1 | BJ50: 5 | BK50: 6 | BM50: 0 | BN50: 4 | BO50: 8 | BQ50: 47 | BV50: 1 | BW50: 5 | BY50: 6 | CA50: 0 | CB50: 4 | CC50: 8 | CE50: 47 | CL50: 3 | CM50: 2 | CN50: 5 | CP50: 0 | CQ50: 2 | CR50: 8
B51: 48 | C51: 16 | D51: 0 | F51: 16 | H51: 0 | I51: 0 | J51: 32 | M51: 48 | N51: 0 | O51: 12 | Q51: 12 | S51: 0 | T51: 8 | U51: 16 | W51: 48 | Y51: 2 | Z51: 8 | AA51: 10 | AC51: 0 | AD51: 4 | AE51: 16 | AG51: 48 | AK51: 8 | AL51: 8 | AN51: 0 | AO51: 0 | AP51: 16 | AR51: 48 | AV51: 1 | AW51: 6 | AX51: 7 | AZ51: 0 | BA51: 6 | BB51: 8 | BD51: 48 | BJ51: 6 | BK51: 6 | BM51: 0 | BN51: 4 | BO51: 8 | BQ51: 48 | BW51: 6 | BY51: 6 | CA51: 0 | CB51: 4 | CC51: 8 | CE51: 48 | CL51: 2 | CM51: 3 | CN51: 5 | CP51: 0 | CQ51: 2 | CR51: 8
B52: 49 | C52: 15 | D52: 1 | F52: 16 | H52: 0 | I52: 0 | J52: 32 | M52: 49 | N52: 3 | O52: 10 | Q52: 13 | S52: 0 | T52: 10 | U52: 16 | W52: 49 | Y52: 1 | Z52: 9 | AA52: 10 | AC52: 0 | AD52: 4 | AE52: 16 | AG52: 49 | AJ52: 5 | AK52: 4 | AL52: 9 | AN52: 0 | AO52: =AO46+2 -> 2 | AP52: 16 | AR52: 49 | AW52: 7 | AX52: 7 | AZ52: 0 | BA52: 6 | BB52: 8 | BD52: 49 | BI52: 7 | BK52: 7 | BM52: 0 | BN52: 6 | BO52: 8 | BQ52: 49 | BW52: 5 | BX52: 1 | BY52: 6 | CA52: 0 | CB52: 4 | CC52: 8 | CE52: 49 | CL52: 1 | CM52: 4 | CN52: 5 | CP52: 0 | CQ52: 2 | CR52: 8
B53: 50 | C53: 14 | D53: 2 | F53: 16 | H53: 0 | I53: 0 | J53: 32 | M53: 50 | N53: 2 | O53: 11 | Q53: 13 | S53: 0 | T53: 10 | U53: 16 | W53: 50 | Z53: 10 | AA53: 10 | AC53: 0 | AD53: 4 | AE53: 16 | AG53: 50 | AJ53: 4 | AK53: 5 | AL53: 9 | AN53: 0 | AO53: =AO52 -> 2 | AP53: 16 | AR53: 50 | AV53: 6 | AW53: =AW46+1 -> 2 | AX53: 8 | AZ53: 0 | BA53: 0 | BB53: 16 | BD53: 50 | BI53: 6 | BJ53: 1 | BK53: 7 | BM53: 0 | BN53: 6 | BO53: 8 | BQ53: 50 | BW53: 4 | BX53: 2 | BY53: 6 | CA53: 0 | CB53: 4 | CC53: 8 | CE53: 50 | CM53: 5 | CN53: 5 | CP53: 0 | CQ53: 2 | CR53: 8
B54: 51 | C54: 17 | D54: 0 | F54: 17 | H54: 0 | I54: 2 | J54: 32 | M54: 51 | N54: 1 | O54: 12 | Q54: 13 | S54: 0 | T54: 10 | U54: 16 | W54: 51 | Y54: 4 | Z54: 7 | AA54: 11 | AC54: 0 | AD54: 6 | AE54: 16 | AG54: 51 | AJ54: 3 | AK54: 6 | AL54: 9 | AN54: 0 | AO54: =AO53 -> 2 | AP54: 16 | AR54: 51 | AV54: 5 | AW54: =AW47+1 -> 3 | AX54: 8 | AZ54: 0 | BA54: 0 | BB54: 16 | BD54: 51 | BI54: 5 | BJ54: 2 | BK54: 7 | BM54: 0 | BN54: 6 | BO54: 8 | BQ54: 51 | BW54: 3 | BX54: 3 | BY54: 6 | CA54: 0 | CB54: 4 | CC54: 8 | CE54: 51 | CK54: 3 | CL54: 3 | CN54: 6 | CP54: 0 | CQ54: 4 | CR54: 8
B55: 52 | C55: 16 | D55: 1 | F55: 17 | H55: 0 | I55: 2 | J55: 32 | M55: 52 | N55: 0 | O55: 13 | Q55: 13 | S55: 0 | T55: 10 | U55: 16 | W55: 52 | Y55: 3 | Z55: 8 | AA55: 11 | AC55: 0 | AD55: 6 | AE55: 16 | AG55: 52 | AJ55: 2 | AK55: 7 | AL55: 9 | AN55: 0 | AO55: =AO54 -> 2 | AP55: 16 | AR55: 52 | AV55: 4 | AW55: 4 | AX55: 8 | AZ55: 0 | BA55: 0 | BB55: 16 | BD55: 52 | BI55: 4 | BJ55: 3 | BK55: 7 | BM55: 0 | BN55: 6 | BO55: 8 | BQ55: 52 | BW55: 2 | BX55: 4 | BY55: 6 | CA55: 0 | CB55: 4 | CC55: 8 | CE55: 52 | CK55: 2 | CL55: 4 | CN55: 6 | CP55: 0 | CQ55: 4 | CR55: 8
B56: 53 | C56: 15 | D56: 2 | F56: 17 | H56: 0 | I56: 2 | J56: 32 | M56: 53 | N56: 3 | O56: 11 | Q56: 14 | S56: 0 | T56: 12 | U56: 16 | W56: 53 | Y56: 2 | Z56: 9 | AA56: 11 | AC56: 0 | AD56: 6 | AE56: 16 | AG56: 53 | AJ56: 1 | AK56: 8 | AL56: 9 | AN56: 0 | AO56: =AO55 -> 2 | AP56: 16 | AR56: 53 | AV56: 3 | AW56: 5 | AX56: 8 | AZ56: 0 | BA56: 0 | BB56: 16 | BD56: 53 | BI56: 3 | BJ56: 4 | BK56: 7 | BM56: 0 | BN56: 6 | BO56: 8 | BQ56: 53 | BW56: 1 | BX56: 5 | BY56: 6 | CA56: 0 | CB56: 4 | CC56: 8 | CE56: 53 | CK56: 1 | CL56: 5 | CN56: 6 | CP56: 0 | CQ56: 4 | CR56: 8
B57: 54 | C57: 18 | D57: 0 | F57: 18 | H57: 0 | I57: 4 | J57: 32 | M57: 54 | N57: 2 | O57: 12 | Q57: 14 | S57: 0 | T57: 12 | U57: 16 | W57: 54 | Y57: 1 | Z57: 10 | AA57: 11 | AC57: 0 | AD57: 6 | AE57: 16 | AG57: 54 | AK57: 9 | AL57: 9 | AN57: 0 | AO57: =AO56 -> 2 | AP57: 16 | AR57: 54 | AV57: 2 | AW57: 6 | AX57: 8 | AZ57: 0 | BA57: 0 | BB57: 16 | BD57: 54 | BI57: 2 | BJ57: 5 | BK57: 7 | BM57: 0 | BN57: 6 | BO57: 8 | BQ57: 54 | BX57: 6 | BY57: 6 | CA57: 0 | CB57: 4 | CC57: 8 | CE57: 54 | CL57: 6 | CN57: 6 | CP57: 0 | CQ57: 4 | CR57: 8
B58: 55 | C58: 17 | D58: 1 | F58: 18 | H58: 0 | I58: 4 | J58: 32 | M58: 55 | N58: 1 | O58: 13 | Q58: 14 | S58: 0 | T58: 12 | U58: 16 | W58: 55 | Z58: 11 | AA58: 11 | AC58: 0 | AD58: 6 | AE58: 16 | AG58: 55 | AJ58: 5 | AK58: 5 | AL58: 10 | AN58: 0 | AO58: =AO52+2 -> 4 | AP58: 16 | AR58: 55 | AV58: 1 | AW58: 7 | AX58: 8 | AZ58: 0 | BA58: 0 | BB58: 16 | BD58: 55 | BI58: 1 | BJ58: 6 | BK58: 7 | BM58: 0 | BN58: 6 | BO58: 8 | BQ58: 55 | BV58: 1 | BW58: 6 | BY58: 7 | CA58: 0 | CB58: 6 | CC58: 8 | CE58: 55 | CL58: 5 | CM58: 1 | CN58: 6 | CP58: 0 | CQ58: 4 | CR58: 8
B59: 56 | C59: 16 | D59: 2 | F59: 18 | H59: 0 | I59: 4 | J59: 32 | M59: 56 | N59: 0 | O59: 14 | Q59: 14 | S59: 0 | T59: 12 | U59: 16 | W59: 56 | Y59: 4 | Z59: 8 | AA59: 12 | AC59: 0 | AD59: 8 | AE59: 16 | AG59: 56 | AJ59: 4 | AK59: 6 | AL59: 10 | AN59: 0 | AO59: =AO58 -> 4 | AP59: 16 | AR59: 56 | AW59: 8 | AX59: 8 | AZ59: 0 | BA59: 0 | BB59: 16 | BD59: 56 | BJ59: 7 | BK59: 7 | BM59: 0 | BN59: 6 | BO59: 8 | BQ59: 56 | BW59: 7 | BY59: 7 | CA59: 0 | CB59: 6 | CC59: 8 | CE59: 56 | CL59: 4 | CM59: 2 | CN59: 6 | CP59: 0 | CQ59: 4 | CR59: 8
B60: 57 | C60: 19 | D60: 0 | F60: 19 | H60: 0 | I60: 6 | J60: 32 | M60: 57 | N60: 3 | O60: 12 | Q60: 15 | S60: 0 | T60: 14 | U60: 16 | W60: 57 | Y60: 3 | Z60: 9 | AA60: 12 | AC60: 0 | AD60: 8 | AE60: 16 | AG60: 57 | AJ60: 3 | AK60: 7 | AL60: 10 | AN60: 0 | AO60: =AO59 -> 4 | AP60: 16 | AR60: 57 | AV60: 6 | AW60: 3 | AX60: 9 | AZ60: 0 | BA60: 2 | BB60: 16 | BD60: 57 | BI60: 7 | BJ60: 1 | BK60: 8 | BM60: 0 | BN60: 0 | BO60: 16 | BQ60: 57 | BW60: 6 | BX60: 1 | BY60: 7 | CA60: 0 | CB60: 6 | CC60: 8 | CE60: 57 | CL60: 3 | CM60: 3 | CN60: 6 | CP60: 0 | CQ60: 4 | CR60: 8
B61: 58 | C61: 18 | D61: 1 | F61: 19 | H61: 0 | I61: 6 | J61: 32 | M61: 58 | N61: 2 | O61: 13 | Q61: 15 | S61: 0 | T61: 14 | U61: 16 | W61: 58 | Y61: 2 | Z61: 10 | AA61: 12 | AC61: 0 | AD61: 8 | AE61: 16 | AG61: 58 | AJ61: 2 | AK61: 8 | AL61: 10 | AN61: 0 | AO61: =AO60 -> 4 | AP61: 16 | AR61: 58 | AV61: 5 | AW61: 4 | AX61: 9 | AZ61: 0 | BA61: 2 | BB61: 16 | BD61: 58 | BI61: 6 | BJ61: 2 | BK61: 8 | BM61: 0 | BN61: 0 | BO61: 16 | BQ61: 58 | BW61: 5 | BX61: 2 | BY61: 7 | CA61: 0 | CB61: 6 | CC61: 8 | CE61: 58 | CL61: 2 | CM61: 4 | CN61: 6 | CP61: 0 | CQ61: 4 | CR61: 8
B62: 59 | C62: 17 | D62: 2 | F62: 19 | H62: 0 | I62: 6 | J62: 32 | M62: 59 | N62: 1 | O62: 14 | Q62: 15 | S62: 0 | T62: 14 | U62: 16 | W62: 59 | Y62: 1 | Z62: 11 | AA62: 12 | AC62: 0 | AD62: 8 | AE62: 16 | AG62: 59 | AJ62: 1 | AK62: 9 | AL62: 10 | AN62: 0 | AO62: =AO61 -> 4 | AP62: 16 | AR62: 59 | AV62: 4 | AW62: 5 | AX62: 9 | AZ62: 0 | BA62: 2 | BB62: 16 | BD62: 59 | BI62: 5 | BJ62: 3 | BK62: 8 | BM62: 0 | BN62: 0 | BO62: 16 | BQ62: 59 | BW62: 4 | BX62: 3 | BY62: 7 | CA62: 0 | CB62: 6 | CC62: 8 | CE62: 59 | CL62: 1 | CM62: 5 | CN62: 6 | CP62: 0 | CQ62: 4 | CR62: 8
B63: 60 | C63: 20 | D63: 0 | F63: 20 | H63: 0 | I63: 8 | J63: 32 | M63: 60 | N63: 0 | O63: 15 | Q63: 15 | S63: 0 | T63: 14 | U63: 16 | W63: 60 | Z63: 12 | AA63: 12 | AC63: 0 | AD63: 8 | AE63: 16 | AG63: 60 | AK63: 10 | AL63: 10 | AN63: 0 | AO63: =AO62 -> 4 | AP63: 16 | AR63: 60 | AV63: 3 | AW63: 6 | AX63: 9 | AZ63: 0 | BA63: 2 | BB63: 16 | BD63: 60 | BI63: 4 | BJ63: 4 | BK63: 8 | BM63: 0 | BN63: 0 | BO63: 16 | BQ63: 60 | BW63: 3 | BX63: 4 | BY63: 7 | CA63: 0 | CB63: 6 | CC63: 8 | CE63: 60 | CM63: 6 | CN63: 6 | CP63: 0 | CQ63: 4 | CR63: 8
B64: 61 | C64: 19 | D64: 1 | F64: 20 | H64: 0 | I64: 8 | J64: 32 | M64: 61 | N64: 3 | O64: 13 | Q64: 16 | S64: 0 | T64: 0 | U64: 32 | W64: 61 | Y64: 4 | Z64: 9 | AA64: 13 | AC64: 0 | AD64: 10 | AE64: 16 | AG64: 61 | AJ64: 5 | AK64: 6 | AL64: 11 | AN64: 0 | AO64: =AO58+2 -> 6 | AP64: 16 | AR64: 61 | AV64: 2 | AW64: 7 | AX64: 9 | AZ64: 0 | BA64: 2 | BB64: 16 | BD64: 61 | BI64: 3 | BJ64: 5 | BK64: 8 | BM64: 0 | BN64: 0 | BO64: 16 | BQ64: 61 | BW64: 2 | BX64: 5 | BY64: 7 | CA64: 0 | CB64: 6 | CC64: 8 | CE64: 61 | CK64: 2 | CL64: 5 | CN64: 7 | CP64: 0 | CQ64: =CQ55+2 -> 6 | CR64: 8
B65: 62 | C65: 18 | D65: 2 | F65: 20 | H65: 0 | I65: 8 | J65: 32 | M65: 62 | N65: 2 | O65: 14 | Q65: 16 | S65: 0 | T65: 0 | U65: 32 | W65: 62 | Y65: 3 | Z65: 10 | AA65: 13 | AC65: 0 | AD65: 10 | AE65: 16 | AG65: 62 | AJ65: 4 | AK65: 7 | AL65: 11 | AN65: 0 | AO65: =AO64 -> 6 | AP65: 16 | AR65: 62 | AV65: 1 | AW65: 8 | AX65: 9 | AZ65: 0 | BA65: 2 | BB65: 16 | BD65: 62 | BI65: 2 | BJ65: 6 | BK65: 8 | BM65: 0 | BN65: 0 | BO65: 16 | BQ65: 62 | BW65: 1 | BX65: 6 | BY65: 7 | CA65: 0 | CB65: 6 | CC65: 8 | CE65: 62 | CK65: 1 | CL65: 6 | CN65: 7 | CP65: 0 | CQ65: =CQ56+2 -> 6 | CR65: 8
B66: 63 | C66: 21 | D66: 0 | F66: 21 | H66: 0 | I66: 10 | J66: 32 | M66: 63 | N66: 1 | O66: 15 | Q66: 16 | S66: 0 | T66: 0 | U66: 32 | W66: 63 | Y66: 2 | Z66: 11 | AA66: 13 | AC66: 0 | AD66: 10 | AE66: 16 | AG66: 63 | AJ66: 3 | AK66: 8 | AL66: 11 | AN66: 0 | AO66: =AO65 -> 6 | AP66: 16 | AR66: 63 | AW66: 9 | AX66: 9 | AZ66: 0 | BA66: 2 | BB66: 16 | BD66: 63 | BI66: 1 | BJ66: 7 | BK66: 8 | BM66: 0 | BN66: 0 | BO66: 16 | BQ66: 63 | BX66: 7 | BY66: 7 | CA66: 0 | CB66: 6 | CC66: 8 | CE66: 63 | CL66: 7 | CN66: 7 | CP66: 0 | CQ66: =CQ57+2 -> 6 | CR66: 8
B67: 64 | C67: 20 | D67: 1 | F67: 21 | H67: 0 | I67: 10 | J67: 32 | M67: 64 | N67: 0 | O67: 16 | Q67: 16 | S67: 0 | T67: 0 | U67: 32 | W67: 64 | Y67: 1 | Z67: 12 | AA67: 13 | AC67: 0 | AD67: 10 | AE67: 16 | AG67: 64 | AJ67: 2 | AK67: 9 | AL67: 11 | AN67: 0 | AO67: =AO66 -> 6 | AP67: 16 | AR67: 64 | AV67: 6 | AW67: 4 | AX67: 10 | AZ67: 0 | BA67: 4 | BB67: 16 | BD67: 64 | BJ67: 8 | BK67: 8 | BM67: 0 | BN67: 0 | BO67: 16 | BQ67: 64 | BW67: 8 | BY67: 8 | CA67: 0 | CB67: 0 | CC67: 16 | CE67: 64 | CL67: 6 | CM67: 1 | CN67: 7 | CP67: 0 | CQ67: 6 | CR67: 8
B68: 65 | C68: 19 | D68: 2 | F68: 21 | H68: 0 | I68: 10 | J68: 32 | M68: 65 | N68: 3 | O68: 14 | Q68: 17 | S68: 0 | T68: 2 | U68: 32 | W68: 65 | Z68: 13 | AA68: 13 | AC68: 0 | AD68: 10 | AE68: 16 | AG68: 65 | AJ68: 1 | AK68: 10 | AL68: 11 | AN68: 0 | AO68: =AO67 -> 6 | AP68: 16 | AR68: 65 | AV68: 5 | AW68: 5 | AX68: 10 | AZ68: 0 | BA68: 4 | BB68: 16 | BD68: 65 | BI68: 7 | BJ68: =BJ60+1 -> 2 | BK68: 9 | BM68: 0 | BN68: =BN60+2 -> 2 | BO68: 16 | BQ68: 65 | BW68: 7 | BX68: 1 | BY68: 8 | CA68: 0 | CB68: 0 | CC68: 16 | CE68: 65 | CL68: 5 | CM68: 2 | CN68: 7 | CP68: 0 | CQ68: 6 | CR68: 8
B69: 66 | C69: 22 | D69: 0 | F69: 22 | H69: 0 | I69: 12 | J69: 32 | M69: 66 | N69: 2 | O69: 15 | Q69: 17 | S69: 0 | T69: 2 | U69: 32 | W69: 66 | Y69: 4 | Z69: 10 | AA69: 14 | AC69: 0 | AD69: 12 | AE69: 16 | AG69: 66 | AK69: 11 | AL69: 11 | AN69: 0 | AO69: =AO68 -> 6 | AP69: 16 | AR69: 66 | AV69: 4 | AW69: 6 | AX69: 10 | AZ69: 0 | BA69: 4 | BB69: 16 | BD69: 66 | BI69: 6 | BJ69: =BJ61+1 -> 3 | BK69: 9 | BM69: 0 | BN69: 2 | BO69: 16 | BQ69: 66 | BW69: 6 | BX69: 2 | BY69: 8 | CA69: 0 | CB69: 0 | CC69: 16 | CE69: 66 | CL69: 4 | CM69: 3 | CN69: 7 | CP69: 0 | CQ69: 6 | CR69: 8
B70: 67 | C70: 21 | D70: 1 | F70: =SUM(C70:E70) -> 22 | H70: 0 | I70: 12 | J70: 32 | M70: 67 | N70: 1 | O70: 16 | Q70: =SUM(N70:P70) -> 17 | S70: 0 | T70: 2 | U70: 32 | W70: 67 | Y70: 3 | Z70: 11 | AA70: 14 | AC70: 0 | AD70: 12 | AE70: 16 | AG70: 67 | AJ70: 5 | AK70: 7 | AL70: =SUM(AH70:AK70) -> 12 | AN70: 0 | AO70: =AO64+2 -> 8 | AP70: 16 | AR70: 67 | AV70: 3 | AW70: 7 | AX70: =SUM(AS70:AW70) -> 10 | AZ70: 0 | BA70: 4 | BB70: 16 | BD70: 67 | BI70: 5 | BJ70: 4 | BK70: =SUM(BE70:BJ70) -> 9 | BM70: 0 | BN70: 2 | BO70: 16 | BQ70: 67 | BW70: 5 | BX70: 3 | BY70: =SUM(BR70:BX70) -> 8 | CA70: 0 | CB70: 0 | CC70: 16 | CE70: 67 | CL70: 3 | CM70: 4 | CN70: =SUM(CF70:CM70) -> 7 | CP70: 0 | CQ70: 6 | CR70: 8
B71: 68 | C71: 20 | D71: 2 | F71: 22 | H71: 0 | I71: 12 | J71: 32 | M71: 68 | N71: 0 | O71: 17 | Q71: 17 | S71: 0 | T71: 2 | U71: 32 | W71: 68 | Y71: 2 | Z71: 12 | AA71: 14 | AC71: 0 | AD71: 12 | AE71: 16 | AG71: 68 | AJ71: 4 | AK71: 8 | AL71: 12 | AN71: 0 | AO71: =AO70 -> 8 | AP71: 16 | AR71: 68 | AV71: 2 | AW71: 8 | AX71: 10 | AZ71: 0 | BA71: 4 | BB71: 16 | BD71: 68 | BI71: 4 | BJ71: 5 | BK71: 9 | BM71: 0 | BN71: 2 | BO71: 16 | BQ71: 68 | BW71: 4 | BX71: 4 | BY71: 8 | CA71: 0 | CB71: 0 | CC71: 16 | CE71: 68 | CL71: 2 | CM71: 5 | CN71: 7 | CP71: 0 | CQ71: 6 | CR71: 8
B72: 69 | C72: 23 | D72: 0 | F72: 23 | H72: 0 | I72: 14 | J72: 32 | M72: 69 | N72: 3 | O72: 15 | Q72: 18 | S72: 0 | T72: 4 | U72: 32 | W72: 69 | Y72: 1 | Z72: 13 | AA72: 14 | AC72: 0 | AD72: 12 | AE72: 16 | AG72: 69 | AJ72: 3 | AK72: 9 | AL72: 12 | AN72: 0 | AO72: =AO71 -> 8 | AP72: 16 | AR72: 69 | AV72: 1 | AW72: 9 | AX72: 10 | AZ72: 0 | BA72: 4 | BB72: 16 | BD72: 69 | BI72: 3 | BJ72: 6 | BK72: 9 | BM72: 0 | BN72: 2 | BO72: 16 | BQ72: 69 | BW72: 3 | BX72: 5 | BY72: 8 | CA72: 0 | CB72: 0 | CC72: 16 | CE72: 69 | CL72: 1 | CM72: 6 | CN72: 7 | CP72: 0 | CQ72: 6 | CR72: 8
B73: 70 | C73: 22 | D73: 1 | F73: 23 | H73: 0 | I73: 14 | J73: 32 | M73: 70 | N73: 2 | O73: 16 | Q73: 18 | S73: 0 | T73: 4 | U73: 32 | W73: 70 | Z73: 14 | AA73: 14 | AC73: 0 | AD73: 12 | AE73: 16 | AG73: 70 | AJ73: 2 | AK73: 10 | AL73: 12 | AN73: 0 | AO73: =AO72 -> 8 | AP73: 16 | AR73: 70 | AW73: 10 | AX73: 10 | AZ73: 0 | BA73: 4 | BB73: 16 | BD73: 70 | BI73: 2 | BJ73: 7 | BK73: 9 | BM73: 0 | BN73: 2 | BO73: 16 | BQ73: 70 | BW73: 2 | BX73: 6 | BY73: 8 | CA73: 0 | CB73: 0 | CC73: 16 | CE73: 70 | CM73: 7 | CN73: 7 | CP73: 0 | CQ73: 6 | CR73: 8
B74: 71 | C74: 21 | D74: 2 | F74: 23 | H74: 0 | I74: 14 | J74: 32 | M74: 71 | N74: 1 | O74: 17 | Q74: 18 | S74: 0 | T74: 4 | U74: 32 | W74: 71 | Y74: 4 | Z74: 11 | AA74: 15 | AC74: 0 | AD74: 14 | AE74: 16 | AG74: 71 | AJ74: 1 | AK74: 11 | AL74: 12 | AN74: 0 | AO74: =AO73 -> 8 | AP74: 16 | AR74: 71 | AV74: 6 | AW74: 5 | AX74: 11 | AZ74: 0 | BA74: 6 | BB74: 16 | BD74: 71 | BI74: 1 | BJ74: 8 | BK74: 9 | BM74: 0 | BN74: 2 | BO74: 16 | BQ74: 71 | BW74: 1 | BX74: 7 | BY74: 8 | CA74: 0 | CB74: 0 | CC74: 16 | CE74: 71 | CK74: 1 | CL74: 7 | CN74: 8 | CP74: 0 | CQ74: 0 | CR74: 16
B75: 72 | C75: 24 | D75: 0 | F75: 24 | H75: 0 | I75: 16 | J75: 32 | M75: 72 | N75: 0 | O75: 18 | Q75: 18 | S75: 0 | T75: 4 | U75: 32 | W75: 72 | Y75: 3 | Z75: 12 | AA75: 15 | AC75: 0 | AD75: 14 | AE75: 16 | AG75: 72 | AK75: 12 | AL75: 12 | AN75: 0 | AO75: =AO74 -> 8 | AP75: 16 | AR75: 72 | AV75: 5 | AW75: 6 | AX75: 11 | AZ75: 0 | BA75: 6 | BB75: 16 | BD75: 72 | BJ75: 9 | BK75: 9 | BM75: 0 | BN75: 2 | BO75: 16 | BQ75: 72 | BX75: 8 | BY75: 8 | CA75: 0 | CB75: 0 | CC75: 16 | CE75: 72 | CL75: 8 | CN75: 8 | CP75: 0 | CQ75: 0 | CR75: 16
B76: 73 | C76: 23 | D76: 1 | F76: 24 | H76: 0 | I76: 16 | J76: 32 | M76: 73 | N76: 3 | O76: 16 | Q76: 19 | S76: 0 | T76: 6 | U76: 32 | W76: 73 | Y76: 2 | Z76: 13 | AA76: 15 | AC76: 0 | AD76: 14 | AE76: 16 | AG76: 73 | AJ76: 5 | AK76: 8 | AL76: 13 | AN76: 0 | AO76: =AO70+2 -> 10 | AP76: 16 | AR76: 73 | AV76: 4 | AW76: 7 | AX76: 11 | AZ76: 0 | BA76: 6 | BB76: 16 | BD76: 73 | BI76: 7 | BJ76: 3 | BK76: 10 | BM76: 0 | BN76: 4 | BO76: 16 | BQ76: 73 | BW76: 8 | BX76: =BX67+1 -> 1 | BY76: 9 | CA76: 0 | CB76: =CB67+2 -> 2 | CC76: 16 | CE76: 73 | CL76: 7 | CM76: 1 | CN76: 8 | CP76: 0 | CQ76: 0 | CR76: 16
B77: 74 | C77: 22 | D77: 2 | F77: 24 | H77: 0 | I77: 16 | J77: 32 | M77: 74 | N77: 2 | O77: 17 | Q77: 19 | S77: 0 | T77: 6 | U77: 32 | W77: 74 | Y77: 1 | Z77: 14 | AA77: 15 | AC77: 0 | AD77: 14 | AE77: 16 | AG77: 74 | AJ77: 4 | AK77: 9 | AL77: 13 | AN77: 0 | AO77: =AO76 -> 10 | AP77: 16 | AR77: 74 | AV77: 3 | AW77: 8 | AX77: 11 | AZ77: 0 | BA77: 6 | BB77: 16 | BD77: 74 | BI77: 6 | BJ77: 4 | BK77: 10 | BM77: 0 | BN77: 4 | BO77: 16 | BQ77: 74 | BW77: 7 | BX77: =BX68+1 -> 2 | BY77: 9 | CA77: 0 | CB77: =CB68+2 -> 2 | CC77: 16 | CE77: 74 | CL77: 6 | CM77: 2 | CN77: 8 | CP77: 0 | CQ77: 0 | CR77: 16
B78: 75 | C78: 25 | D78: 0 | F78: 25 | H78: 0 | I78: 18 | J78: 32 | M78: 75 | N78: 1 | O78: 18 | Q78: 19 | S78: 0 | T78: 6 | U78: 32 | W78: 75 | Z78: 15 | AA78: 15 | AC78: 0 | AD78: 14 | AE78: 16 | AG78: 75 | AJ78: 3 | AK78: 10 | AL78: 13 | AN78: 0 | AO78: =AO77 -> 10 | AP78: 16 | AR78: 75 | AV78: 2 | AW78: 9 | AX78: 11 | AZ78: 0 | BA78: 6 | BB78: 16 | BD78: 75 | BI78: 5 | BJ78: 5 | BK78: 10 | BM78: 0 | BN78: 4 | BO78: 16 | BQ78: 75 | BW78: 6 | BX78: 3 | BY78: 9 | CA78: 0 | CB78: 2 | CC78: 16 | CE78: 75 | CL78: 5 | CM78: 3 | CN78: 8 | CP78: 0 | CQ78: 0 | CR78: 16
B79: 76 | C79: 24 | D79: 1 | F79: 25 | H79: 0 | I79: 18 | J79: 32 | M79: 76 | N79: 0 | O79: 19 | Q79: 19 | S79: 0 | T79: 6 | U79: 32 | W79: 76 | Y79: 4 | Z79: 12 | AA79: =SUM(X79:Z79) -> 16 | AC79: 0 | AD79: 0 | AE79: 32 | AG79: 76 | AJ79: 2 | AK79: 11 | AL79: 13 | AN79: 0 | AO79: =AO78 -> 10 | AP79: 16 | AR79: 76 | AV79: 1 | AW79: 10 | AX79: 11 | AZ79: 0 | BA79: 6 | BB79: 16 | BD79: 76 | BI79: 4 | BJ79: 6 | BK79: 10 | BM79: 0 | BN79: 4 | BO79: 16 | BQ79: 76 | BW79: 5 | BX79: 4 | BY79: 9 | CA79: 0 | CB79: 2 | CC79: 16 | CE79: 76 | CL79: 4 | CM79: 4 | CN79: 8 | CP79: 0 | CQ79: 0 | CR79: 16
B80: 77 | C80: 23 | D80: 2 | F80: 25 | H80: 0 | I80: 18 | J80: 32 | M80: 77 | N80: 3 | O80: 17 | Q80: 20 | S80: 0 | T80: 8 | U80: 32 | W80: 77 | Y80: 3 | Z80: 13 | AA80: 16 | AC80: 0 | AD80: 0 | AE80: 32 | AG80: 77 | AJ80: 1 | AK80: 12 | AL80: 13 | AN80: 0 | AO80: =AO79 -> 10 | AP80: 16 | AR80: 77 | AW80: 11 | AX80: 11 | AZ80: 0 | BA80: 6 | BB80: 16 | BD80: 77 | BI80: 3 | BJ80: 7 | BK80: 10 | BM80: 0 | BN80: 4 | BO80: 16 | BQ80: 77 | BW80: 4 | BX80: 5 | BY80: 9 | CA80: 0 | CB80: 2 | CC80: 16 | CE80: 77 | CL80: 3 | CM80: 5 | CN80: 8 | CP80: 0 | CQ80: 0 | CR80: 16
B81: 78 | C81: 26 | D81: 0 | F81: 26 | H81: 0 | I81: 20 | J81: 32 | M81: 78 | N81: 2 | O81: 18 | Q81: 20 | S81: 0 | T81: 8 | U81: 32 | W81: 78 | Y81: 2 | Z81: 14 | AA81: 16 | AC81: 0 | AD81: 0 | AE81: 32 | AG81: 78 | AK81: 13 | AL81: 13 | AN81: 0 | AO81: =AO80 -> 10 | AP81: 16 | AR81: 78 | AV81: 6 | AW81: 6 | AX81: 12 | AZ81: 0 | BA81: 8 | BB81: 16 | BD81: 78 | BI81: 2 | BJ81: 8 | BK81: 10 | BM81: 0 | BN81: 4 | BO81: 16 | BQ81: 78 | BW81: 3 | BX81: 6 | BY81: 9 | CA81: 0 | CB81: 2 | CC81: 16 | CE81: 78 | CL81: 2 | CM81: 6 | CN81: 8 | CP81: 0 | CQ81: 0 | CR81: 16
B82: 79 | C82: 25 | D82: 1 | F82: 26 | H82: 0 | I82: 20 | J82: 32 | M82: 79 | N82: 1 | O82: 19 | Q82: 20 | S82: 0 | T82: 8 | U82: 32 | W82: 79 | Y82: 1 | Z82: 15 | AA82: 16 | AC82: 0 | AD82: 0 | AE82: 32 | AG82: 79 | AJ82: 5 | AK82: 9 | AL82: 14 | AN82: 0 | AO82: =AO76+2 -> 12 | AP82: 16 | AR82: 79 | AV82: 5 | AW82: 7 | AX82: 12 | AZ82: 0 | BA82: 8 | BB82: 16 | BD82: 79 | BI82: 1 | BJ82: 9 | BK82: 10 | BM82: 0 | BN82: 4 | BO82: 16 | BQ82: 79 | BW82: 2 | BX82: 7 | BY82: 9 | CA82: 0 | CB82: 2 | CC82: 16 | CE82: 79 | CL82: 1 | CM82: 7 | CN82: 8 | CP82: 0 | CQ82: 0 | CR82: 16
B83: 80 | C83: 24 | D83: 2 | F83: 26 | H83: 0 | I83: 20 | J83: 32 | M83: 80 | N83: 0 | O83: 20 | Q83: 20 | S83: 0 | T83: 8 | U83: 32 | W83: 80 | Z83: 16 | AA83: 16 | AC83: 0 | AD83: 0 | AE83: 32 | AG83: 80 | AJ83: 4 | AK83: 10 | AL83: 14 | AN83: 0 | AO83: =AO82 -> 12 | AP83: 16 | AR83: 80 | AV83: 4 | AW83: 8 | AX83: 12 | AZ83: 0 | BA83: 8 | BB83: 16 | BD83: 80 | BJ83: 10 | BK83: 10 | BM83: 0 | BN83: 4 | BO83: 16 | BQ83: 80 | BW83: 1 | BX83: 8 | BY83: 9 | CA83: 0 | CB83: 2 | CC83: 16 | CE83: 80 | CM83: 8 | CN83: 8 | CP83: 0 | CQ83: 0 | CR83: 16
B84: 81 | C84: 27 | D84: 0 | F84: 27 | H84: 0 | I84: 22 | J84: 32 | M84: 81 | N84: 3 | O84: 18 | Q84: 21 | S84: 0 | T84: 10 | U84: 32 | W84: 81 | Y84: 4 | Z84: 13 | AA84: 17 | AC84: 0 | AD84: 2 | AE84: 32 | AG84: 81 | AJ84: 3 | AK84: 11 | AL84: 14 | AN84: 0 | AO84: =AO83 -> 12 | AP84: 16 | AR84: 81 | AV84: 3 | AW84: 9 | AX84: 12 | AZ84: 0 | BA84: 8 | BB84: 16 | BD84: 81 | BI84: 7 | BJ84: 4 | BK84: 11 | BM84: 0 | BN84: 6 | BO84: 16 | BQ84: 81 | BX84: 9 | BY84: 9 | CA84: 0 | CB84: 2 | CC84: 16 | CE84: 81 | CL84: =CL75+1 -> 9 | CN84: 9 | CP84: 0 | CQ84: =CQ74+2 -> 2 | CR84: 16
B85: 82 | C85: 26 | D85: 1 | F85: 27 | H85: 0 | I85: 22 | J85: 32 | M85: 82 | N85: 2 | O85: 19 | Q85: 21 | S85: 0 | T85: 10 | U85: 32 | W85: 82 | Y85: 3 | Z85: 14 | AA85: 17 | AC85: 0 | AD85: 2 | AE85: 32 | AG85: 82 | AJ85: 2 | AK85: 12 | AL85: 14 | AN85: 0 | AO85: =AO84 -> 12 | AP85: 16 | AR85: 82 | AV85: 2 | AW85: 10 | AX85: 12 | AZ85: 0 | BA85: 8 | BB85: 16 | BD85: 82 | BI85: 6 | BJ85: 5 | BK85: 11 | BM85: 0 | BN85: 6 | BO85: 16 | BQ85: 82 | BW85: 8 | BX85: 2 | BY85: 10 | CA85: 0 | CB85: 4 | CC85: 16 | CE85: 82 | CL85: 8 | CM85: 1 | CN85: 9 | CP85: 0 | CQ85: =CQ75+2 -> 2 | CR85: 16
B86: 83 | C86: 25 | D86: 2 | F86: 27 | H86: 0 | I86: 22 | J86: 32 | M86: 83 | N86: 1 | O86: 20 | Q86: 21 | S86: 0 | T86: 10 | U86: 32 | W86: 83 | Y86: 2 | Z86: 15 | AA86: 17 | AC86: 0 | AD86: 2 | AE86: 32 | AG86: 83 | AJ86: 1 | AK86: 13 | AL86: 14 | AN86: 0 | AO86: =AO85 -> 12 | AP86: 16 | AR86: 83 | AV86: 1 | AW86: 11 | AX86: 12 | AZ86: 0 | BA86: 8 | BB86: 16 | BD86: 83 | BI86: 5 | BJ86: 6 | BK86: 11 | BM86: 0 | BN86: 6 | BO86: 16 | BQ86: 83 | BW86: 7 | BX86: 3 | BY86: 10 | CA86: 0 | CB86: 4 | CC86: 16 | CE86: 83 | CL86: 7 | CM86: 2 | CN86: 9 | CP86: 0 | CQ86: 2 | CR86: 16
B87: 84 | C87: 28 | D87: 0 | F87: 28 | H87: 0 | I87: 24 | J87: 32 | M87: 84 | N87: 0 | O87: 21 | Q87: 21 | S87: 0 | T87: 10 | U87: 32 | W87: 84 | Y87: 1 | Z87: 16 | AA87: 17 | AC87: 0 | AD87: 2 | AE87: 32 | AG87: 84 | AK87: 14 | AL87: 14 | AN87: 0 | AO87: =AO86 -> 12 | AP87: 16 | AR87: 84 | AW87: 12 | AX87: 12 | AZ87: 0 | BA87: 8 | BB87: 16 | BD87: 84 | BI87: 4 | BJ87: 7 | BK87: 11 | BM87: 0 | BN87: 6 | BO87: 16 | BQ87: 84 | BW87: 6 | BX87: 4 | BY87: 10 | CA87: 0 | CB87: 4 | CC87: 16 | CE87: 84 | CL87: 6 | CM87: 3 | CN87: 9 | CP87: 0 | CQ87: 2 | CR87: 16
B88: 85 | C88: 27 | D88: 1 | F88: 28 | H88: 0 | I88: 24 | J88: 32 | M88: 85 | N88: 3 | O88: 19 | Q88: 22 | S88: 0 | T88: 12 | U88: 32 | W88: 85 | Z88: 17 | AA88: 17 | AC88: 0 | AD88: 2 | AE88: 32 | AG88: 85 | AJ88: 5 | AK88: 10 | AL88: 15 | AN88: 0 | AO88: =AO82+2 -> 14 | AP88: 16 | AR88: 85 | AV88: 6 | AW88: 7 | AX88: 13 | AZ88: 0 | BA88: 10 | BB88: 16 | BD88: 85 | BI88: 3 | BJ88: 8 | BK88: 11 | BM88: 0 | BN88: 6 | BO88: 16 | BQ88: 85 | BW88: 5 | BX88: 5 | BY88: 10 | CA88: 0 | CB88: 4 | CC88: 16 | CE88: 85 | CL88: 5 | CM88: 4 | CN88: 9 | CP88: 0 | CQ88: 2 | CR88: 16
B89: 86 | C89: 26 | D89: 2 | F89: 28 | H89: 0 | I89: 24 | J89: 32 | M89: 86 | N89: 2 | O89: 20 | Q89: 22 | S89: 0 | T89: 12 | U89: 32 | W89: 86 | Y89: 4 | Z89: 14 | AA89: 18 | AC89: 0 | AD89: 4 | AE89: 32 | AG89: 86 | AJ89: 4 | AK89: 11 | AL89: 15 | AN89: 0 | AO89: =AO88 -> 14 | AP89: 16 | AR89: 86 | AV89: 5 | AW89: 8 | AX89: 13 | AZ89: 0 | BA89: 10 | BB89: 16 | BD89: 86 | BI89: 2 | BJ89: 9 | BK89: 11 | BM89: 0 | BN89: 6 | BO89: 16 | BQ89: 86 | BW89: 4 | BX89: 6 | BY89: 10 | CA89: 0 | CB89: 4 | CC89: 16 | CE89: 86 | CL89: 4 | CM89: 5 | CN89: 9 | CP89: 0 | CQ89: 2 | CR89: 16
B90: 87 | C90: 29 | D90: 0 | F90: 29 | H90: 0 | I90: 26 | J90: 32 | M90: 87 | N90: 1 | O90: 21 | Q90: 22 | S90: 0 | T90: 12 | U90: 32 | W90: 87 | Y90: 3 | Z90: 15 | AA90: 18 | AC90: 0 | AD90: 4 | AE90: 32 | AG90: 87 | AJ90: 3 | AK90: 12 | AL90: 15 | AN90: 0 | AO90: =AO89 -> 14 | AP90: 16 | AR90: 87 | AV90: 4 | AW90: 9 | AX90: 13 | AZ90: 0 | BA90: 10 | BB90: 16 | BD90: 87 | BI90: 1 | BJ90: 10 | BK90: 11 | BM90: 0 | BN90: 6 | BO90: 16 | BQ90: 87 | BW90: 3 | BX90: 7 | BY90: 10 | CA90: 0 | CB90: 4 | CC90: 16 | CE90: 87 | CL90: 3 | CM90: 6 | CN90: 9 | CP90: 0 | CQ90: 2 | CR90: 16
B91: 88 | C91: 28 | D91: 1 | F91: 29 | H91: 0 | I91: 26 | J91: 32 | M91: 88 | N91: 0 | O91: 22 | Q91: 22 | S91: 0 | T91: 12 | U91: 32 | W91: 88 | Y91: 2 | Z91: 16 | AA91: 18 | AC91: 0 | AD91: 4 | AE91: 32 | AG91: 88 | AJ91: 2 | AK91: 13 | AL91: 15 | AN91: 0 | AO91: =AO90 -> 14 | AP91: 16 | AR91: 88 | AV91: 3 | AW91: 10 | AX91: 13 | AZ91: 0 | BA91: 10 | BB91: 16 | BD91: 88 | BJ91: 11 | BK91: 11 | BM91: 0 | BN91: 6 | BO91: 16 | BQ91: 88 | BW91: 2 | BX91: 8 | BY91: 10 | CA91: 0 | CB91: 4 | CC91: 16 | CE91: 88 | CL91: 2 | CM91: 7 | CN91: 9 | CP91: 0 | CQ91: 2 | CR91: 16
B92: 89 | C92: 27 | D92: 2 | F92: 29 | H92: 0 | I92: 26 | J92: 32 | M92: 89 | N92: 3 | O92: 20 | Q92: 23 | S92: 0 | T92: 14 | U92: 32 | W92: 89 | Y92: 1 | Z92: 17 | AA92: 18 | AC92: 0 | AD92: 4 | AE92: 32 | AG92: 89 | AJ92: 1 | AK92: 14 | AL92: 15 | AN92: 0 | AO92: =AO91 -> 14 | AP92: 16 | AR92: 89 | AV92: 2 | AW92: 11 | AX92: 13 | AZ92: 0 | BA92: 10 | BB92: 16 | BD92: 89 | BI92: 7 | BJ92: 5 | BK92: 12 | BM92: 0 | BN92: 8 | BO92: 16 | BQ92: 89 | BW92: 1 | BX92: 9 | BY92: 10 | CA92: 0 | CB92: 4 | CC92: 16 | CE92: 89 | CL92: 1 | CM92: 8 | CN92: 9 | CP92: 0 | CQ92: 2 | CR92: 16
B93: 90 | C93: 30 | D93: 0 | F93: 30 | H93: 0 | I93: 28 | J93: 32 | M93: 90 | N93: 2 | O93: 21 | Q93: 23 | S93: 0 | T93: 14 | U93: 32 | W93: 90 | Z93: 18 | AA93: 18 | AC93: 0 | AD93: 4 | AE93: 32 | AG93: 90 | AK93: 15 | AL93: 15 | AN93: 0 | AO93: =AO92 -> 14 | AP93: 16 | AR93: 90 | AV93: 1 | AW93: 12 | AX93: 13 | AZ93: 0 | BA93: 10 | BB93: 16 | BD93: 90 | BI93: 6 | BJ93: 6 | BK93: 12 | BM93: 0 | BN93: 8 | BO93: 16 | BQ93: 90 | BX93: 10 | BY93: 10 | CA93: 0 | CB93: 4 | CC93: 16 | CE93: 90 | CM93: 9 | CN93: 9 | CP93: 0 | CQ93: 2 | CR93: 16
B94: 91 | C94: 29 | D94: 1 | F94: 30 | H94: 0 | I94: 28 | J94: 32 | M94: 91 | N94: 1 | O94: 22 | Q94: 23 | S94: 0 | T94: 14 | U94: 32 | W94: 91 | Y94: 4 | Z94: 15 | AA94: 19 | AC94: 0 | AD94: 6 | AE94: 32 | AG94: 91 | AJ94: 5 | AK94: 11 | AL94: 16 | AN94: 0 | AO94: 0 | AP94: 32 | AR94: 91 | AW94: 13 | AX94: 13 | AZ94: 0 | BA94: 10 | BB94: 16 | BD94: 91 | BI94: 5 | BJ94: 7 | BK94: 12 | BM94: 0 | BN94: 8 | BO94: 16 | BQ94: 91 | BW94: 8 | BX94: 3 | BY94: 11 | CA94: 0 | CB94: 6 | CC94: 16 | CE94: 91 | CL94: =CL85+1 -> 9 | CM94: =CM84+1 -> 1 | CN94: 10 | CP94: 0 | CQ94: 4 | CR94: 16
B95: 92 | C95: 28 | D95: 2 | F95: 30 | H95: 0 | I95: 28 | J95: 32 | M95: 92 | N95: 0 | O95: 23 | Q95: 23 | S95: 0 | T95: 14 | U95: 32 | W95: 92 | Y95: 3 | Z95: 16 | AA95: 19 | AC95: 0 | AD95: 6 | AE95: 32 | AG95: 92 | AJ95: 4 | AK95: 12 | AL95: 16 | AN95: 0 | AO95: =AO94 -> 0 | AP95: 32 | AR95: 92 | AV95: 6 | AW95: 8 | AX95: 14 | AZ95: 0 | BA95: 12 | BB95: 16 | BD95: 92 | BI95: 4 | BJ95: 8 | BK95: 12 | BM95: 0 | BN95: 8 | BO95: 16 | BQ95: 92 | BW95: 7 | BX95: 4 | BY95: 11 | CA95: 0 | CB95: 6 | CC95: 16 | CE95: 92 | CL95: 8 | CM95: =CM85+1 -> 2 | CN95: 10 | CP95: 0 | CQ95: 4 | CR95: 16
B96: 93 | C96: 31 | D96: 0 | F96: 31 | H96: 0 | I96: 30 | J96: 32 | M96: 93 | N96: 3 | O96: 21 | Q96: 24 | S96: 0 | T96: 16 | U96: 32 | W96: 93 | Y96: 2 | Z96: 17 | AA96: 19 | AC96: 0 | AD96: 6 | AE96: 32 | AG96: 93 | AJ96: 3 | AK96: 13 | AL96: 16 | AN96: 0 | AO96: =AO95 -> 0 | AP96: 32 | AR96: 93 | AV96: 5 | AW96: 9 | AX96: 14 | AZ96: 0 | BA96: 12 | BB96: 16 | BD96: 93 | BI96: 3 | BJ96: 9 | BK96: 12 | BM96: 0 | BN96: 8 | BO96: 16 | BQ96: 93 | BW96: 6 | BX96: 5 | BY96: 11 | CA96: 0 | CB96: 6 | CC96: 16 | CE96: 93 | CL96: 7 | CM96: 3 | CN96: 10 | CP96: 0 | CQ96: 4 | CR96: 16
B97: 94 | C97: 30 | D97: 1 | F97: 31 | H97: 0 | I97: 30 | J97: 32 | M97: 94 | N97: 2 | O97: 22 | Q97: 24 | S97: 0 | T97: 16 | U97: 32 | W97: 94 | Y97: 1 | Z97: 18 | AA97: 19 | AC97: 0 | AD97: 6 | AE97: 32 | AG97: 94 | AJ97: 2 | AK97: 14 | AL97: 16 | AN97: 0 | AO97: =AO96 -> 0 | AP97: 32 | AR97: 94 | AV97: 4 | AW97: 10 | AX97: 14 | AZ97: 0 | BA97: =BA90+2 -> 12 | BB97: 16 | BD97: 94 | BI97: 2 | BJ97: 10 | BK97: 12 | BM97: 0 | BN97: 8 | BO97: 16 | BQ97: 94 | BW97: 5 | BX97: 6 | BY97: 11 | CA97: 0 | CB97: 6 | CC97: 16 | CE97: 94 | CL97: 6 | CM97: 4 | CN97: 10 | CP97: 0 | CQ97: 4 | CR97: 16
B98: 95 | C98: 29 | D98: 2 | F98: 31 | H98: 0 | I98: 30 | J98: 32 | M98: 95 | N98: 1 | O98: 23 | Q98: 24 | S98: 0 | T98: 16 | U98: 32 | W98: 95 | Z98: 19 | AA98: 19 | AC98: 0 | AD98: 6 | AE98: 32 | AG98: 95 | AJ98: 1 | AK98: 15 | AL98: 16 | AN98: 0 | AO98: =AO97 -> 0 | AP98: 32 | AR98: 95 | AV98: 3 | AW98: 11 | AX98: 14 | AZ98: 0 | BA98: 12 | BB98: 16 | BD98: 95 | BI98: 1 | BJ98: 11 | BK98: 12 | BM98: 0 | BN98: 8 | BO98: 16 | BQ98: 95 | BW98: 4 | BX98: 7 | BY98: 11 | CA98: 0 | CB98: 6 | CC98: 16 | CE98: 95 | CL98: 5 | CM98: 5 | CN98: 10 | CP98: 0 | CQ98: 4 | CR98: 16
B99: 96 | C99: 32 | D99: 0 | F99: 32 | H99: 0 | I99: 0 | J99: 64 | M99: 96 | N99: 0 | O99: 24 | Q99: 24 | S99: 0 | T99: 16 | U99: 32 | W99: 96 | Y99: 4 | Z99: 16 | AA99: 20 | AC99: 0 | AD99: 8 | AE99: 32 | AG99: 96 | AK99: 16 | AL99: 16 | AN99: 0 | AO99: =AO98 -> 0 | AP99: 32 | AR99: 96 | AV99: 2 | AW99: 12 | AX99: 14 | AZ99: 0 | BA99: 12 | BB99: 16 | BD99: 96 | BJ99: 12 | BK99: 12 | BM99: 0 | BN99: 8 | BO99: 16 | BQ99: 96 | BW99: 3 | BX99: 8 | BY99: 11 | CA99: 0 | CB99: 6 | CC99: 16 | CE99: 96 | CL99: 4 | CM99: 6 | CN99: 10 | CP99: 0 | CQ99: 4 | CR99: 16
B100: 97 | C100: 32 | D100: 0 | F100: 32 | H100: 1 | I100: 1 | J100: 64 | M100: 97 | N100: 3 | O100: 22 | Q100: 25 | S100: 0 | T100: 18 | U100: 32 | W100: 97 | Y100: 3 | Z100: 17 | AA100: 20 | AC100: 0 | AD100: 8 | AE100: 32 | AG100: 97 | AJ100: 5 | AK100: 12 | AL100: 17 | AN100: 0 | AO100: =AO94+2 -> 2 | AP100: 32 | AR100: 97 | AV100: 1 | AW100: 13 | AX100: 14 | AZ100: 0 | BA100: 12 | BB100: 16 | BD100: 97 | BI100: 7 | BJ100: 6 | BK100: 13 | BM100: 0 | BN100: 10 | BO100: 16 | BQ100: 97 | BW100: 2 | BX100: 9 | BY100: 11 | CA100: 0 | CB100: 6 | CC100: 16 | CE100: 97 | CL100: 3 | CM100: 7 | CN100: 10 | CP100: 0 | CQ100: 4 | CR100: 16
B101: 98 | C101: 32 | D101: 0 | F101: 32 | H101: 2 | I101: 2 | J101: 64 | M101: 98 | N101: 2 | O101: 23 | Q101: 25 | S101: 0 | T101: 18 | U101: 32 | W101: 98 | Y101: 2 | Z101: 18 | AA101: 20 | AC101: 0 | AD101: 8 | AE101: 32 | AG101: 98 | AJ101: 4 | AK101: 13 | AL101: 17 | AN101: 0 | AO101: =AO100 -> 2 | AP101: 32 | AR101: 98 | AW101: 14 | AX101: 14 | AZ101: 0 | BA101: 12 | BB101: 16 | BD101: 98 | BI101: 6 | BJ101: 7 | BK101: 13 | BM101: 0 | BN101: 10 | BO101: 16 | BQ101: 98 | BW101: 1 | BX101: 10 | BY101: 11 | CA101: 0 | CB101: 6 | CC101: 16 | CE101: 98 | CL101: 2 | CM101: 8 | CN101: 10 | CP101: 0 | CQ101: 4 | CR101: 16
B102: 99 | C102: 32 | D102: 0 | F102: 32 | H102: 3 | I102: 3 | J102: 64 | M102: 99 | N102: 1 | O102: 24 | Q102: 25 | S102: 0 | T102: 18 | U102: 32 | W102: 99 | Y102: 1 | Z102: 19 | AA102: 20 | AC102: 0 | AD102: 8 | AE102: 32 | AG102: 99 | AJ102: 3 | AK102: 14 | AL102: =SUM(AH102:AK102) -> 17 | AN102: 0 | AO102: =AO101 -> 2 | AP102: 32 | AR102: 99 | AV102: 6 | AW102: 9 | AX102: =SUM(AS102:AW102) -> 15 | AZ102: 0 | BA102: 14 | BB102: 16 | BD102: 99 | BI102: 5 | BJ102: 8 | BK102: =SUM(BE102:BJ102) -> 13 | BM102: 0 | BN102: 10 | BO102: 16 | BQ102: 99 | BX102: 11 | BY102: =SUM(BR102:BX102) -> 11 | CA102: 0 | CB102: 6 | CC102: 16 | CE102: 99 | CL102: 1 | CM102: 9 | CN102: =SUM(CF102:CM102) -> 10 | CP102: 0 | CQ102: 4 | CR102: 16
B103: 100 | C103: 32 | D103: 0 | F103: 32 | H103: 4 | I103: 4 | J103: 64 | M103: 100 | N103: 0 | O103: 25 | Q103: 25 | S103: 0 | T103: 18 | U103: 32 | W103: 100 | Z103: 20 | AA103: 20 | AC103: 0 | AD103: 8 | AE103: 32 | AG103: 100 | AJ103: 2 | AK103: 15 | AL103: 17 | AN103: 0 | AO103: =AO102 -> 2 | AP103: 32 | AR103: 100 | AV103: 5 | AW103: 10 | AX103: 15 | AZ103: 0 | BA103: 14 | BB103: 16 | BD103: 100 | BI103: 4 | BJ103: 9 | BK103: 13 | BM103: 0 | BN103: 10 | BO103: 16 | BQ103: 100 | BW103: 8 | BX103: 4 | BY103: 12 | CA103: 0 | CB103: 8 | CC103: 16 | CE103: 100 | CM103: 10 | CN103: 10 | CP103: 0 | CQ103: 4 | CR103: 16
B104: 101 | C104: 32 | D104: 0 | F104: 32 | H104: 5 | I104: 5 | J104: 64 | M104: 101 | N104: 3 | O104: 23 | Q104: 26 | S104: 0 | T104: 20 | U104: 32 | W104: 101 | Y104: 4 | Z104: =Z99+1 -> 17 | AA104: 21 | AC104: 0 | AD104: 10 | AE104: 32 | AG104: 101 | AJ104: 1 | AK104: 16 | AL104: 17 | AN104: 0 | AO104: =AO103 -> 2 | AP104: 32 | AR104: 101 | AV104: 4 | AW104: 11 | AX104: 15 | AZ104: 0 | BA104: 14 | BB104: 16 | BD104: 101 | BI104: 3 | BJ104: 10 | BK104: 13 | BM104: 0 | BN104: 10 | BO104: 16 | BQ104: 101 | BW104: 7 | BX104: 5 | BY104: 12 | CA104: 0 | CB104: 8 | CC104: 16 | CE104: 101 | CL104: =CL95+1 -> 9 | CM104: 2 | CN104: 11 | CP104: 0 | CQ104: 6 | CR104: 16
B105: 102 | C105: 32 | D105: 0 | F105: 32 | H105: 6 | I105: 6 | J105: 64 | M105: 102 | N105: 2 | O105: 24 | Q105: 26 | S105: 0 | T105: 20 | U105: 32 | W105: 102 | Y105: 3 | Z105: 18 | AA105: 21 | AC105: 0 | AD105: 10 | AE105: 32 | AG105: 102 | AK105: =AK99+1 -> 17 | AL105: 17 | AN105: 0 | AO105: =AO104 -> 2 | AP105: 32 | AR105: 102 | AV105: 3 | AW105: 12 | AX105: 15 | AZ105: 0 | BA105: 14 | BB105: 16 | BD105: 102 | BI105: 2 | BJ105: 11 | BK105: 13 | BM105: 0 | BN105: 10 | BO105: 16 | BQ105: 102 | BW105: 6 | BX105: 6 | BY105: 12 | CA105: 0 | CB105: 8 | CC105: 16 | CE105: 102 | CL105: 8 | CM105: 3 | CN105: 11 | CP105: 0 | CQ105: 6 | CR105: 16
B106: 103 | C106: 32 | D106: 0 | F106: 32 | H106: 7 | I106: 7 | J106: 64 | M106: 103 | N106: 1 | O106: 25 | Q106: 26 | S106: 0 | T106: 20 | U106: 32 | W106: 103 | Y106: 2 | Z106: 19 | AA106: 21 | AC106: 0 | AD106: 10 | AE106: 32 | AG106: 103 | AJ106: 5 | AK106: 13 | AL106: 18 | AN106: 0 | AO106: =AO100+2 -> 4 | AP106: 32 | AR106: 103 | AV106: 2 | AW106: 13 | AX106: 15 | AZ106: 0 | BA106: 14 | BB106: 16 | BD106: 103 | BI106: 1 | BJ106: 12 | BK106: 13 | BM106: 0 | BN106: 10 | BO106: 16 | BQ106: 103 | BW106: 5 | BX106: 7 | BY106: 12 | CA106: 0 | CB106: 8 | CC106: 16 | CE106: 103 | CL106: 7 | CM106: 4 | CN106: 11 | CP106: 0 | CQ106: 6 | CR106: 16
B107: 104 | C107: 32 | D107: 0 | F107: 32 | H107: 8 | I107: 8 | J107: 64 | M107: 104 | N107: 0 | O107: 26 | Q107: 26 | S107: 0 | T107: 20 | U107: 32 | W107: 104 | Y107: 1 | Z107: 20 | AA107: 21 | AC107: 0 | AD107: 10 | AE107: 32 | AG107: 104 | AJ107: 4 | AK107: 14 | AL107: 18 | AN107: 0 | AO107: =AO106 -> 4 | AP107: 32 | AR107: 104 | AV107: 1 | AW107: 14 | AX107: 15 | AZ107: 0 | BA107: 14 | BB107: 16 | BD107: 104 | BJ107: 13 | BK107: 13 | BM107: 0 | BN107: 10 | BO107: 16 | BQ107: 104 | BW107: 4 | BX107: 8 | BY107: 12 | CA107: 0 | CB107: 8 | CC107: 16 | CE107: 104 | CL107: 6 | CM107: 5 | CN107: 11 | CP107: 0 | CQ107: 6 | CR107: 16
B108: 105 | C108: 32 | D108: 0 | F108: 32 | H108: 9 | I108: 9 | J108: 64 | M108: 105 | N108: 3 | O108: 24 | Q108: 27 | S108: 0 | T108: 22 | U108: 32 | W108: 105 | Z108: 21 | AA108: 21 | AC108: 0 | AD108: 10 | AE108: 32 | AG108: 105 | AJ108: 3 | AK108: 15 | AL108: 18 | AN108: 0 | AO108: =AO107 -> 4 | AP108: 32 | AR108: 105 | AW108: 15 | AX108: 15 | AZ108: 0 | BA108: 14 | BB108: 16 | BD108: 105 | BI108: 7 | BJ108: 7 | BK108: 14 | BM108: 0 | BN108: 12 | BO108: 16 | BQ108: 105 | BW108: 3 | BX108: 9 | BY108: 12 | CA108: 0 | CB108: 8 | CC108: 16 | CE108: 105 | CL108: 5 | CM108: 6 | CN108: 11 | CP108: 0 | CQ108: 6 | CR108: 16
B109: 106 | C109: 32 | D109: 0 | F109: 32 | H109: 10 | I109: 10 | J109: 64 | M109: 106 | N109: 2 | O109: 25 | Q109: 27 | S109: 0 | T109: 22 | U109: 32 | W109: 106 | Y109: 4 | Z109: 18 | AA109: 22 | AC109: 0 | AD109: 12 | AE109: 32 | AG109: 106 | AJ109: 2 | AK109: 16 | AL109: 18 | AN109: 0 | AO109: =AO108 -> 4 | AP109: 32 | AR109: 106 | AV109: 6 | AW109: 10 | AX109: 16 | AZ109: 0 | BA109: 0 | BB109: 32 | BD109: 106 | BI109: 6 | BJ109: 8 | BK109: 14 | BM109: 0 | BN109: 12 | BO109: 16 | BQ109: 106 | BW109: 2 | BX109: 10 | BY109: 12 | CA109: 0 | CB109: 8 | CC109: 16 | CE109: 106 | CL109: 4 | CM109: 7 | CN109: 11 | CP109: 0 | CQ109: 6 | CR109: 16
B110: 107 | C110: 32 | D110: 0 | F110: 32 | H110: 11 | I110: 11 | J110: 64 | M110: 107 | N110: 1 | O110: 26 | Q110: 27 | S110: 0 | T110: 22 | U110: 32 | W110: 107 | Y110: 3 | Z110: 19 | AA110: 22 | AC110: 0 | AD110: 12 | AE110: 32 | AG110: 107 | AJ110: 1 | AK110: 17 | AL110: 18 | AN110: 0 | AO110: =AO109 -> 4 | AP110: 32 | AR110: 107 | AV110: 5 | AW110: 11 | AX110: 16 | AZ110: 0 | BA110: 0 | BB110: 32 | BD110: 107 | BI110: 5 | BJ110: 9 | BK110: 14 | BM110: 0 | BN110: 12 | BO110: 16 | BQ110: 107 | BW110: 1 | BX110: 11 | BY110: 12 | CA110: 0 | CB110: 8 | CC110: 16 | CE110: 107 | CL110: 3 | CM110: 8 | CN110: 11 | CP110: 0 | CQ110: 6 | CR110: 16
B111: 108 | C111: 32 | D111: 0 | F111: 32 | H111: 12 | I111: 12 | J111: 64 | M111: 108 | N111: 0 | O111: 27 | Q111: 27 | S111: 0 | T111: 22 | U111: 32 | W111: 108 | Y111: 2 | Z111: 20 | AA111: 22 | AC111: 0 | AD111: 12 | AE111: 32 | AG111: 108 | AK111: 18 | AL111: 18 | AN111: 0 | AO111: =AO110 -> 4 | AP111: 32 | AR111: 108 | AV111: 4 | AW111: 12 | AX111: 16 | AZ111: 0 | BA111: 0 | BB111: 32 | BD111: 108 | BI111: 4 | BJ111: 10 | BK111: 14 | BM111: 0 | BN111: 12 | BO111: 16 | BQ111: 108 | BX111: 12 | BY111: 12 | CA111: 0 | CB111: 8 | CC111: 16 | CE111: 108 | CL111: 2 | CM111: 9 | CN111: 11 | CP111: 0 | CQ111: 6 | CR111: 16
B112: 109 | C112: 32 | D112: 0 | F112: 32 | H112: 13 | I112: 13 | J112: 64 | M112: 109 | N112: 3 | O112: 25 | Q112: 28 | S112: 0 | T112: 24 | U112: 32 | W112: 109 | Y112: 1 | Z112: 21 | AA112: 22 | AC112: 0 | AD112: 12 | AE112: 32 | AG112: 109 | AJ112: 5 | AK112: 14 | AL112: 19 | AN112: 0 | AO112: =AO106+2 -> 6 | AP112: 32 | AR112: 109 | AV112: 3 | AW112: 13 | AX112: 16 | AZ112: 0 | BA112: 0 | BB112: 32 | BD112: 109 | BI112: 3 | BJ112: 11 | BK112: 14 | BM112: 0 | BN112: 12 | BO112: 16 | BQ112: 109 | BW112: 8 | BX112: 5 | BY112: 13 | CA112: 0 | CB112: 10 | CC112: 16 | CE112: 109 | CL112: 1 | CM112: 10 | CN112: 11 | CP112: 0 | CQ112: 6 | CR112: 16
B113: 110 | C113: 32 | D113: 0 | F113: 32 | H113: 14 | I113: 14 | J113: 64 | M113: 110 | N113: 2 | O113: 26 | Q113: 28 | S113: 0 | T113: 24 | U113: 32 | W113: 110 | Z113: 22 | AA113: 22 | AC113: 0 | AD113: 12 | AE113: 32 | AG113: 110 | AJ113: 4 | AK113: 15 | AL113: 19 | AN113: 0 | AO113: =AO112 -> 6 | AP113: 32 | AR113: 110 | AV113: 2 | AW113: 14 | AX113: 16 | AZ113: 0 | BA113: 0 | BB113: 32 | BD113: 110 | BI113: 2 | BJ113: 12 | BK113: 14 | BM113: 0 | BN113: 12 | BO113: 16 | BQ113: 110 | BW113: 7 | BX113: 6 | BY113: 13 | CA113: 0 | CB113: 10 | CC113: 16 | CE113: 110 | CM113: 11 | CN113: 11 | CP113: 0 | CQ113: 6 | CR113: 16
B114: 111 | C114: 32 | D114: 0 | F114: 32 | H114: 15 | I114: 15 | J114: 64 | M114: 111 | N114: 1 | O114: 27 | Q114: 28 | S114: 0 | T114: 24 | U114: 32 | W114: 111 | Y114: 4 | Z114: 19 | AA114: 23 | AC114: 0 | AD114: 14 | AE114: 32 | AG114: 111 | AJ114: 3 | AK114: 16 | AL114: 19 | AN114: 0 | AO114: =AO113 -> 6 | AP114: 32 | AR114: 111 | AV114: 1 | AW114: 15 | AX114: 16 | AZ114: 0 | BA114: 0 | BB114: 32 | BD114: 111 | BI114: 1 | BJ114: 13 | BK114: 14 | BM114: 0 | BN114: 12 | BO114: 16 | BQ114: 111 | BW114: 6 | BX114: 7 | BY114: 13 | CA114: 0 | CB114: 10 | CC114: 16 | CE114: 111 | CL114: =CL105+1 -> 9 | CM114: 3 | CN114: 12 | CP114: 0 | CQ114: 8 | CR114: 16
B115: 112 | C115: 32 | D115: 0 | F115: 32 | H115: 16 | I115: 16 | J115: 64 | M115: 112 | N115: 0 | O115: 28 | Q115: 28 | S115: 0 | T115: 24 | U115: 32 | W115: 112 | Y115: 3 | Z115: 20 | AA115: 23 | AC115: 0 | AD115: 14 | AE115: 32 | AG115: 112 | AJ115: 2 | AK115: 17 | AL115: 19 | AN115: 0 | AO115: =AO114 -> 6 | AP115: 32 | AR115: 112 | AW115: 16 | AX115: 16 | AZ115: 0 | BA115: 0 | BB115: 32 | BD115: 112 | BJ115: 14 | BK115: 14 | BM115: 0 | BN115: 12 | BO115: 16 | BQ115: 112 | BW115: 5 | BX115: 8 | BY115: 13 | CA115: 0 | CB115: 10 | CC115: 16 | CE115: 112 | CL115: 8 | CM115: 4 | CN115: 12 | CP115: 0 | CQ115: 8 | CR115: 16
B116: 113 | C116: 32 | D116: 0 | F116: 32 | H116: 17 | I116: 17 | J116: 64 | M116: 113 | N116: 3 | O116: 26 | Q116: 29 | S116: 0 | T116: 26 | U116: 32 | W116: 113 | Y116: 2 | Z116: 21 | AA116: 23 | AC116: 0 | AD116: 14 | AE116: 32 | AG116: 113 | AJ116: 1 | AK116: 18 | AL116: 19 | AN116: 0 | AO116: =AO115 -> 6 | AP116: 32 | AR116: 113 | AV116: 6 | AW116: 11 | AX116: 17 | AZ116: 0 | BA116: 2 | BB116: 32 | BD116: 113 | BI116: 7 | BJ116: 8 | BK116: 15 | BM116: 0 | BN116: 14 | BO116: 16 | BQ116: 113 | BW116: 4 | BX116: 9 | BY116: 13 | CA116: 0 | CB116: 10 | CC116: 16 | CE116: 113 | CL116: 7 | CM116: 5 | CN116: 12 | CP116: 0 | CQ116: 8 | CR116: 16
B117: 114 | C117: 32 | D117: 0 | F117: 32 | H117: 18 | I117: 18 | J117: 64 | M117: 114 | N117: 2 | O117: 27 | Q117: 29 | S117: 0 | T117: 26 | U117: 32 | W117: 114 | Y117: 1 | Z117: 22 | AA117: 23 | AC117: 0 | AD117: 14 | AE117: 32 | AG117: 114 | AK117: 19 | AL117: 19 | AN117: 0 | AO117: =AO116 -> 6 | AP117: 32 | AR117: 114 | AV117: 5 | AW117: 12 | AX117: 17 | AZ117: 0 | BA117: 2 | BB117: 32 | BD117: 114 | BI117: 6 | BJ117: 9 | BK117: 15 | BM117: 0 | BN117: 14 | BO117: 16 | BQ117: 114 | BW117: 3 | BX117: 10 | BY117: 13 | CA117: 0 | CB117: 10 | CC117: 16 | CE117: 114 | CL117: 6 | CM117: 6 | CN117: 12 | CP117: 0 | CQ117: 8 | CR117: 16
B118: 115 | C118: 32 | D118: 0 | F118: 32 | H118: 19 | I118: 19 | J118: 64 | M118: 115 | N118: 1 | O118: 28 | Q118: 29 | S118: 0 | T118: 26 | U118: 32 | W118: 115 | Z118: 23 | AA118: 23 | AC118: 0 | AD118: 14 | AE118: 32 | AG118: 115 | AJ118: 5 | AK118: 15 | AL118: 20 | AN118: 0 | AO118: =AO112+2 -> 8 | AP118: 32 | AR118: 115 | AV118: 4 | AW118: =AW111+1 -> 13 | AX118: 17 | AZ118: 0 | BA118: 2 | BB118: 32 | BD118: 115 | BI118: 5 | BJ118: 10 | BK118: 15 | BM118: 0 | BN118: 14 | BO118: 16 | BQ118: 115 | BW118: 2 | BX118: 11 | BY118: 13 | CA118: 0 | CB118: 10 | CC118: 16 | CE118: 115 | CL118: 5 | CM118: 7 | CN118: 12 | CP118: 0 | CQ118: 8 | CR118: 16
B119: 116 | C119: 32 | D119: 0 | F119: 32 | H119: 20 | I119: 20 | J119: 64 | M119: 116 | N119: 0 | O119: 29 | Q119: 29 | S119: 0 | T119: 26 | U119: 32 | W119: 116 | Y119: 4 | Z119: 20 | AA119: 24 | AC119: 0 | AD119: 16 | AE119: 32 | AG119: 116 | AJ119: 4 | AK119: 16 | AL119: 20 | AN119: 0 | AO119: =AO118 -> 8 | AP119: 32 | AR119: 116 | AV119: 3 | AW119: 14 | AX119: 17 | AZ119: 0 | BA119: 2 | BB119: 32 | BD119: 116 | BI119: 4 | BJ119: 11 | BK119: 15 | BM119: 0 | BN119: 14 | BO119: 16 | BQ119: 116 | BW119: 1 | BX119: 12 | BY119: 13 | CA119: 0 | CB119: 10 | CC119: 16 | CE119: 116 | CL119: 4 | CM119: 8 | CN119: 12 | CP119: 0 | CQ119: 8 | CR119: 16
B120: 117 | C120: 32 | D120: 0 | F120: 32 | H120: 21 | I120: 21 | J120: 64 | M120: 117 | N120: 3 | O120: 27 | Q120: 30 | S120: 0 | T120: 28 | U120: 32 | W120: 117 | Y120: 3 | Z120: 21 | AA120: 24 | AC120: 0 | AD120: 16 | AE120: 32 | AG120: 117 | AJ120: 3 | AK120: 17 | AL120: 20 | AN120: 0 | AO120: =AO119 -> 8 | AP120: 32 | AR120: 117 | AV120: 2 | AW120: 15 | AX120: 17 | AZ120: 0 | BA120: 2 | BB120: 32 | BD120: 117 | BI120: 3 | BJ120: 12 | BK120: 15 | BM120: 0 | BN120: 14 | BO120: 16 | BQ120: 117 | BX120: 13 | BY120: 13 | CA120: 0 | CB120: 10 | CC120: 16 | CE120: 117 | CL120: 3 | CM120: 9 | CN120: 12 | CP120: 0 | CQ120: 8 | CR120: 16
B121: 118 | C121: 32 | D121: 0 | F121: 32 | H121: 22 | I121: 22 | J121: 64 | M121: 118 | N121: 2 | O121: 28 | Q121: 30 | S121: 0 | T121: 28 | U121: 32 | W121: 118 | Y121: 2 | Z121: 22 | AA121: 24 | AC121: 0 | AD121: 16 | AE121: 32 | AG121: 118 | AJ121: 2 | AK121: 18 | AL121: 20 | AN121: 0 | AO121: =AO120 -> 8 | AP121: 32 | AR121: 118 | AV121: 1 | AW121: 16 | AX121: 17 | AZ121: 0 | BA121: 2 | BB121: 32 | BD121: 118 | BI121: 2 | BJ121: 13 | BK121: 15 | BM121: 0 | BN121: 14 | BO121: 16 | BQ121: 118 | BW121: 8 | BX121: 6 | BY121: 14 | CA121: 0 | CB121: 12 | CC121: 16 | CE121: 118 | CL121: 2 | CM121: 10 | CN121: 12 | CP121: 0 | CQ121: 8 | CR121: 16
B122: 119 | C122: 32 | D122: 0 | F122: 32 | H122: 23 | I122: 23 | J122: 64 | M122: 119 | N122: 1 | O122: 29 | Q122: 30 | S122: 0 | T122: 28 | U122: 32 | W122: 119 | Y122: 1 | Z122: 23 | AA122: 24 | AC122: 0 | AD122: 16 | AE122: 32 | AG122: 119 | AJ122: 1 | AK122: 19 | AL122: 20 | AN122: 0 | AO122: =AO121 -> 8 | AP122: 32 | AR122: 119 | AW122: 17 | AX122: 17 | AZ122: 0 | BA122: 2 | BB122: 32 | BD122: 119 | BI122: 1 | BJ122: 14 | BK122: 15 | BM122: 0 | BN122: 14 | BO122: 16 | BQ122: 119 | BW122: 7 | BX122: 7 | BY122: 14 | CA122: 0 | CB122: 12 | CC122: 16 | CE122: 119 | CL122: 1 | CM122: 11 | CN122: 12 | CP122: 0 | CQ122: 8 | CR122: 16
B123: 120 | C123: 32 | D123: 0 | F123: 32 | H123: 24 | I123: 24 | J123: 64 | M123: 120 | N123: 0 | O123: 30 | Q123: 30 | S123: 0 | T123: 28 | U123: 32 | W123: 120 | Z123: 24 | AA123: 24 | AC123: 0 | AD123: 16 | AE123: 32 | AG123: 120 | AK123: 20 | AL123: 20 | AN123: 0 | AO123: =AO122 -> 8 | AP123: 32 | AR123: 120 | AV123: 6 | AW123: 12 | AX123: 18 | AZ123: 0 | BA123: 4 | BB123: 32 | BD123: 120 | BJ123: 15 | BK123: 15 | BM123: 0 | BN123: 14 | BO123: 16 | BQ123: 120 | BW123: 6 | BX123: 8 | BY123: 14 | CA123: 0 | CB123: 12 | CC123: 16 | CE123: 120 | CM123: 12 | CN123: 12 | CP123: 0 | CQ123: 8 | CR123: 16
B124: 121 | C124: 32 | D124: 0 | F124: 32 | H124: 25 | I124: 25 | J124: 64 | M124: 121 | N124: 3 | O124: 28 | Q124: 31 | S124: 0 | T124: 30 | U124: 32 | W124: 121 | Y124: 4 | Z124: 21 | AA124: 25 | AC124: 0 | AD124: 18 | AE124: 32 | AG124: 121 | AJ124: 5 | AK124: 16 | AL124: 21 | AN124: 0 | AO124: =AO118+2 -> 10 | AP124: 32 | AR124: 121 | AV124: 5 | AW124: 13 | AX124: 18 | AZ124: 0 | BA124: 4 | BB124: 32 | BD124: 121 | BI124: 7 | BJ124: 9 | BK124: 16 | BM124: 0 | BN124: 0 | BO124: 32 | BQ124: 121 | BW124: 5 | BX124: 9 | BY124: 14 | CA124: 0 | CB124: 12 | CC124: 16 | CE124: 121 | CL124: =CL115+1 -> 9 | CM124: 4 | CN124: 13 | CP124: 0 | CQ124: 10 | CR124: 16
B125: 122 | C125: 32 | D125: 0 | F125: 32 | H125: 26 | I125: 26 | J125: 64 | M125: 122 | N125: 2 | O125: 29 | Q125: 31 | S125: 0 | T125: 30 | U125: 32 | W125: 122 | Y125: 3 | Z125: 22 | AA125: 25 | AC125: 0 | AD125: 18 | AE125: 32 | AG125: 122 | AJ125: 4 | AK125: 17 | AL125: 21 | AN125: 0 | AO125: =AO124 -> 10 | AP125: 32 | AR125: 122 | AV125: 4 | AW125: 14 | AX125: 18 | AZ125: 0 | BA125: 4 | BB125: 32 | BD125: 122 | BI125: 6 | BJ125: 10 | BK125: 16 | BM125: 0 | BN125: 0 | BO125: 32 | BQ125: 122 | BW125: 4 | BX125: 10 | BY125: 14 | CA125: 0 | CB125: 12 | CC125: 16 | CE125: 122 | CL125: 8 | CM125: 5 | CN125: 13 | CP125: 0 | CQ125: 10 | CR125: 16
B126: 123 | C126: 32 | D126: 0 | F126: 32 | H126: 27 | I126: 27 | J126: 64 | M126: 123 | N126: 1 | O126: 30 | Q126: 31 | S126: 0 | T126: 30 | U126: 32 | W126: 123 | Y126: 2 | Z126: 23 | AA126: 25 | AC126: 0 | AD126: 18 | AE126: 32 | AG126: 123 | AJ126: 3 | AK126: 18 | AL126: 21 | AN126: 0 | AO126: =AO125 -> 10 | AP126: 32 | AR126: 123 | AV126: 3 | AW126: 15 | AX126: 18 | AZ126: 0 | BA126: 4 | BB126: 32 | BD126: 123 | BI126: 5 | BJ126: 11 | BK126: 16 | BM126: 0 | BN126: 0 | BO126: 32 | BQ126: 123 | BW126: 3 | BX126: 11 | BY126: 14 | CA126: 0 | CB126: 12 | CC126: 16 | CE126: 123 | CL126: 7 | CM126: 6 | CN126: 13 | CP126: 0 | CQ126: 10 | CR126: 16
B127: 124 | C127: 32 | D127: 0 | F127: 32 | H127: 28 | I127: 28 | J127: 64 | M127: 124 | N127: 0 | O127: 31 | Q127: 31 | S127: 0 | T127: 30 | U127: 32 | W127: 124 | Y127: 1 | Z127: 24 | AA127: 25 | AC127: 0 | AD127: 18 | AE127: 32 | AG127: 124 | AJ127: 2 | AK127: 19 | AL127: 21 | AN127: 0 | AO127: =AO126 -> 10 | AP127: 32 | AR127: 124 | AV127: 2 | AW127: 16 | AX127: 18 | AZ127: 0 | BA127: 4 | BB127: 32 | BD127: 124 | BI127: 4 | BJ127: 12 | BK127: 16 | BM127: 0 | BN127: 0 | BO127: 32 | BQ127: 124 | BW127: 2 | BX127: 12 | BY127: 14 | CA127: 0 | CB127: 12 | CC127: 16 | CE127: 124 | CL127: 6 | CM127: 7 | CN127: 13 | CP127: 0 | CQ127: 10 | CR127: 16
B128: 125 | C128: 32 | D128: 0 | F128: 32 | H128: 29 | I128: 29 | J128: 64 | M128: 125 | N128: 3 | O128: 29 | Q128: 32 | S128: 0 | T128: 0 | U128: 64 | W128: 125 | Z128: 25 | AA128: 25 | AC128: 0 | AD128: 18 | AE128: 32 | AG128: 125 | AJ128: 1 | AK128: 20 | AL128: 21 | AN128: 0 | AO128: =AO127 -> 10 | AP128: 32 | AR128: 125 | AV128: 1 | AW128: 17 | AX128: 18 | AZ128: 0 | BA128: 4 | BB128: 32 | BD128: 125 | BI128: 3 | BJ128: 13 | BK128: 16 | BM128: 0 | BN128: 0 | BO128: 32 | BQ128: 125 | BW128: 1 | BX128: 13 | BY128: 14 | CA128: 0 | CB128: 12 | CC128: 16 | CE128: 125 | CL128: 5 | CM128: 8 | CN128: 13 | CP128: 0 | CQ128: 10 | CR128: 16
